Workbook

Sheet Instructions
A1: FNCal Concepts | S1: Version: | T1: =Standards!C88 -> 24.7
A2: * | B2: Areas in blue are editable, and everything else is locked.
A3: * | B3: All configuration is done once on the Rollup tab. Information filled out in blue cells of the Rollup tab is automaticlly copied to First Tab and Last Tab and any tabs in between. This includes most of the information in the header, all job classes, and fund sources.
A4: * | B4: Costs for objects B, E, JA, and TE are formula-driven, based on DOH agency averages. These amounts are listed on the Standards Tab.
A5: * | B5: Indirect costs and indirect FTEs are also calculated based on DOH agency standards, and on division standards where applicable. To pick up division indirect costs, the division must be selected using the dropdown list on row 105.
A6: * | B6: Nearly all of the formulas may be overridden, and if overridden, the formulas can be easily restored.
A7: * | B7: The Rollup tab will not function if job classes or fund sources are overridden and placed out of sequence on any of the other tabs.
A8: * | B8: All calculations are performed in simple formulas, and no formulas are hidden.
A9: * | B9: Any tab in the standard FNCal format between First Tab and Last Tab will be included in the Rollup. This is true whether or not these tabs have been renamed, so don't re-name or move them!
A12: FNCal Step-by-Step
B13: 1. Configure the Rollup tab
C14: a. Bill number
C15: b. Bill title
C16: c. Fiscal note number
C17: d. Fiscal note date
C18: e. Job classes and salary step -- starts on row 19
D19: How to Set up a New Job Class
D20: i. On the rollup tab, in the blue cells under "Job Code Master" (beginning in B19), type a few letters of the desired job class - admin, for instance, for administrative assistant - then hit the drop down arrow to see a list of job classes that include the letters "admin." Select the job classification you want and it will populate the title, job code, range, step, and salary.
D21: ii. If you want to change the job classification you selected, you can either delete what you entered in cell B19 through B38, or you can select a blank row in the drop down box. Both of these methods will put the row back as it was, ready for a new selection.
D22: iii. The salary range will default to step L but you can type in a different step, and the salary will adjust itself accordingly.
D23: iv. If you have need to adjust the salary further, such as with a WMS position, Y-rated position, or dual language pay, change the salary in column F.
D24: How to adjust for Premium pay: (IT supervisors and staff that work in King County) staff that work in King County, and IT supervisors have 5% premium pay that is not included with the job classification selection. To add 5%, increase the range or step (not both) by two ranges or steps on the rollup tab. For instance, a 60 J is 5% higher than 58 J, and 58 L is 5% higher than 58 J.
C25: f. Fund Sources start on row 149, and if the necessary fund source is not listed, you may enter it in row 159.
A26: Note!
B27: Above items are automatically copied to all other tabs.
B29: 2. Add and configure additional tabs between First Tab and Last Tab
C30: a. Add tabs by R-clicking on a tab (not first or last) and use the move or copy function.
C31: b. Rename the tabs to reflect bill sections, divisions, etc.
C32: c. Enter header information not listed under item 1 above
C33: d. Choose the division on each tab from the drop down list on row 105 to include division indirects.
B35: 3. Enter FTE information on tabs between First Tab and Last Tab (inclusive)
C36: a. Enter the number of FTEs opposite the appropriate job class in each fiscal year indicated in columns G through L.
C37: b. Enter Board Member Days at $50 and $250 per day, if applicable.
C38: c. Repeat for each tab.
A39: Note!
B40: Standard Employee Benefits, Goods and Services, and Equipment cost will automatically calculate based on number of FTEs.
B42: 4. Enter non-standard expenses, if applicable
C43: a. Personal Services Contracts - row 69 | I43: e. Travel - row 88
C44: b. Attorney General Services - row 80 | I44: f. Equipment $5000 and Over - rows 91 - 96
C45: c. Personnel Services - row 81 | I45: g. Grants - row 98
C46: d. Purchased Services under or over $20,000 - rows 83 & 84
B48: 5. Override any automatically calculated costs if necessary
C49: a. Place an X in the first cell (Column A) of the row to be overridden -all formulas and data in that row will disapear.
C50: b. Enter the corrected amounts in the appopriate column in any cell highlighted in blue in that row.
A51: Tip!
B52: Remove the X and the original formulas will be restored automatically.
A53: Caution!
B54: Do not attempt to "drag down" an X in column A to override multiple rows. It won't work. Enter each X by typing it in and pressing the Enter key.
B56: 6. Enter fund sources for each fiscal year indicated starting on row 159
C57: a. Enter the appropriate dollar amount oppositde each fund in each year
C58: b. The objects of expenditure and fund sources must balance! When objects and funds are in balance, the Control Line below Total Expenditures will equal zero. A negative number on the Control Line indicates that additional funds are needed to balance expenditures.
A60: Notes
B61: At the bottom of First Tab and Last Tab is a box for notes. This can be used for anything that you want to keep a record of. One idea is to record how many hours are estimated for a position, and how that translated into the amount of FTE being requested. It will not appear on the print-out.

Sheet Rollup
A1: ROLLUP
C2: Bill Number | F2: Bill Section | I2: FN Number
B3: TITLE OF BILL OR DP: | C3: 988 DP SFY24 | M3: Version: | N3: =Standards!C88 -> 24.7
B4: PROGRAM / ACTIVITY | C4: 988 Suicide Prevention
B5: PERSON COMPLETING FNCAL | C5: Cristina Steward | I5: Phone Number | M5: Date:
M7: =Standards!I83 -> 2023-2025 | N7: SIX-YEAR
G8: =Standards!C83 -> 2024 | H8: =Standards!D83 -> 2025 | I8: =Standards!E83 -> 2026 | J8: =Standards!F83 -> 2027 | K8: =Standards!G83 -> 2028 | L8: =Standards!H83 -> 2029 | M8: BIENNIUM | N8: IMPACT
A10: FTE
B11: Board Member Days @ 50 per day | G11: =SUM('First Tab:Last Tab'!G11) -> 0 | H11: =SUM('First Tab:Last Tab'!H11) -> 0 | I11: =SUM('First Tab:Last Tab'!I11) -> 0 | J11: =SUM('First Tab:Last Tab'!J11) -> 0 | K11: =SUM('First Tab:Last Tab'!K11) -> 0 | L11: =SUM('First Tab:Last Tab'!L11) -> 0 | M11: =SUM(G11:H11) -> 0 | N11: =SUM(G11:L11) -> 0
B12: Board Member Days @ 250 per day | G12: =SUM('First Tab:Last Tab'!G12) -> 0 | H12: =SUM('First Tab:Last Tab'!H12) -> 0 | I12: =SUM('First Tab:Last Tab'!I12) -> 0 | J12: =SUM('First Tab:Last Tab'!J12) -> 0 | K12: =SUM('First Tab:Last Tab'!K12) -> 0 | L12: =SUM('First Tab:Last Tab'!L12) -> 0 | M12: =SUM(G12:H12) -> 0 | N12: =SUM(G12:L12) -> 0
B13: Board Member FTE @ 50 per day | G13: =SUM('First Tab:Last Tab'!G13) -> 0 | H13: =SUM('First Tab:Last Tab'!H13) -> 0 | I13: =SUM('First Tab:Last Tab'!I13) -> 0 | J13: =SUM('First Tab:Last Tab'!J13) -> 0 | K13: =SUM('First Tab:Last Tab'!K13) -> 0 | L13: =SUM('First Tab:Last Tab'!L13) -> 0 | M13: =SUM(G13:H13)/2 -> 0 | N13: =SUM(G13:L13)/6 -> 0
B14: Board Member FTE @ 250 per day | G14: =SUM('First Tab:Last Tab'!G14) -> 0 | H14: =SUM('First Tab:Last Tab'!H14) -> 0 | I14: =SUM('First Tab:Last Tab'!I14) -> 0 | J14: =SUM('First Tab:Last Tab'!J14) -> 0 | K14: =SUM('First Tab:Last Tab'!K14) -> 0 | L14: =SUM('First Tab:Last Tab'!L14) -> 0 | M14: =SUM(G14:H14)/2 -> 0 | N14: =SUM(G14:L14)/6 -> 0
B15: Total Board Member FTEs | G15: =SUM('First Tab:Last Tab'!G15) -> 0 | H15: =SUM('First Tab:Last Tab'!H15) -> 0 | I15: =SUM('First Tab:Last Tab'!I15) -> 0 | J15: =SUM('First Tab:Last Tab'!J15) -> 0 | K15: =SUM('First Tab:Last Tab'!K15) -> 0 | L15: =SUM('First Tab:Last Tab'!L15) -> 0 | M15: =SUM(M13:M14) -> 0 | N15: =SUM(N13:N14) -> 0
F16: =Standards!C86 -> 2024
F17: MONTHLY | M17: =Standards!I83 -> 2023-2025 | N17: SIX-YEAR
B18: Job Code Master | C18: JOB CODE | D18: RANGE | E18: STEP | F18: SALARY | G18: =Standards!C83 -> 2024 | H18: =Standards!D83 -> 2025 | I18: =Standards!E83 -> 2026 | J18: =Standards!F83 -> 2027 | K18: =Standards!G83 -> 2028 | L18: =Standards!H83 -> 2029 | M18: BIENNIUM | N18: IMPACT
B19: HEALTH SERVICES CONSULTANT 3 | C19: =_xlfn.IFNA(INDEX('DOP Job Classes'!B:B,MATCH($B19,'DOP Job Classes'!$C:$C,0)),"") -> 283J | D19: =_xlfn.IFNA(INDEX('DOP Job Classes'!D:D,MATCH($B19,'DOP Job Classes'!$C:$C,0)),0) -> 56 | E19: =IF(D19<>0,"L","") -> L | F19: =SUMPRODUCT(('Salary Sched'!$A$14:$A$739=D19)*('Salary Sched'!$B$13:$V$13=E19)*('Salary Sched'!$B$14:$V$739)) -> 6510 | G19: =SUM('First Tab:Last Tab'!G19) -> 0 | H19: =SUM('First Tab:Last Tab'!H19) -> 0 | I19: =SUM('First Tab:Last Tab'!I19) -> 0 | J19: =SUM('First Tab:Last Tab'!J19) -> 0 | K19: =SUM('First Tab:Last Tab'!K19) -> 0 | L19: =SUM('First Tab:Last Tab'!L19) -> 0 | M19: =SUM(G19:H19)/2 -> 0 | N19: =SUM(G19:L19)/6 -> 0
B20: WMS02 | C20: =_xlfn.IFNA(INDEX('DOP Job Classes'!B:B,MATCH($B20,'DOP Job Classes'!$C:$C,0)),"") -> WMS02 | D20: =_xlfn.IFNA(INDEX('DOP Job Classes'!D:D,MATCH($B20,'DOP Job Classes'!$C:$C,0)),0) -> 73 | E20: L | F20: =SUMPRODUCT(('Salary Sched'!$A$14:$A$739=D20)*('Salary Sched'!$B$13:$V$13=E20)*('Salary Sched'!$B$14:$V$739)) -> 9911 | G20: =SUM('First Tab:Last Tab'!G20) -> 0 | H20: =SUM('First Tab:Last Tab'!H20) -> 0 | I20: =SUM('First Tab:Last Tab'!I20) -> 0 | J20: =SUM('First Tab:Last Tab'!J20) -> 0 | K20: =SUM('First Tab:Last Tab'!K20) -> 0 | L20: =SUM('First Tab:Last Tab'!L20) -> 0 | M20: 0 | N20: 0
B21: BUDGET ANALYST 4 | C21: =_xlfn.IFNA(INDEX('DOP Job Classes'!B:B,MATCH($B21,'DOP Job Classes'!$C:$C,0)),"") -> 147D | D21: =_xlfn.IFNA(INDEX('DOP Job Classes'!D:D,MATCH($B21,'DOP Job Classes'!$C:$C,0)),0) -> 61 | E21: L | F21: =SUMPRODUCT(('Salary Sched'!$A$14:$A$739=D21)*('Salary Sched'!$B$13:$V$13=E21)*('Salary Sched'!$B$14:$V$739)) -> 7368 | G21: =SUM('First Tab:Last Tab'!G21) -> 0 | H21: =SUM('First Tab:Last Tab'!H21) -> 0 | I21: =SUM('First Tab:Last Tab'!I21) -> 0 | J21: =SUM('First Tab:Last Tab'!J21) -> 0 | K21: =SUM('First Tab:Last Tab'!K21) -> 0 | L21: =SUM('First Tab:Last Tab'!L21) -> 0 | M21: 0 | N21: 0
B22: HEALTH SERVICES CONSULTANT 4 | C22: =_xlfn.IFNA(INDEX('DOP Job Classes'!B:B,MATCH($B22,'DOP Job Classes'!$C:$C,0)),"") -> 283K | D22: =_xlfn.IFNA(INDEX('DOP Job Classes'!D:D,MATCH($B22,'DOP Job Classes'!$C:$C,0)),0) -> 60 | E22: L | F22: =SUMPRODUCT(('Salary Sched'!$A$14:$A$739=D22)*('Salary Sched'!$B$13:$V$13=E22)*('Salary Sched'!$B$14:$V$739)) -> 7184 | G22: =SUM('First Tab:Last Tab'!G22) -> 0 | H22: =SUM('First Tab:Last Tab'!H22) -> 0 | I22: =SUM('First Tab:Last Tab'!I22) -> 0 | J22: =SUM('First Tab:Last Tab'!J22) -> 0 | K22: =SUM('First Tab:Last Tab'!K22) -> 0 | L22: =SUM('First Tab:Last Tab'!L22) -> 0 | M22: 0 | N22: 0
B23: COMMUNICATIONS CONSULTANT 4 | C23: =_xlfn.IFNA(INDEX('DOP Job Classes'!B:B,MATCH($B23,'DOP Job Classes'!$C:$C,0)),"") -> 197L | D23: =_xlfn.IFNA(INDEX('DOP Job Classes'!D:D,MATCH($B23,'DOP Job Classes'!$C:$C,0)),0) -> 56 | E23: L | F23: =SUMPRODUCT(('Salary Sched'!$A$14:$A$739=D23)*('Salary Sched'!$B$13:$V$13=E23)*('Salary Sched'!$B$14:$V$739)) -> 6510 | G23: =SUM('First Tab:Last Tab'!G23) -> 0 | H23: =SUM('First Tab:Last Tab'!H23) -> 0 | I23: =SUM('First Tab:Last Tab'!I23) -> 0 | J23: =SUM('First Tab:Last Tab'!J23) -> 0 | K23: =SUM('First Tab:Last Tab'!K23) -> 0 | L23: =SUM('First Tab:Last Tab'!L23) -> 0 | M23: 0 | N23: 0
B24: IT BUSINESS ANALYST - JOURNEY | C24: =_xlfn.IFNA(INDEX('DOP Job Classes'!B:B,MATCH($B24,'DOP Job Classes'!$C:$C,0)),"") -> 483BA | D24: =_xlfn.IFNA(INDEX('DOP Job Classes'!D:D,MATCH($B24,'DOP Job Classes'!$C:$C,0)),0) -> 05IT | E24: L | F24: =SUMPRODUCT(('Salary Sched'!$A$14:$A$739=D24)*('Salary Sched'!$B$13:$V$13=E24)*('Salary Sched'!$B$14:$V$739)) -> 8669 | G24: =SUM('First Tab:Last Tab'!G24) -> 0 | H24: =SUM('First Tab:Last Tab'!H24) -> 0 | I24: =SUM('First Tab:Last Tab'!I24) -> 0 | J24: =SUM('First Tab:Last Tab'!J24) -> 0 | K24: =SUM('First Tab:Last Tab'!K24) -> 0 | L24: =SUM('First Tab:Last Tab'!L24) -> 0 | M24: =SUM(G24:H24)/2 -> 0 | N24: =SUM(G24:L24)/6 -> 0
B25: IT ARCHITECTURE - SENIOR/SPECIALIST | C25: =_xlfn.IFNA(INDEX('DOP Job Classes'!B:B,MATCH($B25,'DOP Job Classes'!$C:$C,0)),"") -> 484A | D25: =_xlfn.IFNA(INDEX('DOP Job Classes'!D:D,MATCH($B25,'DOP Job Classes'!$C:$C,0)),0) -> 09IT | E25: L | F25: =SUMPRODUCT(('Salary Sched'!$A$14:$A$739=D25)*('Salary Sched'!$B$13:$V$13=E25)*('Salary Sched'!$B$14:$V$739)) -> 10540 | G25: =SUM('First Tab:Last Tab'!G25) -> 0 | H25: =SUM('First Tab:Last Tab'!H25) -> 0 | I25: =SUM('First Tab:Last Tab'!I25) -> 0 | J25: =SUM('First Tab:Last Tab'!J25) -> 0 | K25: =SUM('First Tab:Last Tab'!K25) -> 0 | L25: =SUM('First Tab:Last Tab'!L25) -> 0 | M25: =SUM(G25:H25)/2 -> 0 | N25: =SUM(G25:L25)/6 -> 0
B26: MANAGEMENT ANALYST 5 | C26: =_xlfn.IFNA(INDEX('DOP Job Classes'!B:B,MATCH($B26,'DOP Job Classes'!$C:$C,0)),"") -> 109M | D26: =_xlfn.IFNA(INDEX('DOP Job Classes'!D:D,MATCH($B26,'DOP Job Classes'!$C:$C,0)),0) -> 64 | E26: L | F26: =SUMPRODUCT(('Salary Sched'!$A$14:$A$739=D26)*('Salary Sched'!$B$13:$V$13=E26)*('Salary Sched'!$B$14:$V$739)) -> 7932 | G26: =SUM('First Tab:Last Tab'!G26) -> 0 | H26: =SUM('First Tab:Last Tab'!H26) -> 0 | I26: =SUM('First Tab:Last Tab'!I26) -> 0 | J26: =SUM('First Tab:Last Tab'!J26) -> 0 | K26: =SUM('First Tab:Last Tab'!K26) -> 0 | L26: =SUM('First Tab:Last Tab'!L26) -> 0 | M26: =SUM(G26:H26)/2 -> 0 | N26: =SUM(G26:L26)/6 -> 0
B27: PUBLIC HEALTH AND EPIDEMIOLOGIST 2 | C27: =_xlfn.IFNA(INDEX('DOP Job Classes'!B:B,MATCH($B27,'DOP Job Classes'!$C:$C,0)),"") -> 289B | D27: =_xlfn.IFNA(INDEX('DOP Job Classes'!D:D,MATCH($B27,'DOP Job Classes'!$C:$C,0)),0) -> 82 | E27: L | F27: =SUMPRODUCT(('Salary Sched'!$A$14:$A$739=D27)*('Salary Sched'!$B$13:$V$13=E27)*('Salary Sched'!$B$14:$V$739)) -> 12375 | G27: =SUM('First Tab:Last Tab'!G27) -> 0 | H27: =SUM('First Tab:Last Tab'!H27) -> 1 | I27: =SUM('First Tab:Last Tab'!I27) -> 1 | J27: =SUM('First Tab:Last Tab'!J27) -> 1 | K27: =SUM('First Tab:Last Tab'!K27) -> 1 | L27: =SUM('First Tab:Last Tab'!L27) -> 1 | M27: 0.5 | N27: 0.8333333333
B28: ADMINISTRATIVE ASST 2 | C28: =_xlfn.IFNA(INDEX('DOP Job Classes'!B:B,MATCH($B28,'DOP Job Classes'!$C:$C,0)),"") -> 105F | D28: =_xlfn.IFNA(INDEX('DOP Job Classes'!D:D,MATCH($B28,'DOP Job Classes'!$C:$C,0)),0) -> 37 | E28: L | F28: =SUMPRODUCT(('Salary Sched'!$A$14:$A$739=D28)*('Salary Sched'!$B$13:$V$13=E28)*('Salary Sched'!$B$14:$V$739)) -> 4072 | G28: =SUM('First Tab:Last Tab'!G28) -> 0 | H28: =SUM('First Tab:Last Tab'!H28) -> 0 | I28: =SUM('First Tab:Last Tab'!I28) -> 0 | J28: =SUM('First Tab:Last Tab'!J28) -> 0 | K28: =SUM('First Tab:Last Tab'!K28) -> 0 | L28: =SUM('First Tab:Last Tab'!L28) -> 0 | M28: 0 | N28: 0
B29: HEALTH SERVICES CONSULTANT 1 | C29: =_xlfn.IFNA(INDEX('DOP Job Classes'!B:B,MATCH($B29,'DOP Job Classes'!$C:$C,0)),"") -> 283H | D29: =_xlfn.IFNA(INDEX('DOP Job Classes'!D:D,MATCH($B29,'DOP Job Classes'!$C:$C,0)),0) -> 44 | E29: L | F29: =SUMPRODUCT(('Salary Sched'!$A$14:$A$739=D29)*('Salary Sched'!$B$13:$V$13=E29)*('Salary Sched'!$B$14:$V$739)) -> 4842 | G29: =SUM('First Tab:Last Tab'!G29) -> 0 | H29: =SUM('First Tab:Last Tab'!H29) -> 0 | I29: =SUM('First Tab:Last Tab'!I29) -> 0 | J29: =SUM('First Tab:Last Tab'!J29) -> 0 | K29: =SUM('First Tab:Last Tab'!K29) -> 0 | L29: =SUM('First Tab:Last Tab'!L29) -> 0 | M29: 0 | N29: 0
B30: IT PROJECT MANAGEMENT - EXPERT | C30: =_xlfn.IFNA(INDEX('DOP Job Classes'!B:B,MATCH($B30,'DOP Job Classes'!$C:$C,0)),"") -> 485PM | D30: =_xlfn.IFNA(INDEX('DOP Job Classes'!D:D,MATCH($B30,'DOP Job Classes'!$C:$C,0)),0) -> 10IT | E30: L | F30: =SUMPRODUCT(('Salary Sched'!$A$14:$A$739=D30)*('Salary Sched'!$B$13:$V$13=E30)*('Salary Sched'!$B$14:$V$739)) -> 11064 | G30: =SUM('First Tab:Last Tab'!G30) -> 0 | H30: =SUM('First Tab:Last Tab'!H30) -> 0 | I30: =SUM('First Tab:Last Tab'!I30) -> 0 | J30: =SUM('First Tab:Last Tab'!J30) -> 0 | K30: =SUM('First Tab:Last Tab'!K30) -> 0 | L30: =SUM('First Tab:Last Tab'!L30) -> 0 | M30: 0 | N30: 0
C31: =_xlfn.IFNA(INDEX('DOP Job Classes'!B:B,MATCH($B31,'DOP Job Classes'!$C:$C,0)),"") ->  | D31: =_xlfn.IFNA(INDEX('DOP Job Classes'!D:D,MATCH($B31,'DOP Job Classes'!$C:$C,0)),0) -> 0 | F31: =SUMPRODUCT(('Salary Sched'!$A$14:$A$739=D31)*('Salary Sched'!$B$13:$V$13=E31)*('Salary Sched'!$B$14:$V$739)) -> 0 | G31: =SUM('First Tab:Last Tab'!G31) -> 0 | H31: =SUM('First Tab:Last Tab'!H31) -> 0 | I31: =SUM('First Tab:Last Tab'!I31) -> 0 | J31: =SUM('First Tab:Last Tab'!J31) -> 0 | K31: =SUM('First Tab:Last Tab'!K31) -> 0 | L31: =SUM('First Tab:Last Tab'!L31) -> 0 | M31: 0 | N31: 0
C32: =_xlfn.IFNA(INDEX('DOP Job Classes'!B:B,MATCH($B32,'DOP Job Classes'!$C:$C,0)),"") ->  | D32: =_xlfn.IFNA(INDEX('DOP Job Classes'!D:D,MATCH($B32,'DOP Job Classes'!$C:$C,0)),0) -> 0 | F32: =SUMPRODUCT(('Salary Sched'!$A$14:$A$739=D32)*('Salary Sched'!$B$13:$V$13=E32)*('Salary Sched'!$B$14:$V$739)) -> 0 | G32: =SUM('First Tab:Last Tab'!G32) -> 0 | H32: =SUM('First Tab:Last Tab'!H32) -> 0 | I32: =SUM('First Tab:Last Tab'!I32) -> 0 | J32: =SUM('First Tab:Last Tab'!J32) -> 0 | K32: =SUM('First Tab:Last Tab'!K32) -> 0 | L32: =SUM('First Tab:Last Tab'!L32) -> 0 | M32: 0 | N32: 0
C33: =_xlfn.IFNA(INDEX('DOP Job Classes'!B:B,MATCH($B33,'DOP Job Classes'!$C:$C,0)),"") ->  | D33: =_xlfn.IFNA(INDEX('DOP Job Classes'!D:D,MATCH($B33,'DOP Job Classes'!$C:$C,0)),0) -> 0 | F33: =SUMPRODUCT(('Salary Sched'!$A$14:$A$739=D33)*('Salary Sched'!$B$13:$V$13=E33)*('Salary Sched'!$B$14:$V$739)) -> 0 | G33: =SUM('First Tab:Last Tab'!G33) -> 0 | H33: =SUM('First Tab:Last Tab'!H33) -> 0 | I33: =SUM('First Tab:Last Tab'!I33) -> 0 | J33: =SUM('First Tab:Last Tab'!J33) -> 0 | K33: =SUM('First Tab:Last Tab'!K33) -> 0 | L33: =SUM('First Tab:Last Tab'!L33) -> 0 | M33: 0 | N33: 0
C34: =_xlfn.IFNA(INDEX('DOP Job Classes'!B:B,MATCH($B34,'DOP Job Classes'!$C:$C,0)),"") ->  | D34: =_xlfn.IFNA(INDEX('DOP Job Classes'!D:D,MATCH($B34,'DOP Job Classes'!$C:$C,0)),0) -> 0 | F34: =SUMPRODUCT(('Salary Sched'!$A$14:$A$739=D34)*('Salary Sched'!$B$13:$V$13=E34)*('Salary Sched'!$B$14:$V$739)) -> 0 | G34: =SUM('First Tab:Last Tab'!G34) -> 0 | H34: =SUM('First Tab:Last Tab'!H34) -> 0 | I34: =SUM('First Tab:Last Tab'!I34) -> 0 | J34: =SUM('First Tab:Last Tab'!J34) -> 0 | K34: =SUM('First Tab:Last Tab'!K34) -> 0 | L34: =SUM('First Tab:Last Tab'!L34) -> 0 | M34: 0 | N34: 0
C35: =_xlfn.IFNA(INDEX('DOP Job Classes'!B:B,MATCH($B35,'DOP Job Classes'!$C:$C,0)),"") ->  | D35: =_xlfn.IFNA(INDEX('DOP Job Classes'!D:D,MATCH($B35,'DOP Job Classes'!$C:$C,0)),0) -> 0 | F35: =SUMPRODUCT(('Salary Sched'!$A$14:$A$739=D35)*('Salary Sched'!$B$13:$V$13=E35)*('Salary Sched'!$B$14:$V$739)) -> 0 | G35: =SUM('First Tab:Last Tab'!G35) -> 0 | H35: =SUM('First Tab:Last Tab'!H35) -> 0 | I35: =SUM('First Tab:Last Tab'!I35) -> 0 | J35: =SUM('First Tab:Last Tab'!J35) -> 0 | K35: =SUM('First Tab:Last Tab'!K35) -> 0 | L35: =SUM('First Tab:Last Tab'!L35) -> 0 | M35: 0 | N35: 0
C36: =_xlfn.IFNA(INDEX('DOP Job Classes'!B:B,MATCH($B36,'DOP Job Classes'!$C:$C,0)),"") ->  | D36: =_xlfn.IFNA(INDEX('DOP Job Classes'!D:D,MATCH($B36,'DOP Job Classes'!$C:$C,0)),0) -> 0 | F36: =SUMPRODUCT(('Salary Sched'!$A$14:$A$739=D36)*('Salary Sched'!$B$13:$V$13=E36)*('Salary Sched'!$B$14:$V$739)) -> 0 | G36: =SUM('First Tab:Last Tab'!G36) -> 0 | H36: =SUM('First Tab:Last Tab'!H36) -> 0 | I36: =SUM('First Tab:Last Tab'!I36) -> 0 | J36: =SUM('First Tab:Last Tab'!J36) -> 0 | K36: =SUM('First Tab:Last Tab'!K36) -> 0 | L36: =SUM('First Tab:Last Tab'!L36) -> 0 | M36: 0 | N36: 0
C37: =_xlfn.IFNA(INDEX('DOP Job Classes'!B:B,MATCH($B37,'DOP Job Classes'!$C:$C,0)),"") ->  | D37: =_xlfn.IFNA(INDEX('DOP Job Classes'!D:D,MATCH($B37,'DOP Job Classes'!$C:$C,0)),0) -> 0 | F37: =SUMPRODUCT(('Salary Sched'!$A$14:$A$739=D37)*('Salary Sched'!$B$13:$V$13=E37)*('Salary Sched'!$B$14:$V$739)) -> 0 | G37: =SUM('First Tab:Last Tab'!G37) -> 0 | H37: =SUM('First Tab:Last Tab'!H37) -> 0 | I37: =SUM('First Tab:Last Tab'!I37) -> 0 | J37: =SUM('First Tab:Last Tab'!J37) -> 0 | K37: =SUM('First Tab:Last Tab'!K37) -> 0 | L37: =SUM('First Tab:Last Tab'!L37) -> 0 | M37: 0 | N37: 0
C38: =_xlfn.IFNA(INDEX('DOP Job Classes'!B:B,MATCH($B38,'DOP Job Classes'!$C:$C,0)),"") ->  | D38: =_xlfn.IFNA(INDEX('DOP Job Classes'!D:D,MATCH($B38,'DOP Job Classes'!$C:$C,0)),0) -> 0 | F38: =SUMPRODUCT(('Salary Sched'!$A$14:$A$739=D38)*('Salary Sched'!$B$13:$V$13=E38)*('Salary Sched'!$B$14:$V$739)) -> 0 | G38: =SUM('First Tab:Last Tab'!G38) -> 0 | H38: =SUM('First Tab:Last Tab'!H38) -> 0 | I38: =SUM('First Tab:Last Tab'!I38) -> 0 | J38: =SUM('First Tab:Last Tab'!J38) -> 0 | K38: =SUM('First Tab:Last Tab'!K38) -> 0 | L38: =SUM('First Tab:Last Tab'!L38) -> 0 | M38: 0 | N38: 0
B39: Total Permanent Temporary & Project FTEs | G39: =SUM('First Tab:Last Tab'!G39) -> 0 | H39: =SUM('First Tab:Last Tab'!H39) -> 1 | I39: =SUM('First Tab:Last Tab'!I39) -> 1 | J39: =SUM('First Tab:Last Tab'!J39) -> 1 | K39: =SUM('First Tab:Last Tab'!K39) -> 1 | L39: =SUM('First Tab:Last Tab'!L39) -> 1 | M39: =SUM(M19:M38) -> 0.5 | N39: =SUM(N19:N38) -> 0.8333333333
B41: TOTAL FTES: | G41: =SUM('First Tab:Last Tab'!G41) -> 0 | H41: =SUM('First Tab:Last Tab'!H41) -> 1 | I41: =SUM('First Tab:Last Tab'!I41) -> 1 | J41: =SUM('First Tab:Last Tab'!J41) -> 1 | K41: =SUM('First Tab:Last Tab'!K41) -> 1 | L41: =SUM('First Tab:Last Tab'!L41) -> 1 | M41: =M39+M15 -> 0.5 | N41: =N39+N15 -> 0.8333333333
B42: SALARIES | F42: =Standards!C86 -> 2024
A43: A | B43: POSITION / JOB DESCRIPTION: | C43: JOB CODE | D43: RANGE | E43: STEP | F43: SALARY
B44: Board Member Salaries @ 50 per day | G44: =SUM('First Tab:Last Tab'!G44) -> 0 | H44: =SUM('First Tab:Last Tab'!H44) -> 0 | I44: =SUM('First Tab:Last Tab'!I44) -> 0 | J44: =SUM('First Tab:Last Tab'!J44) -> 0 | K44: =SUM('First Tab:Last Tab'!K44) -> 0 | L44: =SUM('First Tab:Last Tab'!L44) -> 0 | M44: =SUM(G44:H44) -> 0 | N44: =SUM(G44:L44) -> 0
B45: Board Member Salaries @ 250 per day | G45: =SUM('First Tab:Last Tab'!G45) -> 0 | H45: =SUM('First Tab:Last Tab'!H45) -> 0 | I45: =SUM('First Tab:Last Tab'!I45) -> 0 | J45: =SUM('First Tab:Last Tab'!J45) -> 0 | K45: =SUM('First Tab:Last Tab'!K45) -> 0 | L45: =SUM('First Tab:Last Tab'!L45) -> 0 | M45: 0 | N45: 0
B46: =B19 -> HEALTH SERVICES CONSULTANT 3 | C46: 283J | D46: 56 | E46: L | F46: =F19*12 -> 78120 | G46: =SUM('First Tab:Last Tab'!G46) -> 0 | H46: =SUM('First Tab:Last Tab'!H46) -> 0 | I46: =SUM('First Tab:Last Tab'!I46) -> 0 | J46: =SUM('First Tab:Last Tab'!J46) -> 0 | K46: =SUM('First Tab:Last Tab'!K46) -> 0 | L46: =SUM('First Tab:Last Tab'!L46) -> 0 | M46: 0 | N46: 0
B47: WMS02 | C47: WMS02 | D47: 73 | E47: L | F47: 118932 | G47: =SUM('First Tab:Last Tab'!G47) -> 0 | H47: =SUM('First Tab:Last Tab'!H47) -> 0 | I47: =SUM('First Tab:Last Tab'!I47) -> 0 | J47: =SUM('First Tab:Last Tab'!J47) -> 0 | K47: =SUM('First Tab:Last Tab'!K47) -> 0 | L47: =SUM('First Tab:Last Tab'!L47) -> 0 | M47: 0 | N47: 0
B48: BUDGET ANALYST 4 | C48: 147D | D48: 61 | E48: L | F48: 88416 | G48: =SUM('First Tab:Last Tab'!G48) -> 0 | H48: =SUM('First Tab:Last Tab'!H48) -> 0 | I48: =SUM('First Tab:Last Tab'!I48) -> 0 | J48: =SUM('First Tab:Last Tab'!J48) -> 0 | K48: =SUM('First Tab:Last Tab'!K48) -> 0 | L48: =SUM('First Tab:Last Tab'!L48) -> 0 | M48: 0 | N48: 0
B49: HEALTH SERVICES CONSULTANT 4 | C49: 283K | D49: 60 | E49: L | F49: 86208 | G49: =SUM('First Tab:Last Tab'!G49) -> 0 | H49: =SUM('First Tab:Last Tab'!H49) -> 0 | I49: =SUM('First Tab:Last Tab'!I49) -> 0 | J49: =SUM('First Tab:Last Tab'!J49) -> 0 | K49: =SUM('First Tab:Last Tab'!K49) -> 0 | L49: =SUM('First Tab:Last Tab'!L49) -> 0 | M49: 0 | N49: 0
B50: COMMUNICATIONS CONSULTANT 4 | C50: 197L | D50: 56 | E50: L | F50: 78120 | G50: =SUM('First Tab:Last Tab'!G50) -> 0 | H50: =SUM('First Tab:Last Tab'!H50) -> 0 | I50: =SUM('First Tab:Last Tab'!I50) -> 0 | J50: =SUM('First Tab:Last Tab'!J50) -> 0 | K50: =SUM('First Tab:Last Tab'!K50) -> 0 | L50: =SUM('First Tab:Last Tab'!L50) -> 0 | M50: 0 | N50: 0
B51: IT BUSINESS ANALYST - JOURNEY | C51: 483BA | D51: 05IT | E51: L | F51: =F24*12 -> 104028 | G51: =SUM('First Tab:Last Tab'!G51) -> 0 | H51: =SUM('First Tab:Last Tab'!H51) -> 0 | I51: =SUM('First Tab:Last Tab'!I51) -> 0 | J51: =SUM('First Tab:Last Tab'!J51) -> 0 | K51: =SUM('First Tab:Last Tab'!K51) -> 0 | L51: =SUM('First Tab:Last Tab'!L51) -> 0 | M51: 0 | N51: 0
B52: IT ARCHITECTURE - SENIOR/SPECIALIST | C52: 484A | D52: 09IT | E52: L | F52: =F25*12 -> 126480 | G52: =SUM('First Tab:Last Tab'!G52) -> 0 | H52: =SUM('First Tab:Last Tab'!H52) -> 0 | I52: =SUM('First Tab:Last Tab'!I52) -> 0 | J52: =SUM('First Tab:Last Tab'!J52) -> 0 | K52: =SUM('First Tab:Last Tab'!K52) -> 0 | L52: =SUM('First Tab:Last Tab'!L52) -> 0 | M52: 0 | N52: 0
B53: MANAGEMENT ANALYST 5 | C53: 109M | D53: 64 | E53: L | F53: =F26*12 -> 95184 | G53: =SUM('First Tab:Last Tab'!G53) -> 0 | H53: =SUM('First Tab:Last Tab'!H53) -> 0 | I53: =SUM('First Tab:Last Tab'!I53) -> 0 | J53: =SUM('First Tab:Last Tab'!J53) -> 0 | K53: =SUM('First Tab:Last Tab'!K53) -> 0 | L53: =SUM('First Tab:Last Tab'!L53) -> 0 | M53: 0 | N53: 0
B54: PUBLIC HEALTH AND EPIDEMIOLOGIST 2 | C54: 289B | D54: 82 | E54: L | F54: 148500 | G54: =SUM('First Tab:Last Tab'!G54) -> 0 | H54: =SUM('First Tab:Last Tab'!H54) -> 152955 | I54: =SUM('First Tab:Last Tab'!I54) -> 152955 | J54: =SUM('First Tab:Last Tab'!J54) -> 152955 | K54: =SUM('First Tab:Last Tab'!K54) -> 152955 | L54: =SUM('First Tab:Last Tab'!L54) -> 152955 | M54: 152955 | N54: 764775
B55: ADMINISTRATIVE ASST 2 | C55: 105F | D55: 37 | E55: L | F55: 48864 | G55: =SUM('First Tab:Last Tab'!G55) -> 0 | H55: =SUM('First Tab:Last Tab'!H55) -> 0 | I55: =SUM('First Tab:Last Tab'!I55) -> 0 | J55: =SUM('First Tab:Last Tab'!J55) -> 0 | K55: =SUM('First Tab:Last Tab'!K55) -> 0 | L55: =SUM('First Tab:Last Tab'!L55) -> 0 | M55: 0 | N55: 0
B56: HEALTH SERVICES CONSULTANT 1 | C56: 283H | D56: 44 | E56: L | F56: 58104 | G56: =SUM('First Tab:Last Tab'!G56) -> 0 | H56: =SUM('First Tab:Last Tab'!H56) -> 0 | I56: =SUM('First Tab:Last Tab'!I56) -> 0 | J56: =SUM('First Tab:Last Tab'!J56) -> 0 | K56: =SUM('First Tab:Last Tab'!K56) -> 0 | L56: =SUM('First Tab:Last Tab'!L56) -> 0 | M56: 0 | N56: 0
B57: IT PROJECT MANAGEMENT - EXPERT | C57: 485PM | D57: 10IT | E57: L | F57: 132768 | G57: =SUM('First Tab:Last Tab'!G57) -> 0 | H57: =SUM('First Tab:Last Tab'!H57) -> 0 | I57: =SUM('First Tab:Last Tab'!I57) -> 0 | J57: =SUM('First Tab:Last Tab'!J57) -> 0 | K57: =SUM('First Tab:Last Tab'!K57) -> 0 | L57: =SUM('First Tab:Last Tab'!L57) -> 0 | M57: 0 | N57: 0
B58: 0 | D58: 0 | F58: 0 | G58: =SUM('First Tab:Last Tab'!G58) -> 0 | H58: =SUM('First Tab:Last Tab'!H58) -> 0 | I58: =SUM('First Tab:Last Tab'!I58) -> 0 | J58: =SUM('First Tab:Last Tab'!J58) -> 0 | K58: =SUM('First Tab:Last Tab'!K58) -> 0 | L58: =SUM('First Tab:Last Tab'!L58) -> 0 | M58: 0 | N58: 0
B59: 0 | D59: 0 | F59: 0 | G59: =SUM('First Tab:Last Tab'!G59) -> 0 | H59: =SUM('First Tab:Last Tab'!H59) -> 0 | I59: =SUM('First Tab:Last Tab'!I59) -> 0 | J59: =SUM('First Tab:Last Tab'!J59) -> 0 | K59: =SUM('First Tab:Last Tab'!K59) -> 0 | L59: =SUM('First Tab:Last Tab'!L59) -> 0 | M59: 0 | N59: 0
B60: 0 | D60: 0 | F60: 0 | G60: =SUM('First Tab:Last Tab'!G60) -> 0 | H60: =SUM('First Tab:Last Tab'!H60) -> 0 | I60: =SUM('First Tab:Last Tab'!I60) -> 0 | J60: =SUM('First Tab:Last Tab'!J60) -> 0 | K60: =SUM('First Tab:Last Tab'!K60) -> 0 | L60: =SUM('First Tab:Last Tab'!L60) -> 0 | M60: 0 | N60: 0
B61: 0 | D61: 0 | F61: 0 | G61: =SUM('First Tab:Last Tab'!G61) -> 0 | H61: =SUM('First Tab:Last Tab'!H61) -> 0 | I61: =SUM('First Tab:Last Tab'!I61) -> 0 | J61: =SUM('First Tab:Last Tab'!J61) -> 0 | K61: =SUM('First Tab:Last Tab'!K61) -> 0 | L61: =SUM('First Tab:Last Tab'!L61) -> 0 | M61: 0 | N61: 0
B62: 0 | D62: 0 | F62: 0 | G62: =SUM('First Tab:Last Tab'!G62) -> 0 | H62: =SUM('First Tab:Last Tab'!H62) -> 0 | I62: =SUM('First Tab:Last Tab'!I62) -> 0 | J62: =SUM('First Tab:Last Tab'!J62) -> 0 | K62: =SUM('First Tab:Last Tab'!K62) -> 0 | L62: =SUM('First Tab:Last Tab'!L62) -> 0 | M62: 0 | N62: 0
B63: 0 | D63: 0 | F63: 0 | G63: =SUM('First Tab:Last Tab'!G63) -> 0 | H63: =SUM('First Tab:Last Tab'!H63) -> 0 | I63: =SUM('First Tab:Last Tab'!I63) -> 0 | J63: =SUM('First Tab:Last Tab'!J63) -> 0 | K63: =SUM('First Tab:Last Tab'!K63) -> 0 | L63: =SUM('First Tab:Last Tab'!L63) -> 0 | M63: 0 | N63: 0
B64: 0 | D64: 0 | F64: 0 | G64: =SUM('First Tab:Last Tab'!G64) -> 0 | H64: =SUM('First Tab:Last Tab'!H64) -> 0 | I64: =SUM('First Tab:Last Tab'!I64) -> 0 | J64: =SUM('First Tab:Last Tab'!J64) -> 0 | K64: =SUM('First Tab:Last Tab'!K64) -> 0 | L64: =SUM('First Tab:Last Tab'!L64) -> 0 | M64: 0 | N64: 0
B65: 0 | D65: 0 | F65: 0 | G65: =SUM('First Tab:Last Tab'!G65) -> 0 | H65: =SUM('First Tab:Last Tab'!H65) -> 0 | I65: =SUM('First Tab:Last Tab'!I65) -> 0 | J65: =SUM('First Tab:Last Tab'!J65) -> 0 | K65: =SUM('First Tab:Last Tab'!K65) -> 0 | L65: =SUM('First Tab:Last Tab'!L65) -> 0 | M65: 0 | N65: 0
B66: TOTAL SALARIES | G66: =SUM('First Tab:Last Tab'!G66) -> 0 | H66: =SUM('First Tab:Last Tab'!H66) -> 152955 | I66: =SUM('First Tab:Last Tab'!I66) -> 152955 | J66: =SUM('First Tab:Last Tab'!J66) -> 152955 | K66: =SUM('First Tab:Last Tab'!K66) -> 152955 | L66: =SUM('First Tab:Last Tab'!L66) -> 152955 | M66: 152955 | N66: 764775
A67: B | B67: BENEFITS
B68: Standard Benefits as a Percentage of Total Salaries | G68: =SUM('First Tab:Last Tab'!G68) -> 0 | H68: =SUM('First Tab:Last Tab'!H68) -> 44474.499 | I68: =SUM('First Tab:Last Tab'!I68) -> 44474.499 | J68: =SUM('First Tab:Last Tab'!J68) -> 44474.499 | K68: =SUM('First Tab:Last Tab'!K68) -> 44474.499 | L68: =SUM('First Tab:Last Tab'!L68) -> 44474.499 | M68: =SUM(G68:H68) -> 44474.499 | N68: =SUM(G68:L68) -> 222372.495
A69: C | B69: PERSONAL SERVICES CONTRACTS | G69: =SUM('First Tab:Last Tab'!G69) -> 0 | H69: =SUM('First Tab:Last Tab'!H69) -> 0 | I69: =SUM('First Tab:Last Tab'!I69) -> 0 | J69: =SUM('First Tab:Last Tab'!J69) -> 0 | K69: =SUM('First Tab:Last Tab'!K69) -> 0 | L69: =SUM('First Tab:Last Tab'!L69) -> 0 | M69: =SUM(G69:H69) -> 0 | N69: =SUM(G69:L69) -> 0
A70: E | B70: GOODS AND SERVICES
B71: Supplies & Materials | C71: EA | G71: =SUM('First Tab:Last Tab'!G71) -> 0 | H71: =SUM('First Tab:Last Tab'!H71) -> 495 | I71: =SUM('First Tab:Last Tab'!I71) -> 495 | J71: =SUM('First Tab:Last Tab'!J71) -> 495 | K71: =SUM('First Tab:Last Tab'!K71) -> 495 | L71: =SUM('First Tab:Last Tab'!L71) -> 495 | M71: =SUM(G71:H71) -> 495 | N71: =SUM(G71:L71) -> 2475
B72: Communications (Includes Postage) | C72: EB | G72: =SUM('First Tab:Last Tab'!G72) -> 0 | H72: =SUM('First Tab:Last Tab'!H72) -> 454 | I72: =SUM('First Tab:Last Tab'!I72) -> 454 | J72: =SUM('First Tab:Last Tab'!J72) -> 454 | K72: =SUM('First Tab:Last Tab'!K72) -> 454 | L72: =SUM('First Tab:Last Tab'!L72) -> 454 | M72: 454 | N72: 2270
G73: =SUM('First Tab:Last Tab'!G73) -> 0 | H73: =SUM('First Tab:Last Tab'!H73) -> 0 | I73: =SUM('First Tab:Last Tab'!I73) -> 0 | J73: =SUM('First Tab:Last Tab'!J73) -> 0 | K73: =SUM('First Tab:Last Tab'!K73) -> 0 | L73: =SUM('First Tab:Last Tab'!L73) -> 0 | M73: 0 | N73: 0
B74: Repairs & maintenance | C74: EE | G74: =SUM('First Tab:Last Tab'!G74) -> 0 | H74: =SUM('First Tab:Last Tab'!H74) -> 298 | I74: =SUM('First Tab:Last Tab'!I74) -> 298 | J74: =SUM('First Tab:Last Tab'!J74) -> 298 | K74: =SUM('First Tab:Last Tab'!K74) -> 298 | L74: =SUM('First Tab:Last Tab'!L74) -> 298 | M74: 298 | N74: 1490
B75: Printing & Reproduction | C75: EF | G75: =SUM('First Tab:Last Tab'!G75) -> 0 | H75: =SUM('First Tab:Last Tab'!H75) -> 0 | I75: =SUM('First Tab:Last Tab'!I75) -> 0 | J75: =SUM('First Tab:Last Tab'!J75) -> 0 | K75: =SUM('First Tab:Last Tab'!K75) -> 0 | L75: =SUM('First Tab:Last Tab'!L75) -> 0 | M75: 0 | N75: 0
B76: Employee Training | C76: EG | G76: =SUM('First Tab:Last Tab'!G76) -> 0 | H76: =SUM('First Tab:Last Tab'!H76) -> 575 | I76: =SUM('First Tab:Last Tab'!I76) -> 575 | J76: =SUM('First Tab:Last Tab'!J76) -> 575 | K76: =SUM('First Tab:Last Tab'!K76) -> 575 | L76: =SUM('First Tab:Last Tab'!L76) -> 575 | M76: 575 | N76: 2875
B77: Subscriptions | C77: EJ | G77: =SUM('First Tab:Last Tab'!G77) -> 0 | H77: =SUM('First Tab:Last Tab'!H77) -> 0 | I77: =SUM('First Tab:Last Tab'!I77) -> 0 | J77: =SUM('First Tab:Last Tab'!J77) -> 0 | K77: =SUM('First Tab:Last Tab'!K77) -> 0 | L77: =SUM('First Tab:Last Tab'!L77) -> 0 | M77: 0 | N77: 0
B78: Facilities and Services | C78: EK | G78: =SUM('First Tab:Last Tab'!G78) -> 0 | H78: =SUM('First Tab:Last Tab'!H78) -> 265 | I78: =SUM('First Tab:Last Tab'!I78) -> 265 | J78: =SUM('First Tab:Last Tab'!J78) -> 265 | K78: =SUM('First Tab:Last Tab'!K78) -> 265 | L78: =SUM('First Tab:Last Tab'!L78) -> 265 | M78: 265 | N78: 1325
B79: Data Processing Services | C79: EL | G79: =SUM('First Tab:Last Tab'!G79) -> 0 | H79: =SUM('First Tab:Last Tab'!H79) -> 0 | I79: =SUM('First Tab:Last Tab'!I79) -> 0 | J79: =SUM('First Tab:Last Tab'!J79) -> 0 | K79: =SUM('First Tab:Last Tab'!K79) -> 0 | L79: =SUM('First Tab:Last Tab'!L79) -> 0 | M79: 0 | N79: 0
B80: Attorney General Services | C80: EM | G80: =SUM('First Tab:Last Tab'!G80) -> 0 | H80: =SUM('First Tab:Last Tab'!H80) -> 0 | I80: =SUM('First Tab:Last Tab'!I80) -> 0 | J80: =SUM('First Tab:Last Tab'!J80) -> 0 | K80: =SUM('First Tab:Last Tab'!K80) -> 0 | L80: =SUM('First Tab:Last Tab'!L80) -> 0 | M80: 0 | N80: 0
B81: Personnel Services | C81: EN | G81: =SUM('First Tab:Last Tab'!G81) -> 0 | H81: =SUM('First Tab:Last Tab'!H81) -> 0 | I81: =SUM('First Tab:Last Tab'!I81) -> 0 | J81: =SUM('First Tab:Last Tab'!J81) -> 0 | K81: =SUM('First Tab:Last Tab'!K81) -> 0 | L81: =SUM('First Tab:Last Tab'!L81) -> 0 | M81: 0 | N81: 0
B82: Insurance | C82: EP | G82: =SUM('First Tab:Last Tab'!G82) -> 0 | H82: =SUM('First Tab:Last Tab'!H82) -> 0 | I82: =SUM('First Tab:Last Tab'!I82) -> 0 | J82: =SUM('First Tab:Last Tab'!J82) -> 0 | K82: =SUM('First Tab:Last Tab'!K82) -> 0 | L82: =SUM('First Tab:Last Tab'!L82) -> 0 | M82: 0 | N82: 0
B83: Purchased services under 20,000 | C83: ER | G83: =SUM('First Tab:Last Tab'!G83) -> 0 | H83: =SUM('First Tab:Last Tab'!H83) -> 0 | I83: =SUM('First Tab:Last Tab'!I83) -> 0 | J83: =SUM('First Tab:Last Tab'!J83) -> 0 | K83: =SUM('First Tab:Last Tab'!K83) -> 0 | L83: =SUM('First Tab:Last Tab'!L83) -> 0 | M83: =SUM(G83:H83) -> 0 | N83: =SUM(G83:L83) -> 0
B84: Purchased services over 20,000 | C84: ER 8*** | G84: =SUM('First Tab:Last Tab'!G84) -> 0 | H84: =SUM('First Tab:Last Tab'!H84) -> 0 | I84: =SUM('First Tab:Last Tab'!I84) -> 0 | J84: =SUM('First Tab:Last Tab'!J84) -> 0 | K84: =SUM('First Tab:Last Tab'!K84) -> 0 | L84: =SUM('First Tab:Last Tab'!L84) -> 0 | M84: 0 | N84: 0
B85: Other | C85: ES thru EZ | G85: =SUM('First Tab:Last Tab'!G85) -> 0 | H85: =SUM('First Tab:Last Tab'!H85) -> 0 | I85: =SUM('First Tab:Last Tab'!I85) -> 0 | J85: =SUM('First Tab:Last Tab'!J85) -> 0 | K85: =SUM('First Tab:Last Tab'!K85) -> 0 | L85: =SUM('First Tab:Last Tab'!L85) -> 0 | M85: 0 | N85: 0
B86: TOTAL GOODS AND SERVICES | G86: =SUM('First Tab:Last Tab'!G86) -> 0 | H86: =SUM('First Tab:Last Tab'!H86) -> 2087 | I86: =SUM('First Tab:Last Tab'!I86) -> 2087 | J86: =SUM('First Tab:Last Tab'!J86) -> 2087 | K86: =SUM('First Tab:Last Tab'!K86) -> 2087 | L86: =SUM('First Tab:Last Tab'!L86) -> 2087 | M86: =SUM(M71:M85) -> 2087 | N86: =SUM(N71:N85) -> 10435
A87: G | B87: TRAVEL
G88: =SUM('First Tab:Last Tab'!G88) -> 0 | H88: =SUM('First Tab:Last Tab'!H88) -> 0 | I88: =SUM('First Tab:Last Tab'!I88) -> 0 | J88: =SUM('First Tab:Last Tab'!J88) -> 0 | K88: =SUM('First Tab:Last Tab'!K88) -> 0 | L88: =SUM('First Tab:Last Tab'!L88) -> 0 | M88: =SUM(G88:H88) -> 0 | N88: =SUM(G88:L88) -> 0
A89: JA | B89: EQUIPMENT LESS THAN 5000
B90: Standard Equipment per FTE | G90: =SUM('First Tab:Last Tab'!G90) -> 0 | H90: =SUM('First Tab:Last Tab'!H90) -> 0 | I90: =SUM('First Tab:Last Tab'!I90) -> 0 | J90: =SUM('First Tab:Last Tab'!J90) -> 0 | K90: =SUM('First Tab:Last Tab'!K90) -> 0 | L90: =SUM('First Tab:Last Tab'!L90) -> 0 | M90: =SUM(G90:H90) -> 0 | N90: =SUM(G90:L90) -> 0
A91: JC | B91: EQUIPMENT $5,000 AND OVER
G92: =SUM('First Tab:Last Tab'!G92) -> 0 | H92: =SUM('First Tab:Last Tab'!H92) -> 0 | I92: =SUM('First Tab:Last Tab'!I92) -> 0 | J92: =SUM('First Tab:Last Tab'!J92) -> 0 | K92: =SUM('First Tab:Last Tab'!K92) -> 0 | L92: =SUM('First Tab:Last Tab'!L92) -> 0 | M92: =SUM(G92:H92) -> 0 | N92: =SUM(G92:L92) -> 0
G93: =SUM('First Tab:Last Tab'!G93) -> 0 | H93: =SUM('First Tab:Last Tab'!H93) -> 0 | I93: =SUM('First Tab:Last Tab'!I93) -> 0 | J93: =SUM('First Tab:Last Tab'!J93) -> 0 | K93: =SUM('First Tab:Last Tab'!K93) -> 0 | L93: =SUM('First Tab:Last Tab'!L93) -> 0 | M93: =SUM(G93:H93) -> 0 | N93: =SUM(G93:L93) -> 0
G94: =SUM('First Tab:Last Tab'!G94) -> 0 | H94: =SUM('First Tab:Last Tab'!H94) -> 0 | I94: =SUM('First Tab:Last Tab'!I94) -> 0 | J94: =SUM('First Tab:Last Tab'!J94) -> 0 | K94: =SUM('First Tab:Last Tab'!K94) -> 0 | L94: =SUM('First Tab:Last Tab'!L94) -> 0 | M94: =SUM(G94:H94) -> 0 | N94: =SUM(G94:L94) -> 0
G95: =SUM('First Tab:Last Tab'!G95) -> 0 | H95: =SUM('First Tab:Last Tab'!H95) -> 0 | I95: =SUM('First Tab:Last Tab'!I95) -> 0 | J95: =SUM('First Tab:Last Tab'!J95) -> 0 | K95: =SUM('First Tab:Last Tab'!K95) -> 0 | L95: =SUM('First Tab:Last Tab'!L95) -> 0 | M95: =SUM(G95:H95) -> 0 | N95: =SUM(G95:L95) -> 0
G96: =SUM('First Tab:Last Tab'!G96) -> 0 | H96: =SUM('First Tab:Last Tab'!H96) -> 0 | I96: =SUM('First Tab:Last Tab'!I96) -> 0 | J96: =SUM('First Tab:Last Tab'!J96) -> 0 | K96: =SUM('First Tab:Last Tab'!K96) -> 0 | L96: =SUM('First Tab:Last Tab'!L96) -> 0 | M96: =SUM(G96:H96) -> 0 | N96: =SUM(G96:L96) -> 0
B97: TOTAL EQUIPMENT 5000 AND OVER | G97: =SUM('First Tab:Last Tab'!G97) -> 0 | H97: =SUM('First Tab:Last Tab'!H97) -> 0 | I97: =SUM('First Tab:Last Tab'!I97) -> 0 | J97: =SUM('First Tab:Last Tab'!J97) -> 0 | K97: =SUM('First Tab:Last Tab'!K97) -> 0 | L97: =SUM('First Tab:Last Tab'!L97) -> 0 | M97: =SUM(M92:M96) -> 0 | N97: =SUM(N92:N96) -> 0
A98: N | B98: GRANT EXPENDITURES | G98: =SUM('First Tab:Last Tab'!G98) -> 0 | H98: =SUM('First Tab:Last Tab'!H98) -> 27830868 | I98: =SUM('First Tab:Last Tab'!I98) -> 21600737 | J98: =SUM('First Tab:Last Tab'!J98) -> 56495943 | K98: =SUM('First Tab:Last Tab'!K98) -> 56495943 | L98: =SUM('First Tab:Last Tab'!L98) -> 56495943 | M98: =SUM(G98:H98) -> 27830868 | N98: =SUM(G98:L98) -> 218919434
A99: T | B99: INTRA-AGENCY REIMBURSEMENT
B100: TE Total | C100: TE | G100: =SUM('First Tab:Last Tab'!G100) -> 0 | H100: =SUM('First Tab:Last Tab'!H100) -> 9336 | I100: =SUM('First Tab:Last Tab'!I100) -> 9336 | J100: =SUM('First Tab:Last Tab'!J100) -> 9336 | K100: =SUM('First Tab:Last Tab'!K100) -> 9336 | L100: =SUM('First Tab:Last Tab'!L100) -> 9336 | M100: =SUM(G100:H100) -> 9336 | N100: =SUM(G100:L100) -> 46680
G101: =SUM('First Tab:Last Tab'!G101) -> 0 | H101: =SUM('First Tab:Last Tab'!H101) -> 0 | I101: =SUM('First Tab:Last Tab'!I101) -> 0 | J101: =SUM('First Tab:Last Tab'!J101) -> 0 | K101: =SUM('First Tab:Last Tab'!K101) -> 0 | L101: =SUM('First Tab:Last Tab'!L101) -> 0 | M101: =SUM(G101:H101) -> 0 | N101: =SUM(G101:L101) -> 0
B102: TOTAL INTRA-AGENCY REIMBURSEMENT | G102: =SUM('First Tab:Last Tab'!G102) -> 0 | H102: =SUM('First Tab:Last Tab'!H102) -> 9336 | I102: =SUM('First Tab:Last Tab'!I102) -> 9336 | J102: =SUM('First Tab:Last Tab'!J102) -> 9336 | K102: =SUM('First Tab:Last Tab'!K102) -> 9336 | L102: =SUM('First Tab:Last Tab'!L102) -> 9336 | M102: =SUM(M100:M101) -> 9336 | N102: =SUM(N100:N101) -> 46680
B103: TOTAL DIRECT COSTS | G103: =SUM('First Tab:Last Tab'!G103) -> 0 | H103: =SUM('First Tab:Last Tab'!H103) -> 28039720.5 | I103: =SUM('First Tab:Last Tab'!I103) -> 21809589.5 | J103: =SUM('First Tab:Last Tab'!J103) -> 56704795.5 | K103: =SUM('First Tab:Last Tab'!K103) -> 56704795.5 | L103: =SUM('First Tab:Last Tab'!L103) -> 56704795.5 | M103: =M102+M98+M97+M90+M88+M86+M69+M68+M66 -> 28039720.5 | N103: 219963696.5
B104: INDIRECT COSTS | C104: DIVISION | D104: =Standards!E86 -> FY24 | E104: SUBSEQUENT FY
B105: Division Indirects | C105: PCH | D105: =VLOOKUP(C105,IndirectsTable,7,FALSE) -> 0.136 | E105: =VLOOKUP(C105,IndirectsTable,8,FALSE) -> 0.136 | G105: =SUM('First Tab:Last Tab'!G105) -> 0 | H105: =SUM('First Tab:Last Tab'!H105) -> 28403.93986 | I105: =SUM('First Tab:Last Tab'!I105) -> 28403.93986 | J105: =SUM('First Tab:Last Tab'!J105) -> 28403.93986 | K105: =SUM('First Tab:Last Tab'!K105) -> 28403.93986 | L105: =SUM('First Tab:Last Tab'!L105) -> 28403.93986 | M105: =SUM(G105:H105) -> 28403.93986 | N105: =SUM(G105:L105) -> 142019.6993
B106: Agency Indirects | D106: =Standards!G66 -> 0.169 | E106: =Standards!H66 -> 0.169 | G106: =SUM('First Tab:Last Tab'!G106) -> 0 | H106: =SUM('First Tab:Last Tab'!H106) -> 35296.07233 | I106: =SUM('First Tab:Last Tab'!I106) -> 35296.07233 | J106: =SUM('First Tab:Last Tab'!J106) -> 35296.07233 | K106: =SUM('First Tab:Last Tab'!K106) -> 35296.07233 | L106: =SUM('First Tab:Last Tab'!L106) -> 35296.07233 | M106: =SUM(G106:H106) -> 35296.07233 | N106: =SUM(G106:L106) -> 176480.3617
B107: Pass Through Indirects + ER Over 20K | D107: =Standards!G67 -> 0.014 | E107: =Standards!H67 -> 0.014 | G107: =SUM('First Tab:Last Tab'!G107) -> 0 | H107: =SUM('First Tab:Last Tab'!H107) -> 389632.152 | I107: =SUM('First Tab:Last Tab'!I107) -> 302410.318 | J107: =SUM('First Tab:Last Tab'!J107) -> 790943.202 | K107: =SUM('First Tab:Last Tab'!K107) -> 790943.202 | L107: =SUM('First Tab:Last Tab'!L107) -> 790943.202 | M107: =SUM(G107:H107) -> 389632.152 | N107: =SUM(G107:L107) -> 3064872.076
B108: TOTAL INDIRECT COSTS | G108: =SUM('First Tab:Last Tab'!G108) -> 0 | H108: =SUM('First Tab:Last Tab'!H108) -> 453332.1642 | I108: =SUM('First Tab:Last Tab'!I108) -> 366110.3302 | J108: =SUM('First Tab:Last Tab'!J108) -> 854643.2142 | K108: =SUM('First Tab:Last Tab'!K108) -> 854643.2142 | L108: =SUM('First Tab:Last Tab'!L108) -> 854643.2142 | M108: =SUM(M105:M107) -> 453332.1642 | N108: =SUM(N105:N107) -> 3383372.137
B109: TOTAL FISCAL IMPACT | G109: =SUM('First Tab:Last Tab'!G109) -> 0 | H109: =SUM('First Tab:Last Tab'!H109) -> 28493052.66 | I109: =SUM('First Tab:Last Tab'!I109) -> 22175699.83 | J109: =SUM('First Tab:Last Tab'!J109) -> 57559438.71 | K109: =SUM('First Tab:Last Tab'!K109) -> 57559438.71 | L109: =SUM('First Tab:Last Tab'!L109) -> 57559438.71 | M109: =M108+M103 -> 28493052.66 | N109: =N108+N103 -> 223347068.6
B113: DIVISION INDIRECTS
B114: POSITION/JOB DESCRIPTION | F114: Division Factor | G114: =Standards!C83 -> 2024 | H114: =Standards!D83 -> 2025 | I114: =Standards!E83 -> 2026 | J114: =Standards!F83 -> 2027 | K114: =Standards!G83 -> 2028 | L114: =Standards!H83 -> 2029 | M114: =Standards!I83 -> 2023-2025 | N114: SIX-YEAR IMPACT
B115: FTE | G115: =SUM('First Tab:Last Tab'!G115) -> 0 | H115: =SUM('First Tab:Last Tab'!H115) -> 0.32 | I115: =SUM('First Tab:Last Tab'!I115) -> 0.32 | J115: =SUM('First Tab:Last Tab'!J115) -> 0.32 | K115: =SUM('First Tab:Last Tab'!K115) -> 0.32 | L115: =SUM('First Tab:Last Tab'!L115) -> 0.32 | M115: =SUM(G115:H115)/2 -> 0.16 | N115: =SUM(G115:L115)/6 -> 0.2666666667
B116: =Standards!B54 -> Health Svcs Conslt 1 | F116: =Standards!G54 -> 53000 | G116: =SUM('First Tab:Last Tab'!G116) -> 0 | H116: =SUM('First Tab:Last Tab'!H116) -> 16960 | I116: =SUM('First Tab:Last Tab'!I116) -> 16960 | J116: =SUM('First Tab:Last Tab'!J116) -> 16960 | K116: =SUM('First Tab:Last Tab'!K116) -> 16960 | L116: =SUM('First Tab:Last Tab'!L116) -> 16960 | M116: =SUM(G116:H116) -> 16960 | N116: =SUM(G116:L116) -> 84800
B118: Salaries | C118: A | G118: =SUM('First Tab:Last Tab'!G118) -> 0 | H118: =SUM('First Tab:Last Tab'!H118) -> 16960 | I118: =SUM('First Tab:Last Tab'!I118) -> 16960 | J118: =SUM('First Tab:Last Tab'!J118) -> 16960 | K118: =SUM('First Tab:Last Tab'!K118) -> 16960 | L118: =SUM('First Tab:Last Tab'!L118) -> 16960 | M118: =SUM(G118:H118) -> 16960 | N118: =SUM(G118:L118) -> 84800
B119: Benefits | C119: B | G119: =SUM('First Tab:Last Tab'!G119) -> 0 | H119: =SUM('First Tab:Last Tab'!H119) -> 7905.088 | I119: =SUM('First Tab:Last Tab'!I119) -> 7905.088 | J119: =SUM('First Tab:Last Tab'!J119) -> 7905.088 | K119: =SUM('First Tab:Last Tab'!K119) -> 7905.088 | L119: =SUM('First Tab:Last Tab'!L119) -> 7905.088 | M119: 7905.088 | N119: 39525.44
B120: Personal Service Contracts | C120: C | G120: =SUM('First Tab:Last Tab'!G120) -> 0 | H120: =SUM('First Tab:Last Tab'!H120) -> 0 | I120: =SUM('First Tab:Last Tab'!I120) -> 0 | J120: =SUM('First Tab:Last Tab'!J120) -> 0 | K120: =SUM('First Tab:Last Tab'!K120) -> 0 | L120: =SUM('First Tab:Last Tab'!L120) -> 0 | M120: 0 | N120: 0
B121: Goods and Services | C121: E | G121: =SUM('First Tab:Last Tab'!G121) -> 0 | H121: =SUM('First Tab:Last Tab'!H121) -> 3538.851864 | I121: =SUM('First Tab:Last Tab'!I121) -> 3538.851864 | J121: =SUM('First Tab:Last Tab'!J121) -> 3538.851864 | K121: =SUM('First Tab:Last Tab'!K121) -> 3538.851864 | L121: =SUM('First Tab:Last Tab'!L121) -> 3538.851864 | M121: 3538.851864 | N121: 17694.25932
B122: Travel | C122: G | G122: =SUM('First Tab:Last Tab'!G122) -> 0 | H122: =SUM('First Tab:Last Tab'!H122) -> 0 | I122: =SUM('First Tab:Last Tab'!I122) -> 0 | J122: =SUM('First Tab:Last Tab'!J122) -> 0 | K122: =SUM('First Tab:Last Tab'!K122) -> 0 | L122: =SUM('First Tab:Last Tab'!L122) -> 0 | M122: 0 | N122: 0
B123: Equipment (less than 5,000) | C123: JA | G123: =SUM('First Tab:Last Tab'!G123) -> 0 | H123: =SUM('First Tab:Last Tab'!H123) -> 0 | I123: =SUM('First Tab:Last Tab'!I123) -> 0 | J123: =SUM('First Tab:Last Tab'!J123) -> 0 | K123: =SUM('First Tab:Last Tab'!K123) -> 0 | L123: =SUM('First Tab:Last Tab'!L123) -> 0 | M123: 0 | N123: 0
B124: Equipment | C124: JC | G124: =SUM('First Tab:Last Tab'!G124) -> 0 | H124: =SUM('First Tab:Last Tab'!H124) -> 0 | I124: =SUM('First Tab:Last Tab'!I124) -> 0 | J124: =SUM('First Tab:Last Tab'!J124) -> 0 | K124: =SUM('First Tab:Last Tab'!K124) -> 0 | L124: =SUM('First Tab:Last Tab'!L124) -> 0 | M124: 0 | N124: 0
B125: Grants | C125: N | G125: =SUM('First Tab:Last Tab'!G125) -> 0 | H125: =SUM('First Tab:Last Tab'!H125) -> 0 | I125: =SUM('First Tab:Last Tab'!I125) -> 0 | J125: =SUM('First Tab:Last Tab'!J125) -> 0 | K125: =SUM('First Tab:Last Tab'!K125) -> 0 | L125: =SUM('First Tab:Last Tab'!L125) -> 0 | M125: 0 | N125: 0
B126: TOTAL DIVISION INDIRECTS | G126: =SUM('First Tab:Last Tab'!G126) -> 0 | H126: =SUM('First Tab:Last Tab'!H126) -> 28403.93986 | I126: =SUM('First Tab:Last Tab'!I126) -> 28403.93986 | J126: =SUM('First Tab:Last Tab'!J126) -> 28403.93986 | K126: =SUM('First Tab:Last Tab'!K126) -> 28403.93986 | L126: =SUM('First Tab:Last Tab'!L126) -> 28403.93986 | M126: 28403.93986 | N126: 142019.6993
B128: AGENCY INDIRECTS (BUDGET USE ONLY)
B129: POSITION/JOB DESCRIPTION | F129: Agency Factor | G129: =Standards!C83 -> 2024 | H129: =Standards!D83 -> 2025 | I129: =Standards!E83 -> 2026 | J129: =Standards!F83 -> 2027 | K129: =Standards!G83 -> 2028 | L129: =Standards!H83 -> 2029 | M129: =Standards!I83 -> 2023-2025 | N129: SIX-YEAR IMPACT
B130: FTE | G130: =SUM('First Tab:Last Tab'!G130) -> 0 | H130: =SUM('First Tab:Last Tab'!H130) -> 4.82 | I130: =SUM('First Tab:Last Tab'!I130) -> 3.83 | J130: =SUM('First Tab:Last Tab'!J130) -> 9.38 | K130: =SUM('First Tab:Last Tab'!K130) -> 9.38 | L130: =SUM('First Tab:Last Tab'!L130) -> 9.38 | M130: =SUM(G130:H130)/2 -> 2.41 | N130: =SUM(G130:L130)/6 -> 6.131666667
B131: =Standards!B51 -> Fiscal Analyst 2 | F131: =Standards!G51 -> 53000 | G131: =SUM('First Tab:Last Tab'!G131) -> 0 | H131: =SUM('First Tab:Last Tab'!H131) -> 255460 | I131: =SUM('First Tab:Last Tab'!I131) -> 202990 | J131: =SUM('First Tab:Last Tab'!J131) -> 497140 | K131: =SUM('First Tab:Last Tab'!K131) -> 497140 | L131: =SUM('First Tab:Last Tab'!L131) -> 497140 | M131: =SUM(G131:H131) -> 255460 | N131: =SUM(G131:L131) -> 1949870
B133: Salaries | C133: A | G133: =SUM('First Tab:Last Tab'!G133) -> 0 | H133: =SUM('First Tab:Last Tab'!H133) -> 255460 | I133: =SUM('First Tab:Last Tab'!I133) -> 202990 | J133: =SUM('First Tab:Last Tab'!J133) -> 497140 | K133: =SUM('First Tab:Last Tab'!K133) -> 497140 | L133: =SUM('First Tab:Last Tab'!L133) -> 497140 | M133: =SUM(G133:H133) -> 255460 | N133: =SUM(G133:L133) -> 1949870
B134: Benefits | C134: B | G134: =SUM('First Tab:Last Tab'!G134) -> 0 | H134: =SUM('First Tab:Last Tab'!H134) -> 119070.388 | I134: =SUM('First Tab:Last Tab'!I134) -> 94614.022 | J134: =SUM('First Tab:Last Tab'!J134) -> 231717.892 | K134: =SUM('First Tab:Last Tab'!K134) -> 231717.892 | L134: =SUM('First Tab:Last Tab'!L134) -> 231717.892 | M134: 119070.388 | N134: 908838.086
B135: Personal Service Contracts | C135: C | G135: =SUM('First Tab:Last Tab'!G135) -> 0 | H135: =SUM('First Tab:Last Tab'!H135) -> 0 | I135: =SUM('First Tab:Last Tab'!I135) -> 0 | J135: =SUM('First Tab:Last Tab'!J135) -> 0 | K135: =SUM('First Tab:Last Tab'!K135) -> 0 | L135: =SUM('First Tab:Last Tab'!L135) -> 0 | M135: 0 | N135: 0
B136: Goods and Services | C136: E | G136: =SUM('First Tab:Last Tab'!G136) -> 0 | H136: =SUM('First Tab:Last Tab'!H136) -> 50397.83633 | I136: =SUM('First Tab:Last Tab'!I136) -> 40102.36833 | J136: =SUM('First Tab:Last Tab'!J136) -> 97381.38233 | K136: =SUM('First Tab:Last Tab'!K136) -> 97381.38233 | L136: =SUM('First Tab:Last Tab'!L136) -> 97381.38233 | M136: 50397.83633 | N136: 382644.3517
B137: Travel | C137: G | G137: =SUM('First Tab:Last Tab'!G137) -> 0 | H137: =SUM('First Tab:Last Tab'!H137) -> 0 | I137: =SUM('First Tab:Last Tab'!I137) -> 0 | J137: =SUM('First Tab:Last Tab'!J137) -> 0 | K137: =SUM('First Tab:Last Tab'!K137) -> 0 | L137: =SUM('First Tab:Last Tab'!L137) -> 0 | M137: 0 | N137: 0
B138: Equipment (less than 5,000) | C138: JA | G138: =SUM('First Tab:Last Tab'!G138) -> 0 | H138: =SUM('First Tab:Last Tab'!H138) -> 0 | I138: =SUM('First Tab:Last Tab'!I138) -> 0 | J138: =SUM('First Tab:Last Tab'!J138) -> 0 | K138: =SUM('First Tab:Last Tab'!K138) -> 0 | L138: =SUM('First Tab:Last Tab'!L138) -> 0 | M138: 0 | N138: 0
B139: Equipment | C139: JC | G139: =SUM('First Tab:Last Tab'!G139) -> 0 | H139: =SUM('First Tab:Last Tab'!H139) -> 0 | I139: =SUM('First Tab:Last Tab'!I139) -> 0 | J139: =SUM('First Tab:Last Tab'!J139) -> 0 | K139: =SUM('First Tab:Last Tab'!K139) -> 0 | L139: =SUM('First Tab:Last Tab'!L139) -> 0 | M139: 0 | N139: 0
B140: Grants | C140: N | G140: =SUM('First Tab:Last Tab'!G140) -> 0 | H140: =SUM('First Tab:Last Tab'!H140) -> 0 | I140: =SUM('First Tab:Last Tab'!I140) -> 0 | J140: =SUM('First Tab:Last Tab'!J140) -> 0 | K140: =SUM('First Tab:Last Tab'!K140) -> 0 | L140: =SUM('First Tab:Last Tab'!L140) -> 0 | M140: 0 | N140: 0
B141: TOTAL AGENCY INDIRECTS | G141: =SUM('First Tab:Last Tab'!G141) -> 0 | H141: =SUM('First Tab:Last Tab'!H141) -> 424928.2243 | I141: =SUM('First Tab:Last Tab'!I141) -> 337706.3903 | J141: =SUM('First Tab:Last Tab'!J141) -> 826239.2743 | K141: =SUM('First Tab:Last Tab'!K141) -> 826239.2743 | L141: =SUM('First Tab:Last Tab'!L141) -> 826239.2743 | M141: 424928.2243 | N141: 3241352.438
B146: Fiscal Detail | F146: =Standards!C83 -> 2024 | J146: =Standards!D83 -> 2025
F147: Program | G147: Division Indirects | H147: Agency Indirect | I147: TOTAL | J147: Program | K147: Division Indirects | L147: Agency Indirect | M147: TOTAL | N147: BIENNIAL TOTAL
B148: Fund Source Master
B149: 001-1 GENERAL FUND STATE | F149: =SUM('First Tab:Last Tab'!F149) -> 0 | G149: =SUM('First Tab:Last Tab'!G149) -> 0 | H149: =SUM('First Tab:Last Tab'!H149) -> 0 | I149: =SUM(F149:H149) -> 0 | J149: =SUM('First Tab:Last Tab'!J149) -> 0 | K149: =SUM('First Tab:Last Tab'!K149) -> 0 | L149: =SUM('First Tab:Last Tab'!L149) -> 0 | M149: =SUM(J149:L149) -> 0 | N149: =I149+M149 -> 0
B150: 001-2 GENERAL FUND FEDERAL | F150: =SUM('First Tab:Last Tab'!F150) -> 0 | G150: =SUM('First Tab:Last Tab'!G150) -> 0 | H150: =SUM('First Tab:Last Tab'!H150) -> 0 | I150: 0 | J150: =SUM('First Tab:Last Tab'!J150) -> 0 | K150: =SUM('First Tab:Last Tab'!K150) -> 0 | L150: =SUM('First Tab:Last Tab'!L150) -> 0 | M150: 0 | N150: 0
B151: 001-7 GENERAL FUND PRIVATE/LOCAL | F151: =SUM('First Tab:Last Tab'!F151) -> 0 | G151: =SUM('First Tab:Last Tab'!G151) -> 0 | H151: =SUM('First Tab:Last Tab'!H151) -> 0 | I151: 0 | J151: =SUM('First Tab:Last Tab'!J151) -> 0 | K151: =SUM('First Tab:Last Tab'!K151) -> 0 | L151: =SUM('First Tab:Last Tab'!L151) -> 0 | M151: 0 | N151: 0
B152: 02G-1 HEALTH PROFESSIONS ACCOUNT | F152: =SUM('First Tab:Last Tab'!F152) -> 0 | G152: =SUM('First Tab:Last Tab'!G152) -> 0 | H152: =SUM('First Tab:Last Tab'!H152) -> 0 | I152: 0 | J152: =SUM('First Tab:Last Tab'!J152) -> 0 | K152: =SUM('First Tab:Last Tab'!K152) -> 0 | L152: =SUM('First Tab:Last Tab'!L152) -> 0 | M152: 0 | N152: 0
B153: 04R-2 DRINKING WATER ASSISTANCE ACCOUNT | F153: =SUM('First Tab:Last Tab'!F153) -> 0 | G153: =SUM('First Tab:Last Tab'!G153) -> 0 | H153: =SUM('First Tab:Last Tab'!H153) -> 0 | I153: 0 | J153: =SUM('First Tab:Last Tab'!J153) -> 0 | K153: =SUM('First Tab:Last Tab'!K153) -> 0 | L153: =SUM('First Tab:Last Tab'!L153) -> 0 | M153: 0 | N153: 0
B154: 319-7 PUBLIC HEALTH SUPPLEMENTAL ACCOUNT | F154: =SUM('First Tab:Last Tab'!F154) -> 0 | G154: =SUM('First Tab:Last Tab'!G154) -> 0 | H154: =SUM('First Tab:Last Tab'!H154) -> 0 | I154: 0 | J154: =SUM('First Tab:Last Tab'!J154) -> 0 | K154: =SUM('First Tab:Last Tab'!K154) -> 0 | L154: =SUM('First Tab:Last Tab'!L154) -> 0 | M154: 0 | N154: 0
B155: 23P-1 MODEL TOXICS CONTROL OPERATING ACCOUNT | F155: =SUM('First Tab:Last Tab'!F155) -> 0 | G155: =SUM('First Tab:Last Tab'!G155) -> 0 | H155: =SUM('First Tab:Last Tab'!H155) -> 0 | I155: 0 | J155: =SUM('First Tab:Last Tab'!J155) -> 0 | K155: =SUM('First Tab:Last Tab'!K155) -> 0 | L155: =SUM('First Tab:Last Tab'!L155) -> 0 | M155: 0 | N155: 0
B156: 03C-1 EMER MED SVCS/TRAUMA CARE SYSTEMS | F156: =SUM('First Tab:Last Tab'!F156) -> 0 | G156: =SUM('First Tab:Last Tab'!G156) -> 0 | H156: =SUM('First Tab:Last Tab'!H156) -> 0 | I156: 0 | J156: =SUM('First Tab:Last Tab'!J156) -> 0 | K156: =SUM('First Tab:Last Tab'!K156) -> 0 | L156: =SUM('First Tab:Last Tab'!L156) -> 0 | M156: 0 | N156: 0
B157: 03R-1 SAFE DRINKING WATER ACCOUNT | F157: =SUM('First Tab:Last Tab'!F157) -> 0 | G157: =SUM('First Tab:Last Tab'!G157) -> 0 | H157: =SUM('First Tab:Last Tab'!H157) -> 0 | I157: 0 | J157: =SUM('First Tab:Last Tab'!J157) -> 0 | K157: =SUM('First Tab:Last Tab'!K157) -> 0 | L157: =SUM('First Tab:Last Tab'!L157) -> 0 | M157: 0 | N157: 0
B158: 828-1 TOBACCO PREVENTION/CTRL ACCOUNT | F158: =SUM('First Tab:Last Tab'!F158) -> 0 | G158: =SUM('First Tab:Last Tab'!G158) -> 0 | H158: =SUM('First Tab:Last Tab'!H158) -> 0 | I158: 0 | J158: =SUM('First Tab:Last Tab'!J158) -> 0 | K158: =SUM('First Tab:Last Tab'!K158) -> 0 | L158: =SUM('First Tab:Last Tab'!L158) -> 0 | M158: 0 | N158: 0
B159: 25N - 988 Tax Rev | F159: =SUM('First Tab:Last Tab'!F159) -> 0 | G159: =SUM('First Tab:Last Tab'!G159) -> 0 | H159: =SUM('First Tab:Last Tab'!H159) -> 0 | I159: 0 | J159: =SUM('First Tab:Last Tab'!J159) -> 28039000 | K159: =SUM('First Tab:Last Tab'!K159) -> 29000 | L159: =SUM('First Tab:Last Tab'!L159) -> 424000 | M159: 28492000 | N159: 28492000
B160: OTHER 2 | F160: =SUM('First Tab:Last Tab'!F160) -> 0 | G160: =SUM('First Tab:Last Tab'!G160) -> 0 | H160: =SUM('First Tab:Last Tab'!H160) -> 0 | I160: 0 | J160: =SUM('First Tab:Last Tab'!J160) -> 0 | K160: =SUM('First Tab:Last Tab'!K160) -> 0 | L160: =SUM('First Tab:Last Tab'!L160) -> 0 | M160: 0 | N160: 0
B161: Total Cost | F161: =SUM(F149:F160) -> 0 | G161: =SUM(G149:G160) -> 0 | H161: 0 | I161: 0 | J161: 28039000 | K161: 29000 | L161: 424000 | M161: =SUM(M149:M160) -> 28492000 | N161: =SUM(N149:N160) -> 28492000
B163: Staffing
B164: Total FTEs | F164: =SUM('First Tab:Last Tab'!F164) -> 0 | G164: =SUM('First Tab:Last Tab'!G164) -> 0 | H164: =SUM('First Tab:Last Tab'!H164) -> 0 | I164: =SUM(F164:H164) -> 0 | J164: =SUM('First Tab:Last Tab'!J164) -> 1 | K164: =SUM('First Tab:Last Tab'!K164) -> 0.32 | L164: =SUM('First Tab:Last Tab'!L164) -> 4.82 | M164: =SUM(J164:L164) -> 6.14 | N164: =(I164+M164)/2 -> 3.07
B166: Object of Expenditure
B167: A-Salaries | F167: =SUM('First Tab:Last Tab'!F167) -> 0 | G167: =SUM('First Tab:Last Tab'!G167) -> 0 | H167: =SUM('First Tab:Last Tab'!H167) -> 0 | I167: =SUM(F167:H167) -> 0 | J167: =SUM('First Tab:Last Tab'!J167) -> 153000 | K167: =SUM('First Tab:Last Tab'!K167) -> 17000 | L167: =SUM('First Tab:Last Tab'!L167) -> 255000 | M167: =SUM(J167:L167) -> 425000 | N167: =I167+M167 -> 425000
B168: B-Benefits | F168: =SUM('First Tab:Last Tab'!F168) -> 0 | G168: =SUM('First Tab:Last Tab'!G168) -> 0 | H168: =SUM('First Tab:Last Tab'!H168) -> 0 | I168: 0 | J168: =SUM('First Tab:Last Tab'!J168) -> 44000 | K168: =SUM('First Tab:Last Tab'!K168) -> 8000 | L168: =SUM('First Tab:Last Tab'!L168) -> 119000 | M168: =SUM(J168:L168) -> 171000 | N168: =I168+M168 -> 171000
B169: C-Personal Svc Contracts | F169: =SUM('First Tab:Last Tab'!F169) -> 0 | G169: =SUM('First Tab:Last Tab'!G169) -> 0 | H169: =SUM('First Tab:Last Tab'!H169) -> 0 | I169: 0 | J169: =SUM('First Tab:Last Tab'!J169) -> 0 | K169: =SUM('First Tab:Last Tab'!K169) -> 0 | L169: =SUM('First Tab:Last Tab'!L169) -> 0 | M169: 0 | N169: 0
B170: E-Goods & Services | F170: =SUM('First Tab:Last Tab'!F170) -> 0 | G170: =SUM('First Tab:Last Tab'!G170) -> 0 | H170: =SUM('First Tab:Last Tab'!H170) -> 0 | I170: 0 | J170: =SUM('First Tab:Last Tab'!J170) -> 2000 | K170: =SUM('First Tab:Last Tab'!K170) -> 4000 | L170: =SUM('First Tab:Last Tab'!L170) -> 50000 | M170: 56000 | N170: 56000
B171: G-Travel | F171: =SUM('First Tab:Last Tab'!F171) -> 0 | G171: =SUM('First Tab:Last Tab'!G171) -> 0 | H171: =SUM('First Tab:Last Tab'!H171) -> 0 | I171: 0 | J171: =SUM('First Tab:Last Tab'!J171) -> 0 | K171: =SUM('First Tab:Last Tab'!K171) -> 0 | L171: =SUM('First Tab:Last Tab'!L171) -> 0 | M171: 0 | N171: 0
B172: J-Equipment | F172: =SUM('First Tab:Last Tab'!F172) -> 0 | G172: =SUM('First Tab:Last Tab'!G172) -> 0 | H172: =SUM('First Tab:Last Tab'!H172) -> 0 | I172: 0 | J172: =SUM('First Tab:Last Tab'!J172) -> 0 | K172: =SUM('First Tab:Last Tab'!K172) -> 0 | L172: =SUM('First Tab:Last Tab'!L172) -> 0 | M172: 0 | N172: 0
B173: N-Grants,Benefits&Client Svc | F173: =SUM('First Tab:Last Tab'!F173) -> 0 | G173: =SUM('First Tab:Last Tab'!G173) -> 0 | H173: =SUM('First Tab:Last Tab'!H173) -> 0 | I173: 0 | J173: =SUM('First Tab:Last Tab'!J173) -> 27831000 | K173: =SUM('First Tab:Last Tab'!K173) -> 0 | L173: =SUM('First Tab:Last Tab'!L173) -> 0 | M173: 27831000 | N173: 27831000
B174: S-Inter-Agency Reimb | F174: =SUM('First Tab:Last Tab'!F174) -> 0 | G174: =SUM('First Tab:Last Tab'!G174) -> 0 | H174: =SUM('First Tab:Last Tab'!H174) -> 0 | I174: 0 | J174: =SUM('First Tab:Last Tab'!J174) -> 0 | K174: =SUM('First Tab:Last Tab'!K174) -> 0 | L174: =SUM('First Tab:Last Tab'!L174) -> 0 | M174: 0 | N174: 0
B175: T-Intra-Agency Reimb | F175: =SUM('First Tab:Last Tab'!F175) -> 0 | G175: =SUM('First Tab:Last Tab'!G175) -> 0 | H175: =SUM('First Tab:Last Tab'!H175) -> 0 | I175: 0 | J175: =SUM('First Tab:Last Tab'!J175) -> 9000 | K175: =SUM('First Tab:Last Tab'!K175) -> 0 | L175: =SUM('First Tab:Last Tab'!L175) -> 0 | M175: 9000 | N175: 9000
B176: Total Expenditures | F176: =SUM(F167:F175) -> 0 | G176: 0 | H176: 0 | I176: 0 | J176: 28039000 | K176: 29000 | L176: 424000 | M176: 28492000 | N176: 28492000
B177: Control | F177: =F161-F176 -> 0 | G177: =G161-G176 -> 0 | H177: 0 | I177: 0 | J177: 0 | K177: 0 | L177: 0 | M177: 0 | N177: 0
B183: Subsequent SFYs | F183: =Standards!E83 -> 2026 | J183: =Standards!F83 -> 2027
F184: Program | G184: Division Indirects | H184: Agency Indirect | I184: TOTAL | J184: Program | K184: Division Indirects | L184: Agency Indirect | M184: TOTAL | N184: BIENNIAL TOTAL
B185: Fund Source
B186: =Rollup!B149 -> 001-1 GENERAL FUND STATE | F186: =SUM('First Tab:Last Tab'!F186) -> 0 | G186: =SUM('First Tab:Last Tab'!G186) -> 0 | H186: =SUM('First Tab:Last Tab'!H186) -> 0 | I186: =SUM(F186:H186) -> 0 | J186: =SUM('First Tab:Last Tab'!J186) -> 0 | K186: =SUM('First Tab:Last Tab'!K186) -> 0 | L186: =SUM('First Tab:Last Tab'!L186) -> 0 | M186: =SUM(J186:L186) -> 0 | N186: =I186+M186 -> 0
B187: =Rollup!B150 -> 001-2 GENERAL FUND FEDERAL | F187: =SUM('First Tab:Last Tab'!F187) -> 0 | G187: =SUM('First Tab:Last Tab'!G187) -> 0 | H187: =SUM('First Tab:Last Tab'!H187) -> 0 | I187: 0 | J187: =SUM('First Tab:Last Tab'!J187) -> 0 | K187: =SUM('First Tab:Last Tab'!K187) -> 0 | L187: =SUM('First Tab:Last Tab'!L187) -> 0 | M187: 0 | N187: 0
B188: =Rollup!B151 -> 001-7 GENERAL FUND PRIVATE/LOCAL | F188: =SUM('First Tab:Last Tab'!F188) -> 0 | G188: =SUM('First Tab:Last Tab'!G188) -> 0 | H188: =SUM('First Tab:Last Tab'!H188) -> 0 | I188: 0 | J188: =SUM('First Tab:Last Tab'!J188) -> 0 | K188: =SUM('First Tab:Last Tab'!K188) -> 0 | L188: =SUM('First Tab:Last Tab'!L188) -> 0 | M188: 0 | N188: 0
B189: =Rollup!B152 -> 02G-1 HEALTH PROFESSIONS ACCOUNT | F189: =SUM('First Tab:Last Tab'!F189) -> 0 | G189: =SUM('First Tab:Last Tab'!G189) -> 0 | H189: =SUM('First Tab:Last Tab'!H189) -> 0 | I189: 0 | J189: =SUM('First Tab:Last Tab'!J189) -> 0 | K189: =SUM('First Tab:Last Tab'!K189) -> 0 | L189: =SUM('First Tab:Last Tab'!L189) -> 0 | M189: 0 | N189: 0
B190: =Rollup!B153 -> 04R-2 DRINKING WATER ASSISTANCE ACCOUNT | F190: =SUM('First Tab:Last Tab'!F190) -> 0 | G190: =SUM('First Tab:Last Tab'!G190) -> 0 | H190: =SUM('First Tab:Last Tab'!H190) -> 0 | I190: 0 | J190: =SUM('First Tab:Last Tab'!J190) -> 0 | K190: =SUM('First Tab:Last Tab'!K190) -> 0 | L190: =SUM('First Tab:Last Tab'!L190) -> 0 | M190: 0 | N190: 0
B191: =Rollup!B154 -> 319-7 PUBLIC HEALTH SUPPLEMENTAL ACCOUNT | F191: =SUM('First Tab:Last Tab'!F191) -> 0 | G191: =SUM('First Tab:Last Tab'!G191) -> 0 | H191: =SUM('First Tab:Last Tab'!H191) -> 0 | I191: 0 | J191: =SUM('First Tab:Last Tab'!J191) -> 0 | K191: =SUM('First Tab:Last Tab'!K191) -> 0 | L191: =SUM('First Tab:Last Tab'!L191) -> 0 | M191: 0 | N191: 0
B192: =Rollup!B155 -> 23P-1 MODEL TOXICS CONTROL OPERATING ACCOUNT | F192: =SUM('First Tab:Last Tab'!F192) -> 0 | G192: =SUM('First Tab:Last Tab'!G192) -> 0 | H192: =SUM('First Tab:Last Tab'!H192) -> 0 | I192: 0 | J192: =SUM('First Tab:Last Tab'!J192) -> 0 | K192: =SUM('First Tab:Last Tab'!K192) -> 0 | L192: =SUM('First Tab:Last Tab'!L192) -> 0 | M192: 0 | N192: 0
B193: =Rollup!B156 -> 03C-1 EMER MED SVCS/TRAUMA CARE SYSTEMS | F193: =SUM('First Tab:Last Tab'!F193) -> 0 | G193: =SUM('First Tab:Last Tab'!G193) -> 0 | H193: =SUM('First Tab:Last Tab'!H193) -> 0 | I193: 0 | J193: =SUM('First Tab:Last Tab'!J193) -> 0 | K193: =SUM('First Tab:Last Tab'!K193) -> 0 | L193: =SUM('First Tab:Last Tab'!L193) -> 0 | M193: 0 | N193: 0
B194: =Rollup!B157 -> 03R-1 SAFE DRINKING WATER ACCOUNT | F194: =SUM('First Tab:Last Tab'!F194) -> 0 | G194: =SUM('First Tab:Last Tab'!G194) -> 0 | H194: =SUM('First Tab:Last Tab'!H194) -> 0 | I194: 0 | J194: =SUM('First Tab:Last Tab'!J194) -> 0 | K194: =SUM('First Tab:Last Tab'!K194) -> 0 | L194: =SUM('First Tab:Last Tab'!L194) -> 0 | M194: 0 | N194: 0
B195: =Rollup!B158 -> 828-1 TOBACCO PREVENTION/CTRL ACCOUNT | F195: =SUM('First Tab:Last Tab'!F195) -> 0 | G195: =SUM('First Tab:Last Tab'!G195) -> 0 | H195: =SUM('First Tab:Last Tab'!H195) -> 0 | I195: 0 | J195: =SUM('First Tab:Last Tab'!J195) -> 0 | K195: =SUM('First Tab:Last Tab'!K195) -> 0 | L195: =SUM('First Tab:Last Tab'!L195) -> 0 | M195: 0 | N195: 0
B196: =Rollup!B159 -> 25N - 988 Tax Rev | F196: =SUM('First Tab:Last Tab'!F196) -> 21809000 | G196: =SUM('First Tab:Last Tab'!G196) -> 29000 | H196: =SUM('First Tab:Last Tab'!H196) -> 338000 | I196: 22176000 | J196: =SUM('First Tab:Last Tab'!J196) -> 56704000 | K196: =SUM('First Tab:Last Tab'!K196) -> 29000 | L196: =SUM('First Tab:Last Tab'!L196) -> 826000 | M196: 57559000 | N196: 79735000
B197: =Rollup!B160 -> OTHER 2 | F197: =SUM('First Tab:Last Tab'!F197) -> 0 | G197: =SUM('First Tab:Last Tab'!G197) -> 0 | H197: =SUM('First Tab:Last Tab'!H197) -> 0 | I197: 0 | J197: =SUM('First Tab:Last Tab'!J197) -> 0 | K197: =SUM('First Tab:Last Tab'!K197) -> 0 | L197: =SUM('First Tab:Last Tab'!L197) -> 0 | M197: 0 | N197: 0
B198: Total Cost | F198: =SUM(F186:F197) -> 21809000 | G198: =SUM(G186:G197) -> 29000 | H198: 338000 | I198: 22176000 | J198: 56704000 | K198: 29000 | L198: 826000 | M198: =SUM(M186:M197) -> 57559000 | N198: =SUM(N186:N197) -> 79735000
B200: Staffing
B201: Total FTEs | F201: =SUM('First Tab:Last Tab'!F201) -> 1 | G201: =SUM('First Tab:Last Tab'!G201) -> 0.32 | H201: =SUM('First Tab:Last Tab'!H201) -> 3.83 | I201: 5.15 | J201: =SUM('First Tab:Last Tab'!J201) -> 1 | K201: =SUM('First Tab:Last Tab'!K201) -> 0.32 | L201: =SUM('First Tab:Last Tab'!L201) -> 9.38 | M201: 10.7 | N201: =(I201+M201)/2 -> 7.925
B203: Object of Expenditure
B204: A-Salaries | F204: =SUM('First Tab:Last Tab'!F204) -> 153000 | G204: =SUM('First Tab:Last Tab'!G204) -> 17000 | H204: =SUM('First Tab:Last Tab'!H204) -> 203000 | I204: 373000 | J204: =SUM('First Tab:Last Tab'!J204) -> 153000 | K204: =SUM('First Tab:Last Tab'!K204) -> 17000 | L204: =SUM('First Tab:Last Tab'!L204) -> 497000 | M204: =SUM(J204:L204) -> 667000 | N204: 1040000
B205: B-Benefits | F205: =SUM('First Tab:Last Tab'!F205) -> 44000 | G205: =SUM('First Tab:Last Tab'!G205) -> 8000 | H205: =SUM('First Tab:Last Tab'!H205) -> 95000 | I205: 147000 | J205: =SUM('First Tab:Last Tab'!J205) -> 44000 | K205: =SUM('First Tab:Last Tab'!K205) -> 8000 | L205: =SUM('First Tab:Last Tab'!L205) -> 232000 | M205: 284000 | N205: 431000
B206: C-Personal Svc Contracts | F206: =SUM('First Tab:Last Tab'!F206) -> 0 | G206: =SUM('First Tab:Last Tab'!G206) -> 0 | H206: =SUM('First Tab:Last Tab'!H206) -> 0 | I206: 0 | J206: =SUM('First Tab:Last Tab'!J206) -> 0 | K206: =SUM('First Tab:Last Tab'!K206) -> 0 | L206: =SUM('First Tab:Last Tab'!L206) -> 0 | M206: 0 | N206: 0
B207: E-Goods & Services | F207: =SUM('First Tab:Last Tab'!F207) -> 2000 | G207: =SUM('First Tab:Last Tab'!G207) -> 4000 | H207: =SUM('First Tab:Last Tab'!H207) -> 40000 | I207: 46000 | J207: =SUM('First Tab:Last Tab'!J207) -> 2000 | K207: =SUM('First Tab:Last Tab'!K207) -> 4000 | L207: =SUM('First Tab:Last Tab'!L207) -> 97000 | M207: 103000 | N207: 149000
B208: G-Travel | F208: =SUM('First Tab:Last Tab'!F208) -> 0 | G208: =SUM('First Tab:Last Tab'!G208) -> 0 | H208: =SUM('First Tab:Last Tab'!H208) -> 0 | I208: 0 | J208: =SUM('First Tab:Last Tab'!J208) -> 0 | K208: =SUM('First Tab:Last Tab'!K208) -> 0 | L208: =SUM('First Tab:Last Tab'!L208) -> 0 | M208: 0 | N208: 0
B209: J-Equipment | F209: =SUM('First Tab:Last Tab'!F209) -> 0 | G209: =SUM('First Tab:Last Tab'!G209) -> 0 | H209: =SUM('First Tab:Last Tab'!H209) -> 0 | I209: 0 | J209: =SUM('First Tab:Last Tab'!J209) -> 0 | K209: =SUM('First Tab:Last Tab'!K209) -> 0 | L209: =SUM('First Tab:Last Tab'!L209) -> 0 | M209: 0 | N209: 0
B210: N-Grants,Benefits&Client Svc | F210: =SUM('First Tab:Last Tab'!F210) -> 21601000 | G210: =SUM('First Tab:Last Tab'!G210) -> 0 | H210: =SUM('First Tab:Last Tab'!H210) -> 0 | I210: 21601000 | J210: =SUM('First Tab:Last Tab'!J210) -> 56496000 | K210: =SUM('First Tab:Last Tab'!K210) -> 0 | L210: =SUM('First Tab:Last Tab'!L210) -> 0 | M210: 56496000 | N210: 78097000
B211: S-Inter-Agency Reimb | F211: =SUM('First Tab:Last Tab'!F211) -> 0 | G211: =SUM('First Tab:Last Tab'!G211) -> 0 | H211: =SUM('First Tab:Last Tab'!H211) -> 0 | I211: 0 | J211: =SUM('First Tab:Last Tab'!J211) -> 0 | K211: =SUM('First Tab:Last Tab'!K211) -> 0 | L211: =SUM('First Tab:Last Tab'!L211) -> 0 | M211: 0 | N211: 0
B212: T-Intra-Agency Reimb | F212: =SUM('First Tab:Last Tab'!F212) -> 9000 | G212: =SUM('First Tab:Last Tab'!G212) -> 0 | H212: =SUM('First Tab:Last Tab'!H212) -> 0 | I212: 9000 | J212: =SUM('First Tab:Last Tab'!J212) -> 9000 | K212: =SUM('First Tab:Last Tab'!K212) -> 0 | L212: =SUM('First Tab:Last Tab'!L212) -> 0 | M212: 9000 | N212: 18000
B213: Total Expenditures | F213: =SUM(F204:F212) -> 21809000 | G213: 29000 | H213: 338000 | I213: 22176000 | J213: 56704000 | K213: 29000 | L213: 826000 | M213: 57559000 | N213: 79735000
B214: Control | F214: =F198-F213 -> 0 | G214: =G198-G213 -> 0 | H214: 0 | I214: 0 | J214: 0 | K214: 0 | L214: 0 | M214: 0 | N214: 0
B217: Subsequent SFYs | F217: =Standards!G83 -> 2028 | J217: =Standards!H83 -> 2029
F218: Program | G218: Division Indirects | H218: Agency Indirect | I218: TOTAL | J218: Program | K218: Division Indirects | L218: Agency Indirect | M218: TOTAL | N218: BIENNIAL TOTAL
B219: Fund Source
B220: =Rollup!B149 -> 001-1 GENERAL FUND STATE | F220: =SUM('First Tab:Last Tab'!F220) -> 0 | G220: =SUM('First Tab:Last Tab'!G220) -> 0 | H220: =SUM('First Tab:Last Tab'!H220) -> 0 | I220: =SUM(F220:H220) -> 0 | J220: =SUM('First Tab:Last Tab'!J220) -> 0 | K220: =SUM('First Tab:Last Tab'!K220) -> 0 | L220: =SUM('First Tab:Last Tab'!L220) -> 0 | M220: =SUM(J220:L220) -> 0 | N220: =I220+M220 -> 0
B221: =Rollup!B150 -> 001-2 GENERAL FUND FEDERAL | F221: =SUM('First Tab:Last Tab'!F221) -> 0 | G221: =SUM('First Tab:Last Tab'!G221) -> 0 | H221: =SUM('First Tab:Last Tab'!H221) -> 0 | I221: 0 | J221: =SUM('First Tab:Last Tab'!J221) -> 0 | K221: =SUM('First Tab:Last Tab'!K221) -> 0 | L221: =SUM('First Tab:Last Tab'!L221) -> 0 | M221: 0 | N221: 0
B222: =Rollup!B151 -> 001-7 GENERAL FUND PRIVATE/LOCAL | F222: =SUM('First Tab:Last Tab'!F222) -> 0 | G222: =SUM('First Tab:Last Tab'!G222) -> 0 | H222: =SUM('First Tab:Last Tab'!H222) -> 0 | I222: 0 | J222: =SUM('First Tab:Last Tab'!J222) -> 0 | K222: =SUM('First Tab:Last Tab'!K222) -> 0 | L222: =SUM('First Tab:Last Tab'!L222) -> 0 | M222: 0 | N222: 0
B223: =Rollup!B152 -> 02G-1 HEALTH PROFESSIONS ACCOUNT | F223: =SUM('First Tab:Last Tab'!F223) -> 0 | G223: =SUM('First Tab:Last Tab'!G223) -> 0 | H223: =SUM('First Tab:Last Tab'!H223) -> 0 | I223: 0 | J223: =SUM('First Tab:Last Tab'!J223) -> 0 | K223: =SUM('First Tab:Last Tab'!K223) -> 0 | L223: =SUM('First Tab:Last Tab'!L223) -> 0 | M223: 0 | N223: 0
B224: =Rollup!B153 -> 04R-2 DRINKING WATER ASSISTANCE ACCOUNT | F224: =SUM('First Tab:Last Tab'!F224) -> 0 | G224: =SUM('First Tab:Last Tab'!G224) -> 0 | H224: =SUM('First Tab:Last Tab'!H224) -> 0 | I224: 0 | J224: =SUM('First Tab:Last Tab'!J224) -> 0 | K224: =SUM('First Tab:Last Tab'!K224) -> 0 | L224: =SUM('First Tab:Last Tab'!L224) -> 0 | M224: 0 | N224: 0
... 32 more rows

Sheet First Tab

Sheet 988 Workload
A1: =VLOOKUP(C105,IndirectsTable,6,FALSE) -> 070 | B1: =VLOOKUP(C105,IndirectsTable,2,FALSE) -> Prevention and Community Health
C2: Bill Number | D2: =Rollup!D2 -> 0 | F2: Bill Section | I2: FN Number | J2: =Rollup!J2 -> 0
B3: TITLE OF BILL OR DP: | C3: =Rollup!C3 -> 988 DP SFY24 | M3: Version: | N3: =Standards!C88 -> 24.7
B4: PROGRAM / ACTIVITY | C4: 988 Call Center Suicide Prevention
B5: PERSON COMPLETING FNCAL | C5: Cristina Steward | I5: Phone Number | M5: Date: | N5: =Rollup!N5 -> 0
M7: =Standards!I83 -> 2023-2025 | N7: SIX-YEAR
G8: =Standards!C83 -> 2024 | H8: =Standards!D83 -> 2025 | I8: =Standards!E83 -> 2026 | J8: =Standards!F83 -> 2027 | K8: =Standards!G83 -> 2028 | L8: =Standards!H83 -> 2029 | M8: BIENNIUM | N8: IMPACT
A10: FTE
B11: Board Member Days @ 50 per day | M11: =SUM(G11:H11) -> 0 | N11: =SUM(G11:L11) -> 0
B12: Board Member Days @ 250 per day | M12: =SUM(G12:H12) -> 0 | N12: =SUM(G12:L12) -> 0
B13: Board Member FTE @ 50 per day | G13: =G11/261 -> 0 | H13: 0 | I13: 0 | J13: 0 | K13: 0 | L13: 0 | M13: =SUM(G13:H13)/2 -> 0 | N13: =SUM(G13:L13)/6 -> 0
B14: Board Member FTE @ 250 per day | G14: 0 | H14: 0 | I14: 0 | J14: 0 | K14: 0 | L14: 0 | M14: =SUM(G14:H14)/2 -> 0 | N14: =SUM(G14:L14)/6 -> 0
B15: Total Board Member FTEs | G15: =SUM(G13:G14) -> 0 | H15: =SUM(H13:H14) -> 0 | I15: 0 | J15: 0 | K15: 0 | L15: 0 | M15: 0 | N15: 0
F16: =Standards!C86 -> 2024
F17: MONTHLY | M17: =Standards!I83 -> 2023-2025 | N17: SIX-YEAR
C18: JOB CODE | D18: RANGE | E18: STEP | F18: SALARY | G18: =Standards!C83 -> 2024 | H18: =Standards!D83 -> 2025 | I18: =Standards!E83 -> 2026 | J18: =Standards!F83 -> 2027 | K18: =Standards!G83 -> 2028 | L18: =Standards!H83 -> 2029 | M18: BIENNIUM | N18: IMPACT
B19: =Rollup!B19 -> HEALTH SERVICES CONSULTANT 3 | C19: =Rollup!C19 -> 283J | D19: =Rollup!D19 -> 56 | E19: =Rollup!E19 -> L | F19: =Rollup!F19 -> 6510 | M19: =SUM(G19:H19)/2 -> 0 | N19: =SUM(G19:L19)/6 -> 0
B20: =Rollup!B20 -> WMS02 | C20: =Rollup!C20 -> WMS02 | D20: =Rollup!D20 -> 73 | E20: =Rollup!E20 -> L | F20: =Rollup!F20 -> 9911 | M20: =SUM(G20:H20)/2 -> 0 | N20: =SUM(G20:L20)/6 -> 0
B21: =Rollup!B21 -> BUDGET ANALYST 4 | C21: =Rollup!C21 -> 147D | D21: =Rollup!D21 -> 61 | E21: =Rollup!E21 -> L | F21: =Rollup!F21 -> 7368 | M21: =SUM(G21:H21)/2 -> 0 | N21: =SUM(G21:L21)/6 -> 0
B22: =Rollup!B22 -> HEALTH SERVICES CONSULTANT 4 | C22: =Rollup!C22 -> 283K | D22: =Rollup!D22 -> 60 | E22: =Rollup!E22 -> L | F22: =Rollup!F22 -> 7184 | M22: 0 | N22: 0
B23: =Rollup!B23 -> COMMUNICATIONS CONSULTANT 4 | C23: =Rollup!C23 -> 197L | D23: =Rollup!D23 -> 56 | E23: =Rollup!E23 -> L | F23: =Rollup!F23 -> 6510 | M23: 0 | N23: 0
B24: =Rollup!B24 -> IT BUSINESS ANALYST - JOURNEY | C24: =Rollup!C24 -> 483BA | D24: =Rollup!D24 -> 05IT | E24: =Rollup!E24 -> L | F24: =Rollup!F24 -> 8669 | M24: 0 | N24: 0
B25: =Rollup!B25 -> IT ARCHITECTURE - SENIOR/SPECIALIST | C25: =Rollup!C25 -> 484A | D25: =Rollup!D25 -> 09IT | E25: =Rollup!E25 -> L | F25: =Rollup!F25 -> 10540 | M25: 0 | N25: 0
B26: =Rollup!B26 -> MANAGEMENT ANALYST 5 | C26: =Rollup!C26 -> 109M | D26: =Rollup!D26 -> 64 | E26: =Rollup!E26 -> L | F26: =Rollup!F26 -> 7932 | M26: 0 | N26: 0
B27: =Rollup!B27 -> PUBLIC HEALTH AND EPIDEMIOLOGIST 2 | C27: =Rollup!C27 -> 289B | D27: =Rollup!D27 -> 82 | E27: =Rollup!E27 -> L | F27: =Rollup!F27 -> 12375 | G27: 0 | H27: 1 | I27: 1 | J27: 1 | K27: 1 | L27: 1 | M27: 0.5 | N27: 0.8333333333
B28: =Rollup!B28 -> ADMINISTRATIVE ASST 2 | C28: =Rollup!C28 -> 105F | D28: =Rollup!D28 -> 37 | E28: =Rollup!E28 -> L | F28: =Rollup!F28 -> 4072 | M28: 0 | N28: 0
B29: =Rollup!B29 -> HEALTH SERVICES CONSULTANT 1 | C29: =Rollup!C29 -> 283H | D29: =Rollup!D29 -> 44 | E29: =Rollup!E29 -> L | F29: =Rollup!F29 -> 4842 | M29: 0 | N29: 0
B30: =Rollup!B30 -> IT PROJECT MANAGEMENT - EXPERT | C30: =Rollup!C30 -> 485PM | D30: =Rollup!D30 -> 10IT | E30: =Rollup!E30 -> L | F30: =Rollup!F30 -> 11064 | M30: 0 | N30: 0
B31: =Rollup!B31 -> 0 | C31: =Rollup!C31 ->  | D31: =Rollup!D31 -> 0 | E31: =Rollup!E31 ->  | F31: =Rollup!F31 -> 0 | M31: 0 | N31: 0
B32: =Rollup!B32 -> 0 | C32: =Rollup!C32 ->  | D32: =Rollup!D32 -> 0 | E32: =Rollup!E32 ->  | F32: =Rollup!F32 -> 0 | M32: 0 | N32: 0
B33: =Rollup!B33 -> 0 | C33: =Rollup!C33 ->  | D33: =Rollup!D33 -> 0 | E33: =Rollup!E33 ->  | F33: =Rollup!F33 -> 0 | M33: 0 | N33: 0
B34: =Rollup!B34 -> 0 | C34: =Rollup!C34 ->  | D34: =Rollup!D34 -> 0 | E34: =Rollup!E34 ->  | F34: =Rollup!F34 -> 0 | M34: 0 | N34: 0
B35: =Rollup!B35 -> 0 | C35: =Rollup!C35 ->  | D35: =Rollup!D35 -> 0 | E35: =Rollup!E35 ->  | F35: =Rollup!F35 -> 0 | M35: 0 | N35: 0
B36: =Rollup!B36 -> 0 | C36: =Rollup!C36 ->  | D36: =Rollup!D36 -> 0 | E36: =Rollup!E36 ->  | F36: =Rollup!F36 -> 0 | M36: 0 | N36: 0
B37: =Rollup!B37 -> 0 | C37: =Rollup!C37 ->  | D37: =Rollup!D37 -> 0 | E37: =Rollup!E37 ->  | F37: =Rollup!F37 -> 0 | M37: 0 | N37: 0
B38: =Rollup!B38 -> 0 | C38: =Rollup!C38 ->  | D38: =Rollup!D38 -> 0 | E38: =Rollup!E38 ->  | F38: =Rollup!F38 -> 0 | M38: =SUM(G38:H38)/2 -> 0 | N38: =SUM(G38:L38)/6 -> 0
B39: Total Permanent Temporary & Project FTEs | G39: =SUM(G19:G38) -> 0 | H39: =SUM(H19:H38) -> 1 | I39: 1 | J39: 1 | K39: 1 | L39: 1 | M39: 0.5 | N39: 0.8333333333
B41: TOTAL FTES: | G41: =G39+G15 -> 0 | H41: 1 | I41: 1 | J41: 1 | K41: 1 | L41: 1 | M41: 0.5 | N41: 0.8333333333
B42: SALARIES | F42: =Standards!C86 -> 2024
A43: A | B43: POSITION / JOB DESCRIPTION: | C43: JOB CODE | D43: RANGE | E43: STEP | F43: SALARY
B44: Board Member Salaries @ 50 per day | G44: =G11*50 -> 0 | H44: 0 | I44: 0 | J44: 0 | K44: 0 | L44: 0 | M44: =SUM(G44:H44) -> 0 | N44: =SUM(G44:L44) -> 0
B45: Board Member Salaries @ 250 per day | G45: =G12*250 -> 0 | H45: 0 | I45: 0 | J45: 0 | K45: 0 | L45: 0 | M45: =SUM(G45:H45) -> 0 | N45: =SUM(G45:L45) -> 0
B46: =B19 -> HEALTH SERVICES CONSULTANT 3 | C46: 283J | D46: 56 | E46: L | F46: =F19*12 -> 78120 | G46: =(F46*G19)+(F46*G19*Standards!$C$80) -> 0 | H46: =(F46*H19)+(F46*H19*Standards!$D$80) -> 0 | I46: =(F46*I19)+(F46*I19*Standards!E80) -> 0 | J46: =(F46*J19)+(F46*J19*Standards!F80) -> 0 | K46: =(F46*K19)+(F46*K19*Standards!G80) -> 0 | L46: =(F46*L19)+(F46*L19*Standards!H80) -> 0 | M46: =SUM(G46:H46) -> 0 | N46: =SUM(G46:L46) -> 0
B47: WMS02 | C47: WMS02 | D47: 73 | E47: L | F47: =F20*12 -> 118932 | G47: =(F47*G20)+(F47*G20*Standards!$C$80)+IFERROR(_xlfn.IFNA(IF(_xlfn.XLOOKUP(C47,'DOP Job Classes'!B:B,'DOP Job Classes'!A:A,,0)="x",1000,0),0),0) -> 0 | H47: =(F47*H20)+(F47*H20*Standards!$D$80) -> 0 | I47: =(F47*I20)+(F47*I20*Standards!E80) -> 0 | J47: =(F47*J20)+(F47*J20*Standards!F80) -> 0 | K47: =(F47*K20)+(F47*K20*Standards!G80) -> 0 | L47: =(F47*L20)+(F47*L20*Standards!H80) -> 0 | M47: =SUM(G47:H47) -> 0 | N47: =SUM(G47:L47) -> 0
B48: BUDGET ANALYST 4 | C48: 147D | D48: 61 | E48: L | F48: 88416 | G48: =(F48*G21)+(F48*G21*Standards!$C$80)+IFERROR(_xlfn.IFNA(IF(_xlfn.XLOOKUP(C48,'DOP Job Classes'!B:B,'DOP Job Classes'!A:A,,0)="x",1000,0),0),0) -> 0 | H48: =(F48*H21)+(F48*H21*Standards!$D$80) -> 0 | I48: =(F48*I21)+(F48*I21*Standards!E80) -> 0 | J48: =(F48*J21)+(F48*J21*Standards!F80) -> 0 | K48: =(F48*K21)+(F48*K21*Standards!G80) -> 0 | L48: =(F48*L21)+(F48*L21*Standards!H80) -> 0 | M48: 0 | N48: 0
B49: HEALTH SERVICES CONSULTANT 4 | C49: 283K | D49: 60 | E49: L | F49: 86208 | G49: =(F49*G22)+(F49*G22*Standards!$C$80)+IFERROR(_xlfn.IFNA(IF(_xlfn.XLOOKUP(C49,'DOP Job Classes'!B:B,'DOP Job Classes'!A:A,,0)="x",1000,0),0),0) -> 0 | H49: =(F49*H22)+(F49*H22*Standards!$D$80) -> 0 | I49: =(F49*I22)+(F49*I22*Standards!E80) -> 0 | J49: =(F49*J22)+(F49*J22*Standards!F80) -> 0 | K49: =(F49*K22)+(F49*K22*Standards!G80) -> 0 | L49: =(F49*L22)+(F49*L22*Standards!H80) -> 0 | M49: =SUM(G49:H49) -> 0 | N49: =SUM(G49:L49) -> 0
B50: COMMUNICATIONS CONSULTANT 4 | C50: 197L | D50: 56 | E50: L | F50: 78120 | G50: =(F50*G23)+(F50*G23*Standards!$C$80)+IFERROR(_xlfn.IFNA(IF(_xlfn.XLOOKUP(C50,'DOP Job Classes'!B:B,'DOP Job Classes'!A:A,,0)="x",1000,0),0),0) -> 0 | H50: =(F50*H23)+(F50*H23*Standards!$D$80) -> 0 | I50: =(F50*I23)+(F50*I23*Standards!E80) -> 0 | J50: =(F50*J23)+(F50*J23*Standards!F80) -> 0 | K50: =(F50*K23)+(F50*K23*Standards!G80) -> 0 | L50: =(F50*L23)+(F50*L23*Standards!H80) -> 0 | M50: =SUM(G50:H50) -> 0 | N50: =SUM(G50:L50) -> 0
B51: IT BUSINESS ANALYST - JOURNEY | C51: 483BA | D51: 05IT | E51: L | F51: 104028 | G51: =(F51*G24)+(F51*G24*Standards!$C$80)+IFERROR(_xlfn.IFNA(IF(_xlfn.XLOOKUP(C51,'DOP Job Classes'!B:B,'DOP Job Classes'!A:A,,0)="x",1000,0),0),0) -> 0 | H51: =(F51*H24)+(F51*H24*Standards!$D$80) -> 0 | I51: =(F51*I24)+(F51*I24*Standards!E80) -> 0 | J51: =(F51*J24)+(F51*J24*Standards!F80) -> 0 | K51: =(F51*K24)+(F51*K24*Standards!G80) -> 0 | L51: =(F51*L24)+(F51*L24*Standards!H80) -> 0 | M51: 0 | N51: 0
B52: IT ARCHITECTURE - SENIOR/SPECIALIST | C52: 484A | D52: 09IT | E52: L | F52: 126480 | G52: =(F52*G25)+(F52*G25*Standards!$C$80)+IFERROR(_xlfn.IFNA(IF(_xlfn.XLOOKUP(C52,'DOP Job Classes'!B:B,'DOP Job Classes'!A:A,,0)="x",1000,0),0),0) -> 0 | H52: =(F52*H25)+(F52*H25*Standards!$D$80) -> 0 | I52: =(F52*I25)+(F52*I25*Standards!E80) -> 0 | J52: =(F52*J25)+(F52*J25*Standards!F80) -> 0 | K52: =(F52*K25)+(F52*K25*Standards!G80) -> 0 | L52: =(F52*L25)+(F52*L25*Standards!H80) -> 0 | M52: 0 | N52: 0
B53: MANAGEMENT ANALYST 5 | C53: 109M | D53: 64 | E53: L | F53: 95184 | G53: =(F53*G26)+(F53*G26*Standards!$C$80)+IFERROR(_xlfn.IFNA(IF(_xlfn.XLOOKUP(C53,'DOP Job Classes'!B:B,'DOP Job Classes'!A:A,,0)="x",1000,0),0),0) -> 0 | H53: =(F53*H26)+(F53*H26*Standards!$D$80) -> 0 | I53: =(F53*I26)+(F53*I26*Standards!E80) -> 0 | J53: =(F53*J26)+(F53*J26*Standards!F80) -> 0 | K53: =(F53*K26)+(F53*K26*Standards!G80) -> 0 | L53: =(F53*L26)+(F53*L26*Standards!H80) -> 0 | M53: 0 | N53: 0
B54: PUBLIC HEALTH AND EPIDEMIOLOGIST 2 | C54: 289B | D54: 82 | E54: L | F54: 148500 | G54: =(F54*G27)+(F54*G27*Standards!$C$80)+IFERROR(_xlfn.IFNA(IF(_xlfn.XLOOKUP(C54,'DOP Job Classes'!B:B,'DOP Job Classes'!A:A,,0)="x",1000,0),0),0) -> 0 | H54: =(F54*H27)+(F54*H27*Standards!$D$80) -> 152955 | I54: =(F54*I27)+(F54*I27*Standards!E80) -> 152955 | J54: =(F54*J27)+(F54*J27*Standards!F80) -> 152955 | K54: =(F54*K27)+(F54*K27*Standards!G80) -> 152955 | L54: =(F54*L27)+(F54*L27*Standards!H80) -> 152955 | M54: 152955 | N54: 764775
B55: ADMINISTRATIVE ASST 2 | C55: 105F | D55: 37 | E55: L | F55: 48864 | G55: =(F55*G28)+(F55*G28*Standards!$C$80)+IFERROR(_xlfn.IFNA(IF(_xlfn.XLOOKUP(C55,'DOP Job Classes'!B:B,'DOP Job Classes'!A:A,,0)="x",1000,0),0),0) -> 0 | H55: =(F55*H28)+(F55*H28*Standards!$D$80) -> 0 | I55: =(F55*I28)+(F55*I28*Standards!E80) -> 0 | J55: =(F55*J28)+(F55*J28*Standards!F80) -> 0 | K55: =(F55*K28)+(F55*K28*Standards!G80) -> 0 | L55: =(F55*L28)+(F55*L28*Standards!H80) -> 0 | M55: 0 | N55: 0
B56: HEALTH SERVICES CONSULTANT 1 | C56: 283H | D56: 44 | E56: L | F56: 58104 | G56: =(F56*G29)+(F56*G29*Standards!$C$80)+IFERROR(_xlfn.IFNA(IF(_xlfn.XLOOKUP(C56,'DOP Job Classes'!B:B,'DOP Job Classes'!A:A,,0)="x",1000,0),0),0) -> 0 | H56: =(F56*H29)+(F56*H29*Standards!$D$80) -> 0 | I56: =(F56*I29)+(F56*I29*Standards!E80) -> 0 | J56: =(F56*J29)+(F56*J29*Standards!F80) -> 0 | K56: =(F56*K29)+(F56*K29*Standards!G80) -> 0 | L56: =(F56*L29)+(F56*L29*Standards!H80) -> 0 | M56: 0 | N56: 0
B57: IT PROJECT MANAGEMENT - EXPERT | C57: 485PM | D57: 10IT | E57: L | F57: 132768 | G57: =(F57*G30)+(F57*G30*Standards!$C$80)+IFERROR(_xlfn.IFNA(IF(_xlfn.XLOOKUP(C57,'DOP Job Classes'!B:B,'DOP Job Classes'!A:A,,0)="x",1000,0),0),0) -> 0 | H57: =(F57*H30)+(F57*H30*Standards!$D$80) -> 0 | I57: =(F57*I30)+(F57*I30*Standards!E80) -> 0 | J57: =(F57*J30)+(F57*J30*Standards!F80) -> 0 | K57: =(F57*K30)+(F57*K30*Standards!G80) -> 0 | L57: =(F57*L30)+(F57*L30*Standards!H80) -> 0 | M57: 0 | N57: 0
B58: 0 | D58: 0 | F58: 0 | G58: =(F58*G31)+(F58*G31*Standards!$C$80)+IFERROR(_xlfn.IFNA(IF(_xlfn.XLOOKUP(C58,'DOP Job Classes'!B:B,'DOP Job Classes'!A:A,,0)="x",1000,0),0),0) -> 0 | H58: =(F58*H31)+(F58*H31*Standards!$D$80) -> 0 | I58: =(F58*I31)+(F58*I31*Standards!E80) -> 0 | J58: =(F58*J31)+(F58*J31*Standards!F80) -> 0 | K58: =(F58*K31)+(F58*K31*Standards!G80) -> 0 | L58: =(F58*L31)+(F58*L31*Standards!H80) -> 0 | M58: 0 | N58: 0
B59: 0 | D59: 0 | F59: 0 | G59: =(F59*G32)+(F59*G32*Standards!$C$80)+IFERROR(_xlfn.IFNA(IF(_xlfn.XLOOKUP(C59,'DOP Job Classes'!B:B,'DOP Job Classes'!A:A,,0)="x",1000,0),0),0) -> 0 | H59: =(F59*H32)+(F59*H32*Standards!$D$80) -> 0 | I59: =(F59*I32)+(F59*I32*Standards!E80) -> 0 | J59: =(F59*J32)+(F59*J32*Standards!F80) -> 0 | K59: =(F59*K32)+(F59*K32*Standards!G80) -> 0 | L59: =(F59*L32)+(F59*L32*Standards!H80) -> 0 | M59: 0 | N59: 0
B60: 0 | D60: 0 | F60: 0 | G60: =(F60*G33)+(F60*G33*Standards!$C$80)+IFERROR(_xlfn.IFNA(IF(_xlfn.XLOOKUP(C60,'DOP Job Classes'!B:B,'DOP Job Classes'!A:A,,0)="x",1000,0),0),0) -> 0 | H60: =(F60*H33)+(F60*H33*Standards!$D$80) -> 0 | I60: =(F60*I33)+(F60*I33*Standards!E80) -> 0 | J60: =(F60*J33)+(F60*J33*Standards!F80) -> 0 | K60: =(F60*K33)+(F60*K33*Standards!G80) -> 0 | L60: =(F60*L33)+(F60*L33*Standards!H80) -> 0 | M60: 0 | N60: 0
B61: 0 | D61: 0 | F61: 0 | G61: =(F61*G34)+(F61*G34*Standards!$C$80)+IFERROR(_xlfn.IFNA(IF(_xlfn.XLOOKUP(C61,'DOP Job Classes'!B:B,'DOP Job Classes'!A:A,,0)="x",1000,0),0),0) -> 0 | H61: =(F61*H34)+(F61*H34*Standards!$D$80) -> 0 | I61: =(F61*I34)+(F61*I34*Standards!E80) -> 0 | J61: =(F61*J34)+(F61*J34*Standards!F80) -> 0 | K61: =(F61*K34)+(F61*K34*Standards!G80) -> 0 | L61: =(F61*L34)+(F61*L34*Standards!H80) -> 0 | M61: 0 | N61: 0
B62: =B35 -> 0 | D62: 0 | F62: 0 | G62: =(F62*G35)+(F62*G35*Standards!$C$80)+IFERROR(_xlfn.IFNA(IF(_xlfn.XLOOKUP(C62,'DOP Job Classes'!B:B,'DOP Job Classes'!A:A,,0)="x",1000,0),0),0) -> 0 | H62: =(F62*H35)+(F62*H35*Standards!$D$80) -> 0 | I62: =(F62*I35)+(F62*I35*Standards!E80) -> 0 | J62: =(F62*J35)+(F62*J35*Standards!F80) -> 0 | K62: =(F62*K35)+(F62*K35*Standards!G80) -> 0 | L62: =(F62*L35)+(F62*L35*Standards!H80) -> 0 | M62: 0 | N62: 0
B63: 0 | D63: 0 | F63: 0 | G63: =(F63*G36)+(F63*G36*Standards!$C$80)+IFERROR(_xlfn.IFNA(IF(_xlfn.XLOOKUP(C63,'DOP Job Classes'!B:B,'DOP Job Classes'!A:A,,0)="x",1000,0),0),0) -> 0 | H63: =(F63*H36)+(F63*H36*Standards!$D$80) -> 0 | I63: =(F63*I36)+(F63*I36*Standards!E80) -> 0 | J63: =(F63*J36)+(F63*J36*Standards!F80) -> 0 | K63: =(F63*K36)+(F63*K36*Standards!G80) -> 0 | L63: =(F63*L36)+(F63*L36*Standards!H80) -> 0 | M63: 0 | N63: 0
B64: 0 | D64: 0 | F64: 0 | G64: =(F64*G37)+(F64*G37*Standards!$C$80)+IFERROR(_xlfn.IFNA(IF(_xlfn.XLOOKUP(C64,'DOP Job Classes'!B:B,'DOP Job Classes'!A:A,,0)="x",1000,0),0),0) -> 0 | H64: =(F64*H37)+(F64*H37*Standards!$D$80) -> 0 | I64: =(F64*I37)+(F64*I37*Standards!E80) -> 0 | J64: =(F64*J37)+(F64*J37*Standards!F80) -> 0 | K64: =(F64*K37)+(F64*K37*Standards!G80) -> 0 | L64: =(F64*L37)+(F64*L37*Standards!H80) -> 0 | M64: 0 | N64: 0
B65: =B38 -> 0 | C65: =C38 ->  | D65: 0 | E65: =E38 ->  | F65: 0 | G65: =(F65*G38)+(F65*G38*Standards!$C$80)+IFERROR(_xlfn.IFNA(IF(_xlfn.XLOOKUP(C65,'DOP Job Classes'!B:B,'DOP Job Classes'!A:A,,0)="x",1000,0),0),0) -> 0 | H65: =(F65*H38)+(F65*H38*Standards!$D$80) -> 0 | I65: =(F65*I38)+(F65*I38*Standards!E80) -> 0 | J65: =(F65*J38)+(F65*J38*Standards!F80) -> 0 | K65: =(F65*K38)+(F65*K38*Standards!G80) -> 0 | L65: =(F65*L38)+(F65*L38*Standards!H80) -> 0 | M65: 0 | N65: 0
B66: TOTAL SALARIES | G66: =SUM(G44:G65) -> 0 | H66: 152955 | I66: 152955 | J66: 152955 | K66: 152955 | L66: 152955 | M66: =SUM(G66:H66) -> 152955 | N66: =SUM(G66:L66) -> 764775
A67: B | B67: BENEFITS
B68: Standard Benefits as a Percentage of Total Salaries | G68: =SUM(G46:G65)*SUM(Standards!$G$58+Standards!$G$59+Standards!$G$62+Standards!$G$63)+G41*SUM(Standards!$G$60:$G$61)*12 -> 0 | H68: =SUM(H46:H65)*SUM(Standards!$G$58+Standards!$G$59+Standards!$G$62+Standards!$G$63)+H41*SUM(Standards!$G$60:$G$61)*12 -> 44474.499 | I68: =SUM(I46:I65)*SUM(Standards!$G$58+Standards!$G$59+Standards!$G$62+Standards!$G$63)+I41*SUM(Standards!$G$60:$G$61)*12 -> 44474.499 | J68: =SUM(J46:J65)*SUM(Standards!$G$58+Standards!$G$59+Standards!$G$62+Standards!$G$63)+J41*SUM(Standards!$G$60:$G$61)*12 -> 44474.499 | K68: =SUM(K46:K65)*SUM(Standards!$G$58+Standards!$G$59+Standards!$G$62+Standards!$G$63)+K41*SUM(Standards!$G$60:$G$61)*12 -> 44474.499 | L68: =SUM(L46:L65)*SUM(Standards!$G$58+Standards!$G$59+Standards!$G$62+Standards!$G$63)+L41*SUM(Standards!$G$60:$G$61)*12 -> 44474.499 | M68: =SUM(G68:H68) -> 44474.499 | N68: =SUM(G68:L68) -> 222372.495
A69: C | B69: PERSONAL SERVICES CONTRACTS | M69: =SUM(G69:H69) -> 0 | N69: =SUM(G69:L69) -> 0
A70: E | B70: GOODS AND SERVICES
B71: Supplies & Materials | C71: EA | G71: =G39*Standards!G6 -> 0 | H71: =H39*Standards!G6 -> 495 | I71: =I39*Standards!G6 -> 495 | J71: =J39*Standards!G6 -> 495 | K71: =K39*Standards!G6 -> 495 | L71: =L39*Standards!G6 -> 495 | M71: =SUM(G71:H71) -> 495 | N71: =SUM(G71:L71) -> 2475
B72: Communications (Includes Postage) | C72: EB | G72: =G39*Standards!G7 -> 0 | H72: =H39*Standards!G7 -> 454 | I72: =I39*Standards!G7 -> 454 | J72: =J39*Standards!G7 -> 454 | K72: =K39*Standards!G7 -> 454 | L72: =L39*Standards!G7 -> 454 | M72: =SUM(G72:H72) -> 454 | N72: =SUM(G72:L72) -> 2270
G73: =G39*Standards!G8 -> 0 | H73: =H39*Standards!G8 -> 0 | I73: =I39*Standards!G8 -> 0 | J73: =J39*Standards!G8 -> 0 | K73: =K39*Standards!G8 -> 0 | L73: =L39*Standards!G8 -> 0 | M73: 0 | N73: 0
B74: Repairs & maintenance | C74: EE | G74: =G39*Standards!G9 -> 0 | H74: =H39*Standards!G9 -> 298 | I74: =I39*Standards!G9 -> 298 | J74: =J39*Standards!G9 -> 298 | K74: =K39*Standards!G9 -> 298 | L74: =L39*Standards!G9 -> 298 | M74: 298 | N74: 1490
B75: Printing & Reproduction | C75: EF | M75: 0 | N75: 0
B76: Employee Training | C76: EG | G76: =G39*Standards!G11 -> 0 | H76: =H39*Standards!G11 -> 575 | I76: =I39*Standards!G11 -> 575 | J76: =J39*Standards!G11 -> 575 | K76: =K39*Standards!G11 -> 575 | L76: =L39*Standards!G11 -> 575 | M76: 575 | N76: 2875
B77: Subscriptions | C77: EJ | G77: =G39*Standards!G12 -> 0 | H77: =H39*Standards!G12 -> 0 | I77: =I39*Standards!G12 -> 0 | J77: =J39*Standards!G12 -> 0 | K77: =K39*Standards!G12 -> 0 | L77: =L39*Standards!G12 -> 0 | M77: 0 | N77: 0
B78: Facilities and Services | C78: EK | G78: =G39*Standards!G13 -> 0 | H78: =H39*Standards!G13 -> 265 | I78: =I39*Standards!G13 -> 265 | J78: =J39*Standards!G13 -> 265 | K78: =K39*Standards!G13 -> 265 | L78: =L39*Standards!G13 -> 265 | M78: 265 | N78: 1325
B79: Data Processing Services | C79: EL | G79: =G39*Standards!G14 -> 0 | H79: =H39*Standards!G14 -> 0 | I79: =I39*Standards!G14 -> 0 | J79: =J39*Standards!G14 -> 0 | K79: =K39*Standards!G14 -> 0 | L79: =L39*Standards!G14 -> 0 | M79: 0 | N79: 0
B80: Attorney General Services | C80: EM | M80: =SUM(G80:H80) -> 0 | N80: =SUM(G80:L80) -> 0
B81: Personnel Services | C81: EN | M81: =SUM(G81:H81) -> 0 | N81: =SUM(G81:L81) -> 0
B82: Insurance | C82: EP | G82: =G39*Standards!G17 -> 0 | H82: =H39*Standards!G17 -> 0 | I82: =I39*Standards!G17 -> 0 | J82: =J39*Standards!G17 -> 0 | K82: =K39*Standards!G17 -> 0 | L82: =L39*Standards!G17 -> 0 | M82: 0 | N82: 0
B83: Purchased services under 20,000 | C83: ER | M83: =SUM(G83:H83) -> 0 | N83: =SUM(G83:L83) -> 0
B84: Purchased services over 20,000 | C84: ER 8*** | M84: 0 | N84: 0
B85: Other | C85: ES thru EZ | G85: =G39*Standards!G19 -> 0 | H85: =H39*Standards!G19 -> 0 | I85: =I39*Standards!G19 -> 0 | J85: =J39*Standards!G19 -> 0 | K85: =K39*Standards!G19 -> 0 | L85: =L39*Standards!G19 -> 0 | M85: 0 | N85: 0
B86: TOTAL GOODS AND SERVICES | G86: =SUM(G71:G85) -> 0 | H86: =SUM(H71:H85) -> 2087 | I86: 2087 | J86: 2087 | K86: 2087 | L86: 2087 | M86: 2087 | N86: 10435
A87: G | B87: TRAVEL
M88: =SUM(G88:H88) -> 0 | N88: =SUM(G88:L88) -> 0
A89: JA | B89: EQUIPMENT LESS THAN 5000
B90: Standard Equipment per FTE | G90: =G39*Standards!G38 -> 0 | M90: =SUM(G90:H90) -> 0 | N90: =SUM(G90:L90) -> 0
A91: JC | B91: EQUIPMENT $5,000 AND OVER
B92: Description Item 1 | M92: =SUM(G92:H92) -> 0 | N92: =SUM(G92:L92) -> 0
B93: Description Item 2 | M93: =SUM(G93:H93) -> 0 | N93: =SUM(G93:L93) -> 0
B94: Description Item 3 | M94: =SUM(G94:H94) -> 0 | N94: =SUM(G94:L94) -> 0
B95: Description Item 4 | M95: =SUM(G95:H95) -> 0 | N95: =SUM(G95:L95) -> 0
B96: Description Item 5 | M96: =SUM(G96:H96) -> 0 | N96: =SUM(G96:L96) -> 0
B97: TOTAL EQUIPMENT 5000 AND OVER | G97: =SUM(G92:G96) -> 0 | H97: =SUM(H92:H96) -> 0 | I97: 0 | J97: 0 | K97: 0 | L97: 0 | M97: 0 | N97: 0
A98: N | B98: GRANT EXPENDITURES | H98: =('Contract Summary'!D22+'Contract Summary'!C22)*(-1) -> 27830868 | I98: =('Contract Summary'!E22)*(-1) -> 21600737 | J98: =('Contract Summary'!F22)*(-1) -> 56495943 | K98: =J98 -> 56495943 | L98: =K98 -> 56495943 | M98: =SUM(G98:G98) -> 0 | N98: =SUM(G98:L98) -> 218919434
A99: T | B99: INTRA-AGENCY REIMBURSEMENT
B100: TE Total | C100: TE | G100: =G39*Standards!G41 -> 0 | H100: =H39*Standards!G41 -> 9336 | I100: =I39*Standards!G41 -> 9336 | J100: =J39*Standards!G41 -> 9336 | K100: =K39*Standards!G41 -> 9336 | L100: =L39*Standards!G41 -> 9336 | M100: =SUM(G100:H100) -> 9336 | N100: =SUM(G100:L100) -> 46680
B101: Enterprise Software | C101: TE 3112 | G101: =G39*Standards!G42 -> 0 | H101: =H39*Standards!G42 -> 0 | I101: =I39*Standards!G42 -> 0 | J101: =J39*Standards!G42 -> 0 | K101: =K39*Standards!G42 -> 0 | L101: =L39*Standards!G42 -> 0 | M101: =SUM(G101:H101) -> 0 | N101: =SUM(G101:L101) -> 0
B102: TOTAL INTRA-AGENCY REIMBURSEMENT | G102: =SUM(G100:G101) -> 0 | H102: =SUM(H100:H101) -> 9336 | I102: 9336 | J102: 9336 | K102: 9336 | L102: 9336 | M102: 9336 | N102: 46680
B103: TOTAL DIRECT COSTS | G103: =G102+G98+G97+G90+G88+G86+G69+G68+G66 -> 0 | H103: =H102+'988 Workload'!H98+H97+H90+H88+H86+H69+H68+H66 -> 28039720.5 | I103: =I102+I98+I97+I90+I88+I86+I69+I68+I66 -> 21809589.5 | J103: 56704795.5 | K103: 56704795.5 | L103: 56704795.5 | M103: 208852.499 | N103: 219963696.5
B104: INDIRECT COSTS | C104: DIVISION | D104: =Standards!E86 -> FY24 | E104: SUBSEQUENT FY
B105: Division Indirects | C105: PCH | D105: =VLOOKUP(C105,IndirectsTable,7,FALSE) -> 0.136 | E105: =VLOOKUP(C105,IndirectsTable,8,FALSE) -> 0.136 | G105: =SUM(G66,G68,G86,G88,G90,G102,-G84)*D105 -> 0 | H105: =SUM(H66,H68,H86,H88,H90,H102,-H84)*E105 -> 28403.93986 | I105: =SUM(I66,I68,I86,I88,I90,I102,-I84)*E105 -> 28403.93986 | J105: =SUM(J66,J68,J86,J88,J90,J102,-J84)*E105 -> 28403.93986 | K105: =SUM(K66,K68,K86,K88,K90,K102,-K84)*E105 -> 28403.93986 | L105: =SUM(L66,L68,L86,L88,L90,L102,-L84)*E105 -> 28403.93986 | M105: =SUM(G105:H105) -> 28403.93986 | N105: =SUM(G105:L105) -> 142019.6993
B106: Agency Indirects | D106: =Standards!G66 -> 0.169 | E106: =Standards!H66 -> 0.169 | G106: =SUM(G66,G68,G86,G88,G90,G102,-G84)*D106 -> 0 | H106: =SUM(H66,H68,H86,H88,H90,H102,-H84)*E106 -> 35296.07233 | I106: =SUM(I66,I68,I86,I88,I90,I102,-I84)*E106 -> 35296.07233 | J106: =SUM(J66,J68,J86,J88,J90,J102,-J84)*E106 -> 35296.07233 | K106: =SUM(K66,K68,K86,K88,K90,K102,-K84)*E106 -> 35296.07233 | L106: =SUM(L66,L68,L86,L88,L90,L102,-L84)*E106 -> 35296.07233 | M106: =SUM(G106:H106) -> 35296.07233 | N106: =SUM(G106:L106) -> 176480.3617
B107: Pass Through Indirects + ER Over 20K | D107: =Standards!G67 -> 0.014 | E107: =Standards!H67 -> 0.014 | G107: =SUM(G98,G69,G84)*D107 -> 0 | H107: =SUM('988 Workload'!H98,H69,H84)*E107 -> 389632.152 | I107: =SUM(I98,I69,I84)*E107 -> 302410.318 | J107: =SUM(J98,J69,J84)*E107 -> 790943.202 | K107: =SUM(K98,K69,K84)*E107 -> 790943.202 | L107: =SUM(L98,L69,L84)*E107 -> 790943.202 | M107: =SUM(G107:H107) -> 389632.152 | N107: =SUM(G107:L107) -> 3064872.076
B108: TOTAL INDIRECT COSTS | G108: =SUM(G105:G107) -> 0 | H108: =SUM(H105:H107) -> 453332.1642 | I108: 366110.3302 | J108: 854643.2142 | K108: 854643.2142 | L108: 854643.2142 | M108: 453332.1642 | N108: 3383372.137
B109: TOTAL FISCAL IMPACT | G109: =G108+G103 -> 0 | H109: =H108+H103 -> 28493052.66 | I109: 22175699.83 | J109: 57559438.71 | K109: 57559438.71 | L109: 57559438.71 | M109: 662184.6632 | N109: 223347068.6
B113: DIVISION INDIRECTS
B114: POSITION/JOB DESCRIPTION | F114: Division Factor | G114: =Standards!C83 -> 2024 | H114: =Standards!D83 -> 2025 | I114: =Standards!E83 -> 2026 | J114: =Standards!F83 -> 2027 | K114: =Standards!G83 -> 2028 | L114: =Standards!H83 -> 2029 | M114: =Standards!I83 -> 2023-2025 | N114: SIX-YEAR IMPACT
B115: FTE | G115: =ROUNDDOWN(G105/88000,2) -> 0 | H115: =ROUNDDOWN(H105/88000,2) -> 0.32 | I115: =ROUNDDOWN(I105/88000,2) -> 0.32 | J115: 0.32 | K115: 0.32 | L115: 0.32 | M115: =SUM(G115:H115)/2 -> 0.16 | N115: =SUM(G115:L115)/6 -> 0.2666666667
B116: =Standards!B54 -> Health Svcs Conslt 1 | F116: =Standards!G54 -> 53000 | G116: =G115*F116 -> 0 | H116: =H115*F116 -> 16960 | I116: =I115*F116 -> 16960 | J116: =J115*F116 -> 16960 | K116: =K115*F116 -> 16960 | L116: =L115*F116 -> 16960 | M116: =SUM(G116:H116) -> 16960 | N116: =SUM(G116:L116) -> 84800
B118: Salaries | C118: A | G118: =G116 -> 0 | H118: 16960 | I118: 16960 | J118: 16960 | K118: 16960 | L118: 16960 | M118: =SUM(G118:H118) -> 16960 | N118: =SUM(G118:L118) -> 84800
B119: Benefits | C119: B | G119: =SUM(G116)*SUM(Standards!$G$58+Standards!$G$59+Standards!$G$62+Standards!$G$63)+G115*SUM(Standards!$G$60:$G$61)*12 -> 0 | H119: =SUM(H116)*SUM(Standards!$G$58+Standards!$G$59+Standards!$G$62+Standards!$G$63)+H115*SUM(Standards!$G$60:$G$61)*12 -> 7905.088 | I119: =SUM(I116)*SUM(Standards!$G$58+Standards!$G$59+Standards!$G$62+Standards!$G$63)+I115*SUM(Standards!$G$60:$G$61)*12 -> 7905.088 | J119: =SUM(J116)*SUM(Standards!$G$58+Standards!$G$59+Standards!$G$62+Standards!$G$63)+J115*SUM(Standards!$G$60:$G$61)*12 -> 7905.088 | K119: =SUM(K116)*SUM(Standards!$G$58+Standards!$G$59+Standards!$G$62+Standards!$G$63)+K115*SUM(Standards!$G$60:$G$61)*12 -> 7905.088 | L119: =SUM(L116)*SUM(Standards!$G$58+Standards!$G$59+Standards!$G$62+Standards!$G$63)+L115*SUM(Standards!$G$60:$G$61)*12 -> 7905.088 | M119: 7905.088 | N119: 39525.44
B120: Personal Service Contracts | C120: C | M120: 0 | N120: 0
B121: Goods and Services | C121: E | G121: =IF(G116<>0,G105-G118-G119-G120-G122-G123-G124-G125,G105) -> 0 | H121: 3538.851864 | I121: 3538.851864 | J121: 3538.851864 | K121: 3538.851864 | L121: 3538.851864 | M121: 3538.851864 | N121: 17694.25932
B122: Travel | C122: G | M122: 0 | N122: 0
B123: Equipment (less than 5,000) | C123: JA | M123: 0 | N123: 0
B124: Equipment | C124: JC | M124: 0 | N124: 0
B125: Grants | C125: N | M125: 0 | N125: 0
B126: TOTAL DIVISION INDIRECTS | G126: =SUM(G118:G125) -> 0 | H126: 28403.93986 | I126: 28403.93986 | J126: 28403.93986 | K126: 28403.93986 | L126: 28403.93986 | M126: 28403.93986 | N126: 142019.6993
B128: AGENCY INDIRECTS (BUDGET USE ONLY)
B129: POSITION/JOB DESCRIPTION | F129: Agency Factor | G129: =Standards!C83 -> 2024 | H129: =Standards!D83 -> 2025 | I129: =Standards!E83 -> 2026 | J129: =Standards!F83 -> 2027 | K129: =Standards!G83 -> 2028 | L129: =Standards!H83 -> 2029 | M129: =Standards!I83 -> 2023-2025 | N129: SIX-YEAR IMPACT
B130: FTE | G130: =ROUNDDOWN((G106+G107)/88000,2) -> 0 | H130: =ROUNDDOWN((H106+H107)/88000,2) -> 4.82 | I130: =ROUNDDOWN((I106+I107)/88000,2) -> 3.83 | J130: 9.38 | K130: 9.38 | L130: 9.38 | M130: =SUM(G130:H130)/2 -> 2.41 | N130: =SUM(G130:L130)/6 -> 6.131666667
B131: =Standards!B51 -> Fiscal Analyst 2 | F131: =Standards!G51 -> 53000 | G131: =G130*F131 -> 0 | H131: =H130*F131 -> 255460 | I131: =I130*F131 -> 202990 | J131: =J130*F131 -> 497140 | K131: =K130*F131 -> 497140 | L131: =L130*F131 -> 497140 | M131: =SUM(G131:H131) -> 255460 | N131: =SUM(G131:L131) -> 1949870
B133: Salaries | C133: A | G133: =G131 -> 0 | H133: 255460 | I133: 202990 | J133: 497140 | K133: 497140 | L133: 497140 | M133: =SUM(G133:H133) -> 255460 | N133: =SUM(G133:L133) -> 1949870
B134: Benefits | C134: B | G134: =SUM(G131)*SUM(Standards!$G$58+Standards!$G$59+Standards!$G$62+Standards!$G$63)+G130*SUM(Standards!$G$60:$G$61)*12 -> 0 | H134: =SUM(H131)*SUM(Standards!$G$58+Standards!$G$59+Standards!$G$62+Standards!$G$63)+H130*SUM(Standards!$G$60:$G$61)*12 -> 119070.388 | I134: =SUM(I131)*SUM(Standards!$G$58+Standards!$G$59+Standards!$G$62+Standards!$G$63)+I130*SUM(Standards!$G$60:$G$61)*12 -> 94614.022 | J134: =SUM(J131)*SUM(Standards!$G$58+Standards!$G$59+Standards!$G$62+Standards!$G$63)+J130*SUM(Standards!$G$60:$G$61)*12 -> 231717.892 | K134: =SUM(K131)*SUM(Standards!$G$58+Standards!$G$59+Standards!$G$62+Standards!$G$63)+K130*SUM(Standards!$G$60:$G$61)*12 -> 231717.892 | L134: =SUM(L131)*SUM(Standards!$G$58+Standards!$G$59+Standards!$G$62+Standards!$G$63)+L130*SUM(Standards!$G$60:$G$61)*12 -> 231717.892 | M134: =SUM(G134:H134) -> 119070.388 | N134: =SUM(G134:L134) -> 908838.086
B135: Personal Service Contracts | C135: C | M135: =SUM(G135:H135) -> 0 | N135: =SUM(G135:L135) -> 0
B136: Goods and Services | C136: E | G136: =IF(G131<>0,G106+G107-G133-G134-G135-G137-G138-G139-G140,G106+G107) -> 0 | H136: 50397.83633 | I136: 40102.36833 | J136: 97381.38233 | K136: 97381.38233 | L136: 97381.38233 | M136: =SUM(G136:H136) -> 50397.83633 | N136: =SUM(G136:L136) -> 382644.3517
B137: Travel | C137: G | M137: 0 | N137: 0
B138: Equipment (less than 5,000) | C138: JA | M138: 0 | N138: 0
B139: Equipment | C139: JC | M139: 0 | N139: 0
B140: Grants | C140: N | M140: 0 | N140: 0
B141: TOTAL AGENCY INDIRECTS | G141: =SUM(G133:G140) -> 0 | H141: 424928.2243 | I141: 337706.3903 | J141: 826239.2743 | K141: 826239.2743 | L141: 826239.2743 | M141: 424928.2243 | N141: 3241352.438
B146: Fiscal Detail | F146: =Standards!C83 -> 2024 | J146: =Standards!D83 -> 2025
F147: Program | G147: Division Indirects | H147: Agency Indirect | I147: TOTAL | J147: Program | K147: Division Indirects | L147: Agency Indirect | M147: TOTAL | N147: BIENNIAL TOTAL
B148: Fund Source
B149: =Rollup!B149 -> 001-1 GENERAL FUND STATE | I149: =SUM(F149:H149) -> 0 | M149: =SUM(J149:L149) -> 0 | N149: =I149+M149 -> 0
B150: =Rollup!B150 -> 001-2 GENERAL FUND FEDERAL | I150: 0 | M150: 0 | N150: 0
B151: =Rollup!B151 -> 001-7 GENERAL FUND PRIVATE/LOCAL | I151: 0 | M151: 0 | N151: 0
B152: =Rollup!B152 -> 02G-1 HEALTH PROFESSIONS ACCOUNT | I152: 0 | M152: 0 | N152: 0
B153: =Rollup!B153 -> 04R-2 DRINKING WATER ASSISTANCE ACCOUNT | I153: 0 | M153: 0 | N153: 0
B154: =Rollup!B154 -> 319-7 PUBLIC HEALTH SUPPLEMENTAL ACCOUNT | I154: 0 | M154: 0 | N154: 0
B155: =Rollup!B155 -> 23P-1 MODEL TOXICS CONTROL OPERATING ACCOUNT | I155: 0 | M155: 0 | N155: 0
B156: =Rollup!B156 -> 03C-1 EMER MED SVCS/TRAUMA CARE SYSTEMS | I156: 0 | M156: 0 | N156: 0
B157: =Rollup!B157 -> 03R-1 SAFE DRINKING WATER ACCOUNT | I157: 0 | M157: 0 | N157: 0
B158: =Rollup!B158 -> 828-1 TOBACCO PREVENTION/CTRL ACCOUNT | I158: 0 | M158: 0 | N158: 0
B159: =Rollup!B159 -> 25N - 988 Tax Rev | F159: =F176 -> 0 | G159: =G176 -> 0 | H159: 0 | I159: 0 | J159: =J176 -> 28039000 | K159: 29000 | L159: 424000 | M159: 28492000 | N159: 28492000
B160: =Rollup!B160 -> OTHER 2 | I160: 0 | M160: 0 | N160: 0
B161: Total Cost | F161: =SUM(F149:F160) -> 0 | G161: =SUM(G149:G160) -> 0 | H161: 0 | I161: 0 | J161: 28039000 | K161: 29000 | L161: 424000 | M161: =SUM(M149:M160) -> 28492000 | N161: =SUM(N149:N160) -> 28492000
B163: Staffing
B164: Total FTEs | F164: =G41 -> 0 | G164: =G115 -> 0 | H164: =G130 -> 0 | I164: =SUM(F164:H164) -> 0 | J164: =H41 -> 1 | K164: =H115 -> 0.32 | L164: =H130 -> 4.82 | M164: =SUM(J164:L164) -> 6.14 | N164: =(I164+M164)/2 -> 3.07
B166: Object of Expenditure
B167: A-Salaries | F167: =ROUND(G66,-3) -> 0 | G167: =ROUND(G118,-3) -> 0 | H167: =ROUND(G133,-3) -> 0 | I167: =SUM(F167:H167) -> 0 | J167: =ROUND(H66,-3) -> 153000 | K167: =ROUND(H118,-3) -> 17000 | L167: =ROUND(H133,-3) -> 255000 | M167: =SUM(J167:L167) -> 425000 | N167: =I167+M167 -> 425000
B168: B-Benefits | F168: =ROUND(G68,-3) -> 0 | G168: =ROUND(G119,-3) -> 0 | H168: =ROUND(G134,-3) -> 0 | I168: 0 | J168: =ROUND(H68,-3) -> 44000 | K168: =ROUND(H119,-3) -> 8000 | L168: =ROUND(H134,-3) -> 119000 | M168: 171000 | N168: 171000
B169: C-Personal Svc Contracts | F169: =ROUND(G69,-3) -> 0 | G169: =ROUND(G120,-3) -> 0 | H169: =ROUND(G135,-3) -> 0 | I169: 0 | J169: =ROUND(H69,-3) -> 0 | K169: =ROUND(H120,-3) -> 0 | L169: =ROUND(H135,-3) -> 0 | M169: 0 | N169: 0
B170: E-Goods & Services | F170: =ROUND(G86,-3) -> 0 | G170: =ROUND(G121,-3) -> 0 | H170: =ROUND(G136,-3) -> 0 | I170: 0 | J170: =ROUND(H86,-3) -> 2000 | K170: =ROUND(H121,-3) -> 4000 | L170: =ROUND(H136,-3) -> 50000 | M170: 56000 | N170: 56000
B171: G-Travel | F171: =ROUND(G88,-3) -> 0 | G171: =ROUND(G122,-3) -> 0 | H171: =ROUND(G137,-3) -> 0 | I171: 0 | J171: =ROUND(H88,-3) -> 0 | K171: =ROUND(H122,-3) -> 0 | L171: =ROUND(H137,-3) -> 0 | M171: 0 | N171: 0
B172: J-Equipment | F172: =ROUND(G90+G97,-3) -> 0 | G172: =ROUND(G123+G124,-3) -> 0 | H172: =ROUND(G138+G139,-3) -> 0 | I172: 0 | J172: =ROUND(H90+H97,-3) -> 0 | K172: =ROUND(H123+H124,-3) -> 0 | L172: =ROUND(H138+H139,-3) -> 0 | M172: 0 | N172: 0
B173: N-Grants,Benefits&Client Svc | F173: =ROUND(G98,-3) -> 0 | G173: =ROUND(G125,-3) -> 0 | H173: =ROUND(G140,-3) -> 0 | I173: 0 | J173: =ROUND('988 Workload'!H98,-3) -> 27831000 | K173: =ROUND(H125,-3) -> 0 | L173: =ROUND(H140,-3) -> 0 | M173: 27831000 | N173: 27831000
B174: S-Inter-Agency Reimb | I174: 0 | M174: 0 | N174: 0
B175: T-Intra-Agency Reimb | F175: =ROUND(G102,-3) -> 0 | I175: 0 | J175: =ROUND(H102,-3) -> 9000 | M175: 9000 | N175: 9000
B176: Total Expenditures | F176: =SUM(F167:F175) -> 0 | G176: 0 | H176: 0 | I176: 0 | J176: 28039000 | K176: 29000 | L176: 424000 | M176: 28492000 | N176: 28492000
B177: Control | F177: =F161-F176 -> 0 | G177: =G161-G176 -> 0 | H177: 0 | I177: 0 | J177: 0 | K177: 0 | L177: 0 | M177: 0 | N177: 0
B183: Subsequent SFYs | F183: =Standards!E83 -> 2026 | J183: =Standards!F83 -> 2027
F184: Program | G184: Division Indirects | H184: Agency Indirect | I184: TOTAL | J184: Program | K184: Division Indirects | L184: Agency Indirect | M184: TOTAL | N184: BIENNIAL TOTAL
B185: Fund Source
B186: =Rollup!B149 -> 001-1 GENERAL FUND STATE | I186: =SUM(F186:H186) -> 0 | M186: =SUM(J186:L186) -> 0 | N186: =I186+M186 -> 0
B187: =Rollup!B150 -> 001-2 GENERAL FUND FEDERAL | I187: 0 | M187: 0 | N187: 0
B188: =Rollup!B151 -> 001-7 GENERAL FUND PRIVATE/LOCAL | I188: 0 | M188: 0 | N188: 0
B189: =Rollup!B152 -> 02G-1 HEALTH PROFESSIONS ACCOUNT | I189: 0 | M189: 0 | N189: 0
B190: =Rollup!B153 -> 04R-2 DRINKING WATER ASSISTANCE ACCOUNT | I190: 0 | M190: 0 | N190: 0
B191: =Rollup!B154 -> 319-7 PUBLIC HEALTH SUPPLEMENTAL ACCOUNT | I191: 0 | M191: 0 | N191: 0
B192: =Rollup!B155 -> 23P-1 MODEL TOXICS CONTROL OPERATING ACCOUNT | I192: 0 | M192: 0 | N192: 0
B193: =Rollup!B156 -> 03C-1 EMER MED SVCS/TRAUMA CARE SYSTEMS | I193: 0 | M193: 0 | N193: 0
B194: =Rollup!B157 -> 03R-1 SAFE DRINKING WATER ACCOUNT | I194: 0 | M194: 0 | N194: 0
B195: =Rollup!B158 -> 828-1 TOBACCO PREVENTION/CTRL ACCOUNT | I195: 0 | M195: 0 | N195: 0
B196: =Rollup!B159 -> 25N - 988 Tax Rev | F196: =F213 -> 21809000 | G196: =G213 -> 29000 | H196: 338000 | I196: 22176000 | J196: =J213 -> 56704000 | K196: 29000 | L196: 826000 | M196: 57559000 | N196: 79735000
B197: =Rollup!B160 -> OTHER 2 | I197: 0 | M197: 0 | N197: 0
B198: Total Cost | F198: =SUM(F186:F197) -> 21809000 | G198: =SUM(G186:G197) -> 29000 | H198: 338000 | I198: 22176000 | J198: 56704000 | K198: 29000 | L198: 826000 | M198: =SUM(M186:M197) -> 57559000 | N198: =SUM(N186:N197) -> 79735000
B200: Staffing
B201: Total FTEs | F201: =I41 -> 1 | G201: =I115 -> 0.32 | H201: =I130 -> 3.83 | I201: 5.15 | J201: =J41 -> 1 | K201: =J115 -> 0.32 | L201: =J130 -> 9.38 | M201: 10.7 | N201: =(I201+M201)/2 -> 7.925
B203: Object of Expenditure
B204: A-Salaries | F204: =ROUND(I66,-3) -> 153000 | G204: =ROUND(I118,-3) -> 17000 | H204: =ROUND(I133,-3) -> 203000 | I204: 373000 | J204: =ROUND(J66,-3) -> 153000 | K204: =ROUND(J118,-3) -> 17000 | L204: =ROUND(J133,-3) -> 497000 | M204: =SUM(J204:L204) -> 667000 | N204: 1040000
B205: B-Benefits | F205: =ROUND(I68,-3) -> 44000 | G205: =ROUND(I119,-3) -> 8000 | H205: =ROUND(I134,-3) -> 95000 | I205: 147000 | J205: =ROUND(J68,-3) -> 44000 | K205: =ROUND(J119,-3) -> 8000 | L205: =ROUND(J134,-3) -> 232000 | M205: 284000 | N205: 431000
B206: C-Personal Svc Contracts | F206: =ROUND(I69,-3) -> 0 | G206: =ROUND(I120,-3) -> 0 | H206: =ROUND(I135,-3) -> 0 | I206: 0 | J206: =ROUND(J69,-3) -> 0 | K206: =ROUND(J120,-3) -> 0 | L206: =ROUND(J135,-3) -> 0 | M206: 0 | N206: 0
B207: E-Goods & Services | F207: =ROUND(I86,-3) -> 2000 | G207: =ROUND(I121,-3) -> 4000 | H207: =ROUND(I136,-3) -> 40000 | I207: 46000 | J207: =ROUND(J86,-3) -> 2000 | K207: =ROUND(J121,-3) -> 4000 | L207: =ROUND(J136,-3) -> 97000 | M207: 103000 | N207: 149000
B208: G-Travel | F208: =ROUND(I88,-3) -> 0 | G208: =ROUND(I122,-3) -> 0 | H208: =ROUND(I137,-3) -> 0 | I208: 0 | J208: =ROUND(J88,-3) -> 0 | K208: =ROUND(J122,-3) -> 0 | L208: =ROUND(J137,-3) -> 0 | M208: 0 | N208: 0
B209: J-Equipment | F209: =ROUND(I90+I97,-3) -> 0 | G209: =ROUND(I123+I124,-3) -> 0 | H209: =ROUND(I138+I139,-3) -> 0 | I209: 0 | J209: =ROUND(J90+J97,-3) -> 0 | K209: =ROUND(J123+J124,-3) -> 0 | L209: =ROUND(J138+J139,-3) -> 0 | M209: 0 | N209: 0
B210: N-Grants,Benefits&Client Svc | F210: =ROUND(I98,-3) -> 21601000 | G210: =ROUND(I125,-3) -> 0 | H210: =ROUND(I140,-3) -> 0 | I210: 21601000 | J210: =ROUND(J98,-3) -> 56496000 | K210: =ROUND(J125,-3) -> 0 | L210: =ROUND(J140,-3) -> 0 | M210: 56496000 | N210: 78097000
B211: S-Inter-Agency Reimb | I211: 0 | M211: 0 | N211: 0
B212: T-Intra-Agency Reimb | F212: =ROUND(I102,-3) -> 9000 | I212: 9000 | J212: =ROUND(J102,-3) -> 9000 | M212: 9000 | N212: 18000
B213: Total Expenditures | F213: =SUM(F204:F212) -> 21809000 | G213: 29000 | H213: 338000 | I213: 22176000 | J213: 56704000 | K213: 29000 | L213: 826000 | M213: 57559000 | N213: 79735000
B214: Control | F214: =F198-F213 -> 0 | G214: =G198-G213 -> 0 | H214: 0 | I214: 0 | J214: 0 | K214: 0 | L214: 0 | M214: 0 | N214: 0
B217: Subsequent SFYs | F217: =Standards!G83 -> 2028 | J217: =Standards!H83 -> 2029
F218: Program | G218: Division Indirects | H218: Agency Indirect | I218: TOTAL | J218: Program | K218: Division Indirects | L218: Agency Indirect | M218: TOTAL | N218: BIENNIAL TOTAL
B219: Fund Source
B220: =Rollup!B149 -> 001-1 GENERAL FUND STATE | I220: =SUM(F220:H220) -> 0 | M220: =SUM(J220:L220) -> 0 | N220: =I220+M220 -> 0
B221: =Rollup!B150 -> 001-2 GENERAL FUND FEDERAL | I221: 0 | M221: 0 | N221: 0
B222: =Rollup!B151 -> 001-7 GENERAL FUND PRIVATE/LOCAL | I222: 0 | M222: 0 | N222: 0
B223: =Rollup!B152 -> 02G-1 HEALTH PROFESSIONS ACCOUNT | I223: 0 | M223: 0 | N223: 0
B224: =Rollup!B153 -> 04R-2 DRINKING WATER ASSISTANCE ACCOUNT | I224: 0 | M224: 0 | N224: 0
... 32 more rows

Sheet Last Tab

Sheet Base Estimator (hidden)
A1: Base Estimator
A2: Base Budget – The amount of funding available to the program under current law. For a new biennium, the base budget is the amount available in the upcoming initial biennium allotment. For a supplemental budget, the base is the amount available for allottment in the current biennium.
D7: FY20 | E7: FY21
C8: Division | D8: =VLOOKUP(F8,IndirectsTable,7,FALSE) -> 0.136 | E8: =VLOOKUP(F8,IndirectsTable,7,FALSE) -> 0.136 | F8: PCH
C9: Agency | D9: =Standards!G66 -> 0.169 | E9: =Standards!H66 -> 0.169
C10: PassThru | D10: =Standards!G67 -> 0.014 | E10: =Standards!H67 -> 0.014
A12: Roll-Up | H12: General Fund State | O12: Other Funds
A13: Object | B13: Description | C13: FY18 Projected Allotment | D13: Division | E13: Agency | F13: TOTAL | H13: Object | I13: Description | J13: FY18 Projected Allotment | K13: Division | L13: Agency | M13: TOTAL | O13: Object | P13: Description | Q13: FY18 Projected Allotment | R13: Division | S13: Agency | T13: TOTAL
A14: FTE | C14: =J14+Q14 -> 0 | D14: =K14+R24 -> 0 | E14: 0 | F14: 0 | H14: FTE | K14: =ROUNDDOWN(K26/75000,2) -> 0 | L14: =ROUNDDOWN(L26/75000,2) -> 0 | M14: =SUM(J14:L14) -> 0 | O14: FTE | R14: =ROUNDDOWN(R26/75000,2) -> 0 | S14: =ROUNDDOWN(S26/75000,2) -> 0 | T14: =SUM(Q14:S14) -> 0
A15: A | B15: Salaries & Wages | C15: =J15+Q15 -> 0 | D15: =K15+R15 -> 0 | E15: =L15+S15 -> 0 | F15: =M15+T15 -> 0 | H15: A | I15: Salaries & Wages | K15: =J15*$D$8 -> 0 | L15: =J15*$E$9 -> 0 | M15: =SUM(J15:L15) -> 0 | O15: A | P15: Salaries & Wages | R15: =Q15*$D$8 -> 0 | S15: =Q15*$D$9 -> 0 | T15: =SUM(Q15:S15) -> 0
A16: B | B16: Employee Benefits | C16: =J16+Q16 -> 0 | D16: =K16+R16 -> 0 | E16: =L16+S16 -> 0 | F16: =M16+T16 -> 0 | H16: B | I16: Employee Benefits | K16: =J16*$D$8 -> 0 | L16: =J16*$E$9 -> 0 | M16: =SUM(J16:L16) -> 0 | O16: B | P16: Employee Benefits | R16: =Q16*$D$8 -> 0 | S16: =Q16*$D$9 -> 0 | T16: =SUM(Q16:S16) -> 0
A17: C | B17: Personal Service Contracts | C17: 0 | D17: 0 | E17: 0 | F17: 0 | H17: C | I17: Personal Service Contracts | K17: 0 | L17: =J17*$D$10 -> 0 | M17: 0 | O17: C | P17: Personal Service Contracts | R17: 0 | S17: =Q17*$D$10 -> 0 | T17: 0
A18: E | B18: Good & Services | C18: 0 | D18: 0 | E18: 0 | F18: 0 | H18: E | I18: Good & Services | K18: 0 | L18: =J18*$D$9 -> 0 | M18: 0 | O18: E | P18: Good & Services | R18: 0 | S18: 0 | T18: 0
A19: ER8** | B19: Purchased Services | C19: 0 | D19: 0 | E19: 0 | F19: 0 | H19: ER8** | I19: Purchased Services | K19: 0 | L19: =J19*$D$10 -> 0 | M19: 0 | O19: ER8** | P19: Purchased Services | R19: 0 | S19: =Q19*$D$10 -> 0 | T19: 0
A20: EA8** | B20: Vaccine | C20: 0 | D20: 0 | E20: 0 | F20: 0 | H20: EA8** | I20: Vaccine | K20: 0 | L20: =J20*$D$10 -> 0 | M20: 0 | O20: EA8** | P20: Vaccine | R20: 0 | S20: =Q20*$D$10 -> 0 | T20: 0
A21: G | B21: Travel | C21: 0 | D21: 0 | E21: 0 | F21: 0 | H21: G | I21: Travel | K21: 0 | L21: =J21*$D$9 -> 0 | M21: 0 | O21: G | P21: Travel | R21: 0 | S21: 0 | T21: 0
A22: J | B22: Equipment | C22: 0 | D22: 0 | E22: 0 | F22: 0 | H22: J | I22: Equipment | K22: 0 | L22: =J22*$D$9 -> 0 | M22: 0 | O22: J | P22: Equipment | R22: 0 | S22: 0 | T22: 0
A23: N | B23: Grants | C23: 0 | D23: 0 | E23: 0 | F23: 0 | H23: N | I23: Grants | K23: 0 | L23: =J23*$D$10 -> 0 | M23: 0 | O23: N | P23: Grants | R23: 0 | S23: =Q23*$D$10 -> 0 | T23: 0
A24: NA | B24: WIC Food | C24: 0 | D24: 0 | E24: 0 | F24: 0 | H24: NA | I24: WIC Food | K24: 0 | L24: 0 | M24: 0 | O24: NA | P24: WIC Food | R24: 0 | S24: 0 | T24: 0
A25: T | B25: Inta-agency Reimbursement | C25: 0 | D25: 0 | E25: 0 | F25: 0 | H25: T | I25: Inta-agency Reimbursement | K25: 0 | L25: =J25*$D$9 -> 0 | M25: 0 | O25: T | P25: Inta-agency Reimbursement | R25: 0 | S25: 0 | T25: 0
A26: TOTAL | C26: 0 | D26: 0 | E26: 0 | F26: 0 | H26: TOTAL | J26: =SUM(J15:J25) -> 0 | K26: =SUM(K15:K25) -> 0 | L26: =SUM(L15:L25) -> 0 | M26: 0 | O26: TOTAL | Q26: =SUM(Q15:Q25) -> 0 | R26: =SUM(R15:R25) -> 0 | S26: =SUM(S15:S25) -> 0 | T26: 0
A29: Object | C29: FY19 Projected Allotment | D29: Division | E29: Agency | F29: TOTAL | H29: Object | J29: FY19 Projected Allotment | K29: Division | L29: Agency | M29: TOTAL | O29: Object | Q29: FY19 Projected Allotment | R29: Division | S29: Agency | T29: TOTAL
A30: FTE | C30: =J30+Q30 -> 0 | D30: =K30+R30 -> 0 | E30: =L30+S30 -> 0 | F30: =M30+T30 -> 0 | H30: FTE | K30: =ROUNDDOWN(K42/75000,2) -> 0 | L30: =ROUNDDOWN(L42/75000,2) -> 0 | M30: =SUM(J30:L30) -> 0 | O30: FTE | R30: =ROUNDDOWN(R42/75000,2) -> 0 | S30: =ROUNDDOWN(S42/75000,2) -> 0 | T30: =SUM(Q30:S30) -> 0
A31: A | B31: Salaries & Wages | C31: =J31+Q31 -> 0 | D31: 0 | E31: 0 | F31: 0 | H31: A | I31: Salaries & Wages | K31: =J31*$E$8 -> 0 | L31: =J31*$E$9 -> 0 | M31: =SUM(J31:L31) -> 0 | O31: A | P31: Salaries & Wages | R31: =Q31*$E$8 -> 0 | S31: =Q31*$E$9 -> 0 | T31: =SUM(Q31:S31) -> 0
A32: B | B32: Employee Benefits | C32: 0 | D32: 0 | E32: 0 | F32: 0 | H32: B | I32: Employee Benefits | K32: =J32*$E$8 -> 0 | L32: =J32*$E$9 -> 0 | M32: =SUM(J32:L32) -> 0 | O32: B | P32: Employee Benefits | R32: =Q32*$E$8 -> 0 | S32: =Q32*$E$9 -> 0 | T32: =SUM(Q32:S32) -> 0
A33: C | B33: Personal Service Contracts | C33: 0 | D33: 0 | E33: 0 | F33: 0 | H33: C | I33: Personal Service Contracts | K33: 0 | L33: =J33*$E$10 -> 0 | M33: 0 | O33: C | P33: Personal Service Contracts | R33: 0 | S33: =Q33*$E$10 -> 0 | T33: 0
A34: E | B34: Good & Services | C34: 0 | D34: 0 | E34: 0 | F34: 0 | H34: E | I34: Good & Services | K34: =J34*$E$8 -> 0 | L34: =J34*$E$9 -> 0 | M34: 0 | O34: E | P34: Good & Services | R34: =Q34*$E$8 -> 0 | S34: =Q34*$E$9 -> 0 | T34: 0
A35: ER8** | B35: Purchased Services | C35: 0 | D35: 0 | E35: 0 | F35: 0 | H35: ER8** | I35: Purchased Services | K35: 0 | L35: =J35*$E$10 -> 0 | M35: 0 | O35: ER8** | P35: Purchased Services | R35: 0 | S35: =Q35*$E$10 -> 0 | T35: 0
A36: EA8** | B36: Vaccine | C36: 0 | D36: 0 | E36: 0 | F36: 0 | H36: EA8** | I36: Vaccine | K36: 0 | L36: =J36*$E$10 -> 0 | M36: 0 | O36: EA8** | P36: Vaccine | R36: 0 | S36: =Q36*$E$10 -> 0 | T36: 0
A37: G | B37: Travel | C37: 0 | D37: 0 | E37: 0 | F37: 0 | H37: G | I37: Travel | K37: =J37*$E$8 -> 0 | L37: =J37*$E$9 -> 0 | M37: 0 | O37: G | P37: Travel | R37: =Q37*$E$8 -> 0 | S37: =Q37*$E$9 -> 0 | T37: 0
A38: J | B38: Equipment | C38: 0 | D38: 0 | E38: 0 | F38: 0 | H38: J | I38: Equipment | K38: =J38*$E$8 -> 0 | L38: =J38*$E$9 -> 0 | M38: 0 | O38: J | P38: Equipment | R38: =Q38*$E$8 -> 0 | S38: =Q38*$E$9 -> 0 | T38: 0
A39: N | B39: Grants | C39: 0 | D39: 0 | E39: 0 | F39: 0 | H39: N | I39: Grants | K39: 0 | L39: =J39*$E$10 -> 0 | M39: 0 | O39: N | P39: Grants | R39: 0 | S39: =Q39*$E$10 -> 0 | T39: 0
A40: NA | B40: WIC Food | C40: 0 | D40: 0 | E40: 0 | F40: 0 | H40: NA | I40: WIC Food | K40: 0 | L40: 0 | M40: 0 | O40: NA | P40: WIC Food | R40: 0 | S40: 0 | T40: 0
A41: T | B41: Inta-agency Reimbursement | C41: 0 | D41: 0 | E41: 0 | F41: 0 | H41: T | I41: Inta-agency Reimbursement | K41: =J41*$E$8 -> 0 | L41: =J41*$E$9 -> 0 | M41: 0 | O41: T | P41: Inta-agency Reimbursement | R41: =Q41*$E$8 -> 0 | S41: =Q41*$E$9 -> 0 | T41: 0
A42: TOTAL | C42: 0 | D42: 0 | E42: 0 | F42: 0 | H42: TOTAL | J42: =SUM(J31:J41) -> 0 | K42: =SUM(K31:K41) -> 0 | L42: =SUM(L31:L41) -> 0 | M42: 0 | O42: TOTAL | Q42: =SUM(Q31:Q41) -> 0 | R42: =SUM(R31:R41) -> 0 | S42: =SUM(S31:S41) -> 0 | T42: 0

Sheet Cost per contact rates
B2: Average cost per contact (calls, text, & chat)
D4: Actual | E4: Actual | F4: Actual | G4: Actual | H4: Actual | I4: Actual | J4: Actual | K4: Actual | L4: Actual | M4: Actual | N4: Actual | O4: Actual
D5: July - adjusted | E5: August | F5: September | G5: October | H5: November | I5: December | J5: January | K5: February | L5: March | M5: April | N5: May | O5: June | P5: FY23 TOTAL
B7: Crisis Connections (WA206000)
B8: Cost per contact | C8: Offered | D8: 1806 | E8: 2003 | F8: 1968 | G8: 1959 | H8: 1861 | I8: 1930 | J8: 2033 | K8: 2040 | L8: 2010 | M8: 2048 | N8: 2340 | O8: 2236 | P8: =SUM(D8:O8) -> 24234
B9: =U29 -> 144.4572522 | C9: Answered | D9: 1585 | E9: 1909 | F9: 1813 | G9: 1788 | H9: 1711 | I9: 1787 | J9: 1886 | K9: 1834 | L9: 1822 | M9: 1869 | N9: 2137 | O9: 2033 | P9: =SUM(D9:O9) -> 22174
D10: =D9/D8 -> 0.8776301218 | E10: =E9/E8 -> 0.9530703944 | F10: 0.9212398374 | G10: 0.9127105666 | H10: 0.919398173 | I10: 0.9259067358 | J10: 0.9276930644 | K10: 0.8990196078 | L10: 0.9064676617 | M10: 0.9125976562 | N10: 0.9132478632 | O10: =O9/O8 -> 0.9092128801 | P10: =P9/P8 -> 0.9149954609
B11: Frontier Behavioral Health (WA509123)
B12: Cost per contact | C12: Offered | D12: 391 | E12: 415 | F12: 422 | G12: 382 | H12: 302 | I12: 280 | J12: 404 | K12: 370 | L12: 475 | M12: 545 | N12: 580 | O12: 610 | P12: =SUM(D12:O12) -> 5176
B13: =U30 -> 105.1917055 | C13: Answered | D13: 334 | E13: 352 | F13: 371 | G13: 336 | H13: 264 | I13: 259 | J13: 375 | K13: 345 | L13: 444 | M13: 505 | N13: 488 | O13: 477 | P13: =SUM(D13:O13) -> 4550
D14: =D13/D12 -> 0.8542199488 | E14: =E13/E12 -> 0.8481927711 | F14: =F13/F12 -> 0.8791469194 | G14: =G13/G12 -> 0.8795811518 | H14: =H13/H12 -> 0.8741721854 | I14: =I13/I12 -> 0.925 | J14: =J13/J12 -> 0.9282178218 | K14: =K13/K12 -> 0.9324324324 | L14: =L13/L12 -> 0.9347368421 | M14: =M13/M12 -> 0.9266055046 | N14: =N13/N12 -> 0.8413793103 | O14: =O13/O12 -> 0.7819672131 | P14: =P13/P12 -> 0.879057187
B15: Volunteers of America (WA167001)
B16: Cost per contact | C16: Offered | D16: =3870+D35+D38 -> 4566 | E16: =3870+E35+E38 -> 5871 | F16: 6361 | G16: 6209 | H16: 7335 | I16: 4846 | J16: 6810 | K16: 6591 | L16: =3870+L35+L38 -> 6542 | M16: 6602 | N16: 6601 | O16: 6607 | P16: =SUM(D16:O16) -> 74941
B17: =U31 -> 95.40783477 | C17: Answered | D17: =3265+D39+D36 -> 3959 | E17: =3265+E39+E36 -> 5262 | F17: 5748 | G17: 5602 | H17: 6033 | I17: 4037 | J17: 5653 | K17: 5521 | L17: 5604 | M17: 5693 | N17: 5646 | O17: 5654 | P17: =SUM(D17:O17) -> 64412
D18: =D17/D16 -> 0.8670608848 | E18: =E17/E16 -> 0.8962698007 | F18: =F17/F16 -> 0.9036315045 | G18: =G17/G16 -> 0.9022386858 | H18: =H17/H16 -> 0.8224948875 | I18: =I17/I16 -> 0.8330581923 | J18: =J17/J16 -> 0.83010279 | K18: =K17/K16 -> 0.8376574116 | L18: =L17/L16 -> 0.856618771 | M18: =M17/M16 -> 0.8623144502 | N18: =N17/N16 -> 0.8553249508 | O18: =O17/O16 -> 0.8557590434 | P18: =P17/P16 -> 0.8595028089
D20: Actual | E20: Actual | F20: Actual | G20: Actual | H20: Actual | I20: Actual | J20: Actual | K20: Actual | L20: Actual | M20: Actual | N20: Actual | O20: Actual
D21: 2023-07-22 | E21: 2023-08-22 | F21: 2023-09-22 | G21: 2023-10-22 | H21: 2023-11-22 | I21: 2023-12-22 | J21: 2023-01-23 | K21: 2023-02-23 | L21: 2023-03-23 | M21: 2023-04-23 | N21: 2023-05-23 | O21: 2023-05-24
D22: FM13 | E22: FM14 | F22: FM15 | G22: FM16 | H22: FM17 | I22: FM18 | J22: FM19 | K22: FM20 | L22: FM21 | M22: FM22 | N22: FM23 | O22: FM24
C23: Crisis Connections | D23: 0 | E23: 0 | F23: 217879.99 | G23: 427482.89 | H23: 84971.83 | I23: 0 | J23: 174713.99 | K23: 730178.76 | L23: 0 | M23: 391560.88 | N23: 209930.86 | O23: 966475.91
C24: Frontier | D24: 0 | E24: 0 | F24: 0 | G24: 391.74 | H24: 108.08 | I24: 0 | J24: 216.16 | K24: 40634.85 | L24: 150865.26 | M24: 39740.5 | N24: 0 | O24: 246665.67
C25: VOA | D25: 0 | E25: 0 | F25: 0 | G25: 413838.66 | H25: 1126527.15 | I25: 0 | J25: 1140206.93 | K25: 586841.08 | L25: 0 | M25: 1147569.39 | N25: 735912 | O25: 3401844.73
C26: Totals | D26: 0 | E26: 0 | F26: 217879.99 | G26: 841713.29 | H26: 1211607.06 | I26: 0 | J26: 1315137.08 | K26: 1357654.69 | L26: 150865.26 | M26: 1578870.77 | N26: 945842.86 | O26: =SUM(O23:O25) -> 4614986.31
S28: Total Actuals $$ Per SFY23 | W28: STATEWIDE FIGURES
S29: Crisis Connections | T29: =SUM(D23:O23) -> 3203195.11 | U29: =T29/SUM(D9:O9) -> 144.4572522 | W29: =SUM(D13:O13)+SUM(D9:O9)+SUM(D17:O17) -> 91136 | X29: Total Contacts
S30: Frontier | T30: =SUM(D24:O24) -> 478622.26 | U30: =T30/SUM(D13:O13) -> 105.1917055 | W30: =SUM(D26:O26) -> 12234557.31 | X30: Total Cost
S31: VOA | T31: =SUM(D25:O25) -> 8552739.94 | U31: =T31/(SUM(D17:O17)+SUM(D36:O36)+SUM(D39:O39)) -> 95.40783477 | W31: =W30/W29 -> 134.2450548 | X31: Average Cost per Contact
T32: =SUM(T29:T31) -> 12234557.31
C34: Texts (Volunteers of America)
C35: Received | D35: 339 | E35: 857 | F35: 1136 | G35: 1157 | H35: 1198 | I35: 477 | J35: 1455 | K35: 1272 | L35: 1412 | M35: 1392 | N35: 1455 | O35: 1512 | P35: =SUM(D35:O35) -> 13662
C36: Answered In-state | D36: 337 | E36: 853 | F36: 1129 | G36: 1155 | H36: 942 | I36: 380 | J36: 1196 | K36: 1081 | L36: 1256 | M36: 1234 | N36: 1283 | O36: 1322 | P36: =SUM(D36:O36) -> 12168
C37: Chats (Volunteers of America)
C38: Received | D38: 357 | E38: 1144 | F38: 1355 | G38: 1182 | H38: 2267 | I38: 499 | J38: 1485 | K38: 1449 | L38: 1260 | M38: 1340 | N38: 1276 | O38: 1225 | P38: =SUM(D38:O38) -> 14839
C39: Answered In-state | D39: 357 | E39: 1144 | F39: 1354 | G39: 1182 | H39: 1826 | I39: 392 | J39: 1192 | K39: 1175 | L39: 1083 | M39: 1194 | N39: 1098 | O39: 1067 | P39: =SUM(D39:O39) -> 13064
C43: Notes: | D43: - Cost per contact is an average cost from the prior 12 months
D44: - Call projection increase is based on calls answered but contract cost are based on all calls incoming.
D45: - Native & Strong calls are included in VOAs total calls
D46: - Original per call cost uses SFY23 call and cost data
D47: - Call increase per month is a rolling 12 month average
D48: - Text, chat and Native and Strong numbers are included with VOA

Sheet Contract Summary
D3: =(D15-C15)/C15 -> 0.5765061217 | H3: % Change between years
A4: Call Volume | B4: FY23 | C4: FY24 | D4: FY25 | E4: FY26 | F4: FY27 | H4: FY23 | I4: FY24 | J4: FY25 | K4: FY26 | L4: FY27
A5: Frontier | B5: ='Frontier per call $'!C10 -> 5176 | C5: ='Frontier per call $'!D10 -> 10619 | D5: ='Frontier per call $'!E10 -> 22793 | E5: ='Frontier per call $'!F10 -> 38154 | F5: ='Frontier per call $'!G10 -> 48676 | I5: =(C5-B5)/B5 -> 1.051584235 | J5: 1.146435634 | K5: =(E5-D5)/D5 -> 0.67393498 | L5: 0.2757771138
A6: Crisis Connection | B6: ='Crisis Connect per call $'!C10 -> 24234 | C6: ='Crisis Connect per call $'!D10 -> 38123 | D6: ='Crisis Connect per call $'!E10 -> 62751 | E6: ='Crisis Connect per call $'!F10 -> 79046 | F6: ='Crisis Connect per call $'!G10 -> 93108 | I6: 0.5731204093 | J6: 0.6460142171 | K6: 0.2596771366 | L6: 0.1778964147
A7: VOA | B7: ='VOA per call $'!C19+'VOA per call $'!C28 -> 105365 | C7: ='VOA per call $'!D19+'VOA per call $'!D28 -> 144149 | D7: ='VOA per call $'!E19+'VOA per call $'!E28 -> 216567 | E7: ='VOA per call $'!F19+'VOA per call $'!F28 -> 318521 | F7: ='VOA per call $'!G19+'VOA per call $'!G28 -> 402226 | I7: 0.3680918711 | J7: 0.502382951 | K7: 0.4707734789 | L7: 0.2627927201
A8: TOTAL | B8: =SUM(B5:B7) -> 134775 | C8: =SUM(C5:C7) -> 192891 | D8: 302111 | E8: 435721 | F8: 544010
A9: Net Change-> | C9: =C8-B8 -> 58116 | D9: =D8-C8 -> 109220 | E9: 133610 | F9: 108289
A11: Cost Actual/Projection | B11: FY23 | C11: FY24 | D11: FY25 | E11: FY26 | F11: FY27
A12: Frontier | B12: ='Frontier per call $'!C17 -> 478622.26 | C12: ='Frontier per call $'!D17 -> 1117031 | D12: ='Frontier per call $'!E17 -> 2397634 | E12: ='Frontier per call $'!F17 -> 4013484 | F12: ='Frontier per call $'!G17 -> 5120313
A13: Crisis Connection | B13: ='Crisis Connect per call $'!C19 -> 3203195.11 | C13: ='Crisis Connect per call $'!D19 -> 5507145 | D13: ='Crisis Connect per call $'!E19 -> 9064838 | E13: ='Crisis Connect per call $'!F19 -> 11418768 | F13: ='Crisis Connect per call $'!G19 -> 13450124
A14: VOA | B14: ='VOA per call $'!C66 -> 8552739.94 | C14: ='VOA per call $'!D66 -> 13752945 | D14: ='VOA per call $'!E66 -> 20662184 | E14: ='VOA per call $'!F66 -> 30389394 | F14: ='VOA per call $'!G66 -> 38375506
A15: TOTAL | B15: =SUM(B12:B14) -> 12234557.31 | C15: =SUM(C12:C14) -> 20377121 | D15: =SUM(D12:D14) -> 32124656 | E15: =SUM(E12:E14) -> 45821646 | F15: =SUM(F12:F14) -> 56945943
A17: Funding--Contracts only
A18: 01* | B18: 450000 | C18: =450000 -> 450000 | D18: 450000 | E18: =C18 -> 450000 | F18: =D18 -> 450000
A19: 1A0 | B19: 23000000 | C19: 23770909 | D19: 0 | E19: =C19 -> 23770909 | F19: 0
A20: Total--excludes 1134 | B20: =SUM(B18:B19) -> 23450000 | C20: =SUM(C18:C19) -> 24220909 | D20: =SUM(D18:D19) -> 450000 | E20: =SUM(E18:E19) -> 24220909 | F20: =SUM(F18:F19) -> 450000
A22: Gap--excludes 1134 | B22: =B20-B15 -> 11215442.69 | C22: =C20-C15 -> 3843788 | D22: =D20-D15 -> -31674656 | E22: -21600737 | F22: -56495943 | H22: <--Links to FnCal
A24: Cost Per Contact | B24: FY23 | C24: FY24 | D24: FY25 | E24: FY26 | F24: FY27
A25: Frontier | B25: =B12/B5 -> 92.46952473 | C25: 105.1917318 | D25: 105.1916817 | E25: 105.1916968 | F25: 105.1917372
A26: Crisis Connection | B26: 132.17773 | C26: 144.457283 | D26: 144.4572676 | E26: 144.4572527 | F26: 144.4572325
A27: VOA | B27: 81.17249504 | C27: 95.40784189 | D27: 95.40781375 | E27: 95.40781926 | F27: 95.40782048
A28: AVERAGE RATE | B28: =B15/B8 -> 90.77764652 | C28: =C15/C8 -> 105.6406001 | D28: =D15/D8 -> 106.3339501 | E28: 105.1628129 | F28: 104.678118
A30: Note: Contact includes follow up care checks.

Sheet Frontier per call $
A1: Washington State
A2: Department of Health
A3: 988 Crisis Line | T3: Previous - > | U3: 0.05552611636 | V3: 0.05552611636 | W3: 0.05503820321 | X3: 0.05821909766 | Y3: 0.07096958328 | Z3: 0.09433572221 | AA3: 0.1082676726 | AB3: 0.08038521671 | AC3: 0.09409718609 | AD3: 0.07828996961 | AE3: 0.07253343199 | AF3: 0.0732262027
A4: Call Types - Medium Estimate | T4: =(T11-I11)/I11 -> 0.5601023018
G5: Monthly Rate of Change | H5: -> | I5: Phone | J5: =(J10-I10)/I10 -> 0.06138107417 | K5: =(K10-J10)/J10 -> 0.01686746988 | L5: -0.09478672986 | M5: -0.2094240838 | N5: -0.07284768212 | O5: 0.4428571429 | P5: -0.08415841584 | Q5: 0.2837837838 | R5: 0.1473684211 | S5: =(S10-R10)/R10 -> 0.06422018349 | T5: =SUM(J5:S5)/10 -> 0.05552611636 | U5: 0.05 | V5: 0.05 | W5: 0.05 | X5: 0.05 | Y5: 0.05 | Z5: 0.05 | AA5: 0.07 | AB5: 0.07 | AC5: 0.07 | AD5: 0.07 | AE5: 0.07 | AF5: 0.07 | AG5: 0.07 | AH5: 0.07 | AI5: 0.07 | AJ5: 0.07 | AK5: 0.07 | AL5: 0.07 | AM5: 0.07 | AN5: 0.05 | AO5: 0.05 | AP5: 0.05 | AQ5: 0.05 | AR5: 0.05 | AS5: 0.05 | AT5: 0.05 | AU5: 0.03 | AV5: 0.03 | AW5: 0.03 | AX5: 0.03 | AY5: 0.03 | AZ5: 0.03 | BA5: 0.03 | BB5: 0.03 | BC5: 0.03 | BD5: 0.03 | BE5: 0.03 | BF5: 0.01 | BG5: 0.01 | BH5: 0.01 | BI5: 0.01 | BJ5: 0.01 | BK5: 0.01 | BL5: 0.01 | BM5: 0.01 | BN5: 0.01 | BO5: 0.01 | BP5: 0.01 | BQ5: 0.01 | BR5: 0.01 | BS5: 0.01 | BT5: 0.01 | BU5: 0.01 | BV5: 0.01 | BW5: 0.01 | BX5: 0.01 | BY5: 0.01 | BZ5: 0.01 | CA5: 0.01 | CB5: 0.01
G6: Adjustment to Monthly Rate | I6: 0 | J6: 0 | K6: 0 | L6: 0 | M6: 0 | N6: 0 | O6: 0 | P6: 0 | Q6: 0 | R6: 0 | S6: 0 | T6: 0 | U6: 0 | V6: 0 | W6: 0 | X6: 0 | Y6: 0 | Z6: 0 | AA6: 0 | AB6: 0 | AC6: 0 | AD6: 0 | AE6: 0 | AF6: 0 | AG6: 0 | AH6: 0 | AI6: 0 | AJ6: 0 | AK6: 0 | AL6: 0 | AM6: 0 | AN6: 0 | AO6: 0 | AP6: 0 | AQ6: 0 | AR6: 0 | AS6: 0 | AT6: 0 | AU6: 0 | AV6: 0 | AW6: 0 | AX6: 0 | AY6: 0 | AZ6: 0 | BA6: 0 | BB6: 0 | BC6: 0 | BD6: 0 | BE6: 0 | BF6: 0 | BG6: 0 | BH6: 0 | BI6: 0 | BJ6: 0 | BK6: 0 | BL6: 0 | BM6: 0 | BN6: 0 | BO6: 0 | BP6: 0 | BQ6: 0 | BR6: 0 | BS6: 0 | BT6: 0 | BU6: 0 | BV6: 0 | BW6: 0 | BX6: 0 | BY6: 0 | BZ6: 0 | CA6: 0 | CB6: 0
C7: % of Change -> | D7: =(D11-C11)/C11 -> 1.051584235 | E7: =(E11-D11)/D11 -> 1.146435634 | F7: =(F11-E11)/E11 -> 0.67393498 | G7: =(G11-F11)/F11 -> 0.2757771138 | I7: FY23 | J7: FY23 | K7: FY23 | L7: FY23 | M7: FY23 | N7: FY23 | O7: FY23 | P7: FY23 | Q7: FY23 | R7: FY23 | S7: FY23 | T7: FY23 | U7: FY24 | V7: FY24 | W7: FY24 | X7: FY24 | Y7: FY24 | Z7: FY24 | AA7: FY24 | AB7: FY24 | AC7: FY24 | AD7: FY24 | AE7: FY24 | AF7: FY24 | AG7: FY25 | AH7: FY25 | AI7: FY25 | AJ7: FY25 | AK7: FY25 | AL7: FY25 | AM7: FY25 | AN7: FY25 | AO7: FY25 | AP7: FY25 | AQ7: FY25 | AR7: FY25 | AS7: FY26 | AT7: FY26 | AU7: FY26 | AV7: FY26 | AW7: FY26 | AX7: FY26 | AY7: FY26 | AZ7: FY26 | BA7: FY26 | BB7: FY26 | BC7: FY26 | BD7: FY26 | BE7: FY27 | BF7: FY27 | BG7: FY27 | BH7: FY27 | BI7: FY27 | BJ7: FY27 | BK7: FY27 | BL7: FY27 | BM7: FY27 | BN7: FY27 | BO7: FY27 | BP7: FY27 | BQ7: FY28 | BR7: FY29 | BS7: FY30 | BT7: FY31 | BU7: FY32 | BV7: FY33 | BW7: FY34 | BX7: FY35 | BY7: FY36 | BZ7: FY37 | CA7: FY38 | CB7: FY39
A8: Call Center Volume | C8: FY23 | D8: FY24 | E8: FY25 | F8: FY26 | G8: FY27 | I8: 2022-07-01 | J8: =EOMONTH(I8,0)+1 -> 2022-08-01 | K8: =EOMONTH(J8,0)+1 -> 2022-09-01 | L8: 2022-10-01 | M8: 2022-11-01 | N8: 2022-12-01 | O8: 2023-01-01 | P8: 2023-02-01 | Q8: 2023-03-01 | R8: 2023-04-01 | S8: 2023-05-01 | T8: 2023-06-01 | U8: 2023-07-01 | V8: 2023-08-01 | W8: 2023-09-01 | X8: 2023-10-01 | Y8: 2023-11-01 | Z8: 2023-12-01 | AA8: 2024-01-01 | AB8: 2024-02-01 | AC8: 2024-03-01 | AD8: 2024-04-01 | AE8: 2024-05-01 | AF8: 2024-06-01 | AG8: 2024-07-01 | AH8: 2024-08-01 | AI8: 2024-09-01 | AJ8: 2024-10-01 | AK8: 2024-11-01 | AL8: 2024-12-01 | AM8: 2025-01-01 | AN8: 2025-02-01 | AO8: 2025-03-01 | AP8: 2025-04-01 | AQ8: 2025-05-01 | AR8: 2025-06-01 | AS8: 2025-07-01 | AT8: 2025-08-01 | AU8: 2025-09-01 | AV8: 2025-10-01 | AW8: 2025-11-01 | AX8: 2025-12-01 | AY8: 2026-01-01 | AZ8: 2026-02-01 | BA8: 2026-03-01 | BB8: 2026-04-01 | BC8: 2026-05-01 | BD8: 2026-06-01 | BE8: 2026-07-01 | BF8: 2026-08-01 | BG8: 2026-09-01 | BH8: 2026-10-01 | BI8: 2026-11-01 | BJ8: 2026-12-01 | BK8: 2027-01-01 | BL8: 2027-02-01 | BM8: 2027-03-01 | BN8: 2027-04-01 | BO8: 2027-05-01 | BP8: =EOMONTH(BO8,0)+1 -> 2027-06-01 | BQ8: =EOMONTH(BP8,0)+1 -> 2027-07-01 | BR8: 2027-08-01 | BS8: 2027-09-01 | BT8: 2027-10-01 | BU8: 2027-11-01 | BV8: 2027-12-01 | BW8: 2028-01-01 | BX8: 2028-02-01 | BY8: 2028-03-01 | BZ8: 2028-04-01 | CA8: 2028-05-01 | CB8: 2028-06-01
C9: Net Increase -> | D9: =D11-C11 -> 5443 | E9: =E11-D11 -> 12174 | F9: =F11-E11 -> 15361 | G9: =G11-F11 -> 10522 | I9: Actual | J9: Actual | K9: Actual | L9: Actual | M9: Actual | N9: Actual | O9: Actual | P9: Actual | Q9: Actual | R9: Actual | S9: Actual | T9: Actual | U9: Forecast | V9: Forecast | W9: Forecast | X9: Forecast | Y9: Forecast | Z9: Forecast | AA9: Forecast | AB9: Forecast | AC9: Forecast | AD9: Forecast | AE9: Forecast | AF9: Forecast | AG9: Forecast | AH9: Forecast | AI9: Forecast | AJ9: Forecast | AK9: Forecast | AL9: Forecast | AM9: Forecast | AN9: Forecast | AO9: Forecast | AP9: Forecast | AQ9: Forecast | AR9: Forecast | AS9: Forecast | AT9: Forecast | AU9: Forecast | AV9: Forecast | AW9: Forecast | AX9: Forecast | AY9: Forecast | AZ9: Forecast | BA9: Forecast | BB9: Forecast | BC9: Forecast | BD9: Forecast | BE9: Forecast | BF9: Forecast | BG9: Forecast | BH9: Forecast | BI9: Forecast | BJ9: Forecast | BK9: Forecast | BL9: Forecast | BM9: Forecast | BN9: Forecast | BO9: Forecast | BP9: Forecast | BQ9: Forecast | BR9: Forecast | BS9: Forecast | BT9: Forecast | BU9: Forecast | BV9: Forecast | BW9: Forecast | BX9: Forecast | BY9: Forecast | BZ9: Forecast | CA9: Forecast | CB9: Forecast
A10: NSPL - Using Monthly Rate of Change to Project | B10: Phone | C10: =SUMIFS($H10:$CC10,$H$7:$CC$7,C$8) -> 5176 | D10: =SUMIFS($H10:$CC10,$H$7:$CC$7,D$8) -> 10619 | E10: =SUMIFS($H10:$CC10,$H$7:$CC$7,E$8) -> 22793 | F10: 38154 | G10: 48676 | I10: 391 | J10: 415 | K10: 422 | L10: 382 | M10: 302 | N10: 280 | O10: 404 | P10: 370 | Q10: 475 | R10: 545 | S10: 580 | T10: 610 | U10: =ROUND((((1+U$5)*T10)+(T10*U6)),0) -> 641 | V10: =ROUND((((1+V$5)*U10)+(U10*V6)),0) -> 673 | W10: 707 | X10: 742 | Y10: 779 | Z10: 818 | AA10: 875 | AB10: 936 | AC10: 1002 | AD10: 1072 | AE10: 1147 | AF10: 1227 | AG10: =ROUND((((1+AG$5)*AF10)+(AF10*AG6)),0) -> 1313 | AH10: =ROUND((((1+AH$5)*AG10)+(AG10*AH6)),0) -> 1405 | AI10: 1503 | AJ10: 1608 | AK10: 1721 | AL10: 1841 | AM10: 1970 | AN10: 2069 | AO10: 2172 | AP10: 2281 | AQ10: 2395 | AR10: 2515 | AS10: 2641 | AT10: 2773 | AU10: 2856 | AV10: 2942 | AW10: 3030 | AX10: 3121 | AY10: 3215 | AZ10: 3311 | BA10: 3410 | BB10: 3512 | BC10: 3617 | BD10: 3726 | BE10: 3838 | BF10: 3876 | BG10: 3915 | BH10: 3954 | BI10: 3994 | BJ10: 4034 | BK10: 4074 | BL10: 4115 | BM10: 4156 | BN10: 4198 | BO10: 4240 | BP10: =ROUND((((1+BP$5)*BO10)+(BO10*BP6)),0) -> 4282 | BQ10: =ROUND((((1+BQ$5)*BP10)+(BP10*BQ6)),0) -> 4325 | BR10: 4368 | BS10: 4412 | BT10: 4456 | BU10: 4501 | BV10: 4546 | BW10: 4591 | BX10: 4637 | BY10: 4683 | BZ10: 4730 | CA10: 4777 | CB10: 4825
B11: Total | C11: 5176 | D11: 10619 | E11: 22793 | F11: 38154 | G11: 48676 | I11: =SUM(I10:I10) -> 391 | J11: 415 | K11: 422 | L11: 382 | M11: 302 | N11: 280 | O11: 404 | P11: 370 | Q11: 475 | R11: 545 | S11: 580 | T11: 610 | U11: 641 | V11: 673 | W11: 707 | X11: 742 | Y11: 779 | Z11: 818 | AA11: 875 | AB11: 936 | AC11: 1002 | AD11: 1072 | AE11: 1147 | AF11: 1227 | AG11: 1313 | AH11: 1405 | AI11: 1503 | AJ11: 1608 | AK11: 1721 | AL11: 1841 | AM11: 1970 | AN11: 2069 | AO11: 2172 | AP11: 2281 | AQ11: 2395 | AR11: 2515 | AS11: 2641 | AT11: 2773 | AU11: 2856 | AV11: 2942 | AW11: 3030 | AX11: 3121 | AY11: 3215 | AZ11: 3311 | BA11: 3410 | BB11: 3512 | BC11: 3617 | BD11: 3726 | BE11: 3838 | BF11: 3876 | BG11: 3915 | BH11: 3954 | BI11: 3994 | BJ11: 4034 | BK11: 4074 | BL11: 4115 | BM11: 4156 | BN11: 4198 | BO11: 4240 | BP11: 4282 | BQ11: =SUM(BQ10:BQ10) -> 4325 | BR11: 4368 | BS11: 4412 | BT11: 4456 | BU11: 4501 | BV11: 4546 | BW11: 4591 | BX11: 4637 | BY11: 4683 | BZ11: 4730 | CA11: 4777 | CB11: 4825
AF13: =SUM(U11:AF11)*1+(SUM(U11:AF11)*'CDC data'!AD26) -> 10864.7154
C14: % of Change -> | D14: =(D20-C20)/C20 -> 1.333846738 | E14: =(E20-D20)/D20 -> 1.146434611 | F14: =(F20-E20)/E20 -> 0.6739352211 | G14: =(G20-F20)/F20 -> 0.2757776037 | I14: FY23 | J14: FY23 | K14: FY23 | L14: FY23 | M14: FY23 | N14: FY23 | O14: FY23 | P14: FY23 | Q14: FY23 | R14: FY23 | S14: FY23 | T14: FY23 | U14: FY24 | V14: FY24 | W14: FY24 | X14: FY24 | Y14: FY24 | Z14: FY24 | AA14: FY24 | AB14: FY24 | AC14: FY24 | AD14: FY24 | AE14: FY24 | AF14: FY24 | AG14: FY25 | AH14: FY25 | AI14: FY25 | AJ14: FY25 | AK14: FY25 | AL14: FY25 | AM14: FY25 | AN14: FY25 | AO14: FY25 | AP14: FY25 | AQ14: FY25 | AR14: FY25 | AS14: FY26 | AT14: FY26 | AU14: FY26 | AV14: FY26 | AW14: FY26 | AX14: FY26 | AY14: FY26 | AZ14: FY26 | BA14: FY26 | BB14: FY26 | BC14: FY26 | BD14: FY26 | BE14: FY27 | BF14: FY27 | BG14: FY27 | BH14: FY27 | BI14: FY27 | BJ14: FY27 | BK14: FY27 | BL14: FY27 | BM14: FY27 | BN14: FY27 | BO14: FY27 | BP14: FY27 | BQ14: FY28 | BR14: FY29 | BS14: FY30 | BT14: FY31 | BU14: FY32 | BV14: FY33 | BW14: FY34 | BX14: FY35 | BY14: FY36 | BZ14: FY37 | CA14: FY38 | CB14: FY39
A15: Projected Contract Expenditures | C15: FY23 | D15: FY24 | E15: FY25 | F15: FY26 | G15: FY27 | I15: 2022-07-01 | J15: =EOMONTH(I15,0)+1 -> 2022-08-01 | K15: =EOMONTH(J15,0)+1 -> 2022-09-01 | L15: 2022-10-01 | M15: 2022-11-01 | N15: 2022-12-01 | O15: 2023-01-01 | P15: 2023-02-01 | Q15: 2023-03-01 | R15: 2023-04-01 | S15: 2023-05-01 | T15: 2023-06-01 | U15: 2023-07-01 | V15: 2023-08-01 | W15: 2023-09-01 | X15: 2023-10-01 | Y15: 2023-11-01 | Z15: 2023-12-01 | AA15: 2024-01-01 | AB15: 2024-02-01 | AC15: 2024-03-01 | AD15: 2024-04-01 | AE15: 2024-05-01 | AF15: 2024-06-01 | AG15: 2024-07-01 | AH15: 2024-08-01 | AI15: 2024-09-01 | AJ15: 2024-10-01 | AK15: 2024-11-01 | AL15: 2024-12-01 | AM15: 2025-01-01 | AN15: 2025-02-01 | AO15: 2025-03-01 | AP15: 2025-04-01 | AQ15: 2025-05-01 | AR15: 2025-06-01 | AS15: 2025-07-01 | AT15: 2025-08-01 | AU15: 2025-09-01 | AV15: 2025-10-01 | AW15: 2025-11-01 | AX15: 2025-12-01 | AY15: 2026-01-01 | AZ15: 2026-02-01 | BA15: 2026-03-01 | BB15: 2026-04-01 | BC15: 2026-05-01 | BD15: 2026-06-01 | BE15: 2026-07-01 | BF15: 2026-08-01 | BG15: 2026-09-01 | BH15: 2026-10-01 | BI15: 2026-11-01 | BJ15: 2026-12-01 | BK15: 2027-01-01 | BL15: 2027-02-01 | BM15: 2027-03-01 | BN15: 2027-04-01 | BO15: 2027-05-01 | BP15: =EOMONTH(BO15,0)+1 -> 2027-06-01 | BQ15: =EOMONTH(BP15,0)+1 -> 2027-07-01 | BR15: 2027-08-01 | BS15: 2027-09-01 | BT15: 2027-10-01 | BU15: 2027-11-01 | BV15: 2027-12-01 | BW15: 2028-01-01 | BX15: 2028-02-01 | BY15: 2028-03-01 | BZ15: 2028-04-01 | CA15: 2028-05-01 | CB15: 2028-06-01
C16: Net Increase -> | D16: =D20-C20 -> 638408.74 | E16: =E20-D20 -> 1280603 | F16: 1615850 | G16: 1106829 | I16: Actual | J16: Actual | K16: Actual | L16: Actual | M16: Actual | N16: Actual | O16: Actual | P16: Actual | Q16: Actual | R16: Actual | S16: Actual | T16: Actual | U16: Forecast | V16: Forecast | W16: Forecast | X16: Forecast | Y16: Forecast | Z16: Forecast | AA16: Forecast | AB16: Forecast | AC16: Forecast | AD16: Forecast | AE16: Forecast | AF16: Forecast | AG16: Forecast | AH16: Forecast | AI16: Forecast | AJ16: Forecast | AK16: Forecast | AL16: Forecast | AM16: Forecast | AN16: Forecast | AO16: Forecast | AP16: Forecast | AQ16: Forecast | AR16: Forecast | AS16: Forecast | AT16: Forecast | AU16: Forecast | AV16: Forecast | AW16: Forecast | AX16: Forecast | AY16: Forecast | AZ16: Forecast | BA16: Forecast | BB16: Forecast | BC16: Forecast | BD16: Forecast | BE16: Forecast | BF16: Forecast | BG16: Forecast | BH16: Forecast | BI16: Forecast | BJ16: Forecast | BK16: Forecast | BL16: Forecast | BM16: Forecast | BN16: Forecast | BO16: Forecast | BP16: Forecast | BQ16: Forecast | BR16: Forecast | BS16: Forecast | BT16: Forecast | BU16: Forecast | BV16: Forecast | BW16: Forecast | BX16: Forecast | BY16: Forecast | BZ16: Forecast | CA16: Forecast | CB16: Forecast
A17: Contract Cost | C17: =SUMIFS($H17:$CC17,$H$7:$CC$7,C$8) -> 478622.26 | D17: =SUMIFS($H17:$CC17,$H$7:$CC$7,D$8) -> 1117031 | E17: =SUMIFS($H17:$CC17,$H$7:$CC$7,E$8) -> 2397634 | F17: =SUMIFS($H17:$CC17,$H$7:$CC$7,F$8) -> 4013484 | G17: =SUMIFS($H17:$CC17,$H$7:$CC$7,G$8) -> 5120313 | I17: ='Cost per contact rates'!D24 -> 0 | J17: ='Cost per contact rates'!E24 -> 0 | K17: ='Cost per contact rates'!F24 -> 0 | L17: ='Cost per contact rates'!G24 -> 391.74 | M17: ='Cost per contact rates'!H24 -> 108.08 | N17: ='Cost per contact rates'!I24 -> 0 | O17: ='Cost per contact rates'!J24 -> 216.16 | P17: ='Cost per contact rates'!K24 -> 40634.85 | Q17: ='Cost per contact rates'!L24 -> 150865.26 | R17: ='Cost per contact rates'!M24 -> 39740.5 | S17: ='Cost per contact rates'!N24 -> 0 | T17: ='Cost per contact rates'!O24 -> 246665.67 | U17: =ROUND((U10*'Cost per contact rates'!$B$13),0) -> 67428 | V17: =ROUND((V10*'Cost per contact rates'!$B$13),0) -> 70794 | W17: =ROUND((W10*'Cost per contact rates'!$B$13),0) -> 74371 | X17: =ROUND((X10*'Cost per contact rates'!$B$13),0) -> 78052 | Y17: =ROUND((Y10*'Cost per contact rates'!$B$13),0) -> 81944 | Z17: =ROUND((Z10*'Cost per contact rates'!$B$13),0) -> 86047 | AA17: =ROUND((AA10*'Cost per contact rates'!$B$13),0) -> 92043 | AB17: =ROUND((AB10*'Cost per contact rates'!$B$13),0) -> 98459 | AC17: =ROUND((AC10*'Cost per contact rates'!$B$13),0) -> 105402 | AD17: =ROUND((AD10*'Cost per contact rates'!$B$13),0) -> 112766 | AE17: =ROUND((AE10*'Cost per contact rates'!$B$13),0) -> 120655 | AF17: =ROUND((AF10*'Cost per contact rates'!$B$13),0) -> 129070 | AG17: =ROUND((AG10*'Cost per contact rates'!$B$13),0) -> 138117 | AH17: =ROUND((AH10*'Cost per contact rates'!$B$13),0) -> 147794 | AI17: =ROUND((AI10*'Cost per contact rates'!$B$13),0) -> 158103 | AJ17: =ROUND((AJ10*'Cost per contact rates'!$B$13),0) -> 169148 | AK17: =ROUND((AK10*'Cost per contact rates'!$B$13),0) -> 181035 | AL17: =ROUND((AL10*'Cost per contact rates'!$B$13),0) -> 193658 | AM17: =ROUND((AM10*'Cost per contact rates'!$B$13),0) -> 207228 | AN17: =ROUND((AN10*'Cost per contact rates'!$B$13),0) -> 217642 | AO17: =ROUND((AO10*'Cost per contact rates'!$B$13),0) -> 228476 | AP17: =ROUND((AP10*'Cost per contact rates'!$B$13),0) -> 239942 | AQ17: =ROUND((AQ10*'Cost per contact rates'!$B$13),0) -> 251934 | AR17: =ROUND((AR10*'Cost per contact rates'!$B$13),0) -> 264557 | AS17: =ROUND((AS10*'Cost per contact rates'!$B$13),0) -> 277811 | AT17: =ROUND((AT10*'Cost per contact rates'!$B$13),0) -> 291697 | AU17: =ROUND((AU10*'Cost per contact rates'!$B$13),0) -> 300428 | AV17: =ROUND((AV10*'Cost per contact rates'!$B$13),0) -> 309474 | AW17: =ROUND((AW10*'Cost per contact rates'!$B$13),0) -> 318731 | AX17: =ROUND((AX10*'Cost per contact rates'!$B$13),0) -> 328303 | AY17: =ROUND((AY10*'Cost per contact rates'!$B$13),0) -> 338191 | AZ17: =ROUND((AZ10*'Cost per contact rates'!$B$13),0) -> 348290 | BA17: =ROUND((BA10*'Cost per contact rates'!$B$13),0) -> 358704 | BB17: =ROUND((BB10*'Cost per contact rates'!$B$13),0) -> 369433 | BC17: =ROUND((BC10*'Cost per contact rates'!$B$13),0) -> 380478 | BD17: =ROUND((BD10*'Cost per contact rates'!$B$13),0) -> 391944 | BE17: =ROUND((BE10*'Cost per contact rates'!$B$13),0) -> 403726 | BF17: =ROUND((BF10*'Cost per contact rates'!$B$13),0) -> 407723 | BG17: =ROUND((BG10*'Cost per contact rates'!$B$13),0) -> 411826 | BH17: =ROUND((BH10*'Cost per contact rates'!$B$13),0) -> 415928 | BI17: =ROUND((BI10*'Cost per contact rates'!$B$13),0) -> 420136 | BJ17: =ROUND((BJ10*'Cost per contact rates'!$B$13),0) -> 424343 | BK17: =ROUND((BK10*'Cost per contact rates'!$B$13),0) -> 428551 | BL17: =ROUND((BL10*'Cost per contact rates'!$B$13),0) -> 432864 | BM17: =ROUND((BM10*'Cost per contact rates'!$B$13),0) -> 437177 | BN17: =ROUND((BN10*'Cost per contact rates'!$B$13),0) -> 441595 | BO17: =ROUND((BO10*'Cost per contact rates'!$B$13),0) -> 446013 | BP17: =ROUND((BP10*'Cost per contact rates'!$B$13),0) -> 450431 | BQ17: =ROUND((BQ10*'Cost per contact rates'!$B$13),0) -> 454954 | BR17: =ROUND((BR10*'Cost per contact rates'!$B$13),0) -> 459477 | BS17: =ROUND((BS10*'Cost per contact rates'!$B$13),0) -> 464106 | BT17: =ROUND((BT10*'Cost per contact rates'!$B$13),0) -> 468734 | BU17: =ROUND((BU10*'Cost per contact rates'!$B$13),0) -> 473468 | BV17: =ROUND((BV10*'Cost per contact rates'!$B$13),0) -> 478201 | BW17: =ROUND((BW10*'Cost per contact rates'!$B$13),0) -> 482935 | BX17: =ROUND((BX10*'Cost per contact rates'!$B$13),0) -> 487774 | BY17: =ROUND((BY10*'Cost per contact rates'!$B$13),0) -> 492613 | BZ17: =ROUND((BZ10*'Cost per contact rates'!$B$13),0) -> 497557 | CA17: =ROUND((CA10*'Cost per contact rates'!$B$13),0) -> 502501 | CB17: =ROUND((CB10*'Cost per contact rates'!$B$13),0) -> 507550
B20: Sub-Total | C20: =SUMIFS($H20:$CC20,$H$7:$CC$7,C$8) -> 478622.26 | D20: =SUMIFS($H20:$CC20,$H$7:$CC$7,D$8) -> 1117031 | E20: =SUMIFS($H20:$CC20,$H$7:$CC$7,E$8) -> 2397634 | F20: =SUMIFS($H20:$CC20,$H$7:$CC$7,F$8) -> 4013484 | G20: =SUMIFS($H20:$CC20,$H$7:$CC$7,G$8) -> 5120313 | I20: =SUM(I17:I19) -> 0 | J20: =SUM(J17:J19) -> 0 | K20: 0 | L20: 391.74 | M20: 108.08 | N20: 0 | O20: 216.16 | P20: 40634.85 | Q20: 150865.26 | R20: 39740.5 | S20: 0 | T20: 246665.67 | U20: =SUM(U17:U19) -> 67428 | V20: 70794 | W20: 74371 | X20: 78052 | Y20: 81944 | Z20: 86047 | AA20: 92043 | AB20: 98459 | AC20: 105402 | AD20: 112766 | AE20: 120655 | AF20: 129070 | AG20: 138117 | AH20: 147794 | AI20: 158103 | AJ20: 169148 | AK20: 181035 | AL20: 193658 | AM20: 207228 | AN20: 217642 | AO20: 228476 | AP20: 239942 | AQ20: 251934 | AR20: 264557 | AS20: 277811 | AT20: 291697 | AU20: 300428 | AV20: 309474 | AW20: 318731 | AX20: 328303 | AY20: 338191 | AZ20: 348290 | BA20: 358704 | BB20: 369433 | BC20: 380478 | BD20: 391944 | BE20: 403726 | BF20: 407723 | BG20: 411826 | BH20: 415928 | BI20: 420136 | BJ20: 424343 | BK20: 428551 | BL20: 432864 | BM20: 437177 | BN20: 441595 | BO20: 446013 | BP20: 450431 | BQ20: =SUM(BQ17:BQ19) -> 454954 | BR20: 459477 | BS20: 464106 | BT20: 468734 | BU20: 473468 | BV20: 478201 | BW20: 482935 | BX20: 487774 | BY20: 492613 | BZ20: 497557 | CA20: 502501 | CB20: 507550
T23: =T10-I10 -> 219
T24: =T23/I10 -> 0.5601023018

Sheet Crisis Connect per call $
A1: Washington State
A2: Department of Health
A3: 988 Crisis Line
A4: Call Types - Medium Estimate
G5: Monthly Rate of Change | H5: -> | I5: Phone | J5: =(J10-I10)/I10 -> 0.1090808416 | K5: -0.01747378932 | L5: -0.004573170732 | M5: -0.05002552323 | N5: 0.03707684041 | O5: 0.05336787565 | P5: 0.003443187408 | Q5: -0.01470588235 | R5: 0.01890547264 | S5: 0.142578125 | T5: =SUM(J5:S5)/10 -> 0.02776739771 | U5: =0.24/12 -> 0.02 | V5: 0.02 | W5: 0.02 | X5: 0.02 | Y5: 0.02 | Z5: 0.02 | AA5: 0.03 | AB5: 0.03 | AC5: 0.03 | AD5: 0.03 | AE5: 0.03 | AF5: 0.03 | AG5: 0.03 | AH5: 0.03 | AI5: 0.03 | AJ5: 0.03 | AK5: 0.03 | AL5: 0.03 | AM5: =0.24/12 -> 0.02 | AN5: 0.02 | AO5: 0.02 | AP5: 0.02 | AQ5: 0.02 | AR5: 0.02 | AS5: 0.02 | AT5: 0.02 | AU5: 0.02 | AV5: 0.02 | AW5: 0.02 | AX5: 0.02 | AY5: 0.01 | AZ5: 0.01 | BA5: 0.01 | BB5: 0.01 | BC5: 0.01 | BD5: =SUM(AR5:BC5)/12 -> 0.01583333333 | BE5: 0.01548611111 | BF5: 0.0151099537 | BG5: 0.01470244985 | BH5: 0.01426098733 | BI5: 0.01378273628 | BJ5: 0.01326463097 | BK5: 0.01270335021 | BL5: 0.0129286294 | BM5: 0.01317268185 | BN5: 0.013437072 | BO5: 0.01372349467 | BP5: 0.01403378589
G6: Adjustment to Monthly Rate | I6: 0 | J6: 0 | K6: 0 | L6: 0 | M6: 0 | N6: 0 | O6: 0 | P6: 0 | Q6: 0 | R6: 0 | S6: 0 | T6: 0 | U6: 0.03 | V6: 0.03 | W6: 0.03 | X6: 0.03 | Y6: 0.03 | Z6: 0.03 | AA6: 0.03 | AB6: 0.03 | AC6: 0.03 | AD6: 0.03 | AE6: 0.03 | AF6: 0.03 | AG6: 0.03 | AH6: 0 | AI6: 0 | AJ6: 0 | AK6: 0 | AL6: 0 | AM6: 0 | AN6: 0 | AO6: 0 | AP6: 0 | AQ6: 0 | AR6: 0 | AS6: 0 | AT6: 0 | AU6: 0 | AV6: 0 | AW6: 0 | AX6: 0 | AY6: 0 | AZ6: 0 | BA6: 0 | BB6: 0 | BC6: 0 | BD6: 0 | BE6: 0 | BF6: 0 | BG6: 0 | BH6: 0 | BI6: 0 | BJ6: 0 | BK6: 0 | BL6: 0 | BM6: 0 | BN6: 0 | BO6: 0 | BP6: 0
C7: % of Change -> | D7: =(D11-C11)/C11 -> 0.5731204093 | E7: =(E11-D11)/D11 -> 0.6460142171 | F7: =(F11-E11)/E11 -> 0.2596771366 | G7: =(G11-F11)/F11 -> 0.1778964147 | I7: FY23 | J7: FY23 | K7: FY23 | L7: FY23 | M7: FY23 | N7: FY23 | O7: FY23 | P7: FY23 | Q7: FY23 | R7: FY23 | S7: FY23 | T7: FY23 | U7: FY24 | V7: FY24 | W7: FY24 | X7: FY24 | Y7: FY24 | Z7: FY24 | AA7: FY24 | AB7: FY24 | AC7: FY24 | AD7: FY24 | AE7: FY24 | AF7: FY24 | AG7: FY25 | AH7: FY25 | AI7: FY25 | AJ7: FY25 | AK7: FY25 | AL7: FY25 | AM7: FY25 | AN7: FY25 | AO7: FY25 | AP7: FY25 | AQ7: FY25 | AR7: FY25 | AS7: FY26 | AT7: FY26 | AU7: FY26 | AV7: FY26 | AW7: FY26 | AX7: FY26 | AY7: FY26 | AZ7: FY26 | BA7: FY26 | BB7: FY26 | BC7: FY26 | BD7: FY26 | BE7: FY27 | BF7: FY27 | BG7: FY27 | BH7: FY27 | BI7: FY27 | BJ7: FY27 | BK7: FY27 | BL7: FY27 | BM7: FY27 | BN7: FY27 | BO7: FY27 | BP7: FY27
A8: Call Center Volume | C8: FY23 | D8: FY24 | E8: FY25 | F8: FY26 | G8: FY27 | I8: 2022-07-01 | J8: =EOMONTH(I8,0)+1 -> 2022-08-01 | K8: =EOMONTH(J8,0)+1 -> 2022-09-01 | L8: 2022-10-01 | M8: 2022-11-01 | N8: 2022-12-01 | O8: 2023-01-01 | P8: 2023-02-01 | Q8: 2023-03-01 | R8: 2023-04-01 | S8: 2023-05-01 | T8: 2023-06-01 | U8: 2023-07-01 | V8: 2023-08-01 | W8: 2023-09-01 | X8: 2023-10-01 | Y8: 2023-11-01 | Z8: 2023-12-01 | AA8: 2024-01-01 | AB8: 2024-02-01 | AC8: 2024-03-01 | AD8: 2024-04-01 | AE8: 2024-05-01 | AF8: 2024-06-01 | AG8: 2024-07-01 | AH8: 2024-08-01 | AI8: 2024-09-01 | AJ8: 2024-10-01 | AK8: 2024-11-01 | AL8: 2024-12-01 | AM8: 2025-01-01 | AN8: 2025-02-01 | AO8: 2025-03-01 | AP8: 2025-04-01 | AQ8: 2025-05-01 | AR8: 2025-06-01 | AS8: 2025-07-01 | AT8: 2025-08-01 | AU8: 2025-09-01 | AV8: 2025-10-01 | AW8: 2025-11-01 | AX8: 2025-12-01 | AY8: 2026-01-01 | AZ8: 2026-02-01 | BA8: 2026-03-01 | BB8: 2026-04-01 | BC8: 2026-05-01 | BD8: 2026-06-01 | BE8: 2026-07-01 | BF8: 2026-08-01 | BG8: 2026-09-01 | BH8: 2026-10-01 | BI8: 2026-11-01 | BJ8: 2026-12-01 | BK8: 2027-01-01 | BL8: 2027-02-01 | BM8: 2027-03-01 | BN8: 2027-04-01 | BO8: 2027-05-01 | BP8: 2027-06-01
C9: Net Increase -> | D9: =D11-C11 -> 13889 | E9: =E11-D11 -> 24628 | F9: =F11-E11 -> 16295 | G9: =G11-F11 -> 14062 | I9: Actual | J9: Actual | K9: Actual | L9: Actual | M9: Actual | N9: Actual | O9: Actual | P9: Actual | Q9: Actual | R9: Actual | S9: Actual | T9: Actual | U9: Forecast | V9: Forecast | W9: Forecast | X9: Forecast | Y9: Forecast | Z9: Forecast | AA9: Forecast | AB9: Forecast | AC9: Forecast | AD9: Forecast | AE9: Forecast | AF9: Forecast | AG9: Forecast | AH9: Forecast | AI9: Forecast | AJ9: Forecast | AK9: Forecast | AL9: Forecast | AM9: Forecast | AN9: Forecast | AO9: Forecast | AP9: Forecast | AQ9: Forecast | AR9: Forecast | AS9: Forecast | AT9: Forecast | AU9: Forecast | AV9: Forecast | AW9: Forecast | AX9: Forecast | AY9: Forecast | AZ9: Forecast | BA9: Forecast | BB9: Forecast | BC9: Forecast | BD9: Forecast | BE9: Forecast | BF9: Forecast | BG9: Forecast | BH9: Forecast | BI9: Forecast | BJ9: Forecast | BK9: Forecast | BL9: Forecast | BM9: Forecast | BN9: Forecast | BO9: Forecast | BP9: Forecast
A10: NSPL - Using Monthly Rate of Change to Project | B10: Phone | C10: =SUMIFS($H10:$BQ10,$H$7:$BQ$7,C$8) -> 24234 | D10: =SUMIFS($H10:$BQ10,$H$7:$BQ$7,D$8) -> 38123 | E10: 62751 | F10: 79046 | G10: 93108 | I10: ='[5]Cost per contact rates'!D29 -> 1806 | J10: ='[5]Cost per contact rates'!E29 -> 2003 | K10: ='[5]Cost per contact rates'!F29 -> 1968 | L10: ='[5]Cost per contact rates'!G29 -> 1959 | M10: ='[5]Cost per contact rates'!H29 -> 1861 | N10: ='[5]Cost per contact rates'!I29 -> 1930 | O10: ='[5]Cost per contact rates'!J29 -> 2033 | P10: ='[5]Cost per contact rates'!K29 -> 2040 | Q10: ='[5]Cost per contact rates'!L29 -> 2010 | R10: ='[5]Cost per contact rates'!M29 -> 2048 | S10: ='[5]Cost per contact rates'!N29 -> 2340 | T10: 2236 | U10: =ROUND(((1+U$5)*T10)+(T10*U6),0) -> 2348 | V10: =ROUND(((1+V$5)*U10)+(U10*V6),0) -> 2465 | W10: 2588 | X10: 2717 | Y10: =ROUND(((1+Y$5)*X10)+(X10*Y6),0) -> 2853 | Z10: =ROUND(((1+Z$5)*Y10)+(Y10*Z6),0) -> 2996 | AA10: 3176 | AB10: 3367 | AC10: 3569 | AD10: 3783 | AE10: 4010 | AF10: 4251 | AG10: 4506 | AH10: 4641 | AI10: 4780 | AJ10: 4923 | AK10: 5071 | AL10: 5223 | AM10: 5327 | AN10: 5434 | AO10: 5543 | AP10: 5654 | AQ10: 5767 | AR10: 5882 | AS10: 6000 | AT10: 6120 | AU10: 6242 | AV10: 6367 | AW10: 6494 | AX10: 6624 | AY10: 6690 | AZ10: 6757 | BA10: 6825 | BB10: 6893 | BC10: 6962 | BD10: 7072 | BE10: 7182 | BF10: 7291 | BG10: 7398 | BH10: 7504 | BI10: 7607 | BJ10: 7708 | BK10: 7806 | BL10: 7907 | BM10: 8011 | BN10: 8119 | BO10: 8230 | BP10: 8345
B11: Total | C11: =SUMIFS($H11:$BQ11,$H$7:$BQ$7,C$8) -> 24234 | D11: 38123 | E11: 62751 | F11: 79046 | G11: 93108 | I11: =SUM(I10:I10) -> 1806 | J11: 2003 | K11: 1968 | L11: 1959 | M11: 1861 | N11: 1930 | O11: 2033 | P11: 2040 | Q11: 2010 | R11: 2048 | S11: 2340 | T11: 2236 | U11: 2348 | V11: 2465 | W11: 2588 | X11: 2717 | Y11: 2853 | Z11: 2996 | AA11: =SUM(AA10:AA10) -> 3176 | AB11: 3367 | AC11: 3569 | AD11: 3783 | AE11: 4010 | AF11: 4251 | AG11: 4506 | AH11: 4641 | AI11: 4780 | AJ11: 4923 | AK11: 5071 | AL11: 5223 | AM11: 5327 | AN11: 5434 | AO11: 5543 | AP11: 5654 | AQ11: 5767 | AR11: 5882 | AS11: 6000 | AT11: 6120 | AU11: 6242 | AV11: 6367 | AW11: 6494 | AX11: 6624 | AY11: 6690 | AZ11: 6757 | BA11: 6825 | BB11: 6893 | BC11: 6962 | BD11: 7072 | BE11: 7182 | BF11: 7291 | BG11: 7398 | BH11: 7504 | BI11: 7607 | BJ11: 7708 | BK11: 7806 | BL11: 7907 | BM11: 8011 | BN11: 8119 | BO11: 8230 | BP11: 8345
C16: % of Change -> | D16: =(D22-C22)/C22 -> 0.7192661736 | E16: =(E22-D22)/D22 -> 0.6460140418 | F16: =(F22-E22)/E22 -> 0.2596770069 | G16: =(G22-F22)/F22 -> 0.1778962494 | I16: FY23 | J16: FY23 | K16: FY23 | L16: FY23 | M16: FY23 | N16: FY23 | O16: FY23 | P16: FY23 | Q16: FY23 | R16: FY23 | S16: FY23 | T16: FY23 | U16: FY24 | V16: FY24 | W16: FY24 | X16: FY24 | Y16: FY24 | Z16: FY24 | AA16: FY24 | AB16: FY24 | AC16: FY24 | AD16: FY24 | AE16: FY24 | AF16: FY24 | AG16: FY25 | AH16: FY25 | AI16: FY25 | AJ16: FY25 | AK16: FY25 | AL16: FY25 | AM16: FY25 | AN16: FY25 | AO16: FY25 | AP16: FY25 | AQ16: FY25 | AR16: FY25 | AS16: FY26 | AT16: FY26 | AU16: FY26 | AV16: FY26 | AW16: FY26 | AX16: FY26 | AY16: FY26 | AZ16: FY26 | BA16: FY26 | BB16: FY26 | BC16: FY26 | BD16: FY26 | BE16: FY27 | BF16: FY27 | BG16: FY27 | BH16: FY27 | BI16: FY27 | BJ16: FY27 | BK16: FY27 | BL16: FY27 | BM16: FY27 | BN16: FY27 | BO16: FY27 | BP16: FY27
A17: Projected Contract Expenditures | C17: FY23 | D17: FY24 | E17: FY25 | F17: FY26 | G17: FY27 | I17: 2022-07-01 | J17: =EOMONTH(I17,0)+1 -> 2022-08-01 | K17: =EOMONTH(J17,0)+1 -> 2022-09-01 | L17: 2022-10-01 | M17: 2022-11-01 | N17: 2022-12-01 | O17: 2023-01-01 | P17: 2023-02-01 | Q17: 2023-03-01 | R17: 2023-04-01 | S17: 2023-05-01 | T17: 2023-06-01 | U17: 2023-07-01 | V17: 2023-08-01 | W17: 2023-09-01 | X17: 2023-10-01 | Y17: 2023-11-01 | Z17: 2023-12-01 | AA17: 2024-01-01 | AB17: 2024-02-01 | AC17: 2024-03-01 | AD17: 2024-04-01 | AE17: 2024-05-01 | AF17: 2024-06-01 | AG17: 2024-07-01 | AH17: 2024-08-01 | AI17: 2024-09-01 | AJ17: 2024-10-01 | AK17: 2024-11-01 | AL17: 2024-12-01 | AM17: 2025-01-01 | AN17: 2025-02-01 | AO17: 2025-03-01 | AP17: 2025-04-01 | AQ17: 2025-05-01 | AR17: 2025-06-01 | AS17: 2025-07-01 | AT17: 2025-08-01 | AU17: 2025-09-01 | AV17: 2025-10-01 | AW17: 2025-11-01 | AX17: 2025-12-01 | AY17: 2026-01-01 | AZ17: 2026-02-01 | BA17: 2026-03-01 | BB17: 2026-04-01 | BC17: 2026-05-01 | BD17: 2026-06-01 | BE17: 2026-07-01 | BF17: 2026-08-01 | BG17: 2026-09-01 | BH17: 2026-10-01 | BI17: 2026-11-01 | BJ17: 2026-12-01 | BK17: 2027-01-01 | BL17: 2027-02-01 | BM17: 2027-03-01 | BN17: 2027-04-01 | BO17: 2027-05-01 | BP17: 2027-06-01
C18: Net Increase -> | D18: =D22-C22 -> 2303949.89 | E18: =E22-D22 -> 3557693 | F18: 2353930 | G18: 2031356 | I18: Actual | J18: Actual | K18: Actual | L18: Actual | M18: Actual | N18: Actual | O18: Actual | P18: Actual | Q18: Actual | R18: Actual | S18: Actual | T18: Actual | U18: Forecast | V18: Forecast | W18: Forecast | X18: Forecast | Y18: Forecast | Z18: Forecast | AA18: Forecast | AB18: Forecast | AC18: Forecast | AD18: Forecast | AE18: Forecast | AF18: Forecast | AG18: Forecast | AH18: Forecast | AI18: Forecast | AJ18: Forecast | AK18: Forecast | AL18: Forecast | AM18: Forecast | AN18: Forecast | AO18: Forecast | AP18: Forecast | AQ18: Forecast | AR18: Forecast | AS18: Forecast | AT18: Forecast | AU18: Forecast | AV18: Forecast | AW18: Forecast | AX18: Forecast | AY18: Forecast | AZ18: Forecast | BA18: Forecast | BB18: Forecast | BC18: Forecast | BD18: Forecast | BE18: Forecast | BF18: Forecast | BG18: Forecast | BH18: Forecast | BI18: Forecast | BJ18: Forecast | BK18: Forecast | BL18: Forecast | BM18: Forecast | BN18: Forecast | BO18: Forecast | BP18: Forecast
A19: Contract Cost | C19: =SUMIFS($H19:$BQ19,$H$7:$BQ$7,C$8) -> 3203195.11 | D19: =SUMIFS($H19:$BQ19,$H$7:$BQ$7,D$8) -> 5507145 | E19: =SUMIFS($H19:$BQ19,$H$7:$BQ$7,E$8) -> 9064838 | F19: 11418768 | G19: 13450124 | I19: ='Cost per contact rates'!D23 -> 0 | J19: ='Cost per contact rates'!E23 -> 0 | K19: ='Cost per contact rates'!F23 -> 217879.99 | L19: ='Cost per contact rates'!G23 -> 427482.89 | M19: ='Cost per contact rates'!H23 -> 84971.83 | N19: ='Cost per contact rates'!I23 -> 0 | O19: ='Cost per contact rates'!J23 -> 174713.99 | P19: ='Cost per contact rates'!K23 -> 730178.76 | Q19: ='Cost per contact rates'!L23 -> 0 | R19: ='Cost per contact rates'!M23 -> 391560.88 | S19: ='Cost per contact rates'!N23 -> 209930.86 | T19: ='Cost per contact rates'!O23 -> 966475.91 | U19: =ROUND(U10*'Cost per contact rates'!$B$9,0) -> 339186 | V19: =ROUND(V10*'Cost per contact rates'!$B$9,0) -> 356087 | W19: =ROUND(W10*'Cost per contact rates'!$B$9,0) -> 373855 | X19: =ROUND(X10*'Cost per contact rates'!$B$9,0) -> 392490 | Y19: =ROUND(Y10*'Cost per contact rates'!$B$9,0) -> 412137 | Z19: =ROUND(Z10*'Cost per contact rates'!$B$9,0) -> 432794 | AA19: =ROUND(AA10*'Cost per contact rates'!$B$9,0) -> 458796 | AB19: =ROUND(AB10*'Cost per contact rates'!$B$9,0) -> 486388 | AC19: =ROUND(AC10*'Cost per contact rates'!$B$9,0) -> 515568 | AD19: =ROUND(AD10*'Cost per contact rates'!$B$9,0) -> 546482 | AE19: =ROUND(AE10*'Cost per contact rates'!$B$9,0) -> 579274 | AF19: =ROUND(AF10*'Cost per contact rates'!$B$9,0) -> 614088 | AG19: =ROUND(AG10*'Cost per contact rates'!$B$9,0) -> 650924 | AH19: =ROUND(AH10*'Cost per contact rates'!$B$9,0) -> 670426 | AI19: =ROUND(AI10*'Cost per contact rates'!$B$9,0) -> 690506 | AJ19: =ROUND(AJ10*'Cost per contact rates'!$B$9,0) -> 711163 | AK19: =ROUND(AK10*'Cost per contact rates'!$B$9,0) -> 732543 | AL19: =ROUND(AL10*'Cost per contact rates'!$B$9,0) -> 754500 | AM19: =ROUND(AM10*'Cost per contact rates'!$B$9,0) -> 769524 | AN19: =ROUND(AN10*'Cost per contact rates'!$B$9,0) -> 784981 | AO19: =ROUND(AO10*'Cost per contact rates'!$B$9,0) -> 800727 | AP19: =ROUND(AP10*'Cost per contact rates'!$B$9,0) -> 816761 | AQ19: =ROUND(AQ10*'Cost per contact rates'!$B$9,0) -> 833085 | AR19: =ROUND(AR10*'Cost per contact rates'!$B$9,0) -> 849698 | AS19: =ROUND(AS10*'Cost per contact rates'!$B$9,0) -> 866744 | AT19: =ROUND(AT10*'Cost per contact rates'!$B$9,0) -> 884078 | AU19: =ROUND(AU10*'Cost per contact rates'!$B$9,0) -> 901702 | AV19: =ROUND(AV10*'Cost per contact rates'!$B$9,0) -> 919759 | AW19: =ROUND(AW10*'Cost per contact rates'!$B$9,0) -> 938105 | AX19: =ROUND(AX10*'Cost per contact rates'!$B$9,0) -> 956885 | AY19: =ROUND(AY10*'Cost per contact rates'!$B$9,0) -> 966419 | AZ19: =ROUND(AZ10*'Cost per contact rates'!$B$9,0) -> 976098 | BA19: =ROUND(BA10*'Cost per contact rates'!$B$9,0) -> 985921 | BB19: =ROUND(BB10*'Cost per contact rates'!$B$9,0) -> 995744 | BC19: =ROUND(BC10*'Cost per contact rates'!$B$9,0) -> 1005711 | BD19: =ROUND(BD10*'Cost per contact rates'!$B$9,0) -> 1021602 | BE19: =ROUND(BE10*'Cost per contact rates'!$B$9,0) -> 1037492 | BF19: =ROUND(BF10*'Cost per contact rates'!$B$9,0) -> 1053238 | BG19: =ROUND(BG10*'Cost per contact rates'!$B$9,0) -> 1068695 | BH19: =ROUND(BH10*'Cost per contact rates'!$B$9,0) -> 1084007 | BI19: =ROUND(BI10*'Cost per contact rates'!$B$9,0) -> 1098886 | BJ19: =ROUND(BJ10*'Cost per contact rates'!$B$9,0) -> 1113476 | BK19: =ROUND(BK10*'Cost per contact rates'!$B$9,0) -> 1127633 | BL19: =ROUND(BL10*'Cost per contact rates'!$B$9,0) -> 1142223 | BM19: =ROUND(BM10*'Cost per contact rates'!$B$9,0) -> 1157247 | BN19: =ROUND(BN10*'Cost per contact rates'!$B$9,0) -> 1172848 | BO19: =ROUND(BO10*'Cost per contact rates'!$B$9,0) -> 1188883 | BP19: =ROUND(BP10*'Cost per contact rates'!$B$9,0) -> 1205496
B22: Sub-Total | C22: =SUMIFS($H22:$BQ22,$H$7:$BQ$7,C$8) -> 3203195.11 | D22: 5507145 | E22: 9064838 | F22: 11418768 | G22: 13450124 | I22: =SUM(I19:I21) -> 0 | J22: =SUM(J19:J21) -> 0 | K22: 217879.99 | L22: 427482.89 | M22: 84971.83 | N22: 0 | O22: 174713.99 | P22: 730178.76 | Q22: 0 | R22: 391560.88 | S22: 209930.86 | T22: 966475.91 | U22: 339186 | V22: 356087 | W22: 373855 | X22: 392490 | Y22: 412137 | Z22: 432794 | AA22: 458796 | AB22: 486388 | AC22: 515568 | AD22: 546482 | AE22: 579274 | AF22: 614088 | AG22: 650924 | AH22: 670426 | AI22: 690506 | AJ22: 711163 | AK22: 732543 | AL22: 754500 | AM22: 769524 | AN22: 784981 | AO22: 800727 | AP22: 816761 | AQ22: 833085 | AR22: 849698 | AS22: 866744 | AT22: 884078 | AU22: 901702 | AV22: 919759 | AW22: 938105 | AX22: 956885 | AY22: 966419 | AZ22: 976098 | BA22: 985921 | BB22: 995744 | BC22: 1005711 | BD22: 1021602 | BE22: 1037492 | BF22: 1053238 | BG22: 1068695 | BH22: 1084007 | BI22: 1098886 | BJ22: 1113476 | BK22: 1127633 | BL22: 1142223 | BM22: 1157247 | BN22: 1172848 | BO22: 1188883 | BP22: 1205496
T25: =T10-I10 -> 430
T26: =T25/I10 -> 0.2380952381

Sheet VOA per call $
A1: Washington State
A2: Department of Health | AG2: NOTE: More contacts shift to text/chats in the future.
A3: 988 Crisis Line | T3: =(T15-I15)/I15 -> 0.5677852349 | AF3: =(AD15-S15)/S15 -> 0.6498100354
A4: Call Types - Medium Estimate | I4: Total Change | J4: =(J15-I15)/I15 -> -0.03573825503 | K4: =(K15-J15)/J15 -> 0.1621715678 | L4: -0.01796676149 | M4: 0.09513645373 | N4: -0.06209104831 | O4: 0.06768591361 | P4: 0.0002780481023 | Q4: 0.04183460737 | R4: -0.06350053362 | S4: 0.08732193732 | T4: 0.2241582602 | U4: 0.02900256849 | V4: 0.03016120645 | W4: 0.03735487128 | X4: 0.02656934307 | Y4: 0.02995828593 | Z4: 0.02963917526 | AA4: 0.03245127838 | AB4: 0.02788120184 | AC4: 0.02973633224 | AD4: 0.03018651832 | AE4: 0.03946637021 | AF4: 0.03544690604 | AG4: 0.03593035266 | AH4: 0.03632219927 | AI4: 0.0365610611 | AJ4: 0.03666379367 | AK4: 0.03760552571 | AL4: 0.0383382643 | AM4: 0.03917843999 | AN4: 0.03998629041 | AO4: 0.04130506426 | AP4: 0.04219854415 | AQ4: 0.04327361069 | AR4: 0.04366176685 | AS4: 0.04109143309 | AT4: 0.03728177881 | AU4: 0.03305785124 | AV4: 0.02866666667 | AW4: 0.0240602722 | AX4: 0.01942093189 | AY4: 0.01943894774 | AZ4: 0.01944888483 | BA4: 0.01945118536 | BB4: 0.01948289753 | BC4: 0.01950571162 | BD4: 0.0194496318 | BE4: 0.01952787475 | BF4: 0.01949284697 | BG4: 0.01951917002 | BH4: 0.01950424005 | BI4: 0.01954699597 | BJ4: 0.01951739935 | BK4: 0.01954387369 | BL4: 0.01956167361 | BM4: 0.01957126784 | BN4: 0.01960214898 | BO4: 0.01962403874 | BP4: 0.0196094863
G5: Monthly Rate of Change | H5: -> | I5: Phone | J5: =(J12-I12)/I12 -> -0.1932816537 | K5: =(K12-J12)/J12 -> 0.1761691224 | L5: -0.01688453159 | M5: -0.0487534626 | N5: 0.01426907397 | O5: 0.1162790698 | P5: 0.079218107 | Q5: -0.0285986654 | R5: -0.1175171737 | S5: 0.1125938282 | T5: =SUM(J5:S5)/10 -> 0.009349371424 | U5: =SUM(J5:T5)/11 -> 0.009349371424 | V5: =SUM(J5:U5)/12 -> 0.009349371424 | W5: =SUM(K5:V5)/12 -> 0.02623529019 | X5: 0.01374080417 | Y5: 0.01629291549 | Z5: 0.021713447 | AA5: 0.02233381141 | AB5: 0.01450503989 | AC5: 0.009112284293 | AD5: 0.01225486343 | AE5: 0.02306919986 | AF5: 0.01560881417 | AG5: 0.0161304344 | AH5: 0.01669552298 | AI5: 0.01730770227 | AJ5: 0.01656373661 | AK5: 0.01679898098 | AL5: 0.01684115311 | AM5: =SUM(AA5:AL5)/12 -> 0.01643512862 | AN5: 0.01594357172 | AO5: 0.01606344937 | AP5: 0.01664271313 | AQ5: 0.01700836727 | AR5: 0.01650329788 | AS5: 0.01657783819 | AT5: 0.01661512184 | AU5: 0.01660842175 | AV5: 0.01655014837 | AW5: 0.01654901602 | AX5: 0.01652818561 | AY5: 0.01650210498 | AZ5: 0.01650768634 | BA5: 0.0165546959 | BB5: 0.01659563311 | BC5: =SUM(AQ5:BB5)/12 -> 0.01659170977 | BD5: 0.01655698831 | BE5: 0.01656146252 | BF5: 0.01656009788 | BG5: 0.01655551255 | BH5: 0.01655110345 | BI5: 0.01655118304 | BJ5: 0.01655136362 | BK5: 0.01655329512 | BL5: 0.01655756097 | BM5: 0.01656171719 | BN5: 0.01656230229 | BO5: 0.01655952472 | BP5: 0.01655684264
G6: Monthly Rate of Change | H6: -> | I6: Chat | J6: =(J13-I13)/I13 -> 0.2098312546 | K6: =(K13-J13)/J13 -> 0.1164342025 | L6: -0.07604562738 | M6: 0.4015285126 | N6: -0.2852348993 | O6: -0.07159624413 | P6: -0.04551201011 | Q6: 0.1443708609 | R6: -0.002314814815 | S6: 0.04002320186 | T6: =SUM(J6:S6)/10 -> 0.04314844368 | U6: =SUM(J6:T6)/11 -> 0.04314844368 | V6: =SUM(J6:U6)/12 -> 0.04314844368 | W6: 0.02925820944 | X6: 0.02199354334 | Y6: 0.03016347424 | Z6: -0.0007836122958 | AA6: 0.02292066162 | AB6: 0.03079707044 | AC6: 0.03715616048 | AD6: 0.02822160211 | AE6: 0.03076630352 | AF6: 0.02999489533 | AG6: 0.0288987663 | AH6: 0.02771129318 | AI6: 0.02642486398 | AJ6: 0.02618875185 | AK6: 0.02653835256 | AL6: 0.02623625909 | AM6: 0.02848791504 | AN6: 0.02895185282 | AO6: 0.02879808469 | AP6: 0.02810157837 | AQ6: 0.0280915764 | AR6: 0.02786868247 | AS6: 0.02769149806 | AT6: 0.02759089238 | AU6: 0.02758085898 | AV6: 0.02767719189 | AW6: 0.02780122856 | AX6: 0.02790646823 | AY6: 0.02804565232 | AZ6: 0.0280087971 | BA6: 0.02793020912 | BB6: 0.02785788616 | BC6: 0.02783757847 | BD6: 0.02781641198 | BE6: 0.0278120561 | BF6: 0.02782210261 | BG6: 0.02784137013 | BH6: 0.02786307939 | BI6: 0.02787857001 | BJ6: 0.02788501514 | BK6: 0.02788322738 | BL6: 0.02786969197 | BM6: 0.02785809987 | BN6: 0.02785209077 | BO6: 0.02785160782 | BP6: 0.02785277693
G7: Monthly Rate of Change | H7: -> | I7: SMS (Text) | J7: 0.3425034388 | K7: 0.1946721311 | L7: 0.07032590051 | M7: 0.09375 | N7: 0.1355311355 | O7: 0.1116129032 | P7: -0.1358096344 | Q7: 0.1363331095 | R7: 0.004137115839 | S7: 0.08181283108 | T7: 0.1034868931 | U7: =SUM(J7:T7)/11 -> 0.1034868931 | V7: 0.1034868931 | W7: 0.08356884765 | X7: 0.07431024069 | Y7: 0.07464226904 | Z7: 0.07304995813 | AA7: 0.06784319334 | AB7: 0.06419571752 | AC7: 0.08086283018 | AD7: 0.0762403069 | AE7: 0.08224890616 | AF7: 0.08228524575 | AG7: 0.0805184418 | AH7: 0.07860440419 | AI7: 0.07653086345 | AJ7: 0.07594436476 | AK7: 0.07608054177 | AL7: 0.07620039783 | AM7: 0.07646293447 | AN7: 0.07718124623 | AO7: 0.07826337362 | AP7: 0.07804675225 | AQ7: 0.07819728936 | AR7: 0.07785965462 | AS7: 0.07 | AT7: 0.06 | AU7: 0.05 | AV7: 0.04 | AW7: 0.03 | AX7: 0.02 | AY7: 0.02 | AZ7: 0.02 | BA7: 0.02 | BB7: 0.02 | BC7: 0.02 | BD7: 0.02 | BE7: 0.02 | BF7: 0.02 | BG7: 0.02 | BH7: 0.02 | BI7: 0.02 | BJ7: 0.02 | BK7: 0.02 | BL7: 0.02 | BM7: 0.02 | BN7: 0.02 | BO7: 0.02 | BP7: 0.02
G8: Adjustment to Monthly Rate | I8: 0 | J8: 0 | K8: 0 | L8: 0 | M8: 0 | N8: 0 | O8: 0 | P8: 0 | Q8: 0 | R8: 0 | S8: 0 | T8: 0 | U8: 0 | V8: 0 | W8: 0 | X8: 0 | Y8: 0 | Z8: 0 | AA8: 0 | AB8: 0 | AC8: 0 | AD8: 0 | AE8: 0 | AF8: 0 | AG8: 0 | AH8: 0 | AI8: 0 | AJ8: 0 | AK8: 0 | AL8: 0 | AM8: 0 | AN8: 0 | AO8: 0 | AP8: 0 | AQ8: 0 | AR8: 0 | AS8: 0 | AT8: 0 | AU8: 0 | AV8: 0 | AW8: 0 | AX8: 0 | AY8: 0 | AZ8: 0 | BA8: 0 | BB8: 0 | BC8: 0 | BD8: 0 | BE8: 0 | BF8: 0 | BG8: 0 | BH8: 0 | BI8: 0 | BJ8: 0 | BK8: 0 | BL8: 0 | BM8: 0 | BN8: 0 | BO8: 0 | BP8: 0
C9: % of Change -> | D9: =(D15-C15)/C15 -> 0.6198286645 | E9: =(E15-D15)/D15 -> 0.5220289348 | F9: =(F15-E15)/E15 -> 0.4879699428 | G9: =(G15-F15)/F15 -> 0.2692440067 | I9: FY23 | J9: FY23 | K9: FY23 | L9: FY23 | M9: FY23 | N9: FY23 | O9: FY23 | P9: FY23 | Q9: FY23 | R9: FY23 | S9: FY23 | T9: FY23 | U9: FY24 | V9: FY24 | W9: FY24 | X9: FY24 | Y9: FY24 | Z9: FY24 | AA9: FY24 | AB9: FY24 | AC9: FY24 | AD9: FY24 | AE9: FY24 | AF9: FY24 | AG9: FY25 | AH9: FY25 | AI9: FY25 | AJ9: FY25 | AK9: FY25 | AL9: FY25 | AM9: FY25 | AN9: FY25 | AO9: FY25 | AP9: FY25 | AQ9: FY25 | AR9: FY25 | AS9: FY26 | AT9: FY26 | AU9: FY26 | AV9: FY26 | AW9: FY26 | AX9: FY26 | AY9: FY26 | AZ9: FY26 | BA9: FY26 | BB9: FY26 | BC9: FY26 | BD9: FY26 | BE9: FY27 | BF9: FY27 | BG9: FY27 | BH9: FY27 | BI9: FY27 | BJ9: FY27 | BK9: FY27 | BL9: FY27 | BM9: FY27 | BN9: FY27 | BO9: FY27 | BP9: FY27
A10: Call Center Volume | C10: FY23 | D10: FY24 | E10: FY25 | F10: FY26 | G10: FY27 | I10: 2022-07-01 | J10: =EOMONTH(I10,0)+1 -> 2022-08-01 | K10: =EOMONTH(J10,0)+1 -> 2022-09-01 | L10: 2022-10-01 | M10: 2022-11-01 | N10: 2022-12-01 | O10: 2023-01-01 | P10: 2023-02-01 | Q10: 2023-03-01 | R10: 2023-04-01 | S10: 2023-05-01 | T10: 2023-06-01 | U10: 2023-07-01 | V10: 2023-08-01 | W10: 2023-09-01 | X10: 2023-10-01 | Y10: 2023-11-01 | Z10: 2023-12-01 | AA10: 2024-01-01 | AB10: 2024-02-01 | AC10: 2024-03-01 | AD10: 2024-04-01 | AE10: 2024-05-01 | AF10: 2024-06-01 | AG10: 2024-07-01 | AH10: 2024-08-01 | AI10: 2024-09-01 | AJ10: 2024-10-01 | AK10: 2024-11-01 | AL10: 2024-12-01 | AM10: 2025-01-01 | AN10: 2025-02-01 | AO10: 2025-03-01 | AP10: 2025-04-01 | AQ10: 2025-05-01 | AR10: 2025-06-01 | AS10: 2025-07-01 | AT10: 2025-08-01 | AU10: 2025-09-01 | AV10: 2025-10-01 | AW10: 2025-11-01 | AX10: 2025-12-01 | AY10: 2026-01-01 | AZ10: 2026-02-01 | BA10: 2026-03-01 | BB10: 2026-04-01 | BC10: 2026-05-01 | BD10: 2026-06-01 | BE10: 2026-07-01 | BF10: 2026-08-01 | BG10: 2026-09-01 | BH10: 2026-10-01 | BI10: 2026-11-01 | BJ10: 2026-12-01 | BK10: 2027-01-01 | BL10: 2027-02-01 | BM10: 2027-03-01 | BN10: 2027-04-01 | BO10: 2027-05-01 | BP10: 2027-06-01
C11: Net Increase -> | D11: =D15-C15 -> 52528 | E11: =E15-D15 -> 71661 | F11: 101954 | G11: 83705 | I11: Actual | J11: Actual | K11: Actual | L11: Actual | M11: Actual | N11: Actual | O11: Actual | P11: Actual | Q11: Actual | R11: Actual | S11: Actual | T11: Actual | U11: Forecast | V11: Forecast | W11: Forecast | X11: Forecast | Y11: Forecast | Z11: Forecast | AA11: Forecast | AB11: Forecast | AC11: Forecast | AD11: Forecast | AE11: Forecast | AF11: Forecast | AG11: Forecast | AH11: Forecast | AI11: Forecast | AJ11: Forecast | AK11: Forecast | AL11: Forecast | AM11: Forecast | AN11: Forecast | AO11: Forecast | AP11: Forecast | AQ11: Forecast | AR11: Forecast | AS11: Forecast | AT11: Forecast | AU11: Forecast | AV11: Forecast | AW11: Forecast | AX11: Forecast | AY11: Forecast | AZ11: Forecast | BA11: Forecast | BB11: Forecast | BC11: Forecast | BD11: Forecast | BE11: Forecast | BF11: Forecast | BG11: Forecast | BH11: Forecast | BI11: Forecast | BJ11: Forecast | BK11: Forecast | BL11: Forecast | BM11: Forecast | BN11: Forecast | BO11: Forecast | BP11: Forecast
A12: NSPL - Using Monthly Rate of Change to Project | B12: Phone | C12: =SUMIFS($H12:$BQ12,$H$9:$BQ$9,C$10) -> 47557 | D12: =SUMIFS($H12:$BQ12,$H$9:$BQ$9,D$10) -> 87878 | E12: 107072 | F12: 130396 | G12: 158806 | I12: 3870 | J12: 3122 | K12: 3672 | L12: 3610 | M12: 3434 | N12: 3483 | O12: 3888 | P12: 4196 | Q12: 4076 | R12: 3597 | S12: 4002 | T12: 6607 | U12: =ROUND(((1+U$5)*T12)+(U8*T12),0) -> 6669 | V12: =ROUND(((1+V$5)*U12)+(V8*U12),0) -> 6731 | W12: 6908 | X12: 7003 | Y12: 7117 | Z12: 7272 | AA12: 7434 | AB12: 7542 | AC12: 7611 | AD12: 7704 | AE12: 7882 | AF12: 8005 | AG12: 8134 | AH12: 8270 | AI12: 8413 | AJ12: 8552 | AK12: 8696 | AL12: 8842 | AM12: 8987 | AN12: 9130 | AO12: 9277 | AP12: 9431 | AQ12: 9591 | AR12: 9749 | AS12: 9911 | AT12: 10076 | AU12: 10243 | AV12: 10413 | AW12: 10585 | AX12: 10760 | AY12: 10938 | AZ12: 11119 | BA12: 11303 | BB12: 11491 | BC12: 11682 | BD12: 11875 | BE12: 12072 | BF12: 12272 | BG12: 12475 | BH12: 12681 | BI12: 12891 | BJ12: 13104 | BK12: 13321 | BL12: 13542 | BM12: 13766 | BN12: 13994 | BO12: 14226 | BP12: 14462
B13: Chat | C13: =SUMIFS($H13:$BQ13,$H$9:$BQ$9,C$10) -> 20204 | D13: 17866 | E13: 24783 | F13: 34467 | G13: 47936 | I13: 1363 | J13: 1649 | K13: 1841 | L13: 1701 | M13: 2384 | N13: 1704 | O13: 1582 | P13: 1510 | Q13: 1728 | R13: 1724 | S13: 1793 | T13: 1225 | U13: =ROUND(((1+U$6)*T13)+(T13*U8),0) -> 1278 | V13: =ROUND(((1+V$6)*U13)+(U13*V8),0) -> 1333 | W13: 1372 | X13: 1402 | Y13: 1444 | Z13: 1443 | AA13: 1476 | AB13: 1521 | AC13: 1578 | AD13: 1623 | AE13: 1673 | AF13: 1723 | AG13: 1773 | AH13: 1822 | AI13: 1870 | AJ13: 1919 | AK13: 1970 | AL13: 2022 | AM13: 2080 | AN13: 2140 | AO13: 2202 | AP13: 2264 | AQ13: 2328 | AR13: 2393 | AS13: 2459 | AT13: 2527 | AU13: 2597 | AV13: 2669 | AW13: 2743 | AX13: 2820 | AY13: 2899 | AZ13: 2980 | BA13: 3063 | BB13: 3148 | BC13: 3236 | BD13: 3326 | BE13: 3419 | BF13: 3514 | BG13: 3612 | BH13: 3713 | BI13: 3817 | BJ13: 3923 | BK13: 4032 | BL13: 4144 | BM13: 4259 | BN13: 4378 | BO13: 4500 | BP13: 4625
B14: SMS (Text) | C14: 16985 | D14: 31530 | E14: 77080 | F14: 146026 | G14: 187852 | I14: 727 | J14: 976 | K14: 1166 | L14: 1248 | M14: 1365 | N14: 1550 | O14: 1723 | P14: 1489 | Q14: 1692 | R14: 1699 | S14: 1838 | T14: 1512 | U14: =ROUND(((1+U$7)*T14)+(T14*U8),0) -> 1668 | V14: =ROUND(((1+V$7)*U14)+(U14*V8),0) -> 1841 | W14: 1995 | X14: 2143 | Y14: 2303 | Z14: 2471 | AA14: 2639 | AB14: 2808 | AC14: 3035 | AD14: 3266 | AE14: 3535 | AF14: 3826 | AG14: 4134 | AH14: 4459 | AI14: 4800 | AJ14: 5165 | AK14: 5558 | AL14: 5982 | AM14: 6439 | AN14: 6936 | AO14: 7479 | AP14: 8063 | AQ14: 8694 | AR14: 9371 | AS14: 10027 | AT14: 10629 | AU14: 11160 | AV14: 11606 | AW14: 11954 | AX14: 12193 | AY14: 12437 | AZ14: 12686 | BA14: 12940 | BB14: 13199 | BC14: 13463 | BD14: 13732 | BE14: 14007 | BF14: 14287 | BG14: 14573 | BH14: 14864 | BI14: 15161 | BJ14: 15464 | BK14: 15773 | BL14: 16088 | BM14: 16410 | BN14: 16738 | BO14: 17073 | BP14: 17414
B15: Sub-Total | C15: 84746 | D15: 137274 | E15: 208935 | F15: 310889 | G15: 394594 | I15: =SUM(I12:I14) -> 5960 | J15: =SUM(J12:J14) -> 5747 | K15: 6679 | L15: 6559 | M15: 7183 | N15: 6737 | O15: 7193 | P15: 7195 | Q15: 7496 | R15: 7020 | S15: 7633 | T15: 9344 | U15: 9615 | V15: 9905 | W15: 10275 | X15: 10548 | Y15: 10864 | Z15: 11186 | AA15: 11549 | AB15: 11871 | AC15: 12224 | AD15: 12593 | AE15: 13090 | AF15: 13554 | AG15: 14041 | AH15: 14551 | AI15: 15083 | AJ15: 15636 | AK15: 16224 | AL15: 16846 | AM15: 17506 | AN15: 18206 | AO15: 18958 | AP15: 19758 | AQ15: 20613 | AR15: 21513 | AS15: 22397 | AT15: 23232 | AU15: 24000 | AV15: 24688 | AW15: 25282 | AX15: 25773 | AY15: 26274 | AZ15: 26785 | BA15: 27306 | BB15: 27838 | BC15: 28381 | BD15: 28933 | BE15: 29498 | BF15: 30073 | BG15: 30660 | BH15: 31258 | BI15: 31869 | BJ15: 32491 | BK15: 33126 | BL15: 33774 | BM15: 34435 | BN15: 35110 | BO15: 35799 | BP15: 36501
A16: NSPL - Using Monthly Rate of Change + Adjustment to Monthly Rate to Project | B16: Phone | C16: =SUMIFS($H16:$BQ16,$H$9:$BQ$9,C$10) -> 66096 | D16: 87878 | E16: 107072 | F16: 130396 | G16: 158806 | I16: 5270 | J16: 5193 | K16: 5383 | L16: 5255 | M16: 4903 | N16: 4966 | O16: 5622 | P16: 5745 | Q16: 5720 | R16: 5390 | S16: 6042 | T16: =ROUND((1+T$8)*T12,0) -> 6607 | U16: 6669 | V16: 6731 | W16: 6908 | X16: 7003 | Y16: 7117 | Z16: 7272 | AA16: 7434 | AB16: 7542 | AC16: 7611 | AD16: 7704 | AE16: 7882 | AF16: 8005 | AG16: 8134 | AH16: 8270 | AI16: 8413 | AJ16: 8552 | AK16: 8696 | AL16: 8842 | AM16: 8987 | AN16: 9130 | AO16: 9277 | AP16: 9431 | AQ16: 9591 | AR16: 9749 | AS16: =ROUND((1+AS$1)*AS12,0) -> 9911 | AT16: 10076 | AU16: 10243 | AV16: 10413 | AW16: 10585 | AX16: 10760 | AY16: 10938 | AZ16: 11119 | BA16: 11303 | BB16: 11491 | BC16: 11682 | BD16: 11875 | BE16: 12072 | BF16: 12272 | BG16: 12475 | BH16: 12681 | BI16: 12891 | BJ16: 13104 | BK16: 13321 | BL16: 13542 | BM16: 13766 | BN16: 13994 | BO16: 14226 | BP16: 14462
B17: Chat | C17: 20204 | D17: 17866 | E17: 24783 | F17: 34467 | G17: 47936 | I17: 1363 | J17: 1649 | K17: 1841 | L17: 1701 | M17: 2384 | N17: 1704 | O17: 1582 | P17: 1510 | Q17: 1728 | R17: 1724 | S17: 1793 | T17: 1225 | U17: 1278 | V17: 1333 | W17: 1372 | X17: 1402 | Y17: 1444 | Z17: 1443 | AA17: 1476 | AB17: 1521 | AC17: 1578 | AD17: 1623 | AE17: 1673 | AF17: 1723 | AG17: 1773 | AH17: 1822 | AI17: 1870 | AJ17: 1919 | AK17: 1970 | AL17: 2022 | AM17: 2080 | AN17: 2140 | AO17: 2202 | AP17: 2264 | AQ17: 2328 | AR17: 2393 | AS17: 2459 | AT17: 2527 | AU17: 2597 | AV17: 2669 | AW17: 2743 | AX17: 2820 | AY17: 2899 | AZ17: 2980 | BA17: 3063 | BB17: 3148 | BC17: 3236 | BD17: 3326 | BE17: 3419 | BF17: 3514 | BG17: 3612 | BH17: 3713 | BI17: 3817 | BJ17: 3923 | BK17: 4032 | BL17: 4144 | BM17: 4259 | BN17: 4378 | BO17: 4500 | BP17: 4625
B18: SMS (Text) | C18: 16985 | D18: 31530 | E18: 77080 | F18: 146026 | G18: 187852 | I18: 727 | J18: 976 | K18: 1166 | L18: 1248 | M18: 1365 | N18: 1550 | O18: 1723 | P18: 1489 | Q18: 1692 | R18: 1699 | S18: 1838 | T18: 1512 | U18: 1668 | V18: 1841 | W18: 1995 | X18: 2143 | Y18: 2303 | Z18: 2471 | AA18: 2639 | AB18: 2808 | AC18: 3035 | AD18: 3266 | AE18: 3535 | AF18: 3826 | AG18: 4134 | AH18: 4459 | AI18: 4800 | AJ18: 5165 | AK18: 5558 | AL18: 5982 | AM18: 6439 | AN18: 6936 | AO18: 7479 | AP18: 8063 | AQ18: 8694 | AR18: 9371 | AS18: 10027 | AT18: 10629 | AU18: 11160 | AV18: 11606 | AW18: 11954 | AX18: 12193 | AY18: 12437 | AZ18: 12686 | BA18: 12940 | BB18: 13199 | BC18: 13463 | BD18: 13732 | BE18: 14007 | BF18: 14287 | BG18: 14573 | BH18: 14864 | BI18: 15161 | BJ18: 15464 | BK18: 15773 | BL18: 16088 | BM18: 16410 | BN18: 16738 | BO18: 17073 | BP18: 17414
B19: Sub-Total | C19: 103285 | D19: 137274 | E19: 208935 | F19: 310889 | G19: 394594 | I19: =SUM(I16:I18) -> 7360 | J19: =SUM(J16:J18) -> 7818 | K19: 8390 | L19: 8204 | M19: 8652 | N19: 8220 | O19: 8927 | P19: 8744 | Q19: 9140 | R19: 8813 | S19: 9673 | T19: 9344 | U19: 9615 | V19: 9905 | W19: 10275 | X19: 10548 | Y19: 10864 | Z19: 11186 | AA19: 11549 | AB19: 11871 | AC19: 12224 | AD19: 12593 | AE19: 13090 | AF19: 13554 | AG19: 14041 | AH19: 14551 | AI19: 15083 | AJ19: 15636 | AK19: 16224 | AL19: 16846 | AM19: 17506 | AN19: 18206 | AO19: 18958 | AP19: 19758 | AQ19: 20613 | AR19: 21513 | AS19: 22397 | AT19: 23232 | AU19: 24000 | AV19: 24688 | AW19: 25282 | AX19: 25773 | AY19: 26274 | AZ19: 26785 | BA19: 27306 | BB19: 27838 | BC19: 28381 | BD19: 28933 | BE19: 29498 | BF19: 30073 | BG19: 30660 | BH19: 31258 | BI19: 31869 | BJ19: 32491 | BK19: 33126 | BL19: 33774 | BM19: 34435 | BN19: 35110 | BO19: 35799 | BP19: 36501
A20: TOTAL | B20: Phone | C20: 66096 | D20: 87878 | E20: 107072 | F20: 130396 | G20: 158806 | I20: =I16+0+0 -> 5270 | J20: 5193 | K20: 5383 | L20: 5255 | M20: 4903 | N20: 4966 | O20: 5622 | P20: 5745 | Q20: 5720 | R20: 5390 | S20: 6042 | T20: 6607 | U20: 6669 | V20: 6731 | W20: 6908 | X20: 7003 | Y20: 7117 | Z20: 7272 | AA20: 7434 | AB20: 7542 | AC20: 7611 | AD20: 7704 | AE20: 7882 | AF20: 8005 | AG20: =AG16+0+0 -> 8134 | AH20: 8270 | AI20: 8413 | AJ20: 8552 | AK20: 8696 | AL20: 8842 | AM20: 8987 | AN20: 9130 | AO20: 9277 | AP20: 9431 | AQ20: 9591 | AR20: 9749 | AS20: 9911 | AT20: 10076 | AU20: 10243 | AV20: 10413 | AW20: 10585 | AX20: 10760 | AY20: 10938 | AZ20: 11119 | BA20: 11303 | BB20: 11491 | BC20: 11682 | BD20: 11875 | BE20: 12072 | BF20: 12272 | BG20: 12475 | BH20: 12681 | BI20: 12891 | BJ20: 13104 | BK20: 13321 | BL20: 13542 | BM20: 13766 | BN20: 13994 | BO20: 14226 | BP20: 14462
B21: Chat | C21: 20204 | D21: 17866 | E21: 24783 | F21: 34467 | G21: 47936 | I21: 1363 | J21: 1649 | K21: 1841 | L21: 1701 | M21: 2384 | N21: 1704 | O21: 1582 | P21: 1510 | Q21: 1728 | R21: 1724 | S21: 1793 | T21: 1225 | U21: 1278 | V21: 1333 | W21: 1372 | X21: 1402 | Y21: 1444 | Z21: 1443 | AA21: 1476 | AB21: 1521 | AC21: 1578 | AD21: 1623 | AE21: 1673 | AF21: 1723 | AG21: 1773 | AH21: 1822 | AI21: 1870 | AJ21: 1919 | AK21: 1970 | AL21: 2022 | AM21: 2080 | AN21: 2140 | AO21: 2202 | AP21: 2264 | AQ21: 2328 | AR21: 2393 | AS21: 2459 | AT21: 2527 | AU21: 2597 | AV21: 2669 | AW21: 2743 | AX21: 2820 | AY21: 2899 | AZ21: 2980 | BA21: 3063 | BB21: 3148 | BC21: 3236 | BD21: 3326 | BE21: 3419 | BF21: 3514 | BG21: 3612 | BH21: 3713 | BI21: 3817 | BJ21: 3923 | BK21: 4032 | BL21: 4144 | BM21: 4259 | BN21: 4378 | BO21: 4500 | BP21: 4625
B22: SMS (Text) | C22: 16985 | D22: 31530 | E22: 77080 | F22: 146026 | G22: 187852 | I22: 727 | J22: 976 | K22: 1166 | L22: 1248 | M22: 1365 | N22: 1550 | O22: 1723 | P22: 1489 | Q22: 1692 | R22: 1699 | S22: 1838 | T22: 1512 | U22: 1668 | V22: 1841 | W22: 1995 | X22: 2143 | Y22: 2303 | Z22: 2471 | AA22: 2639 | AB22: 2808 | AC22: 3035 | AD22: 3266 | AE22: 3535 | AF22: 3826 | AG22: 4134 | AH22: 4459 | AI22: 4800 | AJ22: 5165 | AK22: 5558 | AL22: 5982 | AM22: 6439 | AN22: 6936 | AO22: 7479 | AP22: 8063 | AQ22: 8694 | AR22: 9371 | AS22: 10027 | AT22: 10629 | AU22: 11160 | AV22: 11606 | AW22: 11954 | AX22: 12193 | AY22: 12437 | AZ22: 12686 | BA22: 12940 | BB22: 13199 | BC22: 13463 | BD22: 13732 | BE22: 14007 | BF22: 14287 | BG22: 14573 | BH22: 14864 | BI22: 15161 | BJ22: 15464 | BK22: 15773 | BL22: 16088 | BM22: 16410 | BN22: 16738 | BO22: 17073 | BP22: 17414
B23: Sub-Total | C23: 103285 | D23: 137274 | E23: 208935 | F23: 310889 | G23: 394594 | I23: =SUM(I20:I22) -> 7360 | J23: =SUM(J20:J22) -> 7818 | K23: 8390 | L23: 8204 | M23: 8652 | N23: 8220 | O23: 8927 | P23: 8744 | Q23: 9140 | R23: 8813 | S23: 9673 | T23: 9344 | U23: 9615 | V23: 9905 | W23: 10275 | X23: 10548 | Y23: 10864 | Z23: 11186 | AA23: 11549 | AB23: 11871 | AC23: 12224 | AD23: 12593 | AE23: 13090 | AF23: 13554 | AG23: 14041 | AH23: 14551 | AI23: 15083 | AJ23: 15636 | AK23: 16224 | AL23: 16846 | AM23: 17506 | AN23: 18206 | AO23: 18958 | AP23: 19758 | AQ23: 20613 | AR23: 21513 | AS23: 22397 | AT23: 23232 | AU23: 24000 | AV23: 24688 | AW23: 25282 | AX23: 25773 | AY23: 26274 | AZ23: 26785 | BA23: 27306 | BB23: 27838 | BC23: 28381 | BD23: 28933 | BE23: 29498 | BF23: 30073 | BG23: 30660 | BH23: 31258 | BI23: 31869 | BJ23: 32491 | BK23: 33126 | BL23: 33774 | BM23: 34435 | BN23: 35110 | BO23: 35799 | BP23: 36501
A25: Tribes | B25: Phone | C25: =SUMIFS($H25:$BQ25,$H$9:$BQ$9,C$10) -> 2080 | D25: =SUMIFS($H25:$BQ25,$H$9:$BQ$9,D$10) -> 6875 | E25: 7632 | F25: 7632 | G25: 7632 | I25: 0 | J25: 0 | K25: 0 | L25: 0 | M25: 0 | N25: 35 | O25: 341 | P25: 341 | Q25: 264 | R25: 252 | S25: 330 | T25: =ROUND((1+T$3)*S25,0) -> 517 | U25: =ROUND((1+U$5)*T25,0) -> 522 | V25: 527 | W25: 541 | X25: 548 | Y25: 557 | Z25: 569 | AA25: 582 | AB25: 590 | AC25: 595 | AD25: 602 | AE25: 616 | AF25: =ROUND((1+AF$5)*AE25,0) -> 626 | AG25: 636 | AH25: =ROUND((1+AH$3)*AG25,0) -> 636 | AI25: 636 | AJ25: 636 | AK25: 636 | AL25: 636 | AM25: 636 | AN25: 636 | AO25: 636 | AP25: 636 | AQ25: 636 | AR25: 636 | AS25: 636 | AT25: 636 | AU25: 636 | AV25: 636 | AW25: 636 | AX25: 636 | AY25: 636 | AZ25: 636 | BA25: 636 | BB25: 636 | BC25: 636 | BD25: 636 | BE25: 636 | BF25: 636 | BG25: 636 | BH25: 636 | BI25: 636 | BJ25: 636 | BK25: 636 | BL25: 636 | BM25: 636 | BN25: 636 | BO25: 636 | BP25: 636
B26: Chat | C26: =SUMIFS($H26:$BQ26,$H$9:$BQ$9,C$10) -> 0 | D26: 0 | E26: 0 | F26: 0 | G26: 0
B27: SMS (Text) | C27: 0 | D27: 0 | E27: 0 | F27: 0 | G27: 0
B28: Sub-Total | C28: 2080 | D28: 6875 | E28: 7632 | F28: 7632 | G28: 7632 | I28: =SUM(I25:I27) -> 0 | J28: 0 | K28: 0 | L28: 0 | M28: 0 | N28: 35 | O28: 341 | P28: 341 | Q28: 264 | R28: 252 | S28: 330 | T28: 517 | U28: 522 | V28: 527 | W28: 541 | X28: 548 | Y28: 557 | Z28: 569 | AA28: 582 | AB28: 590 | AC28: 595 | AD28: 602 | AE28: 616 | AF28: 626 | AG28: 636 | AH28: 636 | AI28: 636 | AJ28: 636 | AK28: 636 | AL28: 636 | AM28: 636 | AN28: 636 | AO28: 636 | AP28: 636 | AQ28: 636 | AR28: 636 | AS28: 636 | AT28: 636 | AU28: 636 | AV28: 636 | AW28: 636 | AX28: 636 | AY28: 636 | AZ28: 636 | BA28: 636 | BB28: 636 | BC28: 636 | BD28: 636 | BE28: 636 | BF28: 636 | BG28: 636 | BH28: 636 | BI28: 636 | BJ28: 636 | BK28: 636 | BL28: 636 | BM28: 636 | BN28: 636 | BO28: 636 | BP28: 636
A29: Other Lang | B29: Phone | C29: 0 | K29: =ROUND(J29*(1+K$3),0) -> 0 | L29: =ROUND(K29*(1+L$3),0) -> 0 | M29: 0 | N29: 0 | O29: 0 | P29: 0 | Q29: 0 | R29: 0 | S29: 0 | T29: 0 | U29: 0 | V29: 0 | W29: 0 | X29: 0 | Y29: 0 | Z29: 0 | AA29: 0 | AB29: =ROUND(AA29*(1+AB$3),0) -> 0 | AC29: 0 | AD29: =ROUND(AC29*(1+AF$3),0) -> 0 | AE29: 0 | AF29: =ROUND(AE29*(1+#REF!),0) ->  | AG29: =ROUND(AF29*(1+AG$5),0) ->  | AR29: =ROUND(AQ29*(1+AR$3),0) ->  | BH29: =ROUND(BG29*(1+BH$3),0) -> 
B30: Chat | C30: 0 | K30: =ROUND(J30*(1+K$3),0) -> 0 | L30: 0 | M30: 0 | N30: 0 | O30: 0 | P30: 0 | Q30: 0 | R30: 0 | S30: 0 | T30: 0 | U30: 0 | V30: 0 | W30: 0 | X30: 0 | Y30: 0 | Z30: 0 | AA30: 0 | AB30: 0 | AC30: 0 | AD30: =ROUND(AC30*(1+AF$3),0) -> 0 | AE30: 0 | AF30: =ROUND(AE30*(1+#REF!),0) ->  | AG30: =ROUND(AF30*(1+AG$6),0) -> 
B31: SMS (Text) | C31: 0 | K31: 0 | L31: 0 | M31: 0 | N31: 0 | O31: 0 | P31: 0 | Q31: 0 | R31: 0 | S31: 0 | T31: 0 | U31: 0 | V31: 0 | W31: 0 | X31: 0 | Y31: 0 | Z31: 0 | AA31: 0 | AB31: 0 | AC31: 0 | AD31: =ROUND(AC31*(1+AF$3),0) -> 0 | AE31: 0 | AF31: =ROUND(AE31*(1+#REF!),0) ->  | AG31: =ROUND(AF31*(1+AG$7),0) -> 
B32: Sub-Total | C32: 0 | I32: =SUM(I29:I31) -> 0 | J32: 0 | K32: 0 | L32: 0 | M32: 0 | N32: 0 | O32: 0 | P32: 0 | Q32: 0 | R32: 0 | S32: 0 | T32: 0 | U32: 0 | V32: 0 | W32: 0 | X32: 0 | Y32: 0 | Z32: 0 | AA32: 0 | AB32: 0 | AC32: 0 | AD32: 0 | AE32: 0
A33: VA | B33: Phone | C33: 0 | K33: =ROUND(J33*(1+K$3),0) -> 0 | L33: =ROUND(K33*(1+L$3),0) -> 0 | M33: 0 | N33: 0 | O33: 0 | P33: 0 | Q33: 0 | R33: 0 | S33: 0 | T33: 0 | U33: 0 | V33: 0 | W33: 0 | X33: 0 | Y33: 0 | Z33: 0 | AA33: 0 | AB33: =ROUND(AA33*(1+AB$3),0) -> 0 | AC33: 0 | AD33: =ROUND(AC33*(1+AF$3),0) -> 0 | AE33: 0 | AF33: =ROUND(AE33*(1+#REF!),0) ->  | AG33: =ROUND(AF33*(1+AG$5),0) ->  | AR33: =ROUND(AQ33*(1+AR$3),0) ->  | BH33: =ROUND(BG33*(1+BH$3),0) -> 
B34: Chat | C34: 0 | K34: =ROUND(J34*(1+K$3),0) -> 0 | L34: 0 | M34: 0 | N34: 0 | O34: 0 | P34: 0 | Q34: 0 | R34: 0 | S34: 0 | T34: 0 | U34: 0 | V34: 0 | W34: 0 | X34: 0 | Y34: 0 | Z34: 0 | AA34: 0 | AB34: 0 | AC34: 0 | AD34: =ROUND(AC34*(1+AF$3),0) -> 0 | AE34: 0 | AF34: =ROUND(AE34*(1+#REF!),0) ->  | AG34: =ROUND(AF34*(1+AG$6),0) -> 
B35: SMS (Text) | C35: 0 | K35: 0 | L35: 0 | M35: 0 | N35: 0 | O35: 0 | P35: 0 | Q35: 0 | R35: 0 | S35: 0 | T35: 0 | U35: 0 | V35: 0 | W35: 0 | X35: 0 | Y35: 0 | Z35: 0 | AA35: 0 | AB35: 0 | AC35: 0 | AD35: =ROUND(AC35*(1+AF$3),0) -> 0 | AE35: 0 | AF35: =ROUND(AE35*(1+#REF!),0) ->  | AG35: =ROUND(AF35*(1+AG$7),0) -> 
B36: Sub-Total | C36: 0 | I36: =SUM(I33:I35) -> 0 | J36: 0 | K36: 0 | L36: 0 | M36: 0 | N36: 0 | O36: 0 | P36: 0 | Q36: 0 | R36: 0 | S36: 0 | T36: 0 | U36: 0 | V36: 0 | W36: 0 | X36: 0 | Y36: 0 | Z36: 0 | AA36: 0 | AB36: 0 | AC36: 0 | AD36: 0 | AE36: 0
A37: TOTAL Tribes | B37: Phone | C37: 2080 | I37: =I25+I29+I33 -> 0 | J37: 0 | K37: 0 | L37: 0 | M37: 0 | N37: 35 | O37: 341 | P37: 341 | Q37: 264 | R37: 252 | S37: 330 | T37: 517 | U37: 522 | V37: 527 | W37: 541 | X37: 548 | Y37: 557 | Z37: 569 | AA37: 582 | AB37: 590 | AC37: 595 | AD37: 602 | AE37: 616 | AY37: =AY25+AY29+AY33 ->  | AZ37: =AZ25+AZ29+AZ33 -> 
B38: Chat | C38: 0 | I38: 0 | J38: 0 | K38: 0 | L38: 0 | M38: 0 | N38: 0 | O38: 0 | P38: 0 | Q38: 0 | R38: 0 | S38: 0 | T38: 0 | U38: 0 | V38: 0 | W38: 0 | X38: 0 | Y38: 0 | Z38: 0 | AA38: 0 | AB38: 0 | AC38: 0 | AD38: 0 | AE38: 0 | AY38: =AY26+AY30+AY34 -> 
B39: SMS (Text) | C39: 0 | I39: 0 | J39: 0 | K39: 0 | L39: 0 | M39: 0 | N39: 0 | O39: 0 | P39: 0 | Q39: 0 | R39: 0 | S39: 0 | T39: 0 | U39: 0 | V39: 0 | W39: 0 | X39: 0 | Y39: 0 | Z39: 0 | AA39: 0 | AB39: 0 | AC39: 0 | AD39: 0 | AE39: 0
B40: Sub-Total | C40: 2080 | I40: =SUM(I37:I39) -> 0 | J40: 0 | K40: 0 | L40: =SUM(L37:L39) -> 0 | M40: 0 | N40: 35 | O40: 341 | P40: 341 | Q40: 264 | R40: 252 | S40: 330 | T40: 517 | U40: 522 | V40: 527 | W40: 541 | X40: 548 | Y40: 557 | Z40: 569 | AA40: 582 | AB40: 590 | AC40: 595 | AD40: 602 | AE40: 616
A42: 911 | B42: Phone | C42: =SUMIFS($H42:$BQ42,$H$9:$BQ$9,C$10) -> 0 | K42: =ROUND(J42*(1+K$3),0) -> 0 | L42: =ROUND(K42*(1+L$3),0) -> 0 | M42: 0 | N42: 0 | O42: 0 | P42: 0 | Q42: 0 | R42: 0 | S42: 0 | T42: 0 | U42: 0 | V42: 0 | W42: 0 | X42: 0 | Y42: 0 | Z42: 0 | AA42: 0 | AB42: =ROUND(AA42*(1+AB$3),0) -> 0 | AC42: 0 | AD42: =ROUND(AC42*(1+AF$3),0) -> 0 | AE42: 0 | AF42: =ROUND(AE42*(1+#REF!),0) ->  | AG42: =ROUND(AF42*(1+AG$2),0) ->  | AR42: =ROUND(AQ42*(1+AR$3),0) ->  | BH42: =ROUND(BG42*(1+BH$3),0) -> 
A43: Transfers | B43: Chat | C43: 0 | K43: =ROUND(J43*(1+K$3),0) -> 0 | L43: 0 | M43: 0 | N43: 0 | O43: 0 | P43: 0 | Q43: 0 | R43: 0 | S43: 0 | T43: 0 | U43: 0 | V43: 0 | W43: 0 | X43: 0 | Y43: 0 | Z43: 0 | AA43: 0 | AB43: 0 | AC43: 0 | AD43: =ROUND(AC43*(1+AF$3),0) -> 0 | AE43: 0 | AF43: =ROUND(AE43*(1+#REF!),0) ->  | AG43: =ROUND(AF43*(1+AG$2),0) -> 
B44: SMS (Text) | C44: 0 | K44: 0 | L44: 0 | M44: 0 | N44: 0 | O44: 0 | P44: 0 | Q44: 0 | R44: 0 | S44: 0 | T44: 0 | U44: 0 | V44: 0 | W44: 0 | X44: 0 | Y44: 0 | Z44: 0 | AA44: 0 | AB44: 0 | AC44: 0 | AD44: =ROUND(AC44*(1+AF$3),0) -> 0 | AE44: 0 | AF44: =ROUND(AE44*(1+#REF!),0) ->  | AG44: =ROUND(AF44*(1+AG$2),0) -> 
B45: Sub-Total | C45: 0 | I45: =SUM(I42:I44) -> 0 | J45: =SUM(J42:J44) -> 0 | K45: 0 | L45: 0 | M45: 0 | N45: 0 | O45: 0 | P45: 0 | Q45: 0 | R45: 0 | S45: 0 | T45: 0 | U45: 0 | V45: 0 | W45: 0 | X45: 0 | Y45: 0 | Z45: 0 | AA45: 0 | AB45: 0 | AC45: 0 | AD45: 0 | AE45: 0
A46: Other Lang | B46: Phone | C46: 0 | K46: =ROUND(J46*(1+K$3),0) -> 0 | L46: =ROUND(K46*(1+L$3),0) -> 0 | M46: 0 | N46: 0 | O46: 0 | P46: 0 | Q46: 0 | R46: 0 | S46: 0 | T46: 0 | U46: 0 | V46: 0 | W46: 0 | X46: 0 | Y46: 0 | Z46: 0 | AA46: 0 | AB46: =ROUND(AA46*(1+AB$3),0) -> 0 | AC46: 0 | AD46: =ROUND(AC46*(1+AF$3),0) -> 0 | AE46: 0 | AF46: =ROUND(AE46*(1+#REF!),0) ->  | AG46: =ROUND(AF46*(1+AG$2),0) ->  | AR46: =ROUND(AQ46*(1+AR$3),0) ->  | BH46: =ROUND(BG46*(1+BH$3),0) -> 
B47: Chat | C47: 0 | K47: =ROUND(J47*(1+K$3),0) -> 0 | L47: 0 | M47: 0 | N47: 0 | O47: 0 | P47: 0 | Q47: 0 | R47: 0 | S47: 0 | T47: 0 | U47: 0 | V47: 0 | W47: 0 | X47: 0 | Y47: 0 | Z47: 0 | AA47: 0 | AB47: 0 | AC47: 0 | AD47: =ROUND(AC47*(1+AF$3),0) -> 0 | AE47: 0 | AF47: =ROUND(AE47*(1+#REF!),0) ->  | AG47: =ROUND(AF47*(1+AG$2),0) -> 
B48: SMS (Text) | C48: 0 | K48: 0 | L48: 0 | M48: 0 | N48: 0 | O48: 0 | P48: 0 | Q48: 0 | R48: 0 | S48: 0 | T48: 0 | U48: 0 | V48: 0 | W48: 0 | X48: 0 | Y48: 0 | Z48: 0 | AA48: 0 | AB48: 0 | AC48: 0 | AD48: =ROUND(AC48*(1+AF$3),0) -> 0 | AE48: 0 | AF48: =ROUND(AE48*(1+#REF!),0) ->  | AG48: =ROUND(AF48*(1+AG$2),0) -> 
B49: Sub-Total | C49: 0 | I49: =SUM(I46:I48) -> 0 | J49: =SUM(J46:J48) -> 0 | K49: 0 | L49: 0 | M49: 0 | N49: 0 | O49: 0 | P49: 0 | Q49: 0 | R49: 0 | S49: 0 | T49: 0 | U49: 0 | V49: 0 | W49: 0 | X49: 0 | Y49: 0 | Z49: 0 | AA49: 0 | AB49: 0 | AC49: 0 | AD49: 0 | AE49: 0
A50: VA | B50: Phone | C50: 0 | K50: =ROUND(J50*(1+K$3),0) -> 0 | L50: =ROUND(K50*(1+L$3),0) -> 0 | M50: 0 | N50: 0 | O50: 0 | P50: 0 | Q50: 0 | R50: 0 | S50: 0 | T50: 0 | U50: 0 | V50: 0 | W50: 0 | X50: 0 | Y50: 0 | Z50: 0 | AA50: 0 | AB50: =ROUND(AA50*(1+AB$3),0) -> 0 | AC50: 0 | AD50: =ROUND(AC50*(1+AF$3),0) -> 0 | AE50: 0 | AF50: =ROUND(AE50*(1+#REF!),0) ->  | AG50: =ROUND(AF50*(1+AG$2),0) ->  | AR50: =ROUND(AQ50*(1+AR$3),0) ->  | BH50: =ROUND(BG50*(1+BH$3),0) -> 
B51: Chat | C51: 0 | K51: =ROUND(J51*(1+K$3),0) -> 0 | L51: 0 | M51: 0 | N51: 0 | O51: 0 | P51: 0 | Q51: 0 | R51: 0 | S51: 0 | T51: 0 | U51: 0 | V51: 0 | W51: 0 | X51: 0 | Y51: 0 | Z51: 0 | AA51: 0 | AB51: 0 | AC51: 0 | AD51: =ROUND(AC51*(1+AF$3),0) -> 0 | AE51: 0 | AF51: =ROUND(AE51*(1+#REF!),0) ->  | AG51: =ROUND(AF51*(1+AG$2),0) -> 
B52: SMS (Text) | C52: 0 | K52: 0 | L52: 0 | M52: 0 | N52: 0 | O52: 0 | P52: 0 | Q52: 0 | R52: 0 | S52: 0 | T52: 0 | U52: 0 | V52: 0 | W52: 0 | X52: 0 | Y52: 0 | Z52: 0 | AA52: 0 | AB52: 0 | AC52: 0 | AD52: =ROUND(AC52*(1+AF$3),0) -> 0 | AE52: 0 | AF52: =ROUND(AE52*(1+#REF!),0) ->  | AG52: =ROUND(AF52*(1+AG$2),0) -> 
B53: Sub-Total | C53: 0 | I53: =SUM(I50:I52) -> 0 | J53: =SUM(J50:J52) -> 0 | K53: 0 | L53: 0 | M53: 0 | N53: 0 | O53: 0 | P53: 0 | Q53: 0 | R53: 0 | S53: 0 | T53: 0 | U53: 0 | V53: 0 | W53: 0 | X53: 0 | Y53: 0 | Z53: 0 | AA53: 0 | AB53: 0 | AC53: 0 | AD53: 0 | AE53: 0
A54: TOTAL 911 | B54: Phone | C54: 0 | I54: =I42+I46+I50 -> 0 | J54: 0 | K54: 0 | L54: 0 | M54: 0 | N54: 0 | O54: 0 | P54: 0 | Q54: 0 | R54: 0 | S54: 0 | T54: 0 | U54: 0 | V54: 0 | W54: 0 | X54: 0 | Y54: 0 | Z54: 0 | AA54: 0 | AB54: 0 | AC54: 0 | AD54: 0 | AE54: 0 | AY54: =AY42+AY46+AY50 ->  | AZ54: =AZ42+AZ46+AZ50 -> 
B55: Chat | C55: 0 | I55: 0 | J55: 0 | K55: 0 | L55: 0 | M55: 0 | N55: 0 | O55: 0 | P55: 0 | Q55: 0 | R55: 0 | S55: 0 | T55: 0 | U55: 0 | V55: 0 | W55: 0 | X55: 0 | Y55: 0 | Z55: 0 | AA55: 0 | AB55: 0 | AC55: 0 | AD55: 0 | AE55: 0 | AY55: =AY43+AY47+AY51 -> 
B56: SMS (Text) | C56: 0 | I56: 0 | J56: 0 | K56: 0 | L56: 0 | M56: 0 | N56: 0 | O56: 0 | P56: 0 | Q56: 0 | R56: 0 | S56: 0 | T56: 0 | U56: 0 | V56: 0 | W56: 0 | X56: 0 | Y56: 0 | Z56: 0 | AA56: 0 | AB56: 0 | AC56: 0 | AD56: 0 | AE56: 0
B57: Sub-Total | C57: 0 | I57: =SUM(I54:I56) -> 0 | J57: =SUM(J54:J56) -> 0 | K57: 0 | L57: 0 | M57: 0 | N57: 0 | O57: 0 | P57: 0 | Q57: 0 | R57: 0 | S57: 0 | T57: 0 | U57: 0 | V57: 0 | W57: 0 | X57: 0 | Y57: 0 | Z57: 0 | AA57: 0 | AB57: 0 | AC57: 0 | AD57: 0 | AE57: 0
C60: % of Change -> | D60: =(D66-C66)/C66 -> 0.6080162727 | E60: =(E66-D66)/D66 -> 0.5023825079 | F60: =(F66-E66)/E66 -> 0.4707735639 | G60: =(G66-F66)/F66 -> 0.2627927362 | I60: FY23 | J60: FY23 | K60: FY23 | L60: FY23 | M60: FY23 | N60: FY23 | O60: FY23 | P60: FY23 | Q60: FY23 | R60: FY23 | S60: FY23 | T60: FY23 | U60: FY24 | V60: FY24 | W60: FY24 | X60: FY24 | Y60: FY24 | Z60: FY24 | AA60: FY24 | AB60: FY24 | AC60: FY24 | AD60: FY24 | AE60: FY24 | AF60: FY24 | AG60: FY25 | AH60: FY25 | AI60: FY25 | AJ60: FY25 | AK60: FY25 | AL60: FY25 | AM60: FY25 | AN60: FY25 | AO60: FY25 | AP60: FY25 | AQ60: FY25 | AR60: FY25 | AS60: FY26 | AT60: FY26 | AU60: FY26 | AV60: FY26 | AW60: FY26 | AX60: FY26 | AY60: FY26 | AZ60: FY26 | BA60: FY26 | BB60: FY26 | BC60: FY26 | BD60: FY26 | BE60: FY27 | BF60: FY27 | BG60: FY27 | BH60: FY27 | BI60: FY27 | BJ60: FY27 | BK60: FY27 | BL60: FY27 | BM60: FY27 | BN60: FY27 | BO60: FY27 | BP60: FY27
A61: Projected Contract Expenditures | C61: FY23 | D61: FY24 | E61: FY25 | F61: FY26 | G61: FY27 | I61: 2022-07-01 | J61: =EOMONTH(I61,0)+1 -> 2022-08-01 | K61: =EOMONTH(J61,0)+1 -> 2022-09-01 | L61: 2022-10-01 | M61: 2022-11-01 | N61: 2022-12-01 | O61: 2023-01-01 | P61: 2023-02-01 | Q61: 2023-03-01 | R61: 2023-04-01 | S61: 2023-05-01 | T61: 2023-06-01 | U61: 2023-07-01 | V61: 2023-08-01 | W61: 2023-09-01 | X61: 2023-10-01 | Y61: 2023-11-01 | Z61: 2023-12-01 | AA61: 2024-01-01 | AB61: 2024-02-01 | AC61: 2024-03-01 | AD61: 2024-04-01 | AE61: 2024-05-01 | AF61: 2024-06-01 | AG61: 2024-07-01 | AH61: 2024-08-01 | AI61: 2024-09-01 | AJ61: 2024-10-01 | AK61: 2024-11-01 | AL61: 2024-12-01 | AM61: 2025-01-01 | AN61: 2025-02-01 | AO61: 2025-03-01 | AP61: 2025-04-01 | AQ61: 2025-05-01 | AR61: 2025-06-01 | AS61: 2025-07-01 | AT61: 2025-08-01 | AU61: 2025-09-01 | AV61: 2025-10-01 | AW61: 2025-11-01 | AX61: 2025-12-01 | AY61: 2026-01-01 | AZ61: 2026-02-01 | BA61: 2026-03-01 | BB61: 2026-04-01 | BC61: 2026-05-01 | BD61: 2026-06-01 | BE61: 2026-07-01 | BF61: 2026-08-01 | BG61: 2026-09-01 | BH61: 2026-10-01 | BI61: 2026-11-01 | BJ61: 2026-12-01 | BK61: 2027-01-01 | BL61: 2027-02-01 | BM61: 2027-03-01 | BN61: 2027-04-01 | BO61: 2027-05-01 | BP61: 2027-06-01
C62: Net Increase -> | D62: =D66-C66 -> 5200205.06 | E62: =E66-D66 -> 6909239 | F62: 9727210 | G62: 7986112 | I62: Actual | J62: Actual | K62: Actual | L62: Actual | M62: Actual | N62: Actual | O62: Actual | P62: Actual | Q62: Actual | R62: Actual | S62: Actual | T62: Forecast | U62: Forecast | V62: Forecast | W62: Forecast | X62: Forecast | Y62: Forecast | Z62: Forecast | AA62: Forecast | AB62: Forecast | AC62: Forecast | AD62: Forecast | AE62: Forecast | AF62: Forecast | AG62: Forecast | AH62: Forecast | AI62: Forecast | AJ62: Forecast | AK62: Forecast | AL62: Forecast | AM62: Forecast | AN62: Forecast | AO62: Forecast | AP62: Forecast | AQ62: Forecast | AR62: Forecast | AS62: Forecast | AT62: Forecast | AU62: Forecast | AV62: Forecast | AW62: Forecast | AX62: Forecast | AY62: Forecast | AZ62: Forecast | BA62: Forecast | BB62: Forecast | BC62: Forecast | BD62: Forecast | BE62: Forecast | BF62: Forecast | BG62: Forecast | BH62: Forecast | BI62: Forecast | BJ62: Forecast | BK62: Forecast | BL62: Forecast | BM62: Forecast | BN62: Forecast | BO62: Forecast | BP62: Forecast
A63: Contract Cost | C63: =SUMIFS($H63:$BQ63,$H$9:$BQ$9,C$10) -> 8552739.94 | D63: =SUMIFS($H63:$BQ63,$H$9:$BQ$9,D$10) -> 13097016 | E63: =SUMIFS($H63:$BQ63,$H$9:$BQ$9,E$10) -> 19934036 | F63: 29661246 | G63: 37647358 | I63: ='Cost per contact rates'!D25 -> 0 | J63: ='Cost per contact rates'!E25 -> 0 | K63: ='Cost per contact rates'!F25 -> 0 | L63: ='Cost per contact rates'!G25 -> 413838.66 | M63: ='Cost per contact rates'!H25 -> 1126527.15 | N63: ='Cost per contact rates'!I25 -> 0 | O63: ='Cost per contact rates'!J25 -> 1140206.93 | P63: ='Cost per contact rates'!K25 -> 586841.08 | Q63: ='Cost per contact rates'!L25 -> 0 | R63: ='Cost per contact rates'!M25 -> 1147569.39 | S63: ='Cost per contact rates'!N25 -> 735912 | T63: ='Cost per contact rates'!O25 -> 3401844.73 | U63: =ROUND(U23*'Cost per contact rates'!$B$17,0) -> 917346 | V63: =ROUND(V23*'Cost per contact rates'!$B$17,0) -> 945015 | W63: =ROUND(W23*'Cost per contact rates'!$B$17,0) -> 980316 | X63: =ROUND(X23*'Cost per contact rates'!$B$17,0) -> 1006362 | Y63: =ROUND(Y23*'Cost per contact rates'!$B$17,0) -> 1036511 | Z63: =ROUND(Z23*'Cost per contact rates'!$B$17,0) -> 1067232 | AA63: =ROUND(AA23*'Cost per contact rates'!$B$17,0) -> 1101865 | AB63: =ROUND(AB23*'Cost per contact rates'!$B$17,0) -> 1132586 | AC63: =ROUND(AC23*'Cost per contact rates'!$B$17,0) -> 1166265 | AD63: =ROUND(AD23*'Cost per contact rates'!$B$17,0) -> 1201471 | AE63: =ROUND(AE23*'Cost per contact rates'!$B$17,0) -> 1248889 | AF63: =ROUND(AF23*'Cost per contact rates'!$B$17,0) -> 1293158 | AG63: =ROUND(AG23*'Cost per contact rates'!$B$17,0) -> 1339621 | AH63: =ROUND(AH23*'Cost per contact rates'!$B$17,0) -> 1388279 | AI63: =ROUND(AI23*'Cost per contact rates'!$B$17,0) -> 1439036 | AJ63: =ROUND(AJ23*'Cost per contact rates'!$B$17,0) -> 1491797 | AK63: =ROUND(AK23*'Cost per contact rates'!$B$17,0) -> 1547897 | AL63: =ROUND(AL23*'Cost per contact rates'!$B$17,0) -> 1607240 | AM63: =ROUND(AM23*'Cost per contact rates'!$B$17,0) -> 1670210 | AN63: =ROUND(AN23*'Cost per contact rates'!$B$17,0) -> 1736995 | AO63: =ROUND(AO23*'Cost per contact rates'!$B$17,0) -> 1808742 | AP63: =ROUND(AP23*'Cost per contact rates'!$B$17,0) -> 1885068 | AQ63: =ROUND(AQ23*'Cost per contact rates'!$B$17,0) -> 1966642 | AR63: =ROUND(AR23*'Cost per contact rates'!$B$17,0) -> 2052509 | AS63: =ROUND(AS23*'Cost per contact rates'!$B$17,0) -> 2136849 | AT63: =ROUND(AT23*'Cost per contact rates'!$B$17,0) -> 2216515 | AU63: =ROUND(AU23*'Cost per contact rates'!$B$17,0) -> 2289788 | AV63: =ROUND(AV23*'Cost per contact rates'!$B$17,0) -> 2355429 | AW63: =ROUND(AW23*'Cost per contact rates'!$B$17,0) -> 2412101 | AX63: =ROUND(AX23*'Cost per contact rates'!$B$17,0) -> 2458946 | AY63: =ROUND(AY23*'Cost per contact rates'!$B$17,0) -> 2506745 | AZ63: =ROUND(AZ23*'Cost per contact rates'!$B$17,0) -> 2555499 | BA63: =ROUND(BA23*'Cost per contact rates'!$B$17,0) -> 2605206 | BB63: =ROUND(BB23*'Cost per contact rates'!$B$17,0) -> 2655963 | BC63: =ROUND(BC23*'Cost per contact rates'!$B$17,0) -> 2707770 | BD63: =ROUND(BD23*'Cost per contact rates'!$B$17,0) -> 2760435 | BE63: =ROUND(BE23*'Cost per contact rates'!$B$17,0) -> 2814340 | BF63: =ROUND(BF23*'Cost per contact rates'!$B$17,0) -> 2869200 | BG63: =ROUND(BG23*'Cost per contact rates'!$B$17,0) -> 2925204 | BH63: =ROUND(BH23*'Cost per contact rates'!$B$17,0) -> 2982258 | BI63: =ROUND(BI23*'Cost per contact rates'!$B$17,0) -> 3040552 | BJ63: =ROUND(BJ23*'Cost per contact rates'!$B$17,0) -> 3099896 | BK63: =ROUND(BK23*'Cost per contact rates'!$B$17,0) -> 3160480 | BL63: =ROUND(BL23*'Cost per contact rates'!$B$17,0) -> 3222304 | BM63: =ROUND(BM23*'Cost per contact rates'!$B$17,0) -> 3285369 | BN63: =ROUND(BN23*'Cost per contact rates'!$B$17,0) -> 3349769 | BO63: =ROUND(BO23*'Cost per contact rates'!$B$17,0) -> 3415505 | BP63: =ROUND(BP23*'Cost per contact rates'!$B$17,0) -> 3482481
C64: =SUMIFS($H64:$BQ64,$H$9:$BQ$9,C$10) -> 0 | D64: =SUMIFS($H64:$BQ64,$H$9:$BQ$9,D$10) -> 655929 | E64: 728148 | F64: 728148 | G64: 728148 | U64: =ROUND(U28*'Cost per contact rates'!$B$17,0) -> 49803 | V64: =ROUND(V28*'Cost per contact rates'!$B$17,0) -> 50280 | W64: =ROUND(W28*'Cost per contact rates'!$B$17,0) -> 51616 | X64: =ROUND(X28*'Cost per contact rates'!$B$17,0) -> 52283 | Y64: =ROUND(Y28*'Cost per contact rates'!$B$17,0) -> 53142 | Z64: =ROUND(Z28*'Cost per contact rates'!$B$17,0) -> 54287 | AA64: =ROUND(AA28*'Cost per contact rates'!$B$17,0) -> 55527 | AB64: =ROUND(AB28*'Cost per contact rates'!$B$17,0) -> 56291 | AC64: =ROUND(AC28*'Cost per contact rates'!$B$17,0) -> 56768 | AD64: =ROUND(AD28*'Cost per contact rates'!$B$17,0) -> 57436 | AE64: =ROUND(AE28*'Cost per contact rates'!$B$17,0) -> 58771 | AF64: =ROUND(AF28*'Cost per contact rates'!$B$17,0) -> 59725 | AG64: =ROUND(AG28*'Cost per contact rates'!$B$17,0) -> 60679 | AH64: =ROUND(AH28*'Cost per contact rates'!$B$17,0) -> 60679 | AI64: =ROUND(AI28*'Cost per contact rates'!$B$17,0) -> 60679 | AJ64: =ROUND(AJ28*'Cost per contact rates'!$B$17,0) -> 60679 | AK64: =ROUND(AK28*'Cost per contact rates'!$B$17,0) -> 60679 | AL64: =ROUND(AL28*'Cost per contact rates'!$B$17,0) -> 60679 | AM64: =ROUND(AM28*'Cost per contact rates'!$B$17,0) -> 60679 | AN64: =ROUND(AN28*'Cost per contact rates'!$B$17,0) -> 60679 | AO64: =ROUND(AO28*'Cost per contact rates'!$B$17,0) -> 60679 | AP64: =ROUND(AP28*'Cost per contact rates'!$B$17,0) -> 60679 | AQ64: =ROUND(AQ28*'Cost per contact rates'!$B$17,0) -> 60679 | AR64: =ROUND(AR28*'Cost per contact rates'!$B$17,0) -> 60679 | AS64: =ROUND(AS28*'Cost per contact rates'!$B$17,0) -> 60679 | AT64: =ROUND(AT28*'Cost per contact rates'!$B$17,0) -> 60679 | AU64: =ROUND(AU28*'Cost per contact rates'!$B$17,0) -> 60679 | AV64: =ROUND(AV28*'Cost per contact rates'!$B$17,0) -> 60679 | AW64: =ROUND(AW28*'Cost per contact rates'!$B$17,0) -> 60679 | AX64: =ROUND(AX28*'Cost per contact rates'!$B$17,0) -> 60679 | AY64: =ROUND(AY28*'Cost per contact rates'!$B$17,0) -> 60679 | AZ64: =ROUND(AZ28*'Cost per contact rates'!$B$17,0) -> 60679 | BA64: =ROUND(BA28*'Cost per contact rates'!$B$17,0) -> 60679 | BB64: =ROUND(BB28*'Cost per contact rates'!$B$17,0) -> 60679 | BC64: =ROUND(BC28*'Cost per contact rates'!$B$17,0) -> 60679 | BD64: =ROUND(BD28*'Cost per contact rates'!$B$17,0) -> 60679 | BE64: =ROUND(BE28*'Cost per contact rates'!$B$17,0) -> 60679 | BF64: =ROUND(BF28*'Cost per contact rates'!$B$17,0) -> 60679 | BG64: =ROUND(BG28*'Cost per contact rates'!$B$17,0) -> 60679 | BH64: =ROUND(BH28*'Cost per contact rates'!$B$17,0) -> 60679 | BI64: =ROUND(BI28*'Cost per contact rates'!$B$17,0) -> 60679 | BJ64: =ROUND(BJ28*'Cost per contact rates'!$B$17,0) -> 60679 | BK64: =ROUND(BK28*'Cost per contact rates'!$B$17,0) -> 60679 | BL64: =ROUND(BL28*'Cost per contact rates'!$B$17,0) -> 60679 | BM64: =ROUND(BM28*'Cost per contact rates'!$B$17,0) -> 60679 | BN64: =ROUND(BN28*'Cost per contact rates'!$B$17,0) -> 60679 | BO64: =ROUND(BO28*'Cost per contact rates'!$B$17,0) -> 60679 | BP64: =ROUND(BP28*'Cost per contact rates'!$B$17,0) -> 60679
B66: Sub-Total | C66: =SUMIFS($H66:$BQ66,$H$9:$BQ$9,C$10) -> 8552739.94 | D66: 13752945 | E66: 20662184 | F66: 30389394 | G66: 38375506 | I66: =SUM(I63:I65) -> 0 | J66: =SUM(J63:J65) -> 0 | K66: 0 | L66: 413838.66 | M66: 1126527.15 | N66: 0 | O66: 1140206.93 | P66: 586841.08 | Q66: 0 | R66: 1147569.39 | S66: 735912 | T66: 3401844.73 | U66: =SUM(U63:U65) -> 967149 | V66: 995295 | W66: 1031932 | X66: 1058645 | Y66: 1089653 | Z66: 1121519 | AA66: 1157392 | AB66: 1188877 | AC66: 1223033 | AD66: 1258907 | AE66: 1307660 | AF66: 1352883 | AG66: 1400300 | AH66: 1448958 | AI66: 1499715 | AJ66: 1552476 | AK66: 1608576 | AL66: 1667919 | AM66: 1730889 | AN66: 1797674 | AO66: 1869421 | AP66: 1945747 | AQ66: 2027321 | AR66: 2113188 | AS66: 2197528 | AT66: 2277194 | AU66: 2350467 | AV66: 2416108 | AW66: 2472780 | AX66: 2519625 | AY66: 2567424 | AZ66: 2616178 | BA66: 2665885 | BB66: 2716642 | BC66: 2768449 | BD66: 2821114 | BE66: 2875019 | BF66: 2929879 | BG66: 2985883 | BH66: 3042937 | BI66: 3101231 | BJ66: 3160575 | BK66: 3221159 | BL66: 3282983 | BM66: 3346048 | BN66: 3410448 | BO66: 3476184 | BP66: 3543160

Sheet Narrative and Justification
A1: Do not rename this tab
A2: Consolidated information about the reasoning for the fiscal imapacts.
A3: Please describe the FTE Workload and determination for other fiscal items such as contracts, goods and services, travel, and capital beyond the standard calculations
A5: DP Title | B5: Narrative Description of Work | C5: FY 24 $ | D5: FY 25 $ | E5: FTE 24 | F5: FTE 25 | G5: FNCal Worksheet Tab
A6: =IF(Rollup!C3=0,"",Rollup!C3) -> 988 DP SFY24 | B6: This Funding Supports FTE to do these things….
B7: This funding supports contracts to do this type of work….
B8: This funding supports IT systm costs for these types of efforts…

Sheet CDC data
A1: NATIONAL CENTER FOR HEALTH STATISTICS | AE1: Source:https://www.cdc.gov/injury/wisqars/index.html
A2: Data Brief 464. Suicide Mortality in the United States, 2001–2021
A3: Data table for Figure 1. Age-adjusted suicide rates, by sex: United States, 2001–2021
A4: Total | G4: Male | O4: Female
A5: Year | B5: Deaths | E5: Deaths per 100,000 standard population | H5: Deaths | L5: Deaths per 100,000 standard population | P5: Deaths | R5: Deaths per 100,000 standard population | AC5: Change year over year
A6: 2001. . . . . . . . . . . . | B6: 30622 | E6: 10.7 | H6: 24672 | L6: 18.2 | P6: 5950 | R6: 4.1 | AC6: =(B7-B6)/B6 -> 0.03373391679
A7: 2002. . . . . . . . . . . . | B7: 31655 | E7: 10.9 | H7: 25409 | L7: 18.5 | P7: 6246 | R7: 4.2 | AC7: =(B8-B7)/B7 -> -0.005401990207
A8: 2003. . . . . . . . . . . . | B8: 31484 | E8: 10.8 | H8: 25203 | L8: 18.1 | P8: 6281 | R8: 4.2 | AC8: 0.03033286749
A9: 2004. . . . . . . . . . . . | B9: 32439 | E9: 11 | H9: 25566 | L9: 18.1 | P9: 6873 | R9: 4.5 | AC9: 0.006103763988
A10: 2005. . . . . . . . . . . . | B10: 32637 | E10: 10.9 | H10: 25907 | L10: 18.1 | P10: 6730 | R10: 4.4 | AC10: 0.02031436713
A11: 2006. . . . . . . . . . . . | B11: 33300 | E11: 11 | H11: 26308 | L11: 18.1 | P11: 6992 | R11: 4.5 | AC11: 0.03897897898
A12: 2007. . . . . . . . . . . . | B12: 34598 | E12: 11.3 | H12: 27269 | L12: 18.5 | P12: 7329 | R12: 4.6 | AC12: 0.04153419273
A13: 2008. . . . . . . . . . . . | B13: 36035 | E13: 11.6 | H13: 28450 | L13: 19 | P13: 7585 | R13: 4.8 | AC13: 0.02425419731
A14: 2009. . . . . . . . . . . . | B14: 36909 | E14: 11.8 | H14: 29089 | L14: 19.2 | P14: 7820 | R14: 4.9 | AC14: 0.03942127936
A15: 2010. . . . . . . . . . . . | B15: 38364 | E15: 12.1 | H15: 30277 | L15: 19.8 | P15: 8087 | R15: 5 | AC15: 0.0300802836
A16: 2011 . . . . . . . . . . . . | B16: 39518 | E16: 12.3 | H16: 31003 | L16: 20 | P16: 8515 | R16: 5.2 | AC16: 0.02737992813
A17: 2012. . . . . . . . . . . . | B17: 40600 | E17: 12.6 | H17: 31780 | L17: 20.4 | P17: 8820 | R17: 5.4 | AC17: 0.01352216749
A18: 2013. . . . . . . . . . . . | B18: 41149 | E18: 12.6 | H18: 32055 | L18: 20.3 | P18: 9094 | R18: 5.5 | AC18: 0.04075433182
A19: 2014. . . . . . . . . . . . | B19: 42826 | E19: 13 | H19: 33162 | L19: 20.7 | P19: 9664 | R19: 5.8 | AC19: 0.03191986177
A20: 2015. . . . . . . . . . . . | B20: 44193 | E20: 13.3 | H20: 33994 | L20: 21.1 | P20: 10199 | R20: 6 | AC20: 0.01746882991
A21: 2016. . . . . . . . . . . . | B21: 44965 | E21: 13.5 | H21: 34727 | L21: 21.4 | P21: 10238 | R21: 6 | AC21: 0.04910485934
A22: 2017. . . . . . . . . . . . | B22: 47173 | E22: 14 | H22: 36782 | L22: 22.4 | P22: 10391 | R22: 6.1 | AC22: 0.02482352193
A23: 2018. . . . . . . . . . . . | B23: 48344 | E23: 14.2 | H23: 37761 | L23: 22.8 | P23: 10583 | R23: 6.2 | AC23: -0.01723068013
A24: 2019. . . . . . . . . . . . | B24: 47511 | E24: 13.9 | H24: 37256 | L24: 22.4 | P24: 10255 | R24: 6 | AC24: -0.03224516428
A25: 2020. . . . . . . . . . . . | B25: 45979 | E25: 13.5 | H25: 36551 | L25: 22 | P25: 9428 | R25: 5.5 | AC25: =(B26-B25)/B25 -> 0.04793492681
A26: 2021. . . . . . . . . . . . | B26: 48183 | E26: 14.1 | H26: 38358 | L26: 22.8 | P26: 9825 | R26: 5.7 | AD26: =AVERAGE(AC6:AC25) -> 0.023139222 | AE26: Average suicide rate over 20 years
A27: NOTES: Suicide deaths are identified using International Classification of Diseases, 10th Revision underlying cause-of- death codes U03, X60–X84, and Y87.0. Age-adjusted death rates are calculated using the direct method and the 2000 U.S. standard population. SOURCE: National Center for Health Statistics, National Vital Statistics System, Mortality.
A30: Data table for Figure 2. Suicide rates for females, by age group: United States, 2001–2021
A31: 10–14 | J31: 15–24 | R31: 25–44 | U31: 45–64 | X31: 65–74 | AB31: 75 and over
A32: Year | C32: Deaths | F32: Deaths per 100,000 | K32: Deaths | N32: Deaths per 100,000 | S32: Deaths | T32: Deaths per 100,000 | V32: Deaths | W32: Deaths per 100,000 | Y32: Deaths | Z32: Deaths per 100,000 | AC32: Deaths | AD32: Deaths per 100,000
A33: 2001. . . . . . . . . . . . . . | C33: 65 | F33: 0.6 | K33: 562 | N33: 2.9 | S33: 2326 | T33: 5.5 | V33: 2192 | W33: 6.6 | Y33: 392 | Z33: 3.9 | AC33: 412 | AD33: 3.9
A34: 2002. . . . . . . . . . . . . . | C34: 64 | F34: 0.6 | K34: 578 | N34: 2.9 | S34: 2457 | T34: 5.9 | V34: 2293 | W34: 6.7 | Y34: 410 | Z34: 4.1 | AC34: 443 | AD34: 4.1
A35: 2003. . . . . . . . . . . . . . | C35: 56 | F35: 0.5 | K35: 607 | N35: 3 | S35: 2373 | T35: 5.7 | V35: 2450 | W35: 6.9 | Y35: 381 | Z35: 3.8 | AC35: 414 | AD35: 3.8
A36: 2004. . . . . . . . . . . . . . | C36: 98 | F36: 0.9 | K36: 720 | N36: 3.5 | S36: 2503 | T36: 6 | V36: 2751 | W36: 7.6 | Y36: 378 | Z36: 3.7 | AC36: 423 | AD36: 3.9
A37: 2005. . . . . . . . . . . . . . | C37: 68 | F37: 0.7 | K37: 714 | N37: 3.5 | S37: 2411 | T37: 5.8 | V37: 2682 | W37: 7.2 | Y37: 404 | Z37: 4 | AC37: 450 | AD37: 4.1
A38: 2006. . . . . . . . . . . . . . | C38: 65 | F38: 0.6 | K38: 661 | N38: 3.2 | S38: 2458 | T38: 5.9 | V38: 2970 | W38: 7.7 | Y38: 416 | Z38: 4 | AC38: 421 | AD38: 3.8
A39: 2007. . . . . . . . . . . . . . | C39: 52 | F39: 0.5 | K39: 659 | N39: 3.1 | S39: 2567 | T39: 6.2 | V39: 3197 | W39: 8.1 | Y39: 441 | Z39: 4.2 | AC39: 411 | AD39: 3.7
A40: 2008. . . . . . . . . . . . . . | C40: 66 | F40: 0.7 | K40: 738 | N40: 3.5 | S40: 2605 | T40: 6.3 | V40: 3261 | W40: 8.1 | Y40: 483 | Z40: 4.4 | AC40: 428 | AD40: 3.8
A41: 2009. . . . . . . . . . . . . . | C41: 88 | F41: 0.9 | K41: 776 | N41: 3.6 | S41: 2562 | T41: 6.2 | V41: 3480 | W41: 8.5 | Y41: 523 | Z41: 4.6 | AC41: 389 | AD41: 3.5
A42: 2010. . . . . . . . . . . . . . | C42: 87 | F42: 0.9 | K42: 829 | N42: 3.9 | S42: 2630 | T42: 6.4 | V42: 3581 | W42: 8.6 | Y42: 556 | Z42: 4.8 | AC42: 403 | AD42: 3.6
A43: 2011 . . . . . . . . . . . . . . | C43: 85 | F43: 0.8 | K43: 863 | N43: 4 | S43: 2793 | T43: 6.8 | V43: 3724 | W43: 8.8 | Y43: 625 | Z43: 5.2 | AC43: 421 | AD43: 3.7
A44: 2012. . . . . . . . . . . . . . | C44: 85 | F44: 0.8 | K44: 954 | N44: 4.5 | S44: 2804 | T44: 6.8 | V44: 3881 | W44: 9.1 | Y44: 667 | Z44: 5.2 | AC44: 428 | AD44: 3.7
A45: 2013. . . . . . . . . . . . . . | C45: 141 | F45: 1.4 | K45: 975 | N45: 4.5 | S45: 2833 | T45: 6.8 | V45: 3990 | W45: 9.4 | Y45: 722 | Z45: 5.4 | AC45: 431 | AD45: 3.7
A46: 2014. . . . . . . . . . . . . . | C46: 150 | F46: 1.5 | K46: 990 | N46: 4.6 | S46: 3019 | T46: 7.2 | V46: 4197 | W46: 9.8 | Y46: 829 | Z46: 5.9 | AC46: 477 | AD46: 4
A47: 2015. . . . . . . . . . . . . . | C47: 158 | F47: 1.6 | K47: 1132 | N47: 5.3 | S47: 3157 | T47: 7.5 | V47: 4383 | W47: 10.2 | Y47: 829 | Z47: 5.7 | AC47: 540 | AD47: 4.5
A48: 2016. . . . . . . . . . . . . . | C48: 171 | F48: 1.7 | K48: 1148 | N48: 5.4 | S48: 3215 | T48: 7.6 | V48: 4253 | W48: 9.9 | Y48: 940 | Z48: 6.2 | AC48: 510 | AD48: 4.2
A49: 2017. . . . . . . . . . . . . . | C49: 169 | F49: 1.7 | K49: 1225 | N49: 5.8 | S49: 3339 | T49: 7.8 | V49: 4172 | W49: 9.7 | Y49: 982 | Z49: 6.2 | AC49: 501 | AD49: 4
A50: 2018. . . . . . . . . . . . . . | C50: 206 | F50: 2 | K50: 1222 | N50: 5.8 | S50: 3412 | T50: 7.9 | V50: 4212 | W50: 9.8 | Y50: 1011 | Z50: 6.2 | AC50: 515 | AD50: 4
A51: 2019. . . . . . . . . . . . . . | C51: 203 | F51: 2 | K51: 1154 | N51: 5.5 | S51: 3236 | T51: 7.4 | V51: 4104 | W51: 9.6 | Y51: 985 | Z51: 5.9 | AC51: 568 | AD51: 4.3
A52: 2020. . . . . . . . . . . . . . | C52: 204 | F52: 2 | K52: 1203 | N52: 5.8 | S52: 3163 | T52: 7.2 | V52: 3356 | W52: 7.9 | Y52: 973 | Z52: 5.6 | AC52: 521 | AD52: 3.9
A53: 2021. . . . . . . . . . . . . . | C53: 241 | F53: 2.3 | K53: 1285 | N53: 6.1 | S53: 3264 | T53: 7.4 | V53: 3468 | W53: 8.2 | Y53: 1004 | Z53: 5.6 | AC53: 561 | AD53: 4.4
A54: NOTE: Suicide deaths are identified using International Classification of Diseases, 10th Revision underlying cause-of-death codes U03, X60–X84, and Y87.0. SOURCE: National Center for Health Statistics, National Vital Statistics System, Mortality.
A55: Data table for Figure 3. Suicide rates for males, by age group: United States, 2001–2021
A56: 10–14 | J56: 15–24 | R56: 25–44 | U56: 45–64 | X56: 65–74 | AB56: 75 and over
A57: Year | C57: Deaths | F57: Deaths per 100,000 | K57: Deaths | N57: Deaths per 100,000 | S57: Deaths | T57: Deaths per 100,000 | V57: Deaths | W57: Deaths per 100,000 | Y57: Deaths | Z57: Deaths per 100,000 | AC57: Deaths | AD57: Deaths per 100,000
A58: 2001. . . . . . . . . . . . . . | C58: 207 | F58: 1.9 | K58: 3409 | N58: 16.5 | S58: 9379 | T58: 22.2 | V58: 7067 | W58: 22.5 | Y58: 2040 | Z58: 24.5 | AC58: 2549 | AD58: 40.7
A59: 2002. . . . . . . . . . . . . . | C59: 196 | F59: 1.8 | K59: 3432 | N59: 16.4 | S59: 9440 | T59: 22.5 | V59: 7633 | W59: 23.5 | Y59: 2053 | Z59: 24.5 | AC59: 2642 | AD59: 41.3
A60: 2003. . . . . . . . . . . . . . | C60: 188 | F60: 1.7 | K60: 3381 | N60: 15.9 | S60: 9294 | T60: 22.3 | V60: 7874 | W60: 23.5 | Y60: 1954 | Z60: 23.1 | AC60: 2499 | AD60: 38.3
A61: 2004. . . . . . . . . . . . . . | C61: 185 | F61: 1.7 | K61: 3596 | N61: 16.7 | S61: 9209 | T61: 22.2 | V61: 8166 | W61: 23.6 | Y61: 1901 | Z61: 22.2 | AC61: 2496 | AD61: 37.6
A62: 2005. . . . . . . . . . . . . . | C62: 202 | F62: 1.9 | K62: 3498 | N62: 16.1 | S62: 9129 | T62: 22.1 | V62: 8519 | W62: 23.9 | Y62: 1940 | Z62: 22.3 | AC62: 2610 | AD62: 38.6
A63: 2006. . . . . . . . . . . . . . | C63: 151 | F63: 1.4 | K63: 3528 | N63: 16 | S63: 9118 | T63: 22.1 | V63: 9039 | W63: 24.6 | Y63: 1968 | Z63: 22.2 | AC63: 2494 | AD63: 36.2
A64: 2007. . . . . . . . . . . . . . | C64: 128 | F64: 1.2 | K64: 3481 | N64: 15.7 | S64: 9433 | T64: 22.9 | V64: 9650 | W64: 25.7 | Y64: 2003 | Z64: 22 | AC64: 2566 | AD64: 36.7
A65: 2008. . . . . . . . . . . . . . | C65: 149 | F65: 1.4 | K65: 3560 | N65: 16 | S65: 9398 | T65: 22.8 | V65: 10491 | W65: 27.4 | Y65: 2313 | Z65: 24.3 | AC65: 2531 | AD65: 35.7
A66: 2009. . . . . . . . . . . . . . | C66: 171 | F66: 1.6 | K66: 3595 | N66: 16.1 | S66: 9435 | T66: 23 | V66: 10926 | W66: 27.9 | Y66: 2394 | Z66: 24.3 | AC66: 2552 | AD66: 35.6
A67: 2010. . . . . . . . . . . . . . | C67: 180 | F67: 1.7 | K67: 3771 | N67: 16.9 | S67: 9676 | T67: 23.6 | V67: 11602 | W67: 29.2 | Y67: 2418 | Z67: 23.9 | AC67: 2617 | AD67: 36
A68: 2011 . . . . . . . . . . . . . . | C68: 197 | F68: 1.9 | K68: 3959 | N68: 17.6 | S68: 9906 | T68: 24 | V68: 11655 | W68: 28.9 | Y68: 2554 | Z68: 24.4 | AC68: 2721 | AD68: 36.4
A69: 2012. . . . . . . . . . . . . . | C69: 221 | F69: 2.1 | K69: 3918 | N69: 17.4 | S69: 10170 | T69: 24.5 | V69: 11910 | W69: 29.5 | Y69: 2700 | Z69: 24.1 | AC69: 2853 | AD69: 37.5
A70: 2013. . . . . . . . . . . . . . | C70: 245 | F70: 2.3 | K70: 3903 | N70: 17.3 | S70: 10066 | T70: 24.1 | V70: 11766 | W70: 29 | Y70: 3072 | Z70: 26 | AC70: 2990 | AD70: 38.3
A71: 2014. . . . . . . . . . . . . . | C71: 275 | F71: 2.6 | K71: 4100 | N71: 18.2 | S71: 10270 | T71: 24.4 | V71: 12116 | W71: 29.7 | Y71: 3286 | Z71: 26.6 | AC71: 3110 | AD71: 38.9
A72: 2015. . . . . . . . . . . . . . | C72: 251 | F72: 2.4 | K72: 4359 | N72: 19.4 | S72: 10726 | T72: 25.2 | V72: 12107 | W72: 29.5 | Y72: 3372 | Z72: 26.2 | AC72: 3171 | AD72: 38.7
A73: 2016. . . . . . . . . . . . . . | C73: 265 | F73: 2.5 | K73: 4575 | N73: 20.5 | S73: 11181 | T73: 26.2 | V73: 11943 | W73: 29.1 | Y73: 3463 | Z73: 25.9 | AC73: 3291 | AD73: 39.2
A74: 2017. . . . . . . . . . . . . . | C74: 348 | F74: 3.3 | K74: 5027 | N74: 22.7 | S74: 11944 | T74: 27.5 | V74: 12371 | W74: 30.1 | Y74: 3638 | Z74: 26.2 | AC74: 3447 | AD74: 39.7
A75: 2018. . . . . . . . . . . . . . | C75: 390 | F75: 3.7 | K75: 4989 | N75: 22.7 | S75: 12129 | T75: 27.7 | V75: 12673 | W75: 31 | Y75: 3963 | Z75: 27.8 | AC75: 3613 | AD75: 39.9
A76: 2019. . . . . . . . . . . . . . | C76: 331 | F76: 3.1 | K76: 4800 | N76: 22 | S76: 12348 | T76: 28 | V76: 12146 | W76: 29.9 | Y76: 3882 | Z76: 26.4 | AC76: 3738 | AD76: 39.9
A77: 2020. . . . . . . . . . . . . . | C77: 377 | F77: 3.6 | K77: 4859 | N77: 22.4 | S77: 12605 | T77: 28.3 | V77: 11053 | W77: 27.3 | Y77: 3743 | Z77: 24.7 | AC77: 3900 | AD77: 40.5
A78: 2021. . . . . . . . . . . . . . | C78: 357 | F78: 3.2 | K78: 5243 | N78: 23.8 | S78: 13460 | T78: 30 | V78: 11200 | W78: 27.1 | Y78: 4140 | Z78: 26.1 | AC78: 3947 | AD78: 42.2
A79: NOTE: Suicide deaths are identified using International Classification of Diseases, 10th Revision underlying cause-of-death codes U03, X60–X84, and Y87.0. SOURCE: National Center for Health Statistics, National Vital Statistics System, Mortality.
A80: Data table for Figure 4. Age-adjusted suicide rates for females, by race and Hispanic origin: United States, 2020 and 2021
D81: 2020 | M81: 2021
A82: Race and Hispanic origin | D82: Deaths | I82: Deaths per 100,000 standard population | N82: Deaths | Q82: Deaths per 100,000 standard population
A83: American Indian or Alaska Native1 . . . . . . . . . . | D83: 144 | I83: 11.7 | N83: 167 | Q83: 13.8
A84: Asian1 . . . . . . . . . . . . . . . . . | D84: 390 | I84: 3.7 | N84: 417 | Q84: 3.9
A85: Black1 . . . . . . . . . . . . . . . . . | D85: 620 | I85: 2.9 | N85: 720 | Q85: 3.3
A86: Hispanic. . . . . . . . . . . . . . . . | D86: 870 | I86: 2.8 | N86: 940 | Q86: 3
A87: White1 . . . . . . . . . . . . . . . . . | D87: 7200 | I87: 6.9 | N87: 7389 | Q87: 7.1
A88: 1Race groups are non-Hispanic. NOTES: Suicide deaths are identified using International Classification of Diseases, 10th Revision underlying cause-of- death codes U03, X60–X84, and Y87.0. Age-adjusted death rates are calculated using the direct method and the 2000 U.S. standard population. Misclassification of race and Hispanic origin on death certificates results in the underestimation of death rates by as much as 34% for non-Hispanic American Indian or Alaska Native people and 3% for non-Hispanic Asian and Hispanic people. Data are not shown for non-Hispanic Native Hawaiian or Other Pacific Islander people due to small counts that can result in unreliable rates. SOURCE: National Center for Health Statistics, National Vital Statistics System, Mortality.
A89: Data table for Figure 5. Age-adjusted suicide rates for males, by race and Hispanic origin: United States, 2020 and 2021
D90: 2020 | M90: 2021
A91: Race and Hispanic origin | D91: Deaths | I91: Deaths per 100,000 standard population | N91: Deaths | Q91: Deaths per 100,000 standard population
A92: American Indian or Alaska Native1 . . . . . . . . . . | D92: 444 | I92: 36.4 | N92: 525 | Q92: 42.6
A93: Asian1 . . . . . . . . . . . . . . . . . | D93: 912 | I93: 9.5 | N93: 962 | Q93: 9.9
A94: Black1 . . . . . . . . . . . . . . . . . | D94: 2666 | I94: 13.1 | N94: 2972 | Q94: 14.6
A95: Hispanic. . . . . . . . . . . . . . . . | D95: 3701 | I95: 12.3 | N95: 3967 | Q95: 12.8
A96: Native Hawaiian or Other Pacific Islander1 . . . . | D96: 65 | I96: 20 | N96: 65 | Q96: 19.5
A97: White1 . . . . . . . . . . . . . . . . . | D97: 28242 | I97: 27.2 | N97: 29292 | Q97: 28
A98: 1Race groups are non-Hispanic. NOTES: Suicide deaths are identified using International Classification of Diseases, 10th Revision underlying cause-of- death codes U03, X60–X84, and Y87.0. Age-adjusted death rates are calculated using the direct method and the 2000 U.S. standard population. Misclassification of race and Hispanic origin on death certificates results in the underestimation of death rates by as much as 34% for non-Hispanic American Indian or Alaska Native people, 3% for non-Hispanic Asian and Hispanic people, and an unknown amount among non-Hispanic Native Hawaiian or Other Pacific Islander people. SOURCE: National Center for Health Statistics, National Vital Statistics System, Mortality.
A99: CS338617

Sheet FTE Calculator
B1: Hours | C1: Base | D1: Total Hours
A2: Work Week | B2: 40 | C2: 52 | D2: 2080
A3: Holidays | B3: 8 | C3: 10 | D3: =C3*B3 -> 80
A4: Personnal Holidays | B4: 8 | C4: 2 | D4: 8
A5: Sick Leave | B5: 8 | C5: 12 | D5: =C5*B5 -> 96
A6: Annual Leave | B6: 14.67 | C6: 11 | D6: =C6*B6 -> 161.37
A7: Annual Leave | B7: 14.63 | C7: 1 | D7: =C7*B7 -> 14.63
A8: Total Available hours | D8: =D2-SUM(D3:D7) -> 1720
A9: FTE/Hourly Conversion
A11: Convert hours to FTE
A12: Hours Work | B12: Total Available Hours | C12: Amount of FTE
B13: 1740 | C13: =A13/B13 -> 0
A15: Convert FTE to Hours
A16: FTE | B16: Total Available Hours | C16: Total Hours
A17: 1 | B17: 1740 | C17: =B17*A17 -> 1740
A19: Notes:
A20: 1 FTE at 40 hours per week = 2,080 hours per year
A21: 2,080 hours per year = 1,740 productive hours per year
A22: (According to OFM 1,740 productive hours is standard to allow for employee training, leave, time away, etc.)
A25: FTE By Month
B26: =12/12 -> 1 | C26: =11/12 -> 0.9166666667 | D26: =10/12 -> 0.8333333333 | E26: =9/12 -> 0.75 | F26: =8/12 -> 0.6666666667 | G26: =7/12 -> 0.5833333333 | H26: =6/12 -> 0.5 | I26: =5/12 -> 0.4166666667 | J26: =4/12 -> 0.3333333333 | K26: =3/12 -> 0.25 | L26: =2/12 -> 0.1666666667 | M26: =1/12 -> 0.08333333333
A27: FTE | B27: 12 Months | C27: 11 Months | D27: 10 Months | E27: 9 Months | F27: 8 Months | G27: 7 Months | H27: 6 Months | I27: 5 Months | J27: 4 Months | K27: 3 Months | L27: 2 Months | M27: 1 Months
A28: 1 | B28: =$A28*B$26 -> 1 | C28: =$A28*C$26 -> 0.9166666667 | D28: 0.8333333333 | E28: 0.75 | F28: 0.6666666667 | G28: 0.5833333333 | H28: 0.5 | I28: 0.4166666667 | J28: 0.3333333333 | K28: 0.25 | L28: 0.1666666667 | M28: 0.08333333333
A29: 0.9 | B29: =$A29*B$26 -> 0.9 | C29: 0.825 | D29: 0.75 | E29: 0.675 | F29: 0.6 | G29: 0.525 | H29: 0.45 | I29: 0.375 | J29: 0.3 | K29: 0.225 | L29: 0.15 | M29: 0.075
A30: 0.8 | B30: 0.8 | C30: 0.7333333333 | D30: 0.6666666667 | E30: 0.6 | F30: 0.5333333333 | G30: 0.4666666667 | H30: 0.4 | I30: 0.3333333333 | J30: 0.2666666667 | K30: 0.2 | L30: 0.1333333333 | M30: 0.06666666667
A31: 0.7 | B31: 0.7 | C31: 0.6416666667 | D31: 0.5833333333 | E31: 0.525 | F31: 0.4666666667 | G31: 0.4083333333 | H31: 0.35 | I31: 0.2916666667 | J31: 0.2333333333 | K31: 0.175 | L31: 0.1166666667 | M31: 0.05833333333
A32: 0.6 | B32: 0.6 | C32: 0.55 | D32: 0.5 | E32: 0.45 | F32: 0.4 | G32: 0.35 | H32: 0.3 | I32: 0.25 | J32: 0.2 | K32: 0.15 | L32: 0.1 | M32: 0.05
A33: 0.5 | B33: 0.5 | C33: 0.4583333333 | D33: 0.4166666667 | E33: 0.375 | F33: 0.3333333333 | G33: 0.2916666667 | H33: 0.25 | I33: 0.2083333333 | J33: 0.1666666667 | K33: 0.125 | L33: 0.08333333333 | M33: 0.04166666667
A34: 0.4 | B34: 0.4 | C34: 0.3666666667 | D34: 0.3333333333 | E34: 0.3 | F34: 0.2666666667 | G34: 0.2333333333 | H34: 0.2 | I34: 0.1666666667 | J34: 0.1333333333 | K34: 0.1 | L34: 0.06666666667 | M34: 0.03333333333
A35: 0.3 | B35: 0.3 | C35: 0.275 | D35: 0.25 | E35: 0.225 | F35: 0.2 | G35: 0.175 | H35: 0.15 | I35: 0.125 | J35: 0.1 | K35: 0.075 | L35: 0.05 | M35: 0.025
A36: 0.2 | B36: 0.2 | C36: 0.1833333333 | D36: 0.1666666667 | E36: 0.15 | F36: 0.1333333333 | G36: 0.1166666667 | H36: 0.1 | I36: 0.08333333333 | J36: 0.06666666667 | K36: 0.05 | L36: 0.03333333333 | M36: 0.01666666667
A37: 0.1 | B37: 0.1 | C37: 0.09166666667 | D37: 0.08333333333 | E37: 0.075 | F37: 0.06666666667 | G37: 0.05833333333 | H37: 0.05 | I37: 0.04166666667 | J37: 0.03333333333 | K37: 0.025 | L37: 0.01666666667 | M37: 0.008333333333

Sheet Standards
A1: DOH Agency Standard Fiscal Note Calculations
A2: Object E based upon FY xx agency actuals
A3: Objects J & T based upon forward projected estimates
A4: Agency Standard Cost per FTE By Object
A5: E
B6: EA | C6: Supplies & Materials | G6: 495
B7: EB | C7: Communications | G7: 454
B9: EE | C9: Repairs & maintenance | G9: 298
B10: EF | C10: Printing & Reproduction | G10: 0
B11: EG | C11: Employee Training | G11: 575
B12: EJ | C12: Subscriptions | G12: 0
B13: EK | C13: Facilities and Services | G13: 265
B14: EL | C14: Data Processing Services | G14: 0
B15: EM | C15: Attorney General Services | G15: 0
B16: EN | C16: Personnel Services | G16: 0
B17: EP | C17: Insurance | G17: 0
B18: ER | C18: Purchased services over $20,000 | G18: 0
B19: ES thru EZ | C19: Other | G19: 0
B20: E Total | G20: =SUM(G6:G19) -> 2087
A22: G | B22: Travel | G22: 0
A24: J
B25: JA | C25: Equipment < $5000
C26: Computer/monitor or laptop/docking | G26: 2357
C28: Ergo desk chair | G28: 800
C29: Cubicle maintenance for new employee | G29: 0
C30: Calculator/doc holder/desk organizer | G30: 0
C31: New Item 1 | G31: -
C32: New Item 2 | G32: -
C33: New Item 3 | G33: 0
C34: New Item 4 | G34: 0
C35: New Item 5 | G35: 0
C36: New Item 6 | G36: 0
C37: New Item 7 | G37: 0
B38: JA Total | G38: =SUM(G26:G37) -> 3157
A40: T | I40: TE breakout
B41: TE | C41: Total | G41: =SUM(H41:H44) -> 9336 | H41: =((29+32)/2)*12 -> 366 | I41: E370 | J41: PBX (desk phone) | R41: Kent | S41: 795 | T41: 0.03 | U41: =S41*T41 -> 23.85
H42: =((93+101)/2)*12 -> 1164 | I42: E350 | J42: Agency Standard Technical Service (Help Desk) | R42: Richland | S42: 365 | T42: 0.015 | U42: =S42*T42 -> 5.475
H43: =((119+122)/2)*12 -> 1446 | I43: E360 | J43: Agency Standard Enterprise Software | R43: Spokane | S43: 450 | T43: 0.0025 | U43: 1.125
H44: =(530*12) -> 6360 | I44: 6740 | J44: Rent (average rent for agency, divided by FTE) | R44: Tumwater | S44: 425 | T44: 0.96 | U44: 408
A45: Agency Standard Total Cost per FTE | G45: =G38+G22+G20+G41 -> 14580 | U45: =SUM(U41:U44) -> 438.45
U46: =U45*12 -> 5261.4
A47: Indirect FTEs
A48: Agency Standard Threshold for 0.1 Indirect FTE | G48: 8900
A50: Agency Standard Job Class for Indirect FTE
B51: Fiscal Analyst 2 | G51: 53000
A53: Division Standard Job Class for Indirect FTE
B54: Health Svcs Conslt 1 | G54: 53000 | N54: Date | O54: Update description | P54: Which tab9s0 | Q54: Version | R54: initials
N55: 2022-03-30 | O55: updated BB per 21-23 budget bill; will be updated later when new salary schedule is posted | P55: Standards | Q55: 24 | R55: djc
A56: Agency Standard % to Calculate Benefits Based on Salaries | G56: 0.36 | N56: 2022-03-30 | O56: Updated Health, Life, Disability to $1,130 per budget bill Section 933 and 935 | P56: Standards | Q56: 24 | R56: djc
A57: Sub-Object | B57: Sub-Object Title | G57: 2024 | H57: 2025 | N57: 2022-03-30 | O57: Updated pension contribution percentage to 0.14 per Section 942 | P57: Standards | Q57: 24 | R57: djc
A58: BA | B58: Old Age and Survivors Insurance | G58: 0.062 | H58: 0.062 | N58: 2022-04-07 | O58: Updated indirect rates for all divisions, agency, passthru based on FY23 Provisional rate | P58: Standards | Q58: 24 | R58: djc
A59: BB | B59: Retirement and Pensions | G59: 0.12 | H59: 0.12 | N59: 2022-05-11 | O59: provisional indirect rates for FY23 are being used for 23-25 per Alisa | P59: Standards | Q59: 24 | R59: djc
A60: BC | B60: Medical Aid & Industrial Insurance | G60: 40 | H60: 40 | N60: 2022-06-22 | O60: updated salary schedule effective July 1, 2022 | P60: Salary schedule | Q60: 24 | R60: djc
A61: BD | B61: Health, Life & Disability Insurance | G61: 1145 | H61: 1191 | N61: 2022-07-18 | O61: Fixed the calculation for the salary linking column H of the "1" tab to the salary escalator. | P61: 1 | Q61: 24.1 | R61: ECF
A62: BH | B62: Hospital Insurance (Medicare) | G62: 0.0145 | H62: 0.0145 | N62: 2022-08-01 | O62: Added Workforce Assumptions Tab | P62: Workforce Assumptions | Q62: 24.2 | R62: AAW
A63: BK | B63: Paid Family and Medical Leave | G63: 0.0013 | H63: 0.0013 | N63: 2022-10-26 | O63: Updated personal milage from .58 per mile to .625 per mile based off of OFM update from 7/1/22 previous 24.3 update did not stay in desc. | P63: E-G-J Calc | Q63: 24.4 | R63: RWR
N64: 2022-12-22 | O64: Updated proposed budget changes for 23-25 for: salary increase FY24 of 4% and FY25 of 3%; pension benefits (BB); health insurance (BD) | P64: Standards | Q64: 24.5 | R64: DJC
A65: Agency Standard Indirect Rate | G65: 2024 | H65: 2025 | N65: 2023-05-31 | O65: Updated estimated costs for TE E350, E360, 6740, E370 | P65: Standards | Q65: 24.6 | R65: DJC
A66: Agency Indirect Rate | G66: 0.169 | H66: 0.169 | N66: 2023-05-31 | O66: Updated indirect rates for all divisions, agency, passthru based on FY24 Proposed rates | P66: Standards | Q66: 24.6 | R66: DJC
A67: Pass Through Indirect Rate and Object ER Over $20,000 | G67: 0.014 | H67: 0.014 | N67: 2023-06-02 | O67: Updated ergo chair costs and removed cubicle and basic supplies cost | P67: Standards | Q67: 24.6 | R67: DJC
N68: 2023-06-07 | O68: Added the Program calculation | P68: Rollup & 1 | Q68: 24.6 | R68: ECF
A69: Division Standard Indirect Rate | F69: Division Number | G69: 2024 | H69: 2025 | N69: 2023-07-06 | O69: Added the Narative and Justification tab | P69: Narrative and Justification | Q69: 24.6 | R69: ECF
A70: DCHS | B70: Disease Control and Health Statistics | F70: 010 | G70: 0.088 | H70: 0.088 | N70: 2023-07-12 | O70: Updated salary schedule effective July 1, 2023 | P70: Salary schedule | Q70: 24.7 | R70: DJC
A71: EPH | B71: Environmental Public Health | F71: 020 | G71: 0.11 | H71: 0.11 | N71: 2023-07-12 | O71: Updated computer equipment costs | P71: Standards | Q71: 24.7 | R71: DJC
A72: HSQA | B72: Health Systems Quality Assurance | F72: 060 | G72: 0.113 | H72: 0.113
A73: PCH | B73: Prevention and Community Health | F73: 070 | G73: 0.136 | H73: 0.136
A74: ADMIN | B74: Administration | F74: 090 | G74: 0 | H74: 0
A75: SBOH | B75: State Board of Health | F75: 100 | G75: 0 | H75: 0
G76: 0 | H76: 0
A77: NONE | B77: Choose Division On Row 105 | F77: ------- | G77: 0 | H77: 0
A79: Salary Escalator | C79: FY 1 | D79: FY 2 | E79: FY 3 | F79: FY 4 | G79: FY 5 | H79: FY 6
D80: 0.03 | E80: 0.03 | F80: 0.03 | G80: 0.03 | H80: 0.03
A82: Fiscal Year Series | C82: FY 1 | D82: FY 2 | E82: FY 3 | F82: FY 4 | G82: FY 5 | H82: FY 6 | I82: Biennium
C83: 2024 | D83: 2025 | E83: 2026 | F83: 2027 | G83: 2028 | H83: 2029 | I83: 2023-2025
A85: Fiscal Year Miscelaneous
C86: 2024 | D86: 2025 | E86: FY24
C87: MONTHLY SALARY | D87: ANNUAL SALARY
A88: FNCal Version | C88: 24.7

Sheet DOP Job Classes
B1: Class Code | C1: Class Title | D1: Salary Range | F1: EEO CODE
A2: 5 | B2: 503A | C2: ACTUARIAL ANALYST 1 | D2: 46 | F2: B/3 | G2: =IF(ISNUMBER(SEARCH(Rollup!$B$19,$C2)),MAX(,$G$1:G1)+1,0) -> 0 | H2: 1 | I2: =IFERROR(INDEX($C:$C,MATCH(H2,G:G,0)),"") -> HEALTH SERVICES CONSULTANT 3 | J2: =IF(ISNUMBER(SEARCH(Rollup!$B$20,$C2)),MAX(,$J$1:J1)+1,0) -> 0 | K2: 1 | L2: =IFERROR(INDEX($C:$C,MATCH(K2,J:J,0)),"") -> WMS02 | M2: =IF(ISNUMBER(SEARCH(Rollup!$B$21,$C2)),MAX(,M$1:M1)+1,0) -> 0 | N2: 1 | O2: =IFERROR(INDEX($C:$C,MATCH(N2,M:M,0)),"") -> BUDGET ANALYST 4 | P2: =IF(ISNUMBER(SEARCH(Rollup!$B$22,$C2)),MAX(,P$1:P1)+1,0) -> 0 | Q2: 1 | R2: =IFERROR(INDEX($C:$C,MATCH(Q2,P:P,0)),"") -> HEALTH SERVICES CONSULTANT 4 | S2: =IF(ISNUMBER(SEARCH(Rollup!$B$23,$C2)),MAX(,S$1:S1)+1,0) -> 0 | T2: 1 | U2: =IFERROR(INDEX($C:$C,MATCH(T2,S:S,0)),"") -> COMMUNICATIONS CONSULTANT 4 | V2: =IF(ISNUMBER(SEARCH(Rollup!$B$24,$C2)),MAX(,V$1:V1)+1,0) -> 0 | W2: 1 | X2: =IFERROR(INDEX($C:$C,MATCH(W2,V:V,0)),"") -> IT BUSINESS ANALYST - JOURNEY | Y2: =IF(ISNUMBER(SEARCH(Rollup!$B$25,$C2)),MAX(,Y$1:Y1)+1,0) -> 0 | Z2: 1 | AA2: =IFERROR(INDEX($C:$C,MATCH(Z2,Y:Y,0)),"") -> IT ARCHITECTURE - SENIOR/SPECIALIST | AB2: =IF(ISNUMBER(SEARCH(Rollup!$B$26,$C2)),MAX(,AB$1:AB1)+1,0) -> 0 | AC2: 1 | AD2: =IFERROR(INDEX($C:$C,MATCH(AC2,AB:AB,0)),"") -> MANAGEMENT ANALYST 5 | AE2: =IF(ISNUMBER(SEARCH(Rollup!$B$27,$C2)),MAX(,AE$1:AE1)+1,0) -> 0 | AF2: 1 | AG2: =IFERROR(INDEX($C:$C,MATCH(AF2,AE:AE,0)),"") -> PUBLIC HEALTH AND EPIDEMIOLOGIST 2 | AH2: =IF(ISNUMBER(SEARCH(Rollup!$B$28,$C2)),MAX(,AH$1:AH1)+1,0) -> 0 | AI2: 1 | AJ2: =IFERROR(INDEX($C:$C,MATCH(AI2,AH:AH,0)),"") -> ADMINISTRATIVE ASST 2 | AK2: =IF(ISNUMBER(SEARCH(Rollup!$B$29,$C2)),MAX(,AK$1:AK1)+1,0) -> 0 | AL2: 1 | AM2: =IFERROR(INDEX($C:$C,MATCH(AL2,AK:AK,0)),"") -> HEALTH SERVICES CONSULTANT 1 | AN2: =IF(ISNUMBER(SEARCH(Rollup!$B$30,$C2)),MAX(,AN$1:AN1)+1,0) -> 0 | AO2: 1 | AP2: =IFERROR(INDEX($C:$C,MATCH(AO2,AN:AN,0)),"") -> IT PROJECT MANAGEMENT - EXPERT | AQ2: =IF(ISNUMBER(SEARCH(Rollup!$B$31,$C2)),MAX(,AQ$1:AQ1)+1,0) -> 1 | AR2: 1 | AS2: =IFERROR(INDEX($C:$C,MATCH(AR2,AQ:AQ,0)),"") -> ACTUARIAL ANALYST 1 | AT2: =IF(ISNUMBER(SEARCH(Rollup!$B$32,$C2)),MAX(,AT$1:AT1)+1,0) -> 1 | AU2: 1 | AV2: =IFERROR(INDEX($C:$C,MATCH(AU2,AT:AT,0)),"") -> ACTUARIAL ANALYST 1 | AW2: =IF(ISNUMBER(SEARCH(Rollup!$B$33,$C2)),MAX(,AW$1:AW1)+1,0) -> 1 | AX2: 1 | AY2: =IFERROR(INDEX($C:$C,MATCH(AX2,AW:AW,0)),"") -> ACTUARIAL ANALYST 1 | AZ2: =IF(ISNUMBER(SEARCH(Rollup!$B$34,$C2)),MAX(,AZ$1:AZ1)+1,0) -> 1 | BA2: 1 | BB2: =IFERROR(INDEX($C:$C,MATCH(BA2,AZ:AZ,0)),"") -> ACTUARIAL ANALYST 1 | BC2: =IF(ISNUMBER(SEARCH(Rollup!$B$35,$C2)),MAX(,BC$1:BC1)+1,0) -> 1 | BD2: 1 | BE2: =IFERROR(INDEX($C:$C,MATCH(BD2,BC:BC,0)),"") -> ACTUARIAL ANALYST 1 | BF2: =IF(ISNUMBER(SEARCH(Rollup!$B$36,$C2)),MAX(,BF$1:BF1)+1,0) -> 1 | BG2: 1 | BH2: =IFERROR(INDEX($C:$C,MATCH(BG2,BF:BF,0)),"") -> ACTUARIAL ANALYST 1 | BI2: =IF(ISNUMBER(SEARCH(Rollup!$B$37,$C2)),MAX(,BI$1:BI1)+1,0) -> 1 | BJ2: 1 | BK2: =IFERROR(INDEX($C:$C,MATCH(BJ2,BI:BI,0)),"") -> ACTUARIAL ANALYST 1 | BL2: =IF(ISNUMBER(SEARCH(Rollup!$B$38,$C2)),MAX(,BL$1:BL1)+1,0) -> 1 | BM2: 1 | BN2: =IFERROR(INDEX($C:$C,MATCH(BM2,BL:BL,0)),"") -> ACTUARIAL ANALYST 1
B3: 503B | C3: ACTUARIAL ANALYST 2 | D3: 56 | F3: B/3 | G3: =IF(ISNUMBER(SEARCH(Rollup!$B$19,$C3)),MAX(,$G$1:G2)+1,0) -> 0 | H3: 2 | I3: =IFERROR(INDEX(C:C,MATCH(H3,G:G,0)),"") ->  | J3: =IF(ISNUMBER(SEARCH(Rollup!$B$20,$C3)),MAX(,$J$1:J2)+1,0) -> 0 | K3: 2 | M3: =IF(ISNUMBER(SEARCH(Rollup!$B$21,$C3)),MAX(,M$1:M2)+1,0) -> 0 | N3: 2 | P3: =IF(ISNUMBER(SEARCH(Rollup!$B$22,$C3)),MAX(,P$1:P2)+1,0) -> 0 | Q3: 2 | S3: =IF(ISNUMBER(SEARCH(Rollup!$B$23,$C3)),MAX(,S$1:S2)+1,0) -> 0 | T3: 2 | V3: =IF(ISNUMBER(SEARCH(Rollup!$B$24,$C3)),MAX(,V$1:V2)+1,0) -> 0 | W3: 2 | Y3: =IF(ISNUMBER(SEARCH(Rollup!$B$25,$C3)),MAX(,Y$1:Y2)+1,0) -> 0 | Z3: 2 | AB3: =IF(ISNUMBER(SEARCH(Rollup!$B$26,$C3)),MAX(,AB$1:AB2)+1,0) -> 0 | AC3: 2 | AE3: =IF(ISNUMBER(SEARCH(Rollup!$B$27,$C3)),MAX(,AE$1:AE2)+1,0) -> 0 | AF3: 2 | AH3: =IF(ISNUMBER(SEARCH(Rollup!$B$28,$C3)),MAX(,AH$1:AH2)+1,0) -> 0 | AI3: 2 | AK3: =IF(ISNUMBER(SEARCH(Rollup!$B$29,$C3)),MAX(,AK$1:AK2)+1,0) -> 0 | AL3: 2 | AN3: =IF(ISNUMBER(SEARCH(Rollup!$B$30,$C3)),MAX(,AN$1:AN2)+1,0) -> 0 | AO3: 2 | AQ3: =IF(ISNUMBER(SEARCH(Rollup!$B$31,$C3)),MAX(,AQ$1:AQ2)+1,0) -> 2 | AR3: 2 | AS3: ACTUARIAL ANALYST 2 | AT3: =IF(ISNUMBER(SEARCH(Rollup!$B$32,$C3)),MAX(,AT$1:AT2)+1,0) -> 2 | AU3: 2 | AV3: ACTUARIAL ANALYST 2 | AW3: =IF(ISNUMBER(SEARCH(Rollup!$B$33,$C3)),MAX(,AW$1:AW2)+1,0) -> 2 | AX3: 2 | AY3: ACTUARIAL ANALYST 2 | AZ3: =IF(ISNUMBER(SEARCH(Rollup!$B$34,$C3)),MAX(,AZ$1:AZ2)+1,0) -> 2 | BA3: 2 | BB3: ACTUARIAL ANALYST 2 | BC3: =IF(ISNUMBER(SEARCH(Rollup!$B$35,$C3)),MAX(,BC$1:BC2)+1,0) -> 2 | BD3: 2 | BE3: ACTUARIAL ANALYST 2 | BF3: =IF(ISNUMBER(SEARCH(Rollup!$B$36,$C3)),MAX(,BF$1:BF2)+1,0) -> 2 | BG3: 2 | BH3: ACTUARIAL ANALYST 2 | BI3: =IF(ISNUMBER(SEARCH(Rollup!$B$37,$C3)),MAX(,BI$1:BI2)+1,0) -> 2 | BJ3: 2 | BK3: ACTUARIAL ANALYST 2 | BL3: =IF(ISNUMBER(SEARCH(Rollup!$B$38,$C3)),MAX(,BL$1:BL2)+1,0) -> 2 | BM3: 2 | BN3: ACTUARIAL ANALYST 2
B4: 503C | C4: ACTUARIAL ANALYST 3 | D4: 66 | F4: B/3 | G4: =IF(ISNUMBER(SEARCH(Rollup!$B$19,$C4)),MAX(,$G$1:G3)+1,0) -> 0 | H4: 3 | J4: =IF(ISNUMBER(SEARCH(Rollup!$B$20,$C4)),MAX(,$J$1:J3)+1,0) -> 0 | K4: 3 | M4: =IF(ISNUMBER(SEARCH(Rollup!$B$21,$C4)),MAX(,M$1:M3)+1,0) -> 0 | N4: 3 | P4: =IF(ISNUMBER(SEARCH(Rollup!$B$22,$C4)),MAX(,P$1:P3)+1,0) -> 0 | Q4: 3 | S4: =IF(ISNUMBER(SEARCH(Rollup!$B$23,$C4)),MAX(,S$1:S3)+1,0) -> 0 | T4: 3 | V4: =IF(ISNUMBER(SEARCH(Rollup!$B$24,$C4)),MAX(,V$1:V3)+1,0) -> 0 | W4: 3 | Y4: =IF(ISNUMBER(SEARCH(Rollup!$B$25,$C4)),MAX(,Y$1:Y3)+1,0) -> 0 | Z4: 3 | AB4: =IF(ISNUMBER(SEARCH(Rollup!$B$26,$C4)),MAX(,AB$1:AB3)+1,0) -> 0 | AC4: 3 | AE4: =IF(ISNUMBER(SEARCH(Rollup!$B$27,$C4)),MAX(,AE$1:AE3)+1,0) -> 0 | AF4: 3 | AH4: =IF(ISNUMBER(SEARCH(Rollup!$B$28,$C4)),MAX(,AH$1:AH3)+1,0) -> 0 | AI4: 3 | AK4: =IF(ISNUMBER(SEARCH(Rollup!$B$29,$C4)),MAX(,AK$1:AK3)+1,0) -> 0 | AL4: 3 | AN4: =IF(ISNUMBER(SEARCH(Rollup!$B$30,$C4)),MAX(,AN$1:AN3)+1,0) -> 0 | AO4: 3 | AQ4: =IF(ISNUMBER(SEARCH(Rollup!$B$31,$C4)),MAX(,AQ$1:AQ3)+1,0) -> 3 | AR4: 3 | AS4: ACTUARIAL ANALYST 3 | AT4: =IF(ISNUMBER(SEARCH(Rollup!$B$32,$C4)),MAX(,AT$1:AT3)+1,0) -> 3 | AU4: 3 | AV4: ACTUARIAL ANALYST 3 | AW4: =IF(ISNUMBER(SEARCH(Rollup!$B$33,$C4)),MAX(,AW$1:AW3)+1,0) -> 3 | AX4: 3 | AY4: ACTUARIAL ANALYST 3 | AZ4: =IF(ISNUMBER(SEARCH(Rollup!$B$34,$C4)),MAX(,AZ$1:AZ3)+1,0) -> 3 | BA4: 3 | BB4: ACTUARIAL ANALYST 3 | BC4: =IF(ISNUMBER(SEARCH(Rollup!$B$35,$C4)),MAX(,BC$1:BC3)+1,0) -> 3 | BD4: 3 | BE4: ACTUARIAL ANALYST 3 | BF4: =IF(ISNUMBER(SEARCH(Rollup!$B$36,$C4)),MAX(,BF$1:BF3)+1,0) -> 3 | BG4: 3 | BH4: ACTUARIAL ANALYST 3 | BI4: =IF(ISNUMBER(SEARCH(Rollup!$B$37,$C4)),MAX(,BI$1:BI3)+1,0) -> 3 | BJ4: 3 | BK4: ACTUARIAL ANALYST 3 | BL4: =IF(ISNUMBER(SEARCH(Rollup!$B$38,$C4)),MAX(,BL$1:BL3)+1,0) -> 3 | BM4: 3 | BN4: ACTUARIAL ANALYST 3
B5: 504B | C5: ACTUARY 2 | D5: 79 | F5: B/3 | G5: =IF(ISNUMBER(SEARCH(Rollup!$B$19,$C5)),MAX(,$G$1:G4)+1,0) -> 0 | H5: 4 | J5: =IF(ISNUMBER(SEARCH(Rollup!$B$20,$C5)),MAX(,$J$1:J4)+1,0) -> 0 | K5: 4 | M5: =IF(ISNUMBER(SEARCH(Rollup!$B$21,$C5)),MAX(,M$1:M4)+1,0) -> 0 | N5: 4 | P5: =IF(ISNUMBER(SEARCH(Rollup!$B$22,$C5)),MAX(,P$1:P4)+1,0) -> 0 | Q5: 4 | S5: =IF(ISNUMBER(SEARCH(Rollup!$B$23,$C5)),MAX(,S$1:S4)+1,0) -> 0 | T5: 4 | V5: =IF(ISNUMBER(SEARCH(Rollup!$B$24,$C5)),MAX(,V$1:V4)+1,0) -> 0 | W5: 4 | Y5: =IF(ISNUMBER(SEARCH(Rollup!$B$25,$C5)),MAX(,Y$1:Y4)+1,0) -> 0 | Z5: 4 | AB5: =IF(ISNUMBER(SEARCH(Rollup!$B$26,$C5)),MAX(,AB$1:AB4)+1,0) -> 0 | AC5: 4 | AE5: =IF(ISNUMBER(SEARCH(Rollup!$B$27,$C5)),MAX(,AE$1:AE4)+1,0) -> 0 | AF5: 4 | AH5: =IF(ISNUMBER(SEARCH(Rollup!$B$28,$C5)),MAX(,AH$1:AH4)+1,0) -> 0 | AI5: 4 | AK5: =IF(ISNUMBER(SEARCH(Rollup!$B$29,$C5)),MAX(,AK$1:AK4)+1,0) -> 0 | AL5: 4 | AN5: =IF(ISNUMBER(SEARCH(Rollup!$B$30,$C5)),MAX(,AN$1:AN4)+1,0) -> 0 | AO5: 4 | AQ5: =IF(ISNUMBER(SEARCH(Rollup!$B$31,$C5)),MAX(,AQ$1:AQ4)+1,0) -> 4 | AR5: 4 | AS5: ACTUARY 2 | AT5: =IF(ISNUMBER(SEARCH(Rollup!$B$32,$C5)),MAX(,AT$1:AT4)+1,0) -> 4 | AU5: 4 | AV5: ACTUARY 2 | AW5: =IF(ISNUMBER(SEARCH(Rollup!$B$33,$C5)),MAX(,AW$1:AW4)+1,0) -> 4 | AX5: 4 | AY5: ACTUARY 2 | AZ5: =IF(ISNUMBER(SEARCH(Rollup!$B$34,$C5)),MAX(,AZ$1:AZ4)+1,0) -> 4 | BA5: 4 | BB5: ACTUARY 2 | BC5: =IF(ISNUMBER(SEARCH(Rollup!$B$35,$C5)),MAX(,BC$1:BC4)+1,0) -> 4 | BD5: 4 | BE5: ACTUARY 2 | BF5: =IF(ISNUMBER(SEARCH(Rollup!$B$36,$C5)),MAX(,BF$1:BF4)+1,0) -> 4 | BG5: 4 | BH5: ACTUARY 2 | BI5: =IF(ISNUMBER(SEARCH(Rollup!$B$37,$C5)),MAX(,BI$1:BI4)+1,0) -> 4 | BJ5: 4 | BK5: ACTUARY 2 | BL5: =IF(ISNUMBER(SEARCH(Rollup!$B$38,$C5)),MAX(,BL$1:BL4)+1,0) -> 4 | BM5: 4 | BN5: ACTUARY 2
B6: 504C | C6: ACTUARY 3 | D6: 89 | F6: B/3 | G6: =IF(ISNUMBER(SEARCH(Rollup!$B$19,$C6)),MAX(,$G$1:G5)+1,0) -> 0 | H6: 5 | J6: =IF(ISNUMBER(SEARCH(Rollup!$B$20,$C6)),MAX(,$J$1:J5)+1,0) -> 0 | K6: 5 | M6: =IF(ISNUMBER(SEARCH(Rollup!$B$21,$C6)),MAX(,M$1:M5)+1,0) -> 0 | N6: 5 | P6: =IF(ISNUMBER(SEARCH(Rollup!$B$22,$C6)),MAX(,P$1:P5)+1,0) -> 0 | Q6: 5 | S6: =IF(ISNUMBER(SEARCH(Rollup!$B$23,$C6)),MAX(,S$1:S5)+1,0) -> 0 | T6: 5 | V6: =IF(ISNUMBER(SEARCH(Rollup!$B$24,$C6)),MAX(,V$1:V5)+1,0) -> 0 | W6: 5 | Y6: =IF(ISNUMBER(SEARCH(Rollup!$B$25,$C6)),MAX(,Y$1:Y5)+1,0) -> 0 | Z6: 5 | AB6: =IF(ISNUMBER(SEARCH(Rollup!$B$26,$C6)),MAX(,AB$1:AB5)+1,0) -> 0 | AC6: 5 | AE6: =IF(ISNUMBER(SEARCH(Rollup!$B$27,$C6)),MAX(,AE$1:AE5)+1,0) -> 0 | AF6: 5 | AH6: =IF(ISNUMBER(SEARCH(Rollup!$B$28,$C6)),MAX(,AH$1:AH5)+1,0) -> 0 | AI6: 5 | AK6: =IF(ISNUMBER(SEARCH(Rollup!$B$29,$C6)),MAX(,AK$1:AK5)+1,0) -> 0 | AL6: 5 | AN6: =IF(ISNUMBER(SEARCH(Rollup!$B$30,$C6)),MAX(,AN$1:AN5)+1,0) -> 0 | AO6: 5 | AQ6: =IF(ISNUMBER(SEARCH(Rollup!$B$31,$C6)),MAX(,AQ$1:AQ5)+1,0) -> 5 | AR6: 5 | AS6: ACTUARY 3 | AT6: =IF(ISNUMBER(SEARCH(Rollup!$B$32,$C6)),MAX(,AT$1:AT5)+1,0) -> 5 | AU6: 5 | AV6: ACTUARY 3 | AW6: =IF(ISNUMBER(SEARCH(Rollup!$B$33,$C6)),MAX(,AW$1:AW5)+1,0) -> 5 | AX6: 5 | AY6: ACTUARY 3 | AZ6: =IF(ISNUMBER(SEARCH(Rollup!$B$34,$C6)),MAX(,AZ$1:AZ5)+1,0) -> 5 | BA6: 5 | BB6: ACTUARY 3 | BC6: =IF(ISNUMBER(SEARCH(Rollup!$B$35,$C6)),MAX(,BC$1:BC5)+1,0) -> 5 | BD6: 5 | BE6: ACTUARY 3 | BF6: =IF(ISNUMBER(SEARCH(Rollup!$B$36,$C6)),MAX(,BF$1:BF5)+1,0) -> 5 | BG6: 5 | BH6: ACTUARY 3 | BI6: =IF(ISNUMBER(SEARCH(Rollup!$B$37,$C6)),MAX(,BI$1:BI5)+1,0) -> 5 | BJ6: 5 | BK6: ACTUARY 3 | BL6: =IF(ISNUMBER(SEARCH(Rollup!$B$38,$C6)),MAX(,BL$1:BL5)+1,0) -> 5 | BM6: 5 | BN6: ACTUARY 3
B7: 504D | C7: ACTUARY 4 | D7: 94 | F7: A/1 | G7: =IF(ISNUMBER(SEARCH(Rollup!$B$19,$C7)),MAX(,$G$1:G6)+1,0) -> 0 | H7: 6 | J7: =IF(ISNUMBER(SEARCH(Rollup!$B$20,$C7)),MAX(,$J$1:J6)+1,0) -> 0 | K7: 6 | M7: =IF(ISNUMBER(SEARCH(Rollup!$B$21,$C7)),MAX(,M$1:M6)+1,0) -> 0 | N7: 6 | P7: =IF(ISNUMBER(SEARCH(Rollup!$B$22,$C7)),MAX(,P$1:P6)+1,0) -> 0 | Q7: 6 | S7: =IF(ISNUMBER(SEARCH(Rollup!$B$23,$C7)),MAX(,S$1:S6)+1,0) -> 0 | T7: 6 | V7: =IF(ISNUMBER(SEARCH(Rollup!$B$24,$C7)),MAX(,V$1:V6)+1,0) -> 0 | W7: 6 | Y7: =IF(ISNUMBER(SEARCH(Rollup!$B$25,$C7)),MAX(,Y$1:Y6)+1,0) -> 0 | Z7: 6 | AB7: =IF(ISNUMBER(SEARCH(Rollup!$B$26,$C7)),MAX(,AB$1:AB6)+1,0) -> 0 | AC7: 6 | AE7: =IF(ISNUMBER(SEARCH(Rollup!$B$27,$C7)),MAX(,AE$1:AE6)+1,0) -> 0 | AF7: 6 | AH7: =IF(ISNUMBER(SEARCH(Rollup!$B$28,$C7)),MAX(,AH$1:AH6)+1,0) -> 0 | AI7: 6 | AK7: =IF(ISNUMBER(SEARCH(Rollup!$B$29,$C7)),MAX(,AK$1:AK6)+1,0) -> 0 | AL7: 6 | AN7: =IF(ISNUMBER(SEARCH(Rollup!$B$30,$C7)),MAX(,AN$1:AN6)+1,0) -> 0 | AO7: 6 | AQ7: =IF(ISNUMBER(SEARCH(Rollup!$B$31,$C7)),MAX(,AQ$1:AQ6)+1,0) -> 6 | AR7: 6 | AS7: ACTUARY 4 | AT7: =IF(ISNUMBER(SEARCH(Rollup!$B$32,$C7)),MAX(,AT$1:AT6)+1,0) -> 6 | AU7: 6 | AV7: ACTUARY 4 | AW7: =IF(ISNUMBER(SEARCH(Rollup!$B$33,$C7)),MAX(,AW$1:AW6)+1,0) -> 6 | AX7: 6 | AY7: ACTUARY 4 | AZ7: =IF(ISNUMBER(SEARCH(Rollup!$B$34,$C7)),MAX(,AZ$1:AZ6)+1,0) -> 6 | BA7: 6 | BB7: ACTUARY 4 | BC7: =IF(ISNUMBER(SEARCH(Rollup!$B$35,$C7)),MAX(,BC$1:BC6)+1,0) -> 6 | BD7: 6 | BE7: ACTUARY 4 | BF7: =IF(ISNUMBER(SEARCH(Rollup!$B$36,$C7)),MAX(,BF$1:BF6)+1,0) -> 6 | BG7: 6 | BH7: ACTUARY 4 | BI7: =IF(ISNUMBER(SEARCH(Rollup!$B$37,$C7)),MAX(,BI$1:BI6)+1,0) -> 6 | BJ7: 6 | BK7: ACTUARY 4 | BL7: =IF(ISNUMBER(SEARCH(Rollup!$B$38,$C7)),MAX(,BL$1:BL6)+1,0) -> 6 | BM7: 6 | BN7: ACTUARY 4
B8: 105E | C8: ADMINISTRATIVE ASST 1 | D8: 35 | F8: E | G8: =IF(ISNUMBER(SEARCH(Rollup!$B$19,$C8)),MAX(,$G$1:G7)+1,0) -> 0 | H8: 7 | J8: =IF(ISNUMBER(SEARCH(Rollup!$B$20,$C8)),MAX(,$J$1:J7)+1,0) -> 0 | K8: 7 | M8: =IF(ISNUMBER(SEARCH(Rollup!$B$21,$C8)),MAX(,M$1:M7)+1,0) -> 0 | N8: 7 | P8: =IF(ISNUMBER(SEARCH(Rollup!$B$22,$C8)),MAX(,P$1:P7)+1,0) -> 0 | Q8: 7 | S8: =IF(ISNUMBER(SEARCH(Rollup!$B$23,$C8)),MAX(,S$1:S7)+1,0) -> 0 | T8: 7 | V8: =IF(ISNUMBER(SEARCH(Rollup!$B$24,$C8)),MAX(,V$1:V7)+1,0) -> 0 | W8: 7 | Y8: =IF(ISNUMBER(SEARCH(Rollup!$B$25,$C8)),MAX(,Y$1:Y7)+1,0) -> 0 | Z8: 7 | AB8: =IF(ISNUMBER(SEARCH(Rollup!$B$26,$C8)),MAX(,AB$1:AB7)+1,0) -> 0 | AC8: 7 | AE8: =IF(ISNUMBER(SEARCH(Rollup!$B$27,$C8)),MAX(,AE$1:AE7)+1,0) -> 0 | AF8: 7 | AH8: =IF(ISNUMBER(SEARCH(Rollup!$B$28,$C8)),MAX(,AH$1:AH7)+1,0) -> 0 | AI8: 7 | AK8: =IF(ISNUMBER(SEARCH(Rollup!$B$29,$C8)),MAX(,AK$1:AK7)+1,0) -> 0 | AL8: 7 | AN8: =IF(ISNUMBER(SEARCH(Rollup!$B$30,$C8)),MAX(,AN$1:AN7)+1,0) -> 0 | AO8: 7 | AQ8: =IF(ISNUMBER(SEARCH(Rollup!$B$31,$C8)),MAX(,AQ$1:AQ7)+1,0) -> 7 | AR8: 7 | AS8: ADMINISTRATIVE ASST 1 | AT8: =IF(ISNUMBER(SEARCH(Rollup!$B$32,$C8)),MAX(,AT$1:AT7)+1,0) -> 7 | AU8: 7 | AV8: ADMINISTRATIVE ASST 1 | AW8: =IF(ISNUMBER(SEARCH(Rollup!$B$33,$C8)),MAX(,AW$1:AW7)+1,0) -> 7 | AX8: 7 | AY8: ADMINISTRATIVE ASST 1 | AZ8: =IF(ISNUMBER(SEARCH(Rollup!$B$34,$C8)),MAX(,AZ$1:AZ7)+1,0) -> 7 | BA8: 7 | BB8: ADMINISTRATIVE ASST 1 | BC8: =IF(ISNUMBER(SEARCH(Rollup!$B$35,$C8)),MAX(,BC$1:BC7)+1,0) -> 7 | BD8: 7 | BE8: ADMINISTRATIVE ASST 1 | BF8: =IF(ISNUMBER(SEARCH(Rollup!$B$36,$C8)),MAX(,BF$1:BF7)+1,0) -> 7 | BG8: 7 | BH8: ADMINISTRATIVE ASST 1 | BI8: =IF(ISNUMBER(SEARCH(Rollup!$B$37,$C8)),MAX(,BI$1:BI7)+1,0) -> 7 | BJ8: 7 | BK8: ADMINISTRATIVE ASST 1 | BL8: =IF(ISNUMBER(SEARCH(Rollup!$B$38,$C8)),MAX(,BL$1:BL7)+1,0) -> 7 | BM8: 7 | BN8: ADMINISTRATIVE ASST 1
B9: 105F | C9: ADMINISTRATIVE ASST 2 | D9: 37 | F9: E | G9: =IF(ISNUMBER(SEARCH(Rollup!$B$19,$C9)),MAX(,$G$1:G8)+1,0) -> 0 | H9: 8 | J9: =IF(ISNUMBER(SEARCH(Rollup!$B$20,$C9)),MAX(,$J$1:J8)+1,0) -> 0 | K9: 8 | M9: =IF(ISNUMBER(SEARCH(Rollup!$B$21,$C9)),MAX(,M$1:M8)+1,0) -> 0 | N9: 8 | P9: =IF(ISNUMBER(SEARCH(Rollup!$B$22,$C9)),MAX(,P$1:P8)+1,0) -> 0 | Q9: 8 | S9: =IF(ISNUMBER(SEARCH(Rollup!$B$23,$C9)),MAX(,S$1:S8)+1,0) -> 0 | T9: 8 | V9: =IF(ISNUMBER(SEARCH(Rollup!$B$24,$C9)),MAX(,V$1:V8)+1,0) -> 0 | W9: 8 | Y9: =IF(ISNUMBER(SEARCH(Rollup!$B$25,$C9)),MAX(,Y$1:Y8)+1,0) -> 0 | Z9: 8 | AB9: =IF(ISNUMBER(SEARCH(Rollup!$B$26,$C9)),MAX(,AB$1:AB8)+1,0) -> 0 | AC9: 8 | AE9: =IF(ISNUMBER(SEARCH(Rollup!$B$27,$C9)),MAX(,AE$1:AE8)+1,0) -> 0 | AF9: 8 | AH9: =IF(ISNUMBER(SEARCH(Rollup!$B$28,$C9)),MAX(,AH$1:AH8)+1,0) -> 1 | AI9: 8 | AK9: =IF(ISNUMBER(SEARCH(Rollup!$B$29,$C9)),MAX(,AK$1:AK8)+1,0) -> 0 | AL9: 8 | AN9: =IF(ISNUMBER(SEARCH(Rollup!$B$30,$C9)),MAX(,AN$1:AN8)+1,0) -> 0 | AO9: 8 | AQ9: =IF(ISNUMBER(SEARCH(Rollup!$B$31,$C9)),MAX(,AQ$1:AQ8)+1,0) -> 8 | AR9: 8 | AS9: ADMINISTRATIVE ASST 2 | AT9: =IF(ISNUMBER(SEARCH(Rollup!$B$32,$C9)),MAX(,AT$1:AT8)+1,0) -> 8 | AU9: 8 | AV9: ADMINISTRATIVE ASST 2 | AW9: =IF(ISNUMBER(SEARCH(Rollup!$B$33,$C9)),MAX(,AW$1:AW8)+1,0) -> 8 | AX9: 8 | AY9: ADMINISTRATIVE ASST 2 | AZ9: =IF(ISNUMBER(SEARCH(Rollup!$B$34,$C9)),MAX(,AZ$1:AZ8)+1,0) -> 8 | BA9: 8 | BB9: ADMINISTRATIVE ASST 2 | BC9: =IF(ISNUMBER(SEARCH(Rollup!$B$35,$C9)),MAX(,BC$1:BC8)+1,0) -> 8 | BD9: 8 | BE9: ADMINISTRATIVE ASST 2 | BF9: =IF(ISNUMBER(SEARCH(Rollup!$B$36,$C9)),MAX(,BF$1:BF8)+1,0) -> 8 | BG9: 8 | BH9: ADMINISTRATIVE ASST 2 | BI9: =IF(ISNUMBER(SEARCH(Rollup!$B$37,$C9)),MAX(,BI$1:BI8)+1,0) -> 8 | BJ9: 8 | BK9: ADMINISTRATIVE ASST 2 | BL9: =IF(ISNUMBER(SEARCH(Rollup!$B$38,$C9)),MAX(,BL$1:BL8)+1,0) -> 8 | BM9: 8 | BN9: ADMINISTRATIVE ASST 2
B10: 105G | C10: ADMINISTRATIVE ASST 3 | D10: 40 | F10: F | G10: =IF(ISNUMBER(SEARCH(Rollup!$B$19,$C10)),MAX(,$G$1:G9)+1,0) -> 0 | H10: 9 | J10: =IF(ISNUMBER(SEARCH(Rollup!$B$20,$C10)),MAX(,$J$1:J9)+1,0) -> 0 | K10: 9 | M10: =IF(ISNUMBER(SEARCH(Rollup!$B$21,$C10)),MAX(,M$1:M9)+1,0) -> 0 | N10: 9 | P10: =IF(ISNUMBER(SEARCH(Rollup!$B$22,$C10)),MAX(,P$1:P9)+1,0) -> 0 | Q10: 9 | S10: =IF(ISNUMBER(SEARCH(Rollup!$B$23,$C10)),MAX(,S$1:S9)+1,0) -> 0 | T10: 9 | V10: =IF(ISNUMBER(SEARCH(Rollup!$B$24,$C10)),MAX(,V$1:V9)+1,0) -> 0 | W10: 9 | Y10: =IF(ISNUMBER(SEARCH(Rollup!$B$25,$C10)),MAX(,Y$1:Y9)+1,0) -> 0 | Z10: 9 | AB10: =IF(ISNUMBER(SEARCH(Rollup!$B$26,$C10)),MAX(,AB$1:AB9)+1,0) -> 0 | AC10: 9 | AE10: =IF(ISNUMBER(SEARCH(Rollup!$B$27,$C10)),MAX(,AE$1:AE9)+1,0) -> 0 | AF10: 9 | AH10: =IF(ISNUMBER(SEARCH(Rollup!$B$28,$C10)),MAX(,AH$1:AH9)+1,0) -> 0 | AI10: 9 | AK10: =IF(ISNUMBER(SEARCH(Rollup!$B$29,$C10)),MAX(,AK$1:AK9)+1,0) -> 0 | AL10: 9 | AN10: =IF(ISNUMBER(SEARCH(Rollup!$B$30,$C10)),MAX(,AN$1:AN9)+1,0) -> 0 | AO10: 9 | AQ10: =IF(ISNUMBER(SEARCH(Rollup!$B$31,$C10)),MAX(,AQ$1:AQ9)+1,0) -> 9 | AR10: 9 | AS10: ADMINISTRATIVE ASST 3 | AT10: =IF(ISNUMBER(SEARCH(Rollup!$B$32,$C10)),MAX(,AT$1:AT9)+1,0) -> 9 | AU10: 9 | AV10: ADMINISTRATIVE ASST 3 | AW10: =IF(ISNUMBER(SEARCH(Rollup!$B$33,$C10)),MAX(,AW$1:AW9)+1,0) -> 9 | AX10: 9 | AY10: ADMINISTRATIVE ASST 3 | AZ10: =IF(ISNUMBER(SEARCH(Rollup!$B$34,$C10)),MAX(,AZ$1:AZ9)+1,0) -> 9 | BA10: 9 | BB10: ADMINISTRATIVE ASST 3 | BC10: =IF(ISNUMBER(SEARCH(Rollup!$B$35,$C10)),MAX(,BC$1:BC9)+1,0) -> 9 | BD10: 9 | BE10: ADMINISTRATIVE ASST 3 | BF10: =IF(ISNUMBER(SEARCH(Rollup!$B$36,$C10)),MAX(,BF$1:BF9)+1,0) -> 9 | BG10: 9 | BH10: ADMINISTRATIVE ASST 3 | BI10: =IF(ISNUMBER(SEARCH(Rollup!$B$37,$C10)),MAX(,BI$1:BI9)+1,0) -> 9 | BJ10: 9 | BK10: ADMINISTRATIVE ASST 3 | BL10: =IF(ISNUMBER(SEARCH(Rollup!$B$38,$C10)),MAX(,BL$1:BL9)+1,0) -> 9 | BM10: 9 | BN10: ADMINISTRATIVE ASST 3
B11: 105H | C11: ADMINISTRATIVE ASST 4 | D11: 46 | F11: 4 | G11: =IF(ISNUMBER(SEARCH(Rollup!$B$19,$C11)),MAX(,$G$1:G10)+1,0) -> 0 | H11: 10 | J11: =IF(ISNUMBER(SEARCH(Rollup!$B$20,$C11)),MAX(,$J$1:J10)+1,0) -> 0 | K11: 10 | M11: =IF(ISNUMBER(SEARCH(Rollup!$B$21,$C11)),MAX(,M$1:M10)+1,0) -> 0 | N11: 10 | P11: =IF(ISNUMBER(SEARCH(Rollup!$B$22,$C11)),MAX(,P$1:P10)+1,0) -> 0 | Q11: 10 | S11: =IF(ISNUMBER(SEARCH(Rollup!$B$23,$C11)),MAX(,S$1:S10)+1,0) -> 0 | T11: 10 | V11: =IF(ISNUMBER(SEARCH(Rollup!$B$24,$C11)),MAX(,V$1:V10)+1,0) -> 0 | W11: 10 | Y11: =IF(ISNUMBER(SEARCH(Rollup!$B$25,$C11)),MAX(,Y$1:Y10)+1,0) -> 0 | Z11: 10 | AB11: =IF(ISNUMBER(SEARCH(Rollup!$B$26,$C11)),MAX(,AB$1:AB10)+1,0) -> 0 | AC11: 10 | AE11: =IF(ISNUMBER(SEARCH(Rollup!$B$27,$C11)),MAX(,AE$1:AE10)+1,0) -> 0 | AF11: 10 | AH11: =IF(ISNUMBER(SEARCH(Rollup!$B$28,$C11)),MAX(,AH$1:AH10)+1,0) -> 0 | AI11: 10 | AK11: =IF(ISNUMBER(SEARCH(Rollup!$B$29,$C11)),MAX(,AK$1:AK10)+1,0) -> 0 | AL11: 10 | AN11: =IF(ISNUMBER(SEARCH(Rollup!$B$30,$C11)),MAX(,AN$1:AN10)+1,0) -> 0 | AO11: 10 | AQ11: =IF(ISNUMBER(SEARCH(Rollup!$B$31,$C11)),MAX(,AQ$1:AQ10)+1,0) -> 10 | AR11: 10 | AS11: ADMINISTRATIVE ASST 4 | AT11: =IF(ISNUMBER(SEARCH(Rollup!$B$32,$C11)),MAX(,AT$1:AT10)+1,0) -> 10 | AU11: 10 | AV11: ADMINISTRATIVE ASST 4 | AW11: =IF(ISNUMBER(SEARCH(Rollup!$B$33,$C11)),MAX(,AW$1:AW10)+1,0) -> 10 | AX11: 10 | AY11: ADMINISTRATIVE ASST 4 | AZ11: =IF(ISNUMBER(SEARCH(Rollup!$B$34,$C11)),MAX(,AZ$1:AZ10)+1,0) -> 10 | BA11: 10 | BB11: ADMINISTRATIVE ASST 4 | BC11: =IF(ISNUMBER(SEARCH(Rollup!$B$35,$C11)),MAX(,BC$1:BC10)+1,0) -> 10 | BD11: 10 | BE11: ADMINISTRATIVE ASST 4 | BF11: =IF(ISNUMBER(SEARCH(Rollup!$B$36,$C11)),MAX(,BF$1:BF10)+1,0) -> 10 | BG11: 10 | BH11: ADMINISTRATIVE ASST 4 | BI11: =IF(ISNUMBER(SEARCH(Rollup!$B$37,$C11)),MAX(,BI$1:BI10)+1,0) -> 10 | BJ11: 10 | BK11: ADMINISTRATIVE ASST 4 | BL11: =IF(ISNUMBER(SEARCH(Rollup!$B$38,$C11)),MAX(,BL$1:BL10)+1,0) -> 10 | BM11: 10 | BN11: ADMINISTRATIVE ASST 4
B12: 105I | C12: ADMINISTRATIVE ASST 5 | D12: 50 | F12: B | G12: =IF(ISNUMBER(SEARCH(Rollup!$B$19,$C12)),MAX(,$G$1:G11)+1,0) -> 0 | H12: 11 | J12: =IF(ISNUMBER(SEARCH(Rollup!$B$20,$C12)),MAX(,$J$1:J11)+1,0) -> 0 | K12: 11 | M12: =IF(ISNUMBER(SEARCH(Rollup!$B$21,$C12)),MAX(,M$1:M11)+1,0) -> 0 | N12: 11 | P12: =IF(ISNUMBER(SEARCH(Rollup!$B$22,$C12)),MAX(,P$1:P11)+1,0) -> 0 | Q12: 11 | S12: =IF(ISNUMBER(SEARCH(Rollup!$B$23,$C12)),MAX(,S$1:S11)+1,0) -> 0 | T12: 11 | V12: =IF(ISNUMBER(SEARCH(Rollup!$B$24,$C12)),MAX(,V$1:V11)+1,0) -> 0 | W12: 11 | Y12: =IF(ISNUMBER(SEARCH(Rollup!$B$25,$C12)),MAX(,Y$1:Y11)+1,0) -> 0 | Z12: 11 | AB12: =IF(ISNUMBER(SEARCH(Rollup!$B$26,$C12)),MAX(,AB$1:AB11)+1,0) -> 0 | AC12: 11 | AE12: =IF(ISNUMBER(SEARCH(Rollup!$B$27,$C12)),MAX(,AE$1:AE11)+1,0) -> 0 | AF12: 11 | AH12: =IF(ISNUMBER(SEARCH(Rollup!$B$28,$C12)),MAX(,AH$1:AH11)+1,0) -> 0 | AI12: 11 | AK12: =IF(ISNUMBER(SEARCH(Rollup!$B$29,$C12)),MAX(,AK$1:AK11)+1,0) -> 0 | AL12: 11 | AN12: =IF(ISNUMBER(SEARCH(Rollup!$B$30,$C12)),MAX(,AN$1:AN11)+1,0) -> 0 | AO12: 11 | AQ12: =IF(ISNUMBER(SEARCH(Rollup!$B$31,$C12)),MAX(,AQ$1:AQ11)+1,0) -> 11 | AR12: 11 | AS12: ADMINISTRATIVE ASST 5 | AT12: =IF(ISNUMBER(SEARCH(Rollup!$B$32,$C12)),MAX(,AT$1:AT11)+1,0) -> 11 | AU12: 11 | AV12: ADMINISTRATIVE ASST 5 | AW12: =IF(ISNUMBER(SEARCH(Rollup!$B$33,$C12)),MAX(,AW$1:AW11)+1,0) -> 11 | AX12: 11 | AY12: ADMINISTRATIVE ASST 5 | AZ12: =IF(ISNUMBER(SEARCH(Rollup!$B$34,$C12)),MAX(,AZ$1:AZ11)+1,0) -> 11 | BA12: 11 | BB12: ADMINISTRATIVE ASST 5 | BC12: =IF(ISNUMBER(SEARCH(Rollup!$B$35,$C12)),MAX(,BC$1:BC11)+1,0) -> 11 | BD12: 11 | BE12: ADMINISTRATIVE ASST 5 | BF12: =IF(ISNUMBER(SEARCH(Rollup!$B$36,$C12)),MAX(,BF$1:BF11)+1,0) -> 11 | BG12: 11 | BH12: ADMINISTRATIVE ASST 5 | BI12: =IF(ISNUMBER(SEARCH(Rollup!$B$37,$C12)),MAX(,BI$1:BI11)+1,0) -> 11 | BJ12: 11 | BK12: ADMINISTRATIVE ASST 5 | BL12: =IF(ISNUMBER(SEARCH(Rollup!$B$38,$C12)),MAX(,BL$1:BL11)+1,0) -> 11 | BM12: 11 | BN12: ADMINISTRATIVE ASST 5
B13: 181A | C13: ADMINISTRATIVE HEARINGS SPECIALIST | D13: 55 | G13: =IF(ISNUMBER(SEARCH(Rollup!$B$19,$C13)),MAX(,$G$1:G12)+1,0) -> 0 | H13: 12 | J13: =IF(ISNUMBER(SEARCH(Rollup!$B$20,$C13)),MAX(,$J$1:J12)+1,0) -> 0 | K13: 12 | M13: =IF(ISNUMBER(SEARCH(Rollup!$B$21,$C13)),MAX(,M$1:M12)+1,0) -> 0 | N13: 12 | P13: =IF(ISNUMBER(SEARCH(Rollup!$B$22,$C13)),MAX(,P$1:P12)+1,0) -> 0 | Q13: 12 | S13: =IF(ISNUMBER(SEARCH(Rollup!$B$23,$C13)),MAX(,S$1:S12)+1,0) -> 0 | T13: 12 | V13: =IF(ISNUMBER(SEARCH(Rollup!$B$24,$C13)),MAX(,V$1:V12)+1,0) -> 0 | W13: 12 | Y13: =IF(ISNUMBER(SEARCH(Rollup!$B$25,$C13)),MAX(,Y$1:Y12)+1,0) -> 0 | Z13: 12 | AB13: =IF(ISNUMBER(SEARCH(Rollup!$B$26,$C13)),MAX(,AB$1:AB12)+1,0) -> 0 | AC13: 12 | AE13: =IF(ISNUMBER(SEARCH(Rollup!$B$27,$C13)),MAX(,AE$1:AE12)+1,0) -> 0 | AF13: 12 | AH13: =IF(ISNUMBER(SEARCH(Rollup!$B$28,$C13)),MAX(,AH$1:AH12)+1,0) -> 0 | AI13: 12 | AK13: =IF(ISNUMBER(SEARCH(Rollup!$B$29,$C13)),MAX(,AK$1:AK12)+1,0) -> 0 | AL13: 12 | AN13: =IF(ISNUMBER(SEARCH(Rollup!$B$30,$C13)),MAX(,AN$1:AN12)+1,0) -> 0 | AO13: 12 | AQ13: =IF(ISNUMBER(SEARCH(Rollup!$B$31,$C13)),MAX(,AQ$1:AQ12)+1,0) -> 12 | AR13: 12 | AS13: ADMINISTRATIVE HEARINGS SPECIALIST | AT13: =IF(ISNUMBER(SEARCH(Rollup!$B$32,$C13)),MAX(,AT$1:AT12)+1,0) -> 12 | AU13: 12 | AV13: ADMINISTRATIVE HEARINGS SPECIALIST | AW13: =IF(ISNUMBER(SEARCH(Rollup!$B$33,$C13)),MAX(,AW$1:AW12)+1,0) -> 12 | AX13: 12 | AY13: ADMINISTRATIVE HEARINGS SPECIALIST | AZ13: =IF(ISNUMBER(SEARCH(Rollup!$B$34,$C13)),MAX(,AZ$1:AZ12)+1,0) -> 12 | BA13: 12 | BB13: ADMINISTRATIVE HEARINGS SPECIALIST | BC13: =IF(ISNUMBER(SEARCH(Rollup!$B$35,$C13)),MAX(,BC$1:BC12)+1,0) -> 12 | BD13: 12 | BE13: ADMINISTRATIVE HEARINGS SPECIALIST | BF13: =IF(ISNUMBER(SEARCH(Rollup!$B$36,$C13)),MAX(,BF$1:BF12)+1,0) -> 12 | BG13: 12 | BH13: ADMINISTRATIVE HEARINGS SPECIALIST | BI13: =IF(ISNUMBER(SEARCH(Rollup!$B$37,$C13)),MAX(,BI$1:BI12)+1,0) -> 12 | BJ13: 12 | BK13: ADMINISTRATIVE HEARINGS SPECIALIST | BL13: =IF(ISNUMBER(SEARCH(Rollup!$B$38,$C13)),MAX(,BL$1:BL12)+1,0) -> 12 | BM13: 12 | BN13: ADMINISTRATIVE HEARINGS SPECIALIST
B14: 181B | C14: ADMINISTRATIVE HEARINGS SUPERVISOR | D14: 58 | G14: =IF(ISNUMBER(SEARCH(Rollup!$B$19,$C14)),MAX(,$G$1:G13)+1,0) -> 0 | H14: 13 | J14: =IF(ISNUMBER(SEARCH(Rollup!$B$20,$C14)),MAX(,$J$1:J13)+1,0) -> 0 | K14: 13 | M14: =IF(ISNUMBER(SEARCH(Rollup!$B$21,$C14)),MAX(,M$1:M13)+1,0) -> 0 | N14: 13 | P14: =IF(ISNUMBER(SEARCH(Rollup!$B$22,$C14)),MAX(,P$1:P13)+1,0) -> 0 | Q14: 13 | S14: =IF(ISNUMBER(SEARCH(Rollup!$B$23,$C14)),MAX(,S$1:S13)+1,0) -> 0 | T14: 13 | V14: =IF(ISNUMBER(SEARCH(Rollup!$B$24,$C14)),MAX(,V$1:V13)+1,0) -> 0 | W14: 13 | Y14: =IF(ISNUMBER(SEARCH(Rollup!$B$25,$C14)),MAX(,Y$1:Y13)+1,0) -> 0 | Z14: 13 | AB14: =IF(ISNUMBER(SEARCH(Rollup!$B$26,$C14)),MAX(,AB$1:AB13)+1,0) -> 0 | AC14: 13 | AE14: =IF(ISNUMBER(SEARCH(Rollup!$B$27,$C14)),MAX(,AE$1:AE13)+1,0) -> 0 | AF14: 13 | AH14: =IF(ISNUMBER(SEARCH(Rollup!$B$28,$C14)),MAX(,AH$1:AH13)+1,0) -> 0 | AI14: 13 | AK14: =IF(ISNUMBER(SEARCH(Rollup!$B$29,$C14)),MAX(,AK$1:AK13)+1,0) -> 0 | AL14: 13 | AN14: =IF(ISNUMBER(SEARCH(Rollup!$B$30,$C14)),MAX(,AN$1:AN13)+1,0) -> 0 | AO14: 13 | AQ14: =IF(ISNUMBER(SEARCH(Rollup!$B$31,$C14)),MAX(,AQ$1:AQ13)+1,0) -> 13 | AR14: 13 | AS14: ADMINISTRATIVE HEARINGS SUPERVISOR | AT14: =IF(ISNUMBER(SEARCH(Rollup!$B$32,$C14)),MAX(,AT$1:AT13)+1,0) -> 13 | AU14: 13 | AV14: ADMINISTRATIVE HEARINGS SUPERVISOR | AW14: =IF(ISNUMBER(SEARCH(Rollup!$B$33,$C14)),MAX(,AW$1:AW13)+1,0) -> 13 | AX14: 13 | AY14: ADMINISTRATIVE HEARINGS SUPERVISOR | AZ14: =IF(ISNUMBER(SEARCH(Rollup!$B$34,$C14)),MAX(,AZ$1:AZ13)+1,0) -> 13 | BA14: 13 | BB14: ADMINISTRATIVE HEARINGS SUPERVISOR | BC14: =IF(ISNUMBER(SEARCH(Rollup!$B$35,$C14)),MAX(,BC$1:BC13)+1,0) -> 13 | BD14: 13 | BE14: ADMINISTRATIVE HEARINGS SUPERVISOR | BF14: =IF(ISNUMBER(SEARCH(Rollup!$B$36,$C14)),MAX(,BF$1:BF13)+1,0) -> 13 | BG14: 13 | BH14: ADMINISTRATIVE HEARINGS SUPERVISOR | BI14: =IF(ISNUMBER(SEARCH(Rollup!$B$37,$C14)),MAX(,BI$1:BI13)+1,0) -> 13 | BJ14: 13 | BK14: ADMINISTRATIVE HEARINGS SUPERVISOR | BL14: =IF(ISNUMBER(SEARCH(Rollup!$B$38,$C14)),MAX(,BL$1:BL13)+1,0) -> 13 | BM14: 13 | BN14: ADMINISTRATIVE HEARINGS SUPERVISOR
B15: 104H | C15: ADMINISTRATIVE INTERN 1 | D15: 30 | E15: E | F15: E | G15: =IF(ISNUMBER(SEARCH(Rollup!$B$19,$C15)),MAX(,$G$1:G14)+1,0) -> 0 | H15: 14 | J15: =IF(ISNUMBER(SEARCH(Rollup!$B$20,$C15)),MAX(,$J$1:J14)+1,0) -> 0 | K15: 14 | M15: =IF(ISNUMBER(SEARCH(Rollup!$B$21,$C15)),MAX(,M$1:M14)+1,0) -> 0 | N15: 14 | P15: =IF(ISNUMBER(SEARCH(Rollup!$B$22,$C15)),MAX(,P$1:P14)+1,0) -> 0 | Q15: 14 | S15: =IF(ISNUMBER(SEARCH(Rollup!$B$23,$C15)),MAX(,S$1:S14)+1,0) -> 0 | T15: 14 | V15: =IF(ISNUMBER(SEARCH(Rollup!$B$24,$C15)),MAX(,V$1:V14)+1,0) -> 0 | W15: 14 | Y15: =IF(ISNUMBER(SEARCH(Rollup!$B$25,$C15)),MAX(,Y$1:Y14)+1,0) -> 0 | Z15: 14 | AB15: =IF(ISNUMBER(SEARCH(Rollup!$B$26,$C15)),MAX(,AB$1:AB14)+1,0) -> 0 | AC15: 14 | AE15: =IF(ISNUMBER(SEARCH(Rollup!$B$27,$C15)),MAX(,AE$1:AE14)+1,0) -> 0 | AF15: 14 | AH15: =IF(ISNUMBER(SEARCH(Rollup!$B$28,$C15)),MAX(,AH$1:AH14)+1,0) -> 0 | AI15: 14 | AK15: =IF(ISNUMBER(SEARCH(Rollup!$B$29,$C15)),MAX(,AK$1:AK14)+1,0) -> 0 | AL15: 14 | AN15: =IF(ISNUMBER(SEARCH(Rollup!$B$30,$C15)),MAX(,AN$1:AN14)+1,0) -> 0 | AO15: 14 | AQ15: =IF(ISNUMBER(SEARCH(Rollup!$B$31,$C15)),MAX(,AQ$1:AQ14)+1,0) -> 14 | AR15: 14 | AS15: ADMINISTRATIVE INTERN 1 | AT15: =IF(ISNUMBER(SEARCH(Rollup!$B$32,$C15)),MAX(,AT$1:AT14)+1,0) -> 14 | AU15: 14 | AV15: ADMINISTRATIVE INTERN 1 | AW15: =IF(ISNUMBER(SEARCH(Rollup!$B$33,$C15)),MAX(,AW$1:AW14)+1,0) -> 14 | AX15: 14 | AY15: ADMINISTRATIVE INTERN 1 | AZ15: =IF(ISNUMBER(SEARCH(Rollup!$B$34,$C15)),MAX(,AZ$1:AZ14)+1,0) -> 14 | BA15: 14 | BB15: ADMINISTRATIVE INTERN 1 | BC15: =IF(ISNUMBER(SEARCH(Rollup!$B$35,$C15)),MAX(,BC$1:BC14)+1,0) -> 14 | BD15: 14 | BE15: ADMINISTRATIVE INTERN 1 | BF15: =IF(ISNUMBER(SEARCH(Rollup!$B$36,$C15)),MAX(,BF$1:BF14)+1,0) -> 14 | BG15: 14 | BH15: ADMINISTRATIVE INTERN 1 | BI15: =IF(ISNUMBER(SEARCH(Rollup!$B$37,$C15)),MAX(,BI$1:BI14)+1,0) -> 14 | BJ15: 14 | BK15: ADMINISTRATIVE INTERN 1 | BL15: =IF(ISNUMBER(SEARCH(Rollup!$B$38,$C15)),MAX(,BL$1:BL14)+1,0) -> 14 | BM15: 14 | BN15: ADMINISTRATIVE INTERN 1
B16: 104I | C16: ADMINISTRATIVE INTERN 2 | D16: 32 | E16: E | F16: E | G16: =IF(ISNUMBER(SEARCH(Rollup!$B$19,$C16)),MAX(,$G$1:G15)+1,0) -> 0 | H16: 15 | J16: =IF(ISNUMBER(SEARCH(Rollup!$B$20,$C16)),MAX(,$J$1:J15)+1,0) -> 0 | K16: 15 | M16: =IF(ISNUMBER(SEARCH(Rollup!$B$21,$C16)),MAX(,M$1:M15)+1,0) -> 0 | N16: 15 | P16: =IF(ISNUMBER(SEARCH(Rollup!$B$22,$C16)),MAX(,P$1:P15)+1,0) -> 0 | Q16: 15 | S16: =IF(ISNUMBER(SEARCH(Rollup!$B$23,$C16)),MAX(,S$1:S15)+1,0) -> 0 | T16: 15 | V16: =IF(ISNUMBER(SEARCH(Rollup!$B$24,$C16)),MAX(,V$1:V15)+1,0) -> 0 | W16: 15 | Y16: =IF(ISNUMBER(SEARCH(Rollup!$B$25,$C16)),MAX(,Y$1:Y15)+1,0) -> 0 | Z16: 15 | AB16: =IF(ISNUMBER(SEARCH(Rollup!$B$26,$C16)),MAX(,AB$1:AB15)+1,0) -> 0 | AC16: 15 | AE16: =IF(ISNUMBER(SEARCH(Rollup!$B$27,$C16)),MAX(,AE$1:AE15)+1,0) -> 0 | AF16: 15 | AH16: =IF(ISNUMBER(SEARCH(Rollup!$B$28,$C16)),MAX(,AH$1:AH15)+1,0) -> 0 | AI16: 15 | AK16: =IF(ISNUMBER(SEARCH(Rollup!$B$29,$C16)),MAX(,AK$1:AK15)+1,0) -> 0 | AL16: 15 | AN16: =IF(ISNUMBER(SEARCH(Rollup!$B$30,$C16)),MAX(,AN$1:AN15)+1,0) -> 0 | AO16: 15 | AQ16: =IF(ISNUMBER(SEARCH(Rollup!$B$31,$C16)),MAX(,AQ$1:AQ15)+1,0) -> 15 | AR16: 15 | AS16: ADMINISTRATIVE INTERN 2 | AT16: =IF(ISNUMBER(SEARCH(Rollup!$B$32,$C16)),MAX(,AT$1:AT15)+1,0) -> 15 | AU16: 15 | AV16: ADMINISTRATIVE INTERN 2 | AW16: =IF(ISNUMBER(SEARCH(Rollup!$B$33,$C16)),MAX(,AW$1:AW15)+1,0) -> 15 | AX16: 15 | AY16: ADMINISTRATIVE INTERN 2 | AZ16: =IF(ISNUMBER(SEARCH(Rollup!$B$34,$C16)),MAX(,AZ$1:AZ15)+1,0) -> 15 | BA16: 15 | BB16: ADMINISTRATIVE INTERN 2 | BC16: =IF(ISNUMBER(SEARCH(Rollup!$B$35,$C16)),MAX(,BC$1:BC15)+1,0) -> 15 | BD16: 15 | BE16: ADMINISTRATIVE INTERN 2 | BF16: =IF(ISNUMBER(SEARCH(Rollup!$B$36,$C16)),MAX(,BF$1:BF15)+1,0) -> 15 | BG16: 15 | BH16: ADMINISTRATIVE INTERN 2 | BI16: =IF(ISNUMBER(SEARCH(Rollup!$B$37,$C16)),MAX(,BI$1:BI15)+1,0) -> 15 | BJ16: 15 | BK16: ADMINISTRATIVE INTERN 2 | BL16: =IF(ISNUMBER(SEARCH(Rollup!$B$38,$C16)),MAX(,BL$1:BL15)+1,0) -> 15 | BM16: 15 | BN16: ADMINISTRATIVE INTERN 2
B17: 104J | C17: ADMINISTRATIVE INTERN 3 | D17: 34 | E17: E | F17: E | G17: =IF(ISNUMBER(SEARCH(Rollup!$B$19,$C17)),MAX(,$G$1:G16)+1,0) -> 0 | H17: 16 | J17: =IF(ISNUMBER(SEARCH(Rollup!$B$20,$C17)),MAX(,$J$1:J16)+1,0) -> 0 | K17: 16 | M17: =IF(ISNUMBER(SEARCH(Rollup!$B$21,$C17)),MAX(,M$1:M16)+1,0) -> 0 | N17: 16 | P17: =IF(ISNUMBER(SEARCH(Rollup!$B$22,$C17)),MAX(,P$1:P16)+1,0) -> 0 | Q17: 16 | S17: =IF(ISNUMBER(SEARCH(Rollup!$B$23,$C17)),MAX(,S$1:S16)+1,0) -> 0 | T17: 16 | V17: =IF(ISNUMBER(SEARCH(Rollup!$B$24,$C17)),MAX(,V$1:V16)+1,0) -> 0 | W17: 16 | Y17: =IF(ISNUMBER(SEARCH(Rollup!$B$25,$C17)),MAX(,Y$1:Y16)+1,0) -> 0 | Z17: 16 | AB17: =IF(ISNUMBER(SEARCH(Rollup!$B$26,$C17)),MAX(,AB$1:AB16)+1,0) -> 0 | AC17: 16 | AE17: =IF(ISNUMBER(SEARCH(Rollup!$B$27,$C17)),MAX(,AE$1:AE16)+1,0) -> 0 | AF17: 16 | AH17: =IF(ISNUMBER(SEARCH(Rollup!$B$28,$C17)),MAX(,AH$1:AH16)+1,0) -> 0 | AI17: 16 | AK17: =IF(ISNUMBER(SEARCH(Rollup!$B$29,$C17)),MAX(,AK$1:AK16)+1,0) -> 0 | AL17: 16 | AN17: =IF(ISNUMBER(SEARCH(Rollup!$B$30,$C17)),MAX(,AN$1:AN16)+1,0) -> 0 | AO17: 16 | AQ17: =IF(ISNUMBER(SEARCH(Rollup!$B$31,$C17)),MAX(,AQ$1:AQ16)+1,0) -> 16 | AR17: 16 | AS17: ADMINISTRATIVE INTERN 3 | AT17: =IF(ISNUMBER(SEARCH(Rollup!$B$32,$C17)),MAX(,AT$1:AT16)+1,0) -> 16 | AU17: 16 | AV17: ADMINISTRATIVE INTERN 3 | AW17: =IF(ISNUMBER(SEARCH(Rollup!$B$33,$C17)),MAX(,AW$1:AW16)+1,0) -> 16 | AX17: 16 | AY17: ADMINISTRATIVE INTERN 3 | AZ17: =IF(ISNUMBER(SEARCH(Rollup!$B$34,$C17)),MAX(,AZ$1:AZ16)+1,0) -> 16 | BA17: 16 | BB17: ADMINISTRATIVE INTERN 3 | BC17: =IF(ISNUMBER(SEARCH(Rollup!$B$35,$C17)),MAX(,BC$1:BC16)+1,0) -> 16 | BD17: 16 | BE17: ADMINISTRATIVE INTERN 3 | BF17: =IF(ISNUMBER(SEARCH(Rollup!$B$36,$C17)),MAX(,BF$1:BF16)+1,0) -> 16 | BG17: 16 | BH17: ADMINISTRATIVE INTERN 3 | BI17: =IF(ISNUMBER(SEARCH(Rollup!$B$37,$C17)),MAX(,BI$1:BI16)+1,0) -> 16 | BJ17: 16 | BK17: ADMINISTRATIVE INTERN 3 | BL17: =IF(ISNUMBER(SEARCH(Rollup!$B$38,$C17)),MAX(,BL$1:BL16)+1,0) -> 16 | BM17: 16 | BN17: ADMINISTRATIVE INTERN 3
B18: 253T | C18: ADMINISTRATIVE PROGRAM SPECIALIST 1 | D18: 54 | F18: B | G18: =IF(ISNUMBER(SEARCH(Rollup!$B$19,$C18)),MAX(,$G$1:G17)+1,0) -> 0 | H18: 17 | J18: =IF(ISNUMBER(SEARCH(Rollup!$B$20,$C18)),MAX(,$J$1:J17)+1,0) -> 0 | K18: 17 | M18: =IF(ISNUMBER(SEARCH(Rollup!$B$21,$C18)),MAX(,M$1:M17)+1,0) -> 0 | N18: 17 | P18: =IF(ISNUMBER(SEARCH(Rollup!$B$22,$C18)),MAX(,P$1:P17)+1,0) -> 0 | Q18: 17 | S18: =IF(ISNUMBER(SEARCH(Rollup!$B$23,$C18)),MAX(,S$1:S17)+1,0) -> 0 | T18: 17 | V18: =IF(ISNUMBER(SEARCH(Rollup!$B$24,$C18)),MAX(,V$1:V17)+1,0) -> 0 | W18: 17 | Y18: =IF(ISNUMBER(SEARCH(Rollup!$B$25,$C18)),MAX(,Y$1:Y17)+1,0) -> 0 | Z18: 17 | AB18: =IF(ISNUMBER(SEARCH(Rollup!$B$26,$C18)),MAX(,AB$1:AB17)+1,0) -> 0 | AC18: 17 | AE18: =IF(ISNUMBER(SEARCH(Rollup!$B$27,$C18)),MAX(,AE$1:AE17)+1,0) -> 0 | AF18: 17 | AH18: =IF(ISNUMBER(SEARCH(Rollup!$B$28,$C18)),MAX(,AH$1:AH17)+1,0) -> 0 | AI18: 17 | AK18: =IF(ISNUMBER(SEARCH(Rollup!$B$29,$C18)),MAX(,AK$1:AK17)+1,0) -> 0 | AL18: 17 | AN18: =IF(ISNUMBER(SEARCH(Rollup!$B$30,$C18)),MAX(,AN$1:AN17)+1,0) -> 0 | AO18: 17 | AQ18: =IF(ISNUMBER(SEARCH(Rollup!$B$31,$C18)),MAX(,AQ$1:AQ17)+1,0) -> 17 | AR18: 17 | AS18: ADMINISTRATIVE PROGRAM SPECIALIST 1 | AT18: =IF(ISNUMBER(SEARCH(Rollup!$B$32,$C18)),MAX(,AT$1:AT17)+1,0) -> 17 | AU18: 17 | AV18: ADMINISTRATIVE PROGRAM SPECIALIST 1 | AW18: =IF(ISNUMBER(SEARCH(Rollup!$B$33,$C18)),MAX(,AW$1:AW17)+1,0) -> 17 | AX18: 17 | AY18: ADMINISTRATIVE PROGRAM SPECIALIST 1 | AZ18: =IF(ISNUMBER(SEARCH(Rollup!$B$34,$C18)),MAX(,AZ$1:AZ17)+1,0) -> 17 | BA18: 17 | BB18: ADMINISTRATIVE PROGRAM SPECIALIST 1 | BC18: =IF(ISNUMBER(SEARCH(Rollup!$B$35,$C18)),MAX(,BC$1:BC17)+1,0) -> 17 | BD18: 17 | BE18: ADMINISTRATIVE PROGRAM SPECIALIST 1 | BF18: =IF(ISNUMBER(SEARCH(Rollup!$B$36,$C18)),MAX(,BF$1:BF17)+1,0) -> 17 | BG18: 17 | BH18: ADMINISTRATIVE PROGRAM SPECIALIST 1 | BI18: =IF(ISNUMBER(SEARCH(Rollup!$B$37,$C18)),MAX(,BI$1:BI17)+1,0) -> 17 | BJ18: 17 | BK18: ADMINISTRATIVE PROGRAM SPECIALIST 1 | BL18: =IF(ISNUMBER(SEARCH(Rollup!$B$38,$C18)),MAX(,BL$1:BL17)+1,0) -> 17 | BM18: 17 | BN18: ADMINISTRATIVE PROGRAM SPECIALIST 1
B19: 253U | C19: ADMINISTRATIVE PROGRAM SPECIALIST 2 | D19: 60 | F19: B | G19: =IF(ISNUMBER(SEARCH(Rollup!$B$19,$C19)),MAX(,$G$1:G18)+1,0) -> 0 | H19: 18 | J19: =IF(ISNUMBER(SEARCH(Rollup!$B$20,$C19)),MAX(,$J$1:J18)+1,0) -> 0 | K19: 18 | M19: =IF(ISNUMBER(SEARCH(Rollup!$B$21,$C19)),MAX(,M$1:M18)+1,0) -> 0 | N19: 18 | P19: =IF(ISNUMBER(SEARCH(Rollup!$B$22,$C19)),MAX(,P$1:P18)+1,0) -> 0 | Q19: 18 | S19: =IF(ISNUMBER(SEARCH(Rollup!$B$23,$C19)),MAX(,S$1:S18)+1,0) -> 0 | T19: 18 | V19: =IF(ISNUMBER(SEARCH(Rollup!$B$24,$C19)),MAX(,V$1:V18)+1,0) -> 0 | W19: 18 | Y19: =IF(ISNUMBER(SEARCH(Rollup!$B$25,$C19)),MAX(,Y$1:Y18)+1,0) -> 0 | Z19: 18 | AB19: =IF(ISNUMBER(SEARCH(Rollup!$B$26,$C19)),MAX(,AB$1:AB18)+1,0) -> 0 | AC19: 18 | AE19: =IF(ISNUMBER(SEARCH(Rollup!$B$27,$C19)),MAX(,AE$1:AE18)+1,0) -> 0 | AF19: 18 | AH19: =IF(ISNUMBER(SEARCH(Rollup!$B$28,$C19)),MAX(,AH$1:AH18)+1,0) -> 0 | AI19: 18 | AK19: =IF(ISNUMBER(SEARCH(Rollup!$B$29,$C19)),MAX(,AK$1:AK18)+1,0) -> 0 | AL19: 18 | AN19: =IF(ISNUMBER(SEARCH(Rollup!$B$30,$C19)),MAX(,AN$1:AN18)+1,0) -> 0 | AO19: 18 | AQ19: =IF(ISNUMBER(SEARCH(Rollup!$B$31,$C19)),MAX(,AQ$1:AQ18)+1,0) -> 18 | AR19: 18 | AS19: ADMINISTRATIVE PROGRAM SPECIALIST 2 | AT19: =IF(ISNUMBER(SEARCH(Rollup!$B$32,$C19)),MAX(,AT$1:AT18)+1,0) -> 18 | AU19: 18 | AV19: ADMINISTRATIVE PROGRAM SPECIALIST 2 | AW19: =IF(ISNUMBER(SEARCH(Rollup!$B$33,$C19)),MAX(,AW$1:AW18)+1,0) -> 18 | AX19: 18 | AY19: ADMINISTRATIVE PROGRAM SPECIALIST 2 | AZ19: =IF(ISNUMBER(SEARCH(Rollup!$B$34,$C19)),MAX(,AZ$1:AZ18)+1,0) -> 18 | BA19: 18 | BB19: ADMINISTRATIVE PROGRAM SPECIALIST 2 | BC19: =IF(ISNUMBER(SEARCH(Rollup!$B$35,$C19)),MAX(,BC$1:BC18)+1,0) -> 18 | BD19: 18 | BE19: ADMINISTRATIVE PROGRAM SPECIALIST 2 | BF19: =IF(ISNUMBER(SEARCH(Rollup!$B$36,$C19)),MAX(,BF$1:BF18)+1,0) -> 18 | BG19: 18 | BH19: ADMINISTRATIVE PROGRAM SPECIALIST 2 | BI19: =IF(ISNUMBER(SEARCH(Rollup!$B$37,$C19)),MAX(,BI$1:BI18)+1,0) -> 18 | BJ19: 18 | BK19: ADMINISTRATIVE PROGRAM SPECIALIST 2 | BL19: =IF(ISNUMBER(SEARCH(Rollup!$B$38,$C19)),MAX(,BL$1:BL18)+1,0) -> 18 | BM19: 18 | BN19: ADMINISTRATIVE PROGRAM SPECIALIST 2
B20: 108E | C20: ADMINISTRATIVE REGULATIONS ANALYST 2 | D20: 48 | F20: 3 | G20: =IF(ISNUMBER(SEARCH(Rollup!$B$19,$C20)),MAX(,$G$1:G19)+1,0) -> 0 | H20: 19 | J20: =IF(ISNUMBER(SEARCH(Rollup!$B$20,$C20)),MAX(,$J$1:J19)+1,0) -> 0 | K20: 19 | M20: =IF(ISNUMBER(SEARCH(Rollup!$B$21,$C20)),MAX(,M$1:M19)+1,0) -> 0 | N20: 19 | P20: =IF(ISNUMBER(SEARCH(Rollup!$B$22,$C20)),MAX(,P$1:P19)+1,0) -> 0 | Q20: 19 | S20: =IF(ISNUMBER(SEARCH(Rollup!$B$23,$C20)),MAX(,S$1:S19)+1,0) -> 0 | T20: 19 | V20: =IF(ISNUMBER(SEARCH(Rollup!$B$24,$C20)),MAX(,V$1:V19)+1,0) -> 0 | W20: 19 | Y20: =IF(ISNUMBER(SEARCH(Rollup!$B$25,$C20)),MAX(,Y$1:Y19)+1,0) -> 0 | Z20: 19 | AB20: =IF(ISNUMBER(SEARCH(Rollup!$B$26,$C20)),MAX(,AB$1:AB19)+1,0) -> 0 | AC20: 19 | AE20: =IF(ISNUMBER(SEARCH(Rollup!$B$27,$C20)),MAX(,AE$1:AE19)+1,0) -> 0 | AF20: 19 | AH20: =IF(ISNUMBER(SEARCH(Rollup!$B$28,$C20)),MAX(,AH$1:AH19)+1,0) -> 0 | AI20: 19 | AK20: =IF(ISNUMBER(SEARCH(Rollup!$B$29,$C20)),MAX(,AK$1:AK19)+1,0) -> 0 | AL20: 19 | AN20: =IF(ISNUMBER(SEARCH(Rollup!$B$30,$C20)),MAX(,AN$1:AN19)+1,0) -> 0 | AO20: 19 | AQ20: =IF(ISNUMBER(SEARCH(Rollup!$B$31,$C20)),MAX(,AQ$1:AQ19)+1,0) -> 19 | AR20: 19 | AS20: ADMINISTRATIVE REGULATIONS ANALYST 2 | AT20: =IF(ISNUMBER(SEARCH(Rollup!$B$32,$C20)),MAX(,AT$1:AT19)+1,0) -> 19 | AU20: 19 | AV20: ADMINISTRATIVE REGULATIONS ANALYST 2 | AW20: =IF(ISNUMBER(SEARCH(Rollup!$B$33,$C20)),MAX(,AW$1:AW19)+1,0) -> 19 | AX20: 19 | AY20: ADMINISTRATIVE REGULATIONS ANALYST 2 | AZ20: =IF(ISNUMBER(SEARCH(Rollup!$B$34,$C20)),MAX(,AZ$1:AZ19)+1,0) -> 19 | BA20: 19 | BB20: ADMINISTRATIVE REGULATIONS ANALYST 2 | BC20: =IF(ISNUMBER(SEARCH(Rollup!$B$35,$C20)),MAX(,BC$1:BC19)+1,0) -> 19 | BD20: 19 | BE20: ADMINISTRATIVE REGULATIONS ANALYST 2 | BF20: =IF(ISNUMBER(SEARCH(Rollup!$B$36,$C20)),MAX(,BF$1:BF19)+1,0) -> 19 | BG20: 19 | BH20: ADMINISTRATIVE REGULATIONS ANALYST 2 | BI20: =IF(ISNUMBER(SEARCH(Rollup!$B$37,$C20)),MAX(,BI$1:BI19)+1,0) -> 19 | BJ20: 19 | BK20: ADMINISTRATIVE REGULATIONS ANALYST 2 | BL20: =IF(ISNUMBER(SEARCH(Rollup!$B$38,$C20)),MAX(,BL$1:BL19)+1,0) -> 19 | BM20: 19 | BN20: ADMINISTRATIVE REGULATIONS ANALYST 2
B21: 108F | C21: ADMINISTRATIVE REGULATIONS ANALYST 3 | D21: 55 | F21: 3 | G21: =IF(ISNUMBER(SEARCH(Rollup!$B$19,$C21)),MAX(,$G$1:G20)+1,0) -> 0 | H21: 20 | J21: =IF(ISNUMBER(SEARCH(Rollup!$B$20,$C21)),MAX(,$J$1:J20)+1,0) -> 0 | K21: 20 | M21: =IF(ISNUMBER(SEARCH(Rollup!$B$21,$C21)),MAX(,M$1:M20)+1,0) -> 0 | N21: 20 | P21: =IF(ISNUMBER(SEARCH(Rollup!$B$22,$C21)),MAX(,P$1:P20)+1,0) -> 0 | Q21: 20 | S21: =IF(ISNUMBER(SEARCH(Rollup!$B$23,$C21)),MAX(,S$1:S20)+1,0) -> 0 | T21: 20 | V21: =IF(ISNUMBER(SEARCH(Rollup!$B$24,$C21)),MAX(,V$1:V20)+1,0) -> 0 | W21: 20 | Y21: =IF(ISNUMBER(SEARCH(Rollup!$B$25,$C21)),MAX(,Y$1:Y20)+1,0) -> 0 | Z21: 20 | AB21: =IF(ISNUMBER(SEARCH(Rollup!$B$26,$C21)),MAX(,AB$1:AB20)+1,0) -> 0 | AC21: 20 | AE21: =IF(ISNUMBER(SEARCH(Rollup!$B$27,$C21)),MAX(,AE$1:AE20)+1,0) -> 0 | AF21: 20 | AH21: =IF(ISNUMBER(SEARCH(Rollup!$B$28,$C21)),MAX(,AH$1:AH20)+1,0) -> 0 | AI21: 20 | AK21: =IF(ISNUMBER(SEARCH(Rollup!$B$29,$C21)),MAX(,AK$1:AK20)+1,0) -> 0 | AL21: 20 | AN21: =IF(ISNUMBER(SEARCH(Rollup!$B$30,$C21)),MAX(,AN$1:AN20)+1,0) -> 0 | AO21: 20 | AQ21: =IF(ISNUMBER(SEARCH(Rollup!$B$31,$C21)),MAX(,AQ$1:AQ20)+1,0) -> 20 | AR21: 20 | AS21: ADMINISTRATIVE REGULATIONS ANALYST 3 | AT21: =IF(ISNUMBER(SEARCH(Rollup!$B$32,$C21)),MAX(,AT$1:AT20)+1,0) -> 20 | AU21: 20 | AV21: ADMINISTRATIVE REGULATIONS ANALYST 3 | AW21: =IF(ISNUMBER(SEARCH(Rollup!$B$33,$C21)),MAX(,AW$1:AW20)+1,0) -> 20 | AX21: 20 | AY21: ADMINISTRATIVE REGULATIONS ANALYST 3 | AZ21: =IF(ISNUMBER(SEARCH(Rollup!$B$34,$C21)),MAX(,AZ$1:AZ20)+1,0) -> 20 | BA21: 20 | BB21: ADMINISTRATIVE REGULATIONS ANALYST 3 | BC21: =IF(ISNUMBER(SEARCH(Rollup!$B$35,$C21)),MAX(,BC$1:BC20)+1,0) -> 20 | BD21: 20 | BE21: ADMINISTRATIVE REGULATIONS ANALYST 3 | BF21: =IF(ISNUMBER(SEARCH(Rollup!$B$36,$C21)),MAX(,BF$1:BF20)+1,0) -> 20 | BG21: 20 | BH21: ADMINISTRATIVE REGULATIONS ANALYST 3 | BI21: =IF(ISNUMBER(SEARCH(Rollup!$B$37,$C21)),MAX(,BI$1:BI20)+1,0) -> 20 | BJ21: 20 | BK21: ADMINISTRATIVE REGULATIONS ANALYST 3 | BL21: =IF(ISNUMBER(SEARCH(Rollup!$B$38,$C21)),MAX(,BL$1:BL20)+1,0) -> 20 | BM21: 20 | BN21: ADMINISTRATIVE REGULATIONS ANALYST 3
B22: 108G | C22: ADMINISTRATIVE REGULATIONS ANALYST 4 | D22: 61 | F22: B | G22: =IF(ISNUMBER(SEARCH(Rollup!$B$19,$C22)),MAX(,$G$1:G21)+1,0) -> 0 | H22: 21 | J22: =IF(ISNUMBER(SEARCH(Rollup!$B$20,$C22)),MAX(,$J$1:J21)+1,0) -> 0 | K22: 21 | M22: =IF(ISNUMBER(SEARCH(Rollup!$B$21,$C22)),MAX(,M$1:M21)+1,0) -> 0 | N22: 21 | P22: =IF(ISNUMBER(SEARCH(Rollup!$B$22,$C22)),MAX(,P$1:P21)+1,0) -> 0 | Q22: 21 | S22: =IF(ISNUMBER(SEARCH(Rollup!$B$23,$C22)),MAX(,S$1:S21)+1,0) -> 0 | T22: 21 | V22: =IF(ISNUMBER(SEARCH(Rollup!$B$24,$C22)),MAX(,V$1:V21)+1,0) -> 0 | W22: 21 | Y22: =IF(ISNUMBER(SEARCH(Rollup!$B$25,$C22)),MAX(,Y$1:Y21)+1,0) -> 0 | Z22: 21 | AB22: =IF(ISNUMBER(SEARCH(Rollup!$B$26,$C22)),MAX(,AB$1:AB21)+1,0) -> 0 | AC22: 21 | AE22: =IF(ISNUMBER(SEARCH(Rollup!$B$27,$C22)),MAX(,AE$1:AE21)+1,0) -> 0 | AF22: 21 | AH22: =IF(ISNUMBER(SEARCH(Rollup!$B$28,$C22)),MAX(,AH$1:AH21)+1,0) -> 0 | AI22: 21 | AK22: =IF(ISNUMBER(SEARCH(Rollup!$B$29,$C22)),MAX(,AK$1:AK21)+1,0) -> 0 | AL22: 21 | AN22: =IF(ISNUMBER(SEARCH(Rollup!$B$30,$C22)),MAX(,AN$1:AN21)+1,0) -> 0 | AO22: 21 | AQ22: =IF(ISNUMBER(SEARCH(Rollup!$B$31,$C22)),MAX(,AQ$1:AQ21)+1,0) -> 21 | AR22: 21 | AS22: ADMINISTRATIVE REGULATIONS ANALYST 4 | AT22: =IF(ISNUMBER(SEARCH(Rollup!$B$32,$C22)),MAX(,AT$1:AT21)+1,0) -> 21 | AU22: 21 | AV22: ADMINISTRATIVE REGULATIONS ANALYST 4 | AW22: =IF(ISNUMBER(SEARCH(Rollup!$B$33,$C22)),MAX(,AW$1:AW21)+1,0) -> 21 | AX22: 21 | AY22: ADMINISTRATIVE REGULATIONS ANALYST 4 | AZ22: =IF(ISNUMBER(SEARCH(Rollup!$B$34,$C22)),MAX(,AZ$1:AZ21)+1,0) -> 21 | BA22: 21 | BB22: ADMINISTRATIVE REGULATIONS ANALYST 4 | BC22: =IF(ISNUMBER(SEARCH(Rollup!$B$35,$C22)),MAX(,BC$1:BC21)+1,0) -> 21 | BD22: 21 | BE22: ADMINISTRATIVE REGULATIONS ANALYST 4 | BF22: =IF(ISNUMBER(SEARCH(Rollup!$B$36,$C22)),MAX(,BF$1:BF21)+1,0) -> 21 | BG22: 21 | BH22: ADMINISTRATIVE REGULATIONS ANALYST 4 | BI22: =IF(ISNUMBER(SEARCH(Rollup!$B$37,$C22)),MAX(,BI$1:BI21)+1,0) -> 21 | BJ22: 21 | BK22: ADMINISTRATIVE REGULATIONS ANALYST 4 | BL22: =IF(ISNUMBER(SEARCH(Rollup!$B$38,$C22)),MAX(,BL$1:BL21)+1,0) -> 21 | BM22: 21 | BN22: ADMINISTRATIVE REGULATIONS ANALYST 4
B23: 106E | C23: ADMINISTRATIVE SERVICES MANAGER A | D23: 46 | F23: 1 | G23: =IF(ISNUMBER(SEARCH(Rollup!$B$19,$C23)),MAX(,$G$1:G22)+1,0) -> 0 | H23: 22 | J23: =IF(ISNUMBER(SEARCH(Rollup!$B$20,$C23)),MAX(,$J$1:J22)+1,0) -> 0 | K23: 22 | M23: =IF(ISNUMBER(SEARCH(Rollup!$B$21,$C23)),MAX(,M$1:M22)+1,0) -> 0 | N23: 22 | P23: =IF(ISNUMBER(SEARCH(Rollup!$B$22,$C23)),MAX(,P$1:P22)+1,0) -> 0 | Q23: 22 | S23: =IF(ISNUMBER(SEARCH(Rollup!$B$23,$C23)),MAX(,S$1:S22)+1,0) -> 0 | T23: 22 | V23: =IF(ISNUMBER(SEARCH(Rollup!$B$24,$C23)),MAX(,V$1:V22)+1,0) -> 0 | W23: 22 | Y23: =IF(ISNUMBER(SEARCH(Rollup!$B$25,$C23)),MAX(,Y$1:Y22)+1,0) -> 0 | Z23: 22 | AB23: =IF(ISNUMBER(SEARCH(Rollup!$B$26,$C23)),MAX(,AB$1:AB22)+1,0) -> 0 | AC23: 22 | AE23: =IF(ISNUMBER(SEARCH(Rollup!$B$27,$C23)),MAX(,AE$1:AE22)+1,0) -> 0 | AF23: 22 | AH23: =IF(ISNUMBER(SEARCH(Rollup!$B$28,$C23)),MAX(,AH$1:AH22)+1,0) -> 0 | AI23: 22 | AK23: =IF(ISNUMBER(SEARCH(Rollup!$B$29,$C23)),MAX(,AK$1:AK22)+1,0) -> 0 | AL23: 22 | AN23: =IF(ISNUMBER(SEARCH(Rollup!$B$30,$C23)),MAX(,AN$1:AN22)+1,0) -> 0 | AO23: 22 | AQ23: =IF(ISNUMBER(SEARCH(Rollup!$B$31,$C23)),MAX(,AQ$1:AQ22)+1,0) -> 22 | AR23: 22 | AS23: ADMINISTRATIVE SERVICES MANAGER A | AT23: =IF(ISNUMBER(SEARCH(Rollup!$B$32,$C23)),MAX(,AT$1:AT22)+1,0) -> 22 | AU23: 22 | AV23: ADMINISTRATIVE SERVICES MANAGER A | AW23: =IF(ISNUMBER(SEARCH(Rollup!$B$33,$C23)),MAX(,AW$1:AW22)+1,0) -> 22 | AX23: 22 | AY23: ADMINISTRATIVE SERVICES MANAGER A | AZ23: =IF(ISNUMBER(SEARCH(Rollup!$B$34,$C23)),MAX(,AZ$1:AZ22)+1,0) -> 22 | BA23: 22 | BB23: ADMINISTRATIVE SERVICES MANAGER A | BC23: =IF(ISNUMBER(SEARCH(Rollup!$B$35,$C23)),MAX(,BC$1:BC22)+1,0) -> 22 | BD23: 22 | BE23: ADMINISTRATIVE SERVICES MANAGER A | BF23: =IF(ISNUMBER(SEARCH(Rollup!$B$36,$C23)),MAX(,BF$1:BF22)+1,0) -> 22 | BG23: 22 | BH23: ADMINISTRATIVE SERVICES MANAGER A | BI23: =IF(ISNUMBER(SEARCH(Rollup!$B$37,$C23)),MAX(,BI$1:BI22)+1,0) -> 22 | BJ23: 22 | BK23: ADMINISTRATIVE SERVICES MANAGER A | BL23: =IF(ISNUMBER(SEARCH(Rollup!$B$38,$C23)),MAX(,BL$1:BL22)+1,0) -> 22 | BM23: 22 | BN23: ADMINISTRATIVE SERVICES MANAGER A
B24: 106F | C24: ADMINISTRATIVE SERVICES MANAGER B | D24: 51 | F24: 1 | G24: =IF(ISNUMBER(SEARCH(Rollup!$B$19,$C24)),MAX(,$G$1:G23)+1,0) -> 0 | H24: 23 | J24: =IF(ISNUMBER(SEARCH(Rollup!$B$20,$C24)),MAX(,$J$1:J23)+1,0) -> 0 | K24: 23 | M24: =IF(ISNUMBER(SEARCH(Rollup!$B$21,$C24)),MAX(,M$1:M23)+1,0) -> 0 | N24: 23 | P24: =IF(ISNUMBER(SEARCH(Rollup!$B$22,$C24)),MAX(,P$1:P23)+1,0) -> 0 | Q24: 23 | S24: =IF(ISNUMBER(SEARCH(Rollup!$B$23,$C24)),MAX(,S$1:S23)+1,0) -> 0 | T24: 23 | V24: =IF(ISNUMBER(SEARCH(Rollup!$B$24,$C24)),MAX(,V$1:V23)+1,0) -> 0 | W24: 23 | Y24: =IF(ISNUMBER(SEARCH(Rollup!$B$25,$C24)),MAX(,Y$1:Y23)+1,0) -> 0 | Z24: 23 | AB24: =IF(ISNUMBER(SEARCH(Rollup!$B$26,$C24)),MAX(,AB$1:AB23)+1,0) -> 0 | AC24: 23 | AE24: =IF(ISNUMBER(SEARCH(Rollup!$B$27,$C24)),MAX(,AE$1:AE23)+1,0) -> 0 | AF24: 23 | AH24: =IF(ISNUMBER(SEARCH(Rollup!$B$28,$C24)),MAX(,AH$1:AH23)+1,0) -> 0 | AI24: 23 | AK24: =IF(ISNUMBER(SEARCH(Rollup!$B$29,$C24)),MAX(,AK$1:AK23)+1,0) -> 0 | AL24: 23 | AN24: =IF(ISNUMBER(SEARCH(Rollup!$B$30,$C24)),MAX(,AN$1:AN23)+1,0) -> 0 | AO24: 23 | AQ24: =IF(ISNUMBER(SEARCH(Rollup!$B$31,$C24)),MAX(,AQ$1:AQ23)+1,0) -> 23 | AR24: 23 | AS24: ADMINISTRATIVE SERVICES MANAGER B | AT24: =IF(ISNUMBER(SEARCH(Rollup!$B$32,$C24)),MAX(,AT$1:AT23)+1,0) -> 23 | AU24: 23 | AV24: ADMINISTRATIVE SERVICES MANAGER B | AW24: =IF(ISNUMBER(SEARCH(Rollup!$B$33,$C24)),MAX(,AW$1:AW23)+1,0) -> 23 | AX24: 23 | AY24: ADMINISTRATIVE SERVICES MANAGER B | AZ24: =IF(ISNUMBER(SEARCH(Rollup!$B$34,$C24)),MAX(,AZ$1:AZ23)+1,0) -> 23 | BA24: 23 | BB24: ADMINISTRATIVE SERVICES MANAGER B | BC24: =IF(ISNUMBER(SEARCH(Rollup!$B$35,$C24)),MAX(,BC$1:BC23)+1,0) -> 23 | BD24: 23 | BE24: ADMINISTRATIVE SERVICES MANAGER B | BF24: =IF(ISNUMBER(SEARCH(Rollup!$B$36,$C24)),MAX(,BF$1:BF23)+1,0) -> 23 | BG24: 23 | BH24: ADMINISTRATIVE SERVICES MANAGER B | BI24: =IF(ISNUMBER(SEARCH(Rollup!$B$37,$C24)),MAX(,BI$1:BI23)+1,0) -> 23 | BJ24: 23 | BK24: ADMINISTRATIVE SERVICES MANAGER B | BL24: =IF(ISNUMBER(SEARCH(Rollup!$B$38,$C24)),MAX(,BL$1:BL23)+1,0) -> 23 | BM24: 23 | BN24: ADMINISTRATIVE SERVICES MANAGER B
B25: 106G | C25: ADMINISTRATIVE SERVICES MANAGER C | D25: 56 | F25: 1 | G25: =IF(ISNUMBER(SEARCH(Rollup!$B$19,$C25)),MAX(,$G$1:G24)+1,0) -> 0 | H25: 24 | J25: =IF(ISNUMBER(SEARCH(Rollup!$B$20,$C25)),MAX(,$J$1:J24)+1,0) -> 0 | K25: 24 | M25: =IF(ISNUMBER(SEARCH(Rollup!$B$21,$C25)),MAX(,M$1:M24)+1,0) -> 0 | N25: 24 | P25: =IF(ISNUMBER(SEARCH(Rollup!$B$22,$C25)),MAX(,P$1:P24)+1,0) -> 0 | Q25: 24 | S25: =IF(ISNUMBER(SEARCH(Rollup!$B$23,$C25)),MAX(,S$1:S24)+1,0) -> 0 | T25: 24 | V25: =IF(ISNUMBER(SEARCH(Rollup!$B$24,$C25)),MAX(,V$1:V24)+1,0) -> 0 | W25: 24 | Y25: =IF(ISNUMBER(SEARCH(Rollup!$B$25,$C25)),MAX(,Y$1:Y24)+1,0) -> 0 | Z25: 24 | AB25: =IF(ISNUMBER(SEARCH(Rollup!$B$26,$C25)),MAX(,AB$1:AB24)+1,0) -> 0 | AC25: 24 | AE25: =IF(ISNUMBER(SEARCH(Rollup!$B$27,$C25)),MAX(,AE$1:AE24)+1,0) -> 0 | AF25: 24 | AH25: =IF(ISNUMBER(SEARCH(Rollup!$B$28,$C25)),MAX(,AH$1:AH24)+1,0) -> 0 | AI25: 24 | AK25: =IF(ISNUMBER(SEARCH(Rollup!$B$29,$C25)),MAX(,AK$1:AK24)+1,0) -> 0 | AL25: 24 | AN25: =IF(ISNUMBER(SEARCH(Rollup!$B$30,$C25)),MAX(,AN$1:AN24)+1,0) -> 0 | AO25: 24 | AQ25: =IF(ISNUMBER(SEARCH(Rollup!$B$31,$C25)),MAX(,AQ$1:AQ24)+1,0) -> 24 | AR25: 24 | AS25: ADMINISTRATIVE SERVICES MANAGER C | AT25: =IF(ISNUMBER(SEARCH(Rollup!$B$32,$C25)),MAX(,AT$1:AT24)+1,0) -> 24 | AU25: 24 | AV25: ADMINISTRATIVE SERVICES MANAGER C | AW25: =IF(ISNUMBER(SEARCH(Rollup!$B$33,$C25)),MAX(,AW$1:AW24)+1,0) -> 24 | AX25: 24 | AY25: ADMINISTRATIVE SERVICES MANAGER C | AZ25: =IF(ISNUMBER(SEARCH(Rollup!$B$34,$C25)),MAX(,AZ$1:AZ24)+1,0) -> 24 | BA25: 24 | BB25: ADMINISTRATIVE SERVICES MANAGER C | BC25: =IF(ISNUMBER(SEARCH(Rollup!$B$35,$C25)),MAX(,BC$1:BC24)+1,0) -> 24 | BD25: 24 | BE25: ADMINISTRATIVE SERVICES MANAGER C | BF25: =IF(ISNUMBER(SEARCH(Rollup!$B$36,$C25)),MAX(,BF$1:BF24)+1,0) -> 24 | BG25: 24 | BH25: ADMINISTRATIVE SERVICES MANAGER C | BI25: =IF(ISNUMBER(SEARCH(Rollup!$B$37,$C25)),MAX(,BI$1:BI24)+1,0) -> 24 | BJ25: 24 | BK25: ADMINISTRATIVE SERVICES MANAGER C | BL25: =IF(ISNUMBER(SEARCH(Rollup!$B$38,$C25)),MAX(,BL$1:BL24)+1,0) -> 24 | BM25: 24 | BN25: ADMINISTRATIVE SERVICES MANAGER C
B26: 104E | C26: ADMINISTRATIVE TRAINEE 1 | D26: 30 | F26: E | G26: =IF(ISNUMBER(SEARCH(Rollup!$B$19,$C26)),MAX(,$G$1:G25)+1,0) -> 0 | H26: 25 | J26: =IF(ISNUMBER(SEARCH(Rollup!$B$20,$C26)),MAX(,$J$1:J25)+1,0) -> 0 | K26: 25 | M26: =IF(ISNUMBER(SEARCH(Rollup!$B$21,$C26)),MAX(,M$1:M25)+1,0) -> 0 | N26: 25 | P26: =IF(ISNUMBER(SEARCH(Rollup!$B$22,$C26)),MAX(,P$1:P25)+1,0) -> 0 | Q26: 25 | S26: =IF(ISNUMBER(SEARCH(Rollup!$B$23,$C26)),MAX(,S$1:S25)+1,0) -> 0 | T26: 25 | V26: =IF(ISNUMBER(SEARCH(Rollup!$B$24,$C26)),MAX(,V$1:V25)+1,0) -> 0 | W26: 25 | Y26: =IF(ISNUMBER(SEARCH(Rollup!$B$25,$C26)),MAX(,Y$1:Y25)+1,0) -> 0 | Z26: 25 | AB26: =IF(ISNUMBER(SEARCH(Rollup!$B$26,$C26)),MAX(,AB$1:AB25)+1,0) -> 0 | AC26: 25 | AE26: =IF(ISNUMBER(SEARCH(Rollup!$B$27,$C26)),MAX(,AE$1:AE25)+1,0) -> 0 | AF26: 25 | AH26: =IF(ISNUMBER(SEARCH(Rollup!$B$28,$C26)),MAX(,AH$1:AH25)+1,0) -> 0 | AI26: 25 | AK26: =IF(ISNUMBER(SEARCH(Rollup!$B$29,$C26)),MAX(,AK$1:AK25)+1,0) -> 0 | AL26: 25 | AN26: =IF(ISNUMBER(SEARCH(Rollup!$B$30,$C26)),MAX(,AN$1:AN25)+1,0) -> 0 | AO26: 25 | AQ26: =IF(ISNUMBER(SEARCH(Rollup!$B$31,$C26)),MAX(,AQ$1:AQ25)+1,0) -> 25 | AR26: 25 | AS26: ADMINISTRATIVE TRAINEE 1 | AT26: =IF(ISNUMBER(SEARCH(Rollup!$B$32,$C26)),MAX(,AT$1:AT25)+1,0) -> 25 | AU26: 25 | AV26: ADMINISTRATIVE TRAINEE 1 | AW26: =IF(ISNUMBER(SEARCH(Rollup!$B$33,$C26)),MAX(,AW$1:AW25)+1,0) -> 25 | AX26: 25 | AY26: ADMINISTRATIVE TRAINEE 1 | AZ26: =IF(ISNUMBER(SEARCH(Rollup!$B$34,$C26)),MAX(,AZ$1:AZ25)+1,0) -> 25 | BA26: 25 | BB26: ADMINISTRATIVE TRAINEE 1 | BC26: =IF(ISNUMBER(SEARCH(Rollup!$B$35,$C26)),MAX(,BC$1:BC25)+1,0) -> 25 | BD26: 25 | BE26: ADMINISTRATIVE TRAINEE 1 | BF26: =IF(ISNUMBER(SEARCH(Rollup!$B$36,$C26)),MAX(,BF$1:BF25)+1,0) -> 25 | BG26: 25 | BH26: ADMINISTRATIVE TRAINEE 1 | BI26: =IF(ISNUMBER(SEARCH(Rollup!$B$37,$C26)),MAX(,BI$1:BI25)+1,0) -> 25 | BJ26: 25 | BK26: ADMINISTRATIVE TRAINEE 1 | BL26: =IF(ISNUMBER(SEARCH(Rollup!$B$38,$C26)),MAX(,BL$1:BL25)+1,0) -> 25 | BM26: 25 | BN26: ADMINISTRATIVE TRAINEE 1
B27: 104F | C27: ADMINISTRATIVE TRAINEE 2 | D27: 32 | F27: E | G27: =IF(ISNUMBER(SEARCH(Rollup!$B$19,$C27)),MAX(,$G$1:G26)+1,0) -> 0 | H27: 26 | J27: =IF(ISNUMBER(SEARCH(Rollup!$B$20,$C27)),MAX(,$J$1:J26)+1,0) -> 0 | K27: 26 | M27: =IF(ISNUMBER(SEARCH(Rollup!$B$21,$C27)),MAX(,M$1:M26)+1,0) -> 0 | N27: 26 | P27: =IF(ISNUMBER(SEARCH(Rollup!$B$22,$C27)),MAX(,P$1:P26)+1,0) -> 0 | Q27: 26 | S27: =IF(ISNUMBER(SEARCH(Rollup!$B$23,$C27)),MAX(,S$1:S26)+1,0) -> 0 | T27: 26 | V27: =IF(ISNUMBER(SEARCH(Rollup!$B$24,$C27)),MAX(,V$1:V26)+1,0) -> 0 | W27: 26 | Y27: =IF(ISNUMBER(SEARCH(Rollup!$B$25,$C27)),MAX(,Y$1:Y26)+1,0) -> 0 | Z27: 26 | AB27: =IF(ISNUMBER(SEARCH(Rollup!$B$26,$C27)),MAX(,AB$1:AB26)+1,0) -> 0 | AC27: 26 | AE27: =IF(ISNUMBER(SEARCH(Rollup!$B$27,$C27)),MAX(,AE$1:AE26)+1,0) -> 0 | AF27: 26 | AH27: =IF(ISNUMBER(SEARCH(Rollup!$B$28,$C27)),MAX(,AH$1:AH26)+1,0) -> 0 | AI27: 26 | AK27: =IF(ISNUMBER(SEARCH(Rollup!$B$29,$C27)),MAX(,AK$1:AK26)+1,0) -> 0 | AL27: 26 | AN27: =IF(ISNUMBER(SEARCH(Rollup!$B$30,$C27)),MAX(,AN$1:AN26)+1,0) -> 0 | AO27: 26 | AQ27: =IF(ISNUMBER(SEARCH(Rollup!$B$31,$C27)),MAX(,AQ$1:AQ26)+1,0) -> 26 | AR27: 26 | AS27: ADMINISTRATIVE TRAINEE 2 | AT27: =IF(ISNUMBER(SEARCH(Rollup!$B$32,$C27)),MAX(,AT$1:AT26)+1,0) -> 26 | AU27: 26 | AV27: ADMINISTRATIVE TRAINEE 2 | AW27: =IF(ISNUMBER(SEARCH(Rollup!$B$33,$C27)),MAX(,AW$1:AW26)+1,0) -> 26 | AX27: 26 | AY27: ADMINISTRATIVE TRAINEE 2 | AZ27: =IF(ISNUMBER(SEARCH(Rollup!$B$34,$C27)),MAX(,AZ$1:AZ26)+1,0) -> 26 | BA27: 26 | BB27: ADMINISTRATIVE TRAINEE 2 | BC27: =IF(ISNUMBER(SEARCH(Rollup!$B$35,$C27)),MAX(,BC$1:BC26)+1,0) -> 26 | BD27: 26 | BE27: ADMINISTRATIVE TRAINEE 2 | BF27: =IF(ISNUMBER(SEARCH(Rollup!$B$36,$C27)),MAX(,BF$1:BF26)+1,0) -> 26 | BG27: 26 | BH27: ADMINISTRATIVE TRAINEE 2 | BI27: =IF(ISNUMBER(SEARCH(Rollup!$B$37,$C27)),MAX(,BI$1:BI26)+1,0) -> 26 | BJ27: 26 | BK27: ADMINISTRATIVE TRAINEE 2 | BL27: =IF(ISNUMBER(SEARCH(Rollup!$B$38,$C27)),MAX(,BL$1:BL26)+1,0) -> 26 | BM27: 26 | BN27: ADMINISTRATIVE TRAINEE 2
B28: 104G | C28: ADMINISTRATIVE TRAINEE 3 | D28: 35 | F28: E | G28: =IF(ISNUMBER(SEARCH(Rollup!$B$19,$C28)),MAX(,$G$1:G27)+1,0) -> 0 | H28: 27 | J28: =IF(ISNUMBER(SEARCH(Rollup!$B$20,$C28)),MAX(,$J$1:J27)+1,0) -> 0 | K28: 27 | M28: =IF(ISNUMBER(SEARCH(Rollup!$B$21,$C28)),MAX(,M$1:M27)+1,0) -> 0 | N28: 27 | P28: =IF(ISNUMBER(SEARCH(Rollup!$B$22,$C28)),MAX(,P$1:P27)+1,0) -> 0 | Q28: 27 | S28: =IF(ISNUMBER(SEARCH(Rollup!$B$23,$C28)),MAX(,S$1:S27)+1,0) -> 0 | T28: 27 | V28: =IF(ISNUMBER(SEARCH(Rollup!$B$24,$C28)),MAX(,V$1:V27)+1,0) -> 0 | W28: 27 | Y28: =IF(ISNUMBER(SEARCH(Rollup!$B$25,$C28)),MAX(,Y$1:Y27)+1,0) -> 0 | Z28: 27 | AB28: =IF(ISNUMBER(SEARCH(Rollup!$B$26,$C28)),MAX(,AB$1:AB27)+1,0) -> 0 | AC28: 27 | AE28: =IF(ISNUMBER(SEARCH(Rollup!$B$27,$C28)),MAX(,AE$1:AE27)+1,0) -> 0 | AF28: 27 | AH28: =IF(ISNUMBER(SEARCH(Rollup!$B$28,$C28)),MAX(,AH$1:AH27)+1,0) -> 0 | AI28: 27 | AK28: =IF(ISNUMBER(SEARCH(Rollup!$B$29,$C28)),MAX(,AK$1:AK27)+1,0) -> 0 | AL28: 27 | AN28: =IF(ISNUMBER(SEARCH(Rollup!$B$30,$C28)),MAX(,AN$1:AN27)+1,0) -> 0 | AO28: 27 | AQ28: =IF(ISNUMBER(SEARCH(Rollup!$B$31,$C28)),MAX(,AQ$1:AQ27)+1,0) -> 27 | AR28: 27 | AS28: ADMINISTRATIVE TRAINEE 3 | AT28: =IF(ISNUMBER(SEARCH(Rollup!$B$32,$C28)),MAX(,AT$1:AT27)+1,0) -> 27 | AU28: 27 | AV28: ADMINISTRATIVE TRAINEE 3 | AW28: =IF(ISNUMBER(SEARCH(Rollup!$B$33,$C28)),MAX(,AW$1:AW27)+1,0) -> 27 | AX28: 27 | AY28: ADMINISTRATIVE TRAINEE 3 | AZ28: =IF(ISNUMBER(SEARCH(Rollup!$B$34,$C28)),MAX(,AZ$1:AZ27)+1,0) -> 27 | BA28: 27 | BB28: ADMINISTRATIVE TRAINEE 3 | BC28: =IF(ISNUMBER(SEARCH(Rollup!$B$35,$C28)),MAX(,BC$1:BC27)+1,0) -> 27 | BD28: 27 | BE28: ADMINISTRATIVE TRAINEE 3 | BF28: =IF(ISNUMBER(SEARCH(Rollup!$B$36,$C28)),MAX(,BF$1:BF27)+1,0) -> 27 | BG28: 27 | BH28: ADMINISTRATIVE TRAINEE 3 | BI28: =IF(ISNUMBER(SEARCH(Rollup!$B$37,$C28)),MAX(,BI$1:BI27)+1,0) -> 27 | BJ28: 27 | BK28: ADMINISTRATIVE TRAINEE 3 | BL28: =IF(ISNUMBER(SEARCH(Rollup!$B$38,$C28)),MAX(,BL$1:BL27)+1,0) -> 27 | BM28: 27 | BN28: ADMINISTRATIVE TRAINEE 3
A29: + | B29: 346E | C29: ADULT TRAINING SPECIALIST 1 | D29: 34 | F29: E | G29: =IF(ISNUMBER(SEARCH(Rollup!$B$19,$C29)),MAX(,$G$1:G28)+1,0) -> 0 | H29: 28 | J29: =IF(ISNUMBER(SEARCH(Rollup!$B$20,$C29)),MAX(,$J$1:J28)+1,0) -> 0 | K29: 28 | M29: =IF(ISNUMBER(SEARCH(Rollup!$B$21,$C29)),MAX(,M$1:M28)+1,0) -> 0 | N29: 28 | P29: =IF(ISNUMBER(SEARCH(Rollup!$B$22,$C29)),MAX(,P$1:P28)+1,0) -> 0 | Q29: 28 | S29: =IF(ISNUMBER(SEARCH(Rollup!$B$23,$C29)),MAX(,S$1:S28)+1,0) -> 0 | T29: 28 | V29: =IF(ISNUMBER(SEARCH(Rollup!$B$24,$C29)),MAX(,V$1:V28)+1,0) -> 0 | W29: 28 | Y29: =IF(ISNUMBER(SEARCH(Rollup!$B$25,$C29)),MAX(,Y$1:Y28)+1,0) -> 0 | Z29: 28 | AB29: =IF(ISNUMBER(SEARCH(Rollup!$B$26,$C29)),MAX(,AB$1:AB28)+1,0) -> 0 | AC29: 28 | AE29: =IF(ISNUMBER(SEARCH(Rollup!$B$27,$C29)),MAX(,AE$1:AE28)+1,0) -> 0 | AF29: 28 | AH29: =IF(ISNUMBER(SEARCH(Rollup!$B$28,$C29)),MAX(,AH$1:AH28)+1,0) -> 0 | AI29: 28 | AK29: =IF(ISNUMBER(SEARCH(Rollup!$B$29,$C29)),MAX(,AK$1:AK28)+1,0) -> 0 | AL29: 28 | AN29: =IF(ISNUMBER(SEARCH(Rollup!$B$30,$C29)),MAX(,AN$1:AN28)+1,0) -> 0 | AO29: 28 | AQ29: =IF(ISNUMBER(SEARCH(Rollup!$B$31,$C29)),MAX(,AQ$1:AQ28)+1,0) -> 28 | AR29: 28 | AS29: ADULT TRAINING SPECIALIST 1 | AT29: =IF(ISNUMBER(SEARCH(Rollup!$B$32,$C29)),MAX(,AT$1:AT28)+1,0) -> 28 | AU29: 28 | AV29: ADULT TRAINING SPECIALIST 1 | AW29: =IF(ISNUMBER(SEARCH(Rollup!$B$33,$C29)),MAX(,AW$1:AW28)+1,0) -> 28 | AX29: 28 | AY29: ADULT TRAINING SPECIALIST 1 | AZ29: =IF(ISNUMBER(SEARCH(Rollup!$B$34,$C29)),MAX(,AZ$1:AZ28)+1,0) -> 28 | BA29: 28 | BB29: ADULT TRAINING SPECIALIST 1 | BC29: =IF(ISNUMBER(SEARCH(Rollup!$B$35,$C29)),MAX(,BC$1:BC28)+1,0) -> 28 | BD29: 28 | BE29: ADULT TRAINING SPECIALIST 1 | BF29: =IF(ISNUMBER(SEARCH(Rollup!$B$36,$C29)),MAX(,BF$1:BF28)+1,0) -> 28 | BG29: 28 | BH29: ADULT TRAINING SPECIALIST 1 | BI29: =IF(ISNUMBER(SEARCH(Rollup!$B$37,$C29)),MAX(,BI$1:BI28)+1,0) -> 28 | BJ29: 28 | BK29: ADULT TRAINING SPECIALIST 1 | BL29: =IF(ISNUMBER(SEARCH(Rollup!$B$38,$C29)),MAX(,BL$1:BL28)+1,0) -> 28 | BM29: 28 | BN29: ADULT TRAINING SPECIALIST 1
B30: 346F | C30: ADULT TRAINING SPECIALIST 2 | D30: 39 | F30: E | G30: =IF(ISNUMBER(SEARCH(Rollup!$B$19,$C30)),MAX(,$G$1:G29)+1,0) -> 0 | H30: 29 | J30: =IF(ISNUMBER(SEARCH(Rollup!$B$20,$C30)),MAX(,$J$1:J29)+1,0) -> 0 | K30: 29 | M30: =IF(ISNUMBER(SEARCH(Rollup!$B$21,$C30)),MAX(,M$1:M29)+1,0) -> 0 | N30: 29 | P30: =IF(ISNUMBER(SEARCH(Rollup!$B$22,$C30)),MAX(,P$1:P29)+1,0) -> 0 | Q30: 29 | S30: =IF(ISNUMBER(SEARCH(Rollup!$B$23,$C30)),MAX(,S$1:S29)+1,0) -> 0 | T30: 29 | V30: =IF(ISNUMBER(SEARCH(Rollup!$B$24,$C30)),MAX(,V$1:V29)+1,0) -> 0 | W30: 29 | Y30: =IF(ISNUMBER(SEARCH(Rollup!$B$25,$C30)),MAX(,Y$1:Y29)+1,0) -> 0 | Z30: 29 | AB30: =IF(ISNUMBER(SEARCH(Rollup!$B$26,$C30)),MAX(,AB$1:AB29)+1,0) -> 0 | AC30: 29 | AE30: =IF(ISNUMBER(SEARCH(Rollup!$B$27,$C30)),MAX(,AE$1:AE29)+1,0) -> 0 | AF30: 29 | AH30: =IF(ISNUMBER(SEARCH(Rollup!$B$28,$C30)),MAX(,AH$1:AH29)+1,0) -> 0 | AI30: 29 | AK30: =IF(ISNUMBER(SEARCH(Rollup!$B$29,$C30)),MAX(,AK$1:AK29)+1,0) -> 0 | AL30: 29 | AN30: =IF(ISNUMBER(SEARCH(Rollup!$B$30,$C30)),MAX(,AN$1:AN29)+1,0) -> 0 | AO30: 29 | AQ30: =IF(ISNUMBER(SEARCH(Rollup!$B$31,$C30)),MAX(,AQ$1:AQ29)+1,0) -> 29 | AR30: 29 | AS30: ADULT TRAINING SPECIALIST 2 | AT30: =IF(ISNUMBER(SEARCH(Rollup!$B$32,$C30)),MAX(,AT$1:AT29)+1,0) -> 29 | AU30: 29 | AV30: ADULT TRAINING SPECIALIST 2 | AW30: =IF(ISNUMBER(SEARCH(Rollup!$B$33,$C30)),MAX(,AW$1:AW29)+1,0) -> 29 | AX30: 29 | AY30: ADULT TRAINING SPECIALIST 2 | AZ30: =IF(ISNUMBER(SEARCH(Rollup!$B$34,$C30)),MAX(,AZ$1:AZ29)+1,0) -> 29 | BA30: 29 | BB30: ADULT TRAINING SPECIALIST 2 | BC30: =IF(ISNUMBER(SEARCH(Rollup!$B$35,$C30)),MAX(,BC$1:BC29)+1,0) -> 29 | BD30: 29 | BE30: ADULT TRAINING SPECIALIST 2 | BF30: =IF(ISNUMBER(SEARCH(Rollup!$B$36,$C30)),MAX(,BF$1:BF29)+1,0) -> 29 | BG30: 29 | BH30: ADULT TRAINING SPECIALIST 2 | BI30: =IF(ISNUMBER(SEARCH(Rollup!$B$37,$C30)),MAX(,BI$1:BI29)+1,0) -> 29 | BJ30: 29 | BK30: ADULT TRAINING SPECIALIST 2 | BL30: =IF(ISNUMBER(SEARCH(Rollup!$B$38,$C30)),MAX(,BL$1:BL29)+1,0) -> 29 | BM30: 29 | BN30: ADULT TRAINING SPECIALIST 2
B31: 346G | C31: ADULT TRAINING SPECIALIST 3 | D31: 42 | F31: E | G31: =IF(ISNUMBER(SEARCH(Rollup!$B$19,$C31)),MAX(,$G$1:G30)+1,0) -> 0 | H31: 30 | J31: =IF(ISNUMBER(SEARCH(Rollup!$B$20,$C31)),MAX(,$J$1:J30)+1,0) -> 0 | K31: 30 | M31: =IF(ISNUMBER(SEARCH(Rollup!$B$21,$C31)),MAX(,M$1:M30)+1,0) -> 0 | N31: 30 | P31: =IF(ISNUMBER(SEARCH(Rollup!$B$22,$C31)),MAX(,P$1:P30)+1,0) -> 0 | Q31: 30 | S31: =IF(ISNUMBER(SEARCH(Rollup!$B$23,$C31)),MAX(,S$1:S30)+1,0) -> 0 | T31: 30 | V31: =IF(ISNUMBER(SEARCH(Rollup!$B$24,$C31)),MAX(,V$1:V30)+1,0) -> 0 | W31: 30 | Y31: =IF(ISNUMBER(SEARCH(Rollup!$B$25,$C31)),MAX(,Y$1:Y30)+1,0) -> 0 | Z31: 30 | AB31: =IF(ISNUMBER(SEARCH(Rollup!$B$26,$C31)),MAX(,AB$1:AB30)+1,0) -> 0 | AC31: 30 | AE31: =IF(ISNUMBER(SEARCH(Rollup!$B$27,$C31)),MAX(,AE$1:AE30)+1,0) -> 0 | AF31: 30 | AH31: =IF(ISNUMBER(SEARCH(Rollup!$B$28,$C31)),MAX(,AH$1:AH30)+1,0) -> 0 | AI31: 30 | AK31: =IF(ISNUMBER(SEARCH(Rollup!$B$29,$C31)),MAX(,AK$1:AK30)+1,0) -> 0 | AL31: 30 | AN31: =IF(ISNUMBER(SEARCH(Rollup!$B$30,$C31)),MAX(,AN$1:AN30)+1,0) -> 0 | AO31: 30 | AQ31: =IF(ISNUMBER(SEARCH(Rollup!$B$31,$C31)),MAX(,AQ$1:AQ30)+1,0) -> 30 | AR31: 30 | AS31: ADULT TRAINING SPECIALIST 3 | AT31: =IF(ISNUMBER(SEARCH(Rollup!$B$32,$C31)),MAX(,AT$1:AT30)+1,0) -> 30 | AU31: 30 | AV31: ADULT TRAINING SPECIALIST 3 | AW31: =IF(ISNUMBER(SEARCH(Rollup!$B$33,$C31)),MAX(,AW$1:AW30)+1,0) -> 30 | AX31: 30 | AY31: ADULT TRAINING SPECIALIST 3 | AZ31: =IF(ISNUMBER(SEARCH(Rollup!$B$34,$C31)),MAX(,AZ$1:AZ30)+1,0) -> 30 | BA31: 30 | BB31: ADULT TRAINING SPECIALIST 3 | BC31: =IF(ISNUMBER(SEARCH(Rollup!$B$35,$C31)),MAX(,BC$1:BC30)+1,0) -> 30 | BD31: 30 | BE31: ADULT TRAINING SPECIALIST 3 | BF31: =IF(ISNUMBER(SEARCH(Rollup!$B$36,$C31)),MAX(,BF$1:BF30)+1,0) -> 30 | BG31: 30 | BH31: ADULT TRAINING SPECIALIST 3 | BI31: =IF(ISNUMBER(SEARCH(Rollup!$B$37,$C31)),MAX(,BI$1:BI30)+1,0) -> 30 | BJ31: 30 | BK31: ADULT TRAINING SPECIALIST 3 | BL31: =IF(ISNUMBER(SEARCH(Rollup!$B$38,$C31)),MAX(,BL$1:BL30)+1,0) -> 30 | BM31: 30 | BN31: ADULT TRAINING SPECIALIST 3
B32: 346I | C32: ADULT TRAINING SUPERVISOR | D32: 56 | F32: B | G32: =IF(ISNUMBER(SEARCH(Rollup!$B$19,$C32)),MAX(,$G$1:G31)+1,0) -> 0 | H32: 31 | J32: =IF(ISNUMBER(SEARCH(Rollup!$B$20,$C32)),MAX(,$J$1:J31)+1,0) -> 0 | K32: 31 | M32: =IF(ISNUMBER(SEARCH(Rollup!$B$21,$C32)),MAX(,M$1:M31)+1,0) -> 0 | N32: 31 | P32: =IF(ISNUMBER(SEARCH(Rollup!$B$22,$C32)),MAX(,P$1:P31)+1,0) -> 0 | Q32: 31 | S32: =IF(ISNUMBER(SEARCH(Rollup!$B$23,$C32)),MAX(,S$1:S31)+1,0) -> 0 | T32: 31 | V32: =IF(ISNUMBER(SEARCH(Rollup!$B$24,$C32)),MAX(,V$1:V31)+1,0) -> 0 | W32: 31 | Y32: =IF(ISNUMBER(SEARCH(Rollup!$B$25,$C32)),MAX(,Y$1:Y31)+1,0) -> 0 | Z32: 31 | AB32: =IF(ISNUMBER(SEARCH(Rollup!$B$26,$C32)),MAX(,AB$1:AB31)+1,0) -> 0 | AC32: 31 | AE32: =IF(ISNUMBER(SEARCH(Rollup!$B$27,$C32)),MAX(,AE$1:AE31)+1,0) -> 0 | AF32: 31 | AH32: =IF(ISNUMBER(SEARCH(Rollup!$B$28,$C32)),MAX(,AH$1:AH31)+1,0) -> 0 | AI32: 31 | AK32: =IF(ISNUMBER(SEARCH(Rollup!$B$29,$C32)),MAX(,AK$1:AK31)+1,0) -> 0 | AL32: 31 | AN32: =IF(ISNUMBER(SEARCH(Rollup!$B$30,$C32)),MAX(,AN$1:AN31)+1,0) -> 0 | AO32: 31 | AQ32: =IF(ISNUMBER(SEARCH(Rollup!$B$31,$C32)),MAX(,AQ$1:AQ31)+1,0) -> 31 | AR32: 31 | AS32: ADULT TRAINING SUPERVISOR | AT32: =IF(ISNUMBER(SEARCH(Rollup!$B$32,$C32)),MAX(,AT$1:AT31)+1,0) -> 31 | AU32: 31 | AV32: ADULT TRAINING SUPERVISOR | AW32: =IF(ISNUMBER(SEARCH(Rollup!$B$33,$C32)),MAX(,AW$1:AW31)+1,0) -> 31 | AX32: 31 | AY32: ADULT TRAINING SUPERVISOR | AZ32: =IF(ISNUMBER(SEARCH(Rollup!$B$34,$C32)),MAX(,AZ$1:AZ31)+1,0) -> 31 | BA32: 31 | BB32: ADULT TRAINING SUPERVISOR | BC32: =IF(ISNUMBER(SEARCH(Rollup!$B$35,$C32)),MAX(,BC$1:BC31)+1,0) -> 31 | BD32: 31 | BE32: ADULT TRAINING SUPERVISOR | BF32: =IF(ISNUMBER(SEARCH(Rollup!$B$36,$C32)),MAX(,BF$1:BF31)+1,0) -> 31 | BG32: 31 | BH32: ADULT TRAINING SUPERVISOR | BI32: =IF(ISNUMBER(SEARCH(Rollup!$B$37,$C32)),MAX(,BI$1:BI31)+1,0) -> 31 | BJ32: 31 | BK32: ADULT TRAINING SUPERVISOR | BL32: =IF(ISNUMBER(SEARCH(Rollup!$B$38,$C32)),MAX(,BL$1:BL31)+1,0) -> 31 | BM32: 31 | BN32: ADULT TRAINING SUPERVISOR
B33: 391W | C33: ADVISORY LABORATORIAN | D33: 60 | F33: B | G33: =IF(ISNUMBER(SEARCH(Rollup!$B$19,$C33)),MAX(,$G$1:G32)+1,0) -> 0 | H33: 32 | J33: =IF(ISNUMBER(SEARCH(Rollup!$B$20,$C33)),MAX(,$J$1:J32)+1,0) -> 0 | K33: 32 | M33: =IF(ISNUMBER(SEARCH(Rollup!$B$21,$C33)),MAX(,M$1:M32)+1,0) -> 0 | N33: 32 | P33: =IF(ISNUMBER(SEARCH(Rollup!$B$22,$C33)),MAX(,P$1:P32)+1,0) -> 0 | Q33: 32 | S33: =IF(ISNUMBER(SEARCH(Rollup!$B$23,$C33)),MAX(,S$1:S32)+1,0) -> 0 | T33: 32 | V33: =IF(ISNUMBER(SEARCH(Rollup!$B$24,$C33)),MAX(,V$1:V32)+1,0) -> 0 | W33: 32 | Y33: =IF(ISNUMBER(SEARCH(Rollup!$B$25,$C33)),MAX(,Y$1:Y32)+1,0) -> 0 | Z33: 32 | AB33: =IF(ISNUMBER(SEARCH(Rollup!$B$26,$C33)),MAX(,AB$1:AB32)+1,0) -> 0 | AC33: 32 | AE33: =IF(ISNUMBER(SEARCH(Rollup!$B$27,$C33)),MAX(,AE$1:AE32)+1,0) -> 0 | AF33: 32 | AH33: =IF(ISNUMBER(SEARCH(Rollup!$B$28,$C33)),MAX(,AH$1:AH32)+1,0) -> 0 | AI33: 32 | AK33: =IF(ISNUMBER(SEARCH(Rollup!$B$29,$C33)),MAX(,AK$1:AK32)+1,0) -> 0 | AL33: 32 | AN33: =IF(ISNUMBER(SEARCH(Rollup!$B$30,$C33)),MAX(,AN$1:AN32)+1,0) -> 0 | AO33: 32 | AQ33: =IF(ISNUMBER(SEARCH(Rollup!$B$31,$C33)),MAX(,AQ$1:AQ32)+1,0) -> 32 | AR33: 32 | AS33: ADVISORY LABORATORIAN | AT33: =IF(ISNUMBER(SEARCH(Rollup!$B$32,$C33)),MAX(,AT$1:AT32)+1,0) -> 32 | AU33: 32 | AV33: ADVISORY LABORATORIAN | AW33: =IF(ISNUMBER(SEARCH(Rollup!$B$33,$C33)),MAX(,AW$1:AW32)+1,0) -> 32 | AX33: 32 | AY33: ADVISORY LABORATORIAN | AZ33: =IF(ISNUMBER(SEARCH(Rollup!$B$34,$C33)),MAX(,AZ$1:AZ32)+1,0) -> 32 | BA33: 32 | BB33: ADVISORY LABORATORIAN | BC33: =IF(ISNUMBER(SEARCH(Rollup!$B$35,$C33)),MAX(,BC$1:BC32)+1,0) -> 32 | BD33: 32 | BE33: ADVISORY LABORATORIAN | BF33: =IF(ISNUMBER(SEARCH(Rollup!$B$36,$C33)),MAX(,BF$1:BF32)+1,0) -> 32 | BG33: 32 | BH33: ADVISORY LABORATORIAN | BI33: =IF(ISNUMBER(SEARCH(Rollup!$B$37,$C33)),MAX(,BI$1:BI32)+1,0) -> 32 | BJ33: 32 | BK33: ADVISORY LABORATORIAN | BL33: =IF(ISNUMBER(SEARCH(Rollup!$B$38,$C33)),MAX(,BL$1:BL32)+1,0) -> 32 | BM33: 32 | BN33: ADVISORY LABORATORIAN
B34: 429C | C34: AGO INVESTIGATOR ANALYST | D34: 61 | G34: =IF(ISNUMBER(SEARCH(Rollup!$B$19,$C34)),MAX(,$G$1:G33)+1,0) -> 0 | H34: 33 | J34: =IF(ISNUMBER(SEARCH(Rollup!$B$20,$C34)),MAX(,$J$1:J33)+1,0) -> 0 | K34: 33 | M34: =IF(ISNUMBER(SEARCH(Rollup!$B$21,$C34)),MAX(,M$1:M33)+1,0) -> 0 | N34: 33 | P34: =IF(ISNUMBER(SEARCH(Rollup!$B$22,$C34)),MAX(,P$1:P33)+1,0) -> 0 | Q34: 33 | S34: =IF(ISNUMBER(SEARCH(Rollup!$B$23,$C34)),MAX(,S$1:S33)+1,0) -> 0 | T34: 33 | V34: =IF(ISNUMBER(SEARCH(Rollup!$B$24,$C34)),MAX(,V$1:V33)+1,0) -> 0 | W34: 33 | Y34: =IF(ISNUMBER(SEARCH(Rollup!$B$25,$C34)),MAX(,Y$1:Y33)+1,0) -> 0 | Z34: 33 | AB34: =IF(ISNUMBER(SEARCH(Rollup!$B$26,$C34)),MAX(,AB$1:AB33)+1,0) -> 0 | AC34: 33 | AE34: =IF(ISNUMBER(SEARCH(Rollup!$B$27,$C34)),MAX(,AE$1:AE33)+1,0) -> 0 | AF34: 33 | AH34: =IF(ISNUMBER(SEARCH(Rollup!$B$28,$C34)),MAX(,AH$1:AH33)+1,0) -> 0 | AI34: 33 | AK34: =IF(ISNUMBER(SEARCH(Rollup!$B$29,$C34)),MAX(,AK$1:AK33)+1,0) -> 0 | AL34: 33 | AN34: =IF(ISNUMBER(SEARCH(Rollup!$B$30,$C34)),MAX(,AN$1:AN33)+1,0) -> 0 | AO34: 33 | AQ34: =IF(ISNUMBER(SEARCH(Rollup!$B$31,$C34)),MAX(,AQ$1:AQ33)+1,0) -> 33 | AR34: 33 | AS34: AGO INVESTIGATOR ANALYST | AT34: =IF(ISNUMBER(SEARCH(Rollup!$B$32,$C34)),MAX(,AT$1:AT33)+1,0) -> 33 | AU34: 33 | AV34: AGO INVESTIGATOR ANALYST | AW34: =IF(ISNUMBER(SEARCH(Rollup!$B$33,$C34)),MAX(,AW$1:AW33)+1,0) -> 33 | AX34: 33 | AY34: AGO INVESTIGATOR ANALYST | AZ34: =IF(ISNUMBER(SEARCH(Rollup!$B$34,$C34)),MAX(,AZ$1:AZ33)+1,0) -> 33 | BA34: 33 | BB34: AGO INVESTIGATOR ANALYST | BC34: =IF(ISNUMBER(SEARCH(Rollup!$B$35,$C34)),MAX(,BC$1:BC33)+1,0) -> 33 | BD34: 33 | BE34: AGO INVESTIGATOR ANALYST | BF34: =IF(ISNUMBER(SEARCH(Rollup!$B$36,$C34)),MAX(,BF$1:BF33)+1,0) -> 33 | BG34: 33 | BH34: AGO INVESTIGATOR ANALYST | BI34: =IF(ISNUMBER(SEARCH(Rollup!$B$37,$C34)),MAX(,BI$1:BI33)+1,0) -> 33 | BJ34: 33 | BK34: AGO INVESTIGATOR ANALYST | BL34: =IF(ISNUMBER(SEARCH(Rollup!$B$38,$C34)),MAX(,BL$1:BL33)+1,0) -> 33 | BM34: 33 | BN34: AGO INVESTIGATOR ANALYST
B35: 249D | C35: AGO SR/SUPERVISOR INVESTIGATOR ANALYST | D35: 65 | G35: =IF(ISNUMBER(SEARCH(Rollup!$B$19,$C35)),MAX(,$G$1:G34)+1,0) -> 0 | H35: 34 | J35: =IF(ISNUMBER(SEARCH(Rollup!$B$20,$C35)),MAX(,$J$1:J34)+1,0) -> 0 | K35: 34 | M35: =IF(ISNUMBER(SEARCH(Rollup!$B$21,$C35)),MAX(,M$1:M34)+1,0) -> 0 | N35: 34 | P35: =IF(ISNUMBER(SEARCH(Rollup!$B$22,$C35)),MAX(,P$1:P34)+1,0) -> 0 | Q35: 34 | S35: =IF(ISNUMBER(SEARCH(Rollup!$B$23,$C35)),MAX(,S$1:S34)+1,0) -> 0 | T35: 34 | V35: =IF(ISNUMBER(SEARCH(Rollup!$B$24,$C35)),MAX(,V$1:V34)+1,0) -> 0 | W35: 34 | Y35: =IF(ISNUMBER(SEARCH(Rollup!$B$25,$C35)),MAX(,Y$1:Y34)+1,0) -> 0 | Z35: 34 | AB35: =IF(ISNUMBER(SEARCH(Rollup!$B$26,$C35)),MAX(,AB$1:AB34)+1,0) -> 0 | AC35: 34 | AE35: =IF(ISNUMBER(SEARCH(Rollup!$B$27,$C35)),MAX(,AE$1:AE34)+1,0) -> 0 | AF35: 34 | AH35: =IF(ISNUMBER(SEARCH(Rollup!$B$28,$C35)),MAX(,AH$1:AH34)+1,0) -> 0 | AI35: 34 | AK35: =IF(ISNUMBER(SEARCH(Rollup!$B$29,$C35)),MAX(,AK$1:AK34)+1,0) -> 0 | AL35: 34 | AN35: =IF(ISNUMBER(SEARCH(Rollup!$B$30,$C35)),MAX(,AN$1:AN34)+1,0) -> 0 | AO35: 34 | AQ35: =IF(ISNUMBER(SEARCH(Rollup!$B$31,$C35)),MAX(,AQ$1:AQ34)+1,0) -> 34 | AR35: 34 | AS35: AGO SR/SUPERVISOR INVESTIGATOR ANALYST | AT35: =IF(ISNUMBER(SEARCH(Rollup!$B$32,$C35)),MAX(,AT$1:AT34)+1,0) -> 34 | AU35: 34 | AV35: AGO SR/SUPERVISOR INVESTIGATOR ANALYST | AW35: =IF(ISNUMBER(SEARCH(Rollup!$B$33,$C35)),MAX(,AW$1:AW34)+1,0) -> 34 | AX35: 34 | AY35: AGO SR/SUPERVISOR INVESTIGATOR ANALYST | AZ35: =IF(ISNUMBER(SEARCH(Rollup!$B$34,$C35)),MAX(,AZ$1:AZ34)+1,0) -> 34 | BA35: 34 | BB35: AGO SR/SUPERVISOR INVESTIGATOR ANALYST | BC35: =IF(ISNUMBER(SEARCH(Rollup!$B$35,$C35)),MAX(,BC$1:BC34)+1,0) -> 34 | BD35: 34 | BE35: AGO SR/SUPERVISOR INVESTIGATOR ANALYST | BF35: =IF(ISNUMBER(SEARCH(Rollup!$B$36,$C35)),MAX(,BF$1:BF34)+1,0) -> 34 | BG35: 34 | BH35: AGO SR/SUPERVISOR INVESTIGATOR ANALYST | BI35: =IF(ISNUMBER(SEARCH(Rollup!$B$37,$C35)),MAX(,BI$1:BI34)+1,0) -> 34 | BJ35: 34 | BK35: AGO SR/SUPERVISOR INVESTIGATOR ANALYST | BL35: =IF(ISNUMBER(SEARCH(Rollup!$B$38,$C35)),MAX(,BL$1:BL34)+1,0) -> 34 | BM35: 34 | BN35: AGO SR/SUPERVISOR INVESTIGATOR ANALYST
